Workbook

Sheet Main Screen
B3: Energy Efficiency Tool for Pumping Systems
C7: Project Name: | G7: Enter Project Name here
C9: Project Description: | G9: Enter Project Description here
C13: This tool is developed to evaluate energy efficiency alternatives for existing and new pump stations.
G22: Please select one of the following:
G29: Software Tool

Sheet SystemConfig (hidden)
A3: System Parameters
A5: Property | B5: Value | K5: Picklist | M5: Picklist-General Assumptions Ex Page 7
A6: Password | B6: Pump2012!
A7: Disclaimer Message | B7: This study was funded by the Water Research Foundation (WRF). WRF assumes no responsibility for the content of the research study reported in this spreadsheet or for the opinions or statements of fact expressed in the spreadsheet. The mention of trade names for commercial products does not represent or imply the approval or endorsement of WRF. This spreadsheet is presented solely for informational purposes. | K7: None | M7: LS
A8: GuideBookExistingPump | B8: WaterRF 4308 Final Submitted 1 13 2015.pdf | K8: VFD | M8: D/S
A9: GuideBookNewPump | B9: Software Guidebook Manual 09 27 13.pdf | K9: Constant Speed
A10: CurrentNumPumpTested | B10: 0
A11: NextPageState
A12: PreviousPageState
A13: MainPageState | B13: Main Screen
A14: NextPageStateOverride
A15: PreviousPageStateOverride
A16: IsNewPumpPath | B16: 1
A17: RecommendationMsg1 | B17: Recommendation: Constant speed pump appears to be more suitable. However, conduct life cycle analysis for economic viability.
A18: RecommendationMsg2 | B18: Recommendation: VFD appears to be more suitable. However, conduct life cycle analysis for economic viability.
A19: RecommendationMsg3 | B19: Recommendation: Constant speed pump appears to be more suitable. However, conduct life cycle analysis for economic viability.
A20: SheetBackgroundColor
A21: TableBackgroundColor
A22: Header1Color
A23: Header2Color
A24: CopyRightMessage | B24: ALL RIGHTS RESERVED No part of this publication may be copied, reproduced or otherwise utilized without permissions.

Sheet Page 1 (hidden)
B3: Pump Performance Evaluation
C7: Project Name: | F7: ='Main Screen'!G7 -> Enter Project Name here
C9: Project Description: | F9: ='Main Screen'!G9 -> Enter Project Description here
C14: Pump Station Flow Information
D16: Maximum flow (gpm) | J16: 0
D18: Design flow (gpm) | J18: 0
D20: Minimum flow (gpm) | J20: 0
D22: Total number of duty pumps (Nos) | J22: 0
D24: Number of pumps with VFD (Nos) | J24: 0
C28: Do you have pump efficiency test results for the pumps?
C31: Do you want to evaluate if VFD is an energy efficient solution for one of the constant speed pumps?
C34: Pump Test Information
D36: Total number of pumps tested | J36: 0
D38: Number of fixed pumps tested | J38: 0
D40: Number of variable speed pumps tested | J40: 0
C45: Pump Test Results
D46: Pumps | F46: Current Performance (Actual Field Measurement) | K46: As-Built Performance (From Records)
C47: ID | F47: Pump Driver | G47: Pump Flow (gpm) | H47: Pump Head (ft) | I47: Input Power (kW) | K47: Pump Efficiency (%) | M47: Motor Efficiency (%) | N47: Drive Efficiency (%)
F48: None | G48: 0 | H48: 0 | I48: 0 | K48: 0 | M48: 0 | N48: =IF(F48="Constant Speed",1,0) -> 0

Sheet Page 2 (hidden)
B2: Pump Efficiency Analysis
C7: Project Name: | F7: ='Page 1'!F7:M7 -> Enter Project Name here
C9: Project Description: | F9: ='Page 1'!F9:M9 -> Enter Project Description here
C14: Pump ID | F14: Type | G14: Water Horsepower | H14: Wire-to-Water Efficiency (%) | K14: Recommendations
H15: Current Performance | J15: As-Built Performance
F16: ='Page 1'!F48 -> None | G16: ='Page 1'!H48*'Page 1'!G48/3960 -> 0 | H16: =IF('Page 1'!I48>0,('Page 1'!G48*'Page 1'!H48)/(5308*'Page 1'!I48),0) -> 0 | J16: ='Page 1'!K48*'Page 1'!M48*'Page 1'!N48 -> 0 | K16: =IF(J16<H16,"Pump is most likely operating at desire efficiency level","Investigation of energy optimization is recommended") -> Investigation of energy optimization is recommended
C20: Do you want to evaluate if VFD is an energy efficient solution for one of the constant speed pumps?

Sheet Page 3 (hidden)
B3: Evaluation of VFD vs Constant Speed
C7: Project Name: | D7: ='Page 1'!F7 -> Enter Project Name here
C9: Project Description: | D9: ='Page 1'!F9 -> Enter Project Description here
C13: Please complete the table below with the necessary information.
C14: Types | D14: Input | L14: Analysis
D15: Percent of design flow (%) | E15: Flow (gpm) | F15: Head (ft) | G15: Utilization per year (hrs) | H15: Pump efficiency (%) | I15: Motor efficiency (%) | J15: VFD efficiency (%) | K15: Power Input (kW) | L15: Wire-to-Water efficiency (%) | M15: Energy consumption per year (kWh) | N15: Volume pumped per year (gal)
C16: VFD | D16: 0 | E16: 0 | F16: 0 | G16: 0 | H16: 0 | I16: 0 | J16: 0 | K16: 0 | L16: =H16*I16*J16 -> 0 | M16: =K16*G16 -> 0 | N16: =E16*G16*60 -> 0
D17: 0 | E17: 0 | F17: 0 | G17: 0 | H17: 0 | I17: 0 | J17: 0 | K17: 0 | L17: =H17*I17*J17 -> 0 | M17: =K17*G17 -> 0 | N17: =E17*G17*60 -> 0
D18: 0 | E18: 0 | F18: 0 | G18: 0 | H18: 0 | I18: 0 | J18: 0 | K18: 0 | L18: =H18*I18*J18 -> 0 | M18: =K18*G18 -> 0 | N18: 0
D19: 0 | E19: 0 | F19: 0 | G19: 0 | H19: 0 | I19: 0 | J19: 0 | K19: 0 | L19: =H19*I19*J19 -> 0 | M19: =K19*G19 -> 0 | N19: 0
C21: Constant Speed | D21: 0 | E21: 0 | F21: 0 | G21: 0 | H21: 0 | I21: 0 | J21: 0 | K21: 0 | L21: =vfd_cpumpeff*vfd_cmotoreff*vfd_ceff -> 0 | M21: =K21*G21 -> 0 | N21: =E21*G21*60 -> 0
D22: 0 | E22: 0 | F22: 0 | G22: 0 | H22: 0 | I22: 0 | J22: 0 | K22: 0 | L22: =H22*I22*J22 -> 0 | M22: =K22*G22 -> 0 | N22: =E22*G22*60 -> 0
D23: 0 | E23: 0 | F23: 0 | G23: 0 | H23: 0 | I23: 0 | J23: 0 | K23: 0 | L23: =H23*I23*J23 -> 0 | M23: 0 | N23: 0
D24: 0 | E24: 0 | F24: 0 | G24: 0 | H24: 0 | I24: 0 | J24: 0 | K24: 0 | L24: 0 | M24: 0 | N24: 0
C29: Specific Energy Comparison
C30: Estimated specific energy with VFD (kWh/Kgal) | G30: =IF(SUM(N16:N19)>0,SUM(M16:M19)*1000/SUM(N16:N19),0) -> 0
C31: Estimated specific energy without VFD (kWh/Kgal) | G31: =IF(SUM(N21:N24)>0,SUM(M21:M24)*1000/SUM(N21:N24),0) -> 0
C33: Recommendation: VFD appears to be more suitable. However, conduct life cycle analysis for economic viability.

Sheet Page 4 (hidden)
B3: Selection of Energy Improvement Alternatives
C7: Project Name: | E7: ='Page 1'!F7 -> Enter Project Name here
C9: Project Description: | E9: ='Page 1'!F9 -> Enter Project Description here
C12: Note: Please click on the category buttons on the left to see selection alternatives and select options from the drop-down menu.
E13: Alternative 1 | M13: Alternative 2
F15: Please enter name for Alternative 1 here | N15: Please enter name for Alternative 2 here
F17: Select Options | H17: Typical Energy Savings Range | N17: Select Options | P17: Typical Energy Savings Range
C20: 1) | D20: Retrofit existing pump: | F20: Not selected | I20: =IF(F20='Option page (Existing Pump)'!B6,'Option page (Existing Pump)'!C6,IF(F20='Option page (Existing Pump)'!B7,'Option page (Existing Pump)'!C7,IF(F20='Option page (Existing Pump)'!B8,'Option page (Existing Pump)'!C8,IF(F20='Option page (Existing Pump)'!B9,'Option page (Existing Pump)'!C9,IF(F20='Option page (Existing Pump)'!B10,'Option page (Existing Pump)'!C10,IF(F20='Option page (Existing Pump)'!B11,'Option page (Existing Pump)'!C11,'Option page (Existing Pump)'!C12)))))) -> N/A | N20: Not selected | Q20: =IF(N20='Option page (Existing Pump)'!B6,'Option page (Existing Pump)'!C6,IF(N20='Option page (Existing Pump)'!B7,'Option page (Existing Pump)'!C7,IF(N20='Option page (Existing Pump)'!B8,'Option page (Existing Pump)'!C8,IF(N20='Option page (Existing Pump)'!B9,'Option page (Existing Pump)'!C9,IF(N20='Option page (Existing Pump)'!B10,'Option page (Existing Pump)'!C10,IF(N20='Option page (Existing Pump)'!B11,'Option page (Existing Pump)'!C11,'Option page (Existing Pump)'!C12)))))) -> N/A
C22: 2) | D22: Impeller modifications: | F22: Not selected | I22: =IF(F22='Option page (Existing Pump)'!B13,'Option page (Existing Pump)'!C13,IF(F22='Option page (Existing Pump)'!B14,'Option page (Existing Pump)'!C14,IF(F22='Option page (Existing Pump)'!B15,'Option page (Existing Pump)'!C15,'Option page (Existing Pump)'!C16 ))) -> N/A | N22: Not selected | Q22: =IF(N22='Option page (Existing Pump)'!B13,'Option page (Existing Pump)'!C13,IF(N22='Option page (Existing Pump)'!B14,'Option page (Existing Pump)'!C14,IF(N22='Option page (Existing Pump)'!B15,'Option page (Existing Pump)'!C15,'Option page (Existing Pump)'!C16))) -> N/A
C24: 3) | D24: Other modifications: | F24: Not selected | I24: =IF(F24='Option page (Existing Pump)'!B18,'Option page (Existing Pump)'!C18,IF(F24='Option page (Existing Pump)'!B19,'Option page (Existing Pump)'!C19,IF(F24='Option page (Existing Pump)'!B20,'Option page (Existing Pump)'!C20))) -> N/A | N24: Not selected | Q24: =IF(N24='Option page (Existing Pump)'!B18,'Option page (Existing Pump)'!C18,IF(N24='Option page (Existing Pump)'!B19,'Option page (Existing Pump)'!C19,IF(N24='Option page (Existing Pump)'!B20,'Option page (Existing Pump)'!C20))) -> N/A
C29: 1) | D29: Upgrade motor: | F29: Not Selected | I29: =IF(F29='Option page (Existing Pump)'!E34,'Option page (Existing Pump)'!F34,IF(F29='Option page (Existing Pump)'!E35,'Option page (Existing Pump)'!F35,IF(F29='Option page (Existing Pump)'!E36,'Option page (Existing Pump)'!F36,IF(F29='Option page (Existing Pump)'!E37,'Option page (Existing Pump)'!F37,IF(F29='Option page (Existing Pump)'!E38,'Option page (Existing Pump)'!F38,IF(F29='Option page (Existing Pump)'!E39,'Option page (Existing Pump)'!F39,'Option page (Existing Pump)'!F40)))))) -> N/A | N29: Not Selected | Q29: =IF(N29='Option page (Existing Pump)'!E34,'Option page (Existing Pump)'!F34,IF(N29='Option page (Existing Pump)'!E35,'Option page (Existing Pump)'!F35,IF(N29='Option page (Existing Pump)'!E36,'Option page (Existing Pump)'!F36,IF(N29='Option page (Existing Pump)'!E37,'Option page (Existing Pump)'!F37,IF(N29='Option page (Existing Pump)'!E38,'Option page (Existing Pump)'!F38,IF(N29='Option page (Existing Pump)'!E39,'Option page (Existing Pump)'!F39,'Option page (Existing Pump)'!F40)))))) -> N/A
C31: 2) | D31: Replace Drive: | F31: Not Selected | I31: =IF(F31='Option page (Existing Pump)'!B24,'Option page (Existing Pump)'!C24,IF(F23='Option page (Existing Pump)'!B25,'Option page (Existing Pump)'!C25,'Option page (Existing Pump)'!C26)) -> N/A | N31: Not Selected | Q31: =IF(N31='Option page (Existing Pump)'!B24,'Option page (Existing Pump)'!C24,IF(N23='Option page (Existing Pump)'!B25,'Option page (Existing Pump)'!C25,'Option page (Existing Pump)'!C26)) -> N/A
C36: 1) | D36: Control modifications: | F36: Not selected | I36: =IF(F36='Option page (Existing Pump)'!E6,'Option page (Existing Pump)'!F6,IF(F36='Option page (Existing Pump)'!E7,'Option page (Existing Pump)'!F7,IF(F36='Option page (Existing Pump)'!E8,'Option page (Existing Pump)'!F8,'Option page (Existing Pump)'!F9))) -> N/A | N36: Not selected | Q36: =IF(N36='Option page (Existing Pump)'!E6,'Option page (Existing Pump)'!F6,IF(N36='Option page (Existing Pump)'!E7,'Option page (Existing Pump)'!F7,IF(N36='Option page (Existing Pump)'!E8,'Option page (Existing Pump)'!F8,'Option page (Existing Pump)'!F9))) -> N/A
C38: 2) | D38: Operational changes: | F38: Not selected | I38: =IF(F38='Option page (Existing Pump)'!E11,'Option page (Existing Pump)'!F11,IF(F38='Option page (Existing Pump)'!E12,'Option page (Existing Pump)'!F12,'Option page (Existing Pump)'!F13)) -> N/A | N38: Not selected | Q38: =IF(N38='Option page (Existing Pump)'!E11,'Option page (Existing Pump)'!F11,IF(N38='Option page (Existing Pump)'!E12,'Option page (Existing Pump)'!F12,'Option page (Existing Pump)'!F13)) -> N/A
C43: 1) | D43: Retrofit pipe: | F43: Not selected | I43: =IF(F43='Option page (Existing Pump)'!E21,'Option page (Existing Pump)'!F21, IF(F43='Option page (Existing Pump)'!E22,'Option page (Existing Pump)'!F22, IF(F43='Option page (Existing Pump)'!E23, 'Option page (Existing Pump)'!F23, 'Option page (Existing Pump)'!F24))) -> N/A | N43: Not selected | Q43: =IF(N43='Option page (Existing Pump)'!E21,'Option page (Existing Pump)'!F21, IF(N43='Option page (Existing Pump)'!E22,'Option page (Existing Pump)'!F22, IF(N43='Option page (Existing Pump)'!E23, 'Option page (Existing Pump)'!F23, 'Option page (Existing Pump)'!F24))) -> N/A
C45: 2) | D45: Energy recovery: | F45: Not selected | I45: =IF(F45='Option page (Existing Pump)'!E27,'Option page (Existing Pump)'!F27,IF(F45='Option page (Existing Pump)'!E28,'Option page (Existing Pump)'!F28,'Option page (Existing Pump)'!F29)) -> N/A | N45: Not selected | Q45: =IF(N45='Option page (Existing Pump)'!E27,'Option page (Existing Pump)'!F27,IF(N45='Option page (Existing Pump)'!E28,'Option page (Existing Pump)'!F28,'Option page (Existing Pump)'!F29)) -> N/A
C49: Note: The energy efficiency values listed above should be considered as guidance. The users are suggested to conduct their own analyses for determining the energy efficiency of the alternatives selected.
F53: 0 | N53: 0

Sheet Page 5 (hidden)
B3: General Assumptions for Life Cycle Analysis
C7: Project Name: | E7: ='Page 1'!F7 -> Enter Project Name here
C9: Project Description: | E9: ='Page 1'!F9 -> Enter Project Description here
C11: Note: Please click on the category buttons to see data input cells Some of the input parameters, marked by asterisk, are pre-populated by default with values, but are able to be modified at the user's discretion.
C14: 1) | D14: Period | X14: 0
C16: 2) | D16: Initial Year of Operations | X16: 0
C18: 3) | D18: Year of analysis | X18: 0
C22: 1) | D22: Cost estimate dollar basis year | X22: 0
C24: 2) | D24: Construction cost escalation | W24: * | X24: 0.035
C26: 3) | D26: O&M and general cost escalation | W26: * | X26: 0.03
C28: Ancillary capital costs*
C30: 4) | D30: Sales tax | W30: * | X30: 0.095
C32: 5) | D32: Support of the arts | W32: * | X32: 0.01
C34: 6) | D34: Construction cost contingency allowance | W34: * | X34: 0.3
C36: 7) | D36: Overhead applied to labor only | W36: * | X36: 1.6
C40: 1) | D40: Capital Treatment: Lump Sum (LS) or Financed (D/S) | X40: D/S
C42: 2) | D42: Financing interest rate | W42: * | X42: 0.08
C44: 3) | D44: Financing maturity (years) | X44: 0
C46: 4) | D46: Financing costs, capitalized | W46: * | X46: 0.04
C50: 1) | D50: Discount rate (cost of capital) | X50: =X42 -> 0.08
C52: 2) | D52: Annual growth in electricity consumptions | W52: * | X52: 0.03
E56: Discount rate (cost of capital) | V56: =#REF! -> 
E57: Annual growth in electricity consumption | V57: 0
C76: Cell fill color: 204/255/255

Sheet Page 6 (hidden)
B3: Capital Cost Assumptions for Life Cycle Analysis
C7: Project Name: | E7: ='Page 1'!F7 -> Enter Project Name here
C9: Project Description: | E9: ='Page 1'!F9 -> Enter Project Description here
C11: Note: Please click on the category buttons to see data input cells
F12: Existing Condition | L12: =CONCATENATE('Page 4'!F15, " (Alt 1)") -> Please enter name for Alternative 1 here (Alt 1) | R12: =CONCATENATE('Page 4'!N15," (Alt 2)") -> Please enter name for Alternative 2 here (Alt 2)
F13: =CONCATENATE("Cost based on ",EPCBaseYear) -> Cost based on 0 | L13: =CONCATENATE("Cost based on ",EPCBaseYear) -> Cost based on 0 | R13: =CONCATENATE("Cost based on ",EPCBaseYear) -> Cost based on 0
C16: 1) | D16: Cost (,000) | G16: 0 | M16: 0 | S16: 0
C20: Subsequent Capital Replacements | F20: Years | I20: Useful Life Costs ($) (,000) | L20: Years | O20: Useful Life Costs ($) (,000) | R20: Years | U20: Useful Life Costs ($) (,000)
C23: 1) | D23: Enter component name | G23: 5 | J23: 0 | M23: 5 | P23: 0 | S23: 5 | V23: 0
C25: 2) | D25: Enter component name | G25: 5 | J25: 0 | M25: 5 | P25: 0 | S25: 5 | V25: 0
C27: 3) | D27: Enter component name | G27: 5 | J27: 0 | M27: 5 | P27: 0 | S27: 5 | V27: 0
C31: 1) | D31: Enter component name | G31: 5 | J31: 0 | M31: 5 | P31: 0 | S31: 5 | V31: 0
C33: 2) | D33: Enter component name | G33: 5 | J33: 0 | M33: 5 | P33: 0 | S33: 5 | V33: 0
C35: 3) | D35: Enter component name | G35: 5 | J35: 0 | M35: 5 | P35: 0 | S35: 5 | V35: 0
F38: Years | I38: Useful Life Costs ($) (,000) | L38: Years | O38: Useful Life Costs ($) (,000) | R38: Years | U38: Useful Life Costs ($) (,000)
C41: 1) | D41: Enter component name | G41: 5 | J41: 0 | M41: 5 | P41: 0 | S41: 5 | V41: 0
C43: 2) | D43: Estimated remaining life | G43: 5 | M43: 5 | S43: 5
C45: 3) | D45: Enter component name | G45: 5 | J45: 0 | M45: 5 | P45: 0 | S45: 5 | V45: 0
C47: 4) | D47: Estimated remaining life | G47: 5 | M47: 5 | S47: 5
C50: Note: Please use the default values if exact values are not known Some of the input parameters, marked by asterisk, are pre-populated by default with values, but are able to be modified at the user's discretion.
F51: =CONCATENATE("Cost based on ",EPCBaseYear) -> Cost based on 0 | L51: =CONCATENATE("Cost based on ",EPCBaseYear) -> Cost based on 0 | R51: =CONCATENATE("Cost based on ",EPCBaseYear) -> Cost based on 0
C54: 1) | D54: Land acquisition or rights of way ($) (,000) | G54: 0 | M54: 0 | S54: 0
C56: 2) | D56: Environmental mitigation ($) (,000) | G56: 0 | M56: 0 | S56: 0
C58: 3) | D58: Permits (% of ECC) | F58: * | G58: 0.005 | L58: * | M58: 0.005 | R58: * | S58: 0.005
C60: 4) | D60: Engineering (pre thru final) (% of ECC) | F60: * | G60: 0.1325 | L60: * | M60: 0.1325 | R60: * | S60: 0.1325
C62: 5) | D62: Const mgmt/observation (% of ECC) | F62: * | G62: 0.09 | L62: * | M62: 0.09 | R62: * | S62: 0.09
C64: 6) | D64: Administration/legal (% of ECC) | F64: * | G64: 0.1225 | L64: * | M64: 0.1225 | R64: * | S64: 0.1225
C66: 7) | D66: (Other) | F66: * | G66: 0 | L66: * | M66: 0 | R66: * | S66: 0
C68: 8) | D68: (Other) | F68: * | G68: 0 | L68: * | M68: 0 | R68: * | S68: 0
C70: 9) | D70: Support of the Arts (% of ECC) | F70: * | G70: =Arts -> 0.01 | L70: * | M70: =Arts -> 0.01 | R70: * | S70: =Arts -> 0.01
C72: 10) | D72: Sales tax (% of ECC) | F72: * | G72: =SalesTax -> 0.095 | L72: * | M72: =SalesTax -> 0.095 | R72: * | S72: =SalesTax -> 0.095

Sheet Page 7 (hidden)
B3: O&M Cost Assumptions for Life Cycle Analysis
C7: Project Name: | E7: ='Page 1'!F7 -> Enter Project Name here
C9: Project Description: | E9: ='Page 1'!F9 -> Enter Project Description here
C11: Note: Please click on the category buttons to see data input cells
G12: Existing Condition | L12: =CONCATENATE('Page 4'!F15, " (Alt 1)") -> Please enter name for Alternative 1 here (Alt 1) | R12: =CONCATENATE('Page 4'!N15," (Alt 2)") -> Please enter name for Alternative 2 here (Alt 2)
F13: =CONCATENATE("Cost based on ",EPCBaseYear) -> Cost based on 0 | L13: =CONCATENATE("Cost based on ",EPCBaseYear) -> Cost based on 0 | R13: =CONCATENATE("Cost based on ",EPCBaseYear) -> Cost based on 0
C17: 1) | D17: Natural gas therms | G17: 0 | M17: 0 | S17: 0
C19: 2) | D19: Base elec. Use (kwh/yr) | G19: 0 | M19: =G19-G19*'Page 4'!F53 -> 0 | S19: =G19-G19*'Page 4'!N53 -> 0
C21: 3) | D21: Demand (kVa) | G21: 0 | M21: 0 | S21: 0
C25: 1) | D25: Enter item name here | G25: 0 | M25: 0 | S25: 0
C27: 2) | D27: Enter item name here | G27: 0 | M27: 0 | S27: 0
C29: 3) | D29: Enter item name here | G29: 0 | M29: 0 | S29: 0
C33: 1) | D33: Labor hours per year | G33: 0 | M33: 0 | S33: 0
C37: 1) | D37: Enter item name here | G37: 0 | M37: 0 | S37: 0
C39: 2) | D39: Enter item name here | G39: 0 | M39: 0 | S39: 0
C41: 3) | D41: Enter item name here | G41: 0 | M41: 0 | S41: 0
C47: Natural Gas ($/therms) | G47: 0
C49: Electricity ($/kwh) | G49: 0
C51: Demand Charge ($/kVa) | G51: 0
C53: Hourly rate ($/hr) | G53: 0

Sheet Page 8 (hidden)
B3: GHG Emissions Reductions Estimation
C7: Project Name: | F7: ='Page 1'!F7 -> Enter Project Name here
C9: Project Description: | F9: ='Page 1'!F9 -> Enter Project Description here
D11: Note: Please click on the category buttons to see data input cells
D16: Estimated Baseline Energy Use (kWh/yr) | H16: ='Page 7'!G19 -> 0
J20: =CONCATENATE('Page 4'!F15," (Alt 1)") -> Please enter name for Alternative 1 here (Alt 1) | P20: =CONCATENATE('Page 4'!N15," (Alt 2)") -> Please enter name for Alternative 2 here (Alt 2)
D23: Expected Energy Savings (Percent) | L23: ='Page 4'!F53 -> 0 | Q23: ='Page 4'!N53 -> 0
D26: Estimated Annual Energy Use (kWh/yr) | L26: =H16-H16*L23 -> 0 | Q26: =H16-H16*Q23 -> 0
D32: Some of the input parameters, marked by asterisk, are pre-populated by default with values, but are able to be modified at the user's discretion.
D35: Select the Emission Factor Source: | H35: eGRID
D38: Enter Emission Factor:
D39: CO2 (lb/MWh) | G39: * | H39: 1216 | L39: Click here for eGRID reference document
D41: CH4 (lb/GWh) | G41: * | H41: 24.03 | L41: Click here for eGRID reference document
D43: NO2 (lb/GWh) | G43: * | H43: 18.08 | L43: Click here for eGRID reference document

Sheet Page 9 (hidden)
B3: Comparative Evaluation of Alternatives
C7: Project Name: | F7: ='Page 1'!F7 -> Enter Project Name here
C9: Project Description: | F9: ='Page 1'!F9 -> Enter Project Description here
G13: Baseline | L13: =CONCATENATE('Page 4'!F15," (Alt 1)") -> Please enter name for Alternative 1 here (Alt 1) | R13: =CONCATENATE('Page 4'!N15, " (Alt 2)") -> Please enter name for Alternative 2 here (Alt 2)
C16: 1) | D16: Estimated Percent Energy Savings (%) | H16: ='Output file - Page 11'!G15 -> Not applicable | M16: ='Output file - Page 11'!I15 -> 0 | S16: ='Output file - Page 11'!K15 -> 0
C18: 2) | D18: Estimated Annual Energy Savings (kWh/yr) | H18: ='Output file - Page 11'!G17 -> Not applicable | M18: 0 | S18: ='Output file - Page 11'!K17 -> 0
C22: 3) | D22: GHG Emissions Reduction (CO2-e lb/yr) | H22: ='Output file - Page 11'!G29 -> Not Applicable | M22: ='Output file - Page 11'!I29 -> 0 | S22: ='Output file - Page 11'!K29 -> 0
C24: 4) | D24: Life Cycle GHG Emissions Reduction (Tons CO2-e ) | H24: ='Output file - Page 11'!G31 -> Not Applicable | M24: ='Output file - Page 11'!I31 -> 0 | S24: ='Output file - Page 11'!K31 -> 0
C28: 5) | D28: Initial Capital Cost | H28: ='Output file - Page 11'!G19 -> 0 | M28: ='Output file - Page 11'!I19 -> 0 | S28: ='Output file - Page 11'!K19 -> 0
C30: 6) | D30: Life Cycle Capital Cost (Present Value) | H30: ='Output file - Page 11'!G21 ->  | M30: ='Output file - Page 11'!I21 ->  | S30: ='Output file - Page 11'!K21 -> 
C32: 7) | D32: Life Cycle O&M Cost (Present Value) | H32: ='Output file - Page 11'!G23 ->  | M32: ='Output file - Page 11'!I23 ->  | S32: ='Output file - Page 11'!K23 -> 
C34: 8) | D34: Life Cycle Total Cost (Present Value) | H34: ='Output file - Page 11'!G25 ->  | M34: ='Output file - Page 11'!I25 ->  | S34: ='Output file - Page 11'!K25 -> 
C36: 9) | D36: Life Cycle Energy Cost (Present Value) | H36: ='Output file - Page 11'!G27 ->  | M36: ='Output file - Page 11'!I27 ->  | S36: ='Output file - Page 11'!K27 -> 

Sheet Page 1 New (hidden)
B3: Pump Information
C7: Project Name: | F7: ='Main Screen'!G7 -> Enter Project Name here
C9: Project Description: | F9: ='Main Screen'!G9 -> Enter Project Description here
C14: Pump Station Flow Information
D16: Maximum flow (gpm) | J16: 0
D18: Design flow (gpm) | J18: 0
D20: Minimum flow (gpm) | J20: 0
D22: Total number of pumps (Nos) | J22: 0
D24: Number of pumps with VFD (Nos) | J24: 0
C30: Do you want to evaluate if VFD is an energy efficient solution for one of the constant speed pumps?

Sheet Page 2 New (hidden)
B3: Evaluation of VFD vs Constant Speed
C7: Project Name: | D7: ='Page 1 New'!F7 -> Enter Project Name here
C9: Project Description: | D9: ='Page 1 New'!F9 -> Enter Project Description here
C13: Please complete the table below with the necessary information.
C14: Types | D14: Input | L14: Analysis
D15: Percent of design flow (%) | E15: Flow (gpm) | F15: Head (ft) | G15: Operation per year (hrs) | H15: Pump efficiency (%) | I15: Motor efficiency (%) | J15: VFD efficiency (%) | K15: Power Input (kW) | L15: Wire-to-Water efficiency (%) | M15: Energy consumption per year (kWh) | N15: Volume pumped per year (gal)
C16: VFD | D16: 0 | E16: 0 | F16: 0 | G16: 0 | H16: 0 | I16: 0 | J16: 0 | K16: 0 | L16: =H16*I16*J16 -> 0 | M16: =K16*G16 -> 0 | N16: =E16*G16*60 -> 0
D17: 0 | E17: 0 | F17: 0 | G17: 0 | H17: 0 | I17: 0 | J17: 0 | K17: =H17*I17*J17 -> 0 | L17: =H17*I17*J17 -> 0 | M17: =K17*G17 -> 0 | N17: =E17*G17*60 -> 0
D18: 0 | E18: 0 | F18: 0 | G18: 0 | H18: 0 | I18: 0 | J18: 0 | K18: 0 | L18: 0 | M18: =K18*G18 -> 0 | N18: 0
D19: 0 | E19: 0 | F19: 0 | G19: 0 | H19: 0 | I19: 0 | J19: 0 | K19: 0 | L19: 0 | M19: =K19*G19 -> 0 | N19: 0
C21: Constant Speed | D21: 0 | E21: 0 | F21: 0 | G21: 0 | H21: 0 | I21: 0 | J21: 0 | K21: 0 | L21: =H21*I21*J21 -> 0 | M21: =G21*K21 -> 0 | N21: =vfdn_cflow*vfdn_cutil*60 -> 0
D22: 0 | E22: 0 | F22: 0 | G22: 0 | H22: 0 | I22: 0 | J22: 0 | K22: 0 | L22: =H22*I22*J22 -> 0 | M22: =G22*K22 -> 0 | N22: =E22*G22*60 -> 0
D23: 0 | E23: 0 | F23: 0 | G23: 0 | H23: 0 | I23: 0 | J23: 0 | K23: 0 | L23: 0 | M23: 0 | N23: =E23*G23*60 -> 0
D24: 0 | E24: 0 | F24: 0 | G24: 0 | H24: 0 | I24: 0 | J24: 0 | K24: 0 | L24: 0 | M24: 0 | N24: 0
C28: Specific Energy Comparison
C29: Estimated specific energy with VFD (kWh/Kgal) | G29: =IF(SUM(N16:N19)>0,SUM(M16:M19)*1000/SUM(N16:N19),0) -> 0
C30: Estimated specific energy without VFD (kWh/Kgal) | G30: =IF(SUM(N21:N24)>0,SUM(M21:M24)*1000/SUM(N21:N24),0) -> 0
C32: Recommendation: Constant speed pump appears to be more suitable. However, conduct life cycle analysis for economic viability.

Sheet Page 3 New (hidden)
B3: Selection of Alternatives
C7: Project Name: | E7: ='Page 1 New'!F7 -> Enter Project Name here
C9: Project Description: | E9: ='Page 1 New'!F9 -> Enter Project Description here
C11: Note: Please click on the category buttons to see selection alternatives and select options from the drop-down menu.
F12: Alternative 1 | M12: Alternative 2
F14: Please enter name for Alternative 1 here | N14: Please enter name for Alternative 2 here
E16: Select Options | H16: Typical Energy Efficiency | M16: Selection Options | P16: Typical Energy Efficiency
C19: 1) | D19: Pump Type | F19: Not selected | I19: =IF(F19='Option page (New Pump)'!B6,'Option page (New Pump)'!E6,IF(F19='Option page (New Pump)'!B7,'Option page (New Pump)'!E7,IF(F19='Option page (New Pump)'!B8,'Option page (New Pump)'!E8,IF(F19='Option page (New Pump)'!B9,'Option page (New Pump)'!E9,IF(F19='Option page (New Pump)'!B10,'Option page (New Pump)'!E10,IF(F19='Option page (New Pump)'!B11,'Option page (New Pump)'!E11,IF(F19='Option page (New Pump)'!B12,'Option page (New Pump)'!E12,IF(F19='Option page (New Pump)'!B13,'Option page (New Pump)'!E13,IF(F19='Option page (New Pump)'!B14,'Option page (New Pump)'!E14,IF(F19='Option page (New Pump)'!B15,'Option page (New Pump)'!E15,IF(F19='Option page (New Pump)'!B16,'Option page (New Pump)'!E16,IF(F19='Option page (New Pump)'!B17,'Option page (New Pump)'!E17,IF(F19='Option page (New Pump)'!B18,'Option page (New Pump)'!E18,IF(F19='Option page (New Pump)'!B19,'Option page (New Pump)'!E19,IF(F19='Option page (New Pump)'!B20,'Option page (New Pump)'!E20,IF(F19='Option page (New Pump)'!B21,'Option page (New Pump)'!E21,IF(F19='Option page (New Pump)'!B22,'Option page (New Pump)'!E22,IF(F19='Option page (New Pump)'!B23,'Option page (New Pump)'!E23,IF(F19='Option page (New Pump)'!B24,'Option page (New Pump)'!E24,IF(F19='Option page (New Pump)'!B25,'Option page (New Pump)'!E25,'Option page (New Pump)'!E26)))))))))))))))))))) -> N/A | N19: Not selected | Q19: =IF(N19='Option page (New Pump)'!B6,'Option page (New Pump)'!E6,IF(N19='Option page (New Pump)'!B7,'Option page (New Pump)'!E7,IF(N19='Option page (New Pump)'!B8,'Option page (New Pump)'!E8,IF(N19='Option page (New Pump)'!B9,'Option page (New Pump)'!E9,IF(N19='Option page (New Pump)'!B10,'Option page (New Pump)'!E10,IF(N19='Option page (New Pump)'!B11,'Option page (New Pump)'!E11,IF(N19='Option page (New Pump)'!B12,'Option page (New Pump)'!E12,IF(N19='Option page (New Pump)'!B13,'Option page (New Pump)'!E13,IF(N19='Option page (New Pump)'!B14,'Option page (New Pump)'!E14,IF(N19='Option page (New Pump)'!B15,'Option page (New Pump)'!E15,IF(N19='Option page (New Pump)'!B16,'Option page (New Pump)'!E16,IF(N19='Option page (New Pump)'!B17,'Option page (New Pump)'!E17,IF(N19='Option page (New Pump)'!B18,'Option page (New Pump)'!E18,IF(N19='Option page (New Pump)'!B19,'Option page (New Pump)'!E19,IF(N19='Option page (New Pump)'!B20,'Option page (New Pump)'!E20,IF(N19='Option page (New Pump)'!B21,'Option page (New Pump)'!E21,IF(N19='Option page (New Pump)'!B22,'Option page (New Pump)'!E22,IF(N19='Option page (New Pump)'!B23,'Option page (New Pump)'!E23,IF(N19='Option page (New Pump)'!B24,'Option page (New Pump)'!E24,IF(N19='Option page (New Pump)'!B25,'Option page (New Pump)'!E25,'Option page (New Pump)'!E26)))))))))))))))))))) -> N/A
C21: 2) | D21: Wearing Ring Material | F21: Not selected | I21: =IF(F21='Option page (New Pump)'!B28,'Option page (New Pump)'!E28,IF(F21='Option page (New Pump)'!B29,'Option page (New Pump)'!E29,'Option page (New Pump)'!E30)) -> N/A | N21: Not selected | Q21: =IF(N21='Option page (New Pump)'!B28,'Option page (New Pump)'!E28,IF(N21='Option page (New Pump)'!B29,'Option page (New Pump)'!E29,'Option page (New Pump)'!E30)) -> N/A
C23: 3) | D23: Seals | F23: Not selected | I23: =IF(F23='Option page (New Pump)'!B32,'Option page (New Pump)'!E32,IF(F23='Option page (New Pump)'!B33,'Option page (New Pump)'!E33,'Option page (New Pump)'!E34)) -> N/A | N23: Not selected | Q23: =IF(N23='Option page (New Pump)'!B32,'Option page (New Pump)'!E32,IF(N23='Option page (New Pump)'!B33,'Option page (New Pump)'!E33,'Option page (New Pump)'!E34)) -> N/A
C25: 4) | D25: Casing Coating | F25: Not selected | I25: =IF(F25='Option page (New Pump)'!B36,'Option page (New Pump)'!E36,IF(F25='Option page (New Pump)'!B37,'Option page (New Pump)'!E37,'Option page (New Pump)'!E38)) -> N/A | N25: Not selected | Q25: =IF(N25='Option page (New Pump)'!B36,'Option page (New Pump)'!E36,IF(N25='Option page (New Pump)'!B37,'Option page (New Pump)'!E37,'Option page (New Pump)'!E38)) -> N/A
C29: 1) | D29: Motor type | F29: Not selected | I29: =IF(F29='Option page (New Pump)'!F6,'Option page (New Pump)'!G6,IF(F29='Option page (New Pump)'!F7,'Option page (New Pump)'!G7,IF(F29='Option page (New Pump)'!F8,'Option page (New Pump)'!G8,IF(F29='Option page (New Pump)'!F9,'Option page (New Pump)'!G9,'Option page (New Pump)'!G10)))) -> N/A | N29: Not selected | Q29: =IF(N29='Option page (New Pump)'!F6,'Option page (New Pump)'!G6,IF(N29='Option page (New Pump)'!F7,'Option page (New Pump)'!G7,IF(N29='Option page (New Pump)'!F8,'Option page (New Pump)'!G8,IF(N29='Option page (New Pump)'!F9,'Option page (New Pump)'!G9,'Option page (New Pump)'!G10)))) -> N/A
C31: 2) | D31: Drive | F31: Not selected | I31: =IF(F31='Option page (New Pump)'!F12,'Option page (New Pump)'!G12,IF(F31='Option page (New Pump)'!F13,'Option page (New Pump)'!G13,IF(F31='Option page (New Pump)'!F14,'Option page (New Pump)'!G14,IF(F31='Option page (New Pump)'!F15,'Option page (New Pump)'!G15,'Option page (New Pump)'!G16)))) -> N/A | N31: Not selected | Q31: =IF(N31='Option page (New Pump)'!F12,'Option page (New Pump)'!G12,IF(N31='Option page (New Pump)'!F13,'Option page (New Pump)'!G13,IF(N31='Option page (New Pump)'!F14,'Option page (New Pump)'!G14,IF(N31='Option page (New Pump)'!F15,'Option page (New Pump)'!G15,'Option page (New Pump)'!G16)))) -> N/A
C35: 1) | D35: Control | F35: Not selected | I35: =IF(F35='Option page (New Pump)'!F18,'Option page (New Pump)'!G18,IF(F35='Option page (New Pump)'!F19,'Option page (New Pump)'!G19,IF(F35='Option page (New Pump)'!F20,'Option page (New Pump)'!G20,IF(F35='Option page (New Pump)'!F21,'Option page (New Pump)'!G21,'Option page (New Pump)'!G22)))) -> N/A | N35: Not selected | Q35: =IF(N35='Option page (New Pump)'!F18,'Option page (New Pump)'!G18,IF(N35='Option page (New Pump)'!F19,'Option page (New Pump)'!G19,IF(N35='Option page (New Pump)'!F20,'Option page (New Pump)'!G20,IF(N35='Option page (New Pump)'!F21,'Option page (New Pump)'!G21,'Option page (New Pump)'!G22)))) -> N/A
C37: 2) | D37: Jockey pump | F37: Not selected | I37: =IF(F37='Option page (New Pump)'!I12,'Option page (New Pump)'!J12,'Option page (New Pump)'!J13) -> N/A | N37: Not selected | Q37: =IF(N37='Option page (New Pump)'!I12,'Option page (New Pump)'!J12,'Option page (New Pump)'!J13) -> N/A
C41: 1) | D41: Pipe diameter | F41: Not selected | I41: =IF(F41='Option page (New Pump)'!F28,'Option page (New Pump)'!G28,IF(F41='Option page (New Pump)'!F29,'Option page (New Pump)'!G29,'Option page (New Pump)'!G30)) -> N/A | N41: Not selected | Q41: =IF(N41='Option page (New Pump)'!F28,'Option page (New Pump)'!G28,IF(N41='Option page (New Pump)'!F29,'Option page (New Pump)'!G29,'Option page (New Pump)'!G30)) -> N/A
C43: 2) | D43: Hydro turbines | F43: Not selected | I43: =IF(F43='Option page (New Pump)'!I7,'Option page (New Pump)'!J7,'Option page (New Pump)'!J8) -> N/A | N43: Not selected | Q43: =IF(N43='Option page (New Pump)'!I7,'Option page (New Pump)'!J7,'Option page (New Pump)'!J8) -> N/A
C46: Note: The energy efficiency values listed above should be considered as guidance. The users are suggested to conduct their own analyses for determining the energy efficiency of the alternatives selected
F50: 0 | N50: 0

Sheet Page 4 New (hidden)
B3: Capital Cost Assumptions for Life Cycle Analysis
C7: Project Name: | E7: ='Page 1 New'!F7 -> Enter Project Name here
C9: Project Description: | E9: ='Page 1 New'!F9 -> Enter Project Description here
C12: Note: Please click on the category buttons to see data input cells
F13: =CONCATENATE('Page 3 New'!F14, " (Alt 1)") -> Please enter name for Alternative 1 here (Alt 1) | L13: =CONCATENATE('Page 3 New'!N14," (Alt 2)") -> Please enter name for Alternative 2 here (Alt 2)
F14: =CONCATENATE("Cost based on ",EPCBaseYear) -> Cost based on 0 | L14: =CONCATENATE("Cost based on ",EPCBaseYear) -> Cost based on 0
C17: 1) | D17: Cost (,000) | G17: 0 | M17: 0
C21: Subsequent Capital Replacements | F21: Years | I21: Useful Life Costs ($) (,000) | L21: Years | O21: Useful Life Costs ($) (,000)
C24: 1) | D24: Enter component name | G24: 5 | J24: 0 | M24: 5 | P24: 0
C26: 2) | D26: Enter component name | G26: 5 | J26: 0 | M26: 5 | P26: 0
C28: 3) | D28: Enter component name | G28: 5 | J28: 0 | M28: 5 | P28: 0
C32: 1) | D32: Enter component name | G32: 5 | J32: 0 | M32: 5 | P32: 0
C34: 2) | D34: Enter component name | G34: 5 | J34: 0 | M34: 5 | P34: 0
C36: 3) | D36: Enter component name | G36: 5 | J36: 0 | M36: 5 | P36: 0
F39: Years | I39: Useful Life Costs ($) (,000) | L39: Years | O39: Useful Life Costs ($) (,000)
C42: 1) | D42: Name | G42: 5 | J42: 0 | M42: 5 | P42: 0
D44: Estimated remaining life | G44: 5 | M44: 5
C46: 2) | D46: Name | G46: 5 | J46: 0 | M46: 5 | P46: 0
D48: Estimated remaining life | G48: 5 | M48: 5
C51: Note: Please use the default values if exact values are not known Some of the input parameters, marked by asterisk, are pre-populated by default with values, but are able to be modified at the user's discretion.
F52: =CONCATENATE("Cost based on ",EPCBaseYear) -> Cost based on 0 | L52: =CONCATENATE("Cost based on ",EPCBaseYear) -> Cost based on 0
C55: 1) | D55: Land acquisition or rights of way ($) (,000) | G55: 0 | M55: 0
C57: 2) | D57: Environmental mitigation ($) (,000) | G57: 0 | M57: 0
C59: 3) | D59: Permits (% of ECC) | F59: * | G59: 0.005 | L59: * | M59: 0.005
C61: 4) | D61: Engineering (pre thru final) (% of ECC) | F61: * | G61: 0.1325 | L61: * | M61: 0.1325
C63: 5) | D63: Const mgmt/observation (% of ECC) | F63: * | G63: 0.09 | L63: * | M63: 0.09
C65: 6) | D65: Administration/legal (% of ECC) | F65: * | G65: 0.1225 | L65: * | M65: 0.125
C67: 7) | D67: (Other) (%) | F67: * | G67: 0 | L67: * | M67: 0
C69: 8) | D69: (Other) (%) | F69: * | G69: 0 | L69: * | M69: 0
C71: 9) | D71: Support of the Arts (% of ECC) | F71: * | G71: =Arts -> 0.01 | L71: * | M71: =Arts -> 0.01
C73: 10) | D73: Sales tax (% of ECC) | F73: * | G73: =SalesTax -> 0.095 | L73: * | M73: =SalesTax -> 0.095

Sheet Page 5 New (hidden)
B3: O&M Cost Assumptions for Life Cycle Analysis
C7: Project Name: | E7: ='Page 1 New'!F7 -> Enter Project Name here
C9: Project Description: | E9: ='Page 1 New'!F9 -> Enter Project Description here
C12: Note: Please click on the category buttons to see data input cells
G13: =CONCATENATE('Page 3 New'!F14, " (Alt 1)") -> Please enter name for Alternative 1 here (Alt 1) | L13: =CONCATENATE('Page 3 New'!N14," (Alt 2)") -> Please enter name for Alternative 2 here (Alt 2)
F14: =EPCBaseYear -> 0 | L14: =EPCBaseYear -> 0
C18: 1) | D18: Natural gas therms | G18: 0 | M18: 0
C20: 2) | D20: Elec. Use (kwh/yr) | G20: 0 | M20: 0
C22: 3) | D22: Demand (kVa) | G22: 0 | M22: 0
C26: 1) | D26: Enter item name here | G26: 0 | M26: 0
C28: 2) | D28: Enter item name here | G28: 0 | M28: 0
C30: 3) | D30: Enter item name here | G30: 0 | M30: 0
C34: 1) | D34: Labor hours per year | G34: 0 | M34: 0
C38: 1) | D38: Enter item name here | G38: 0 | M38: 0
C40: 2) | D40: Enter item name here | G40: 0 | M40: 0
C42: 3) | D42: Enter item name here | G42: 0 | M42: 0
C48: Natural Gas ($/therms) | G48: 0
C50: Electricity ($/kwh) | G50: 0 | AA50: X
C52: Demand Charge ($/kVa) | G52: 0
C54: Hourly rate ($/hr) | G54: 0

Sheet Page 6 New (hidden)
B3: GHG Emissions Estimation
C7: Project Name: | F7: ='Page 1 New'!F7 -> Enter Project Name here
C9: Project Description: | F9: ='Page 1 New'!F9 -> Enter Project Description here
D11: Note: Please click on the category buttons to see data input cells
K15: =CONCATENATE('Page 3 New'!F14, " (Alt 1)") -> Please enter name for Alternative 1 here (Alt 1) | P15: =CONCATENATE('Page 3 New'!N14, " (Alt 2)") -> Please enter name for Alternative 2 here (Alt 2)
D18: Expected Energy Efficiency (Percent) | L18: ='Page 3 New'!F50 -> 0 | Q18: ='Page 3 New'!N50 -> 0
D21: Estimated Annual Energy Use (kWh/yr) | L21: ='Page 5 New'!G20 -> 0 | Q21: ='Page 5 New'!M20 -> 0
C26: Some of the input parameters, marked by asterisk, are pre-populated by default with values, but are able to be modified at the user's discretion.
D30: Select the Emission Factor Source: | H30: eGRID
D33: Enter emission factor:
D34: CO2 (lb/MWh) | G34: * | H34: 1216 | M34: Click here for eGRID reference document
D36: CH4 (lb/GWh) | G36: * | H36: 24.03 | M36: Click here for eGRID reference document
D38: NO2 (lb/GWh) | G38: * | H38: 18.08 | M38: Click here for eGRID reference document

Sheet Page 7 New (hidden)
B3: Comparative Evaluation of Alternatives
C7: Project Name: | F7: ='Page 1 New'!F7 -> Enter Project Name here
C9: Project Description: | F9: ='Page 1 New'!F9 -> Enter Project Description here
C13: Note: Please click on the category buttons to see data input cells
G15: =CONCATENATE('Page 3 New'!F14, " (Alt 1)") -> Please enter name for Alternative 1 here (Alt 1) | L15: =CONCATENATE('Page 3 New'!N14, " (Alt 2)") -> Please enter name for Alternative 2 here (Alt 2)
C18: 1) | D18: Estimated Energy Efficiency (%) | H18: ='Page 6 New'!L18 -> 0 | M18: ='Page 8'!Q23 -> 0
C20: 2) | D20: Estimated Annual Energy Consumption (kWh/yr) | H20: ='Page 6 New'!L21 -> 0 | M20: ='Page 6 New'!Q21 -> 0
C24: 3) | D24: Annual GHG Emissions (CO2-e lb/yr) | H24: ='Output file - Page 17'!F26 -> 0 | M24: ='Output file - Page 17'!H26 -> 0
C26: 4) | D26: Life Cycle GHG Emissions (CO2-e tonne/yr) | H26: ='Output file - Page 17'!F28 -> 0 | M26: ='Output file - Page 17'!H28 -> 0
C30: 5) | D30: Initial Capital Cost | H30: ='Output file - Page 17'!F16 -> 0 | M30: ='Output file - Page 17'!H16 -> 0
C32: 6) | D32: Life Cycle Capital Cost (Present Value) | H32: ='Output file - Page 17'!F18 ->  | M32: ='Output file - Page 17'!H18 -> 
C34: 7) | D34: Life Cycle O&M Cost (Present Value) | H34: ='Output file - Page 17'!F20 ->  | M34: ='Output file - Page 17'!H20 -> 
C36: 8) | D36: Life Cycle Total Cost (Present Value) | H36: ='Output file - Page 17'!F22 ->  | M36: ='Output file - Page 17'!H22 -> 
C38: 9 | D38: Life Cycle Energy Cost (Present Value) | H38: ='Output file - Page 17'!F24 ->  | M38: ='Output file - Page 17'!H24 -> 

Sheet LCC Cap Alt 1 New (hidden)
A1: Life Cycle Cost Model
A2: =ProjName -> Project Name
A3: LCC Capital Costs and Schedule, | E3: Status Quo | I3: =CapitalTrtmt -> D/S
A4: ($000s)
I5: =FirstOps -> 0 | J5: =I5+1 -> 1 | K5: =J5+1 -> 2 | L5: =K5+1 -> 3 | M5: 4 | N5: 5 | O5: 6 | P5: 7 | Q5: 8 | R5: 9 | S5: 10 | T5: 11 | U5: 12 | V5: 13 | W5: 14 | X5: 15 | Y5: 16 | Z5: 17 | AA5: 18 | AB5: 19 | AC5: 20 | AD5: 21 | AE5: 22 | AF5: 23 | AG5: 24 | AH5: 25 | AI5: 26 | AJ5: 27 | AK5: 28 | AL5: 29 | AM5: 30 | AN5: 31 | AO5: 32 | AP5: 33 | AQ5: 34 | AR5: 35 | AS5: 36 | AT5: 37 | AU5: 38 | AV5: 39 | AW5: 40 | AX5: 41 | AY5: 42 | AZ5: 43 | BA5: 44 | BB5: 45 | BC5: 46 | BD5: 47 | BE5: 48 | BF5: 49
I7: 1 | J7: =I7+1 -> 2 | K7: =J7+1 -> 3 | L7: =K7+1 -> 4 | M7: 5 | N7: 6 | O7: 7 | P7: 8 | Q7: 9 | R7: 10 | S7: 11 | T7: 12 | U7: 13 | V7: 14 | W7: 15 | X7: 16 | Y7: 17 | Z7: 18 | AA7: 19 | AB7: 20 | AC7: 21 | AD7: 22 | AE7: 23 | AF7: 24 | AG7: 25 | AH7: 26 | AI7: 27 | AJ7: 28 | AK7: 29 | AL7: 30 | AM7: 31 | AN7: 32 | AO7: 33 | AP7: 34 | AQ7: 35 | AR7: 36 | AS7: 37 | AT7: 38 | AU7: 39 | AV7: 40 | AW7: 41 | AX7: 42 | AY7: 43 | AZ7: 44 | BA7: 45 | BB7: 46 | BC7: 47 | BD7: 48 | BE7: 49 | BF7: 50
A8: Present Values of Capital Components | F8: Totals
E9: =PresentYear -> 0 | F9: =SUM(I9:BF9)-H40 ->  | I9: =IF(CapitalTrtmt="d/s",I$65/(1+DiscRat)^(I$5-PresentYear),I$19/(1+DiscRat)^(I$5-PresentYear)) ->  | J9: =IF(CapitalTrtmt="d/s",J$65/(1+DiscRat)^(J$5-PresentYear),J$19/(1+DiscRat)^(J$5-PresentYear)) -> 0 | K9: =IF(CapitalTrtmt="d/s",K$65/(1+DiscRat)^(K$5-PresentYear),K$19/(1+DiscRat)^(K$5-PresentYear)) -> 0 | L9: =IF(CapitalTrtmt="d/s",L$65/(1+DiscRat)^(L$5-PresentYear),L$19/(1+DiscRat)^(L$5-PresentYear)) -> 0 | M9: 0 | AO9: =IF(CapitalTrtmt="d/s",AO$65/(1+DiscRat)^(AO$5-PresentYear),AO$19/(1+DiscRat)^(AO$5-PresentYear)) -> 
I10: =I9*1000 ->  | J10: =J9*1000 -> 0 | K10: 0 | L10: 0 | M10: 0
A11: Capital Costs ($000s) | F11: Initial
B12: Initial Capital Construction | F12: Const'n
C13: Estimated Construction Cost ("ECC") | E13: =EPCBaseYear -> 0 | F13: =' LCC Inputs Capital New Page 14'!E13 -> 0 | I13: =I28+I33+I39 -> 0 | J13: 0 | K13: 0 | L13: 0 | M13: 0 | N13: 0 | O13: 0 | P13: 0 | Q13: 0 | R13: 0 | S13: 0 | T13: 0 | U13: 0 | V13: 0 | W13: 0 | X13: 0 | Y13: 0 | Z13: 0 | AA13: 0 | AB13: 0 | AC13: 0 | AD13: 0 | AE13: 0 | AF13: 0 | AG13: 0 | AH13: 0 | AI13: 0 | AJ13: 0 | AK13: 0 | AL13: 0 | AM13: 0 | AN13: 0 | AO13: =AO28+AO33+AO39 -> 0 | AP13: 0 | AQ13: 0 | AR13: 0 | AS13: 0 | AT13: 0 | AU13: 0 | AV13: 0 | AW13: 0 | AX13: 0 | AY13: 0 | AZ13: 0 | BA13: 0 | BB13: 0 | BC13: 0 | BD13: 0 | BE13: 0 | BF13: 0
C14: Ancillary cost* | E14: =EPCBaseYear -> 0 | F14: =SUM(F43:F44)+SUM(F45:F53)*F13+F54*F53*F13 -> 0 | I14: =SUM(I43:I45)+SUM(I46:I53)*I13+I54*I53*I13 -> 0 | J14: 0 | K14: 0 | L14: 0 | M14: 0 | N14: 0 | O14: 0 | P14: 0 | Q14: 0 | R14: 0 | S14: 0 | T14: 0 | U14: 0 | V14: 0 | W14: 0 | X14: 0 | Y14: 0 | Z14: 0 | AA14: 0 | AB14: 0 | AC14: 0 | AD14: 0 | AE14: 0 | AF14: 0 | AG14: 0 | AH14: 0 | AI14: 0 | AJ14: 0 | AK14: 0 | AL14: 0 | AM14: 0 | AN14: 0 | AO14: =SUM(AO43:AO45)+SUM(AO46:AO53)*AO13+AO54*AO53*AO13 -> 0 | AP14: 0 | AQ14: 0 | AR14: 0 | AS14: 0 | AT14: 0 | AU14: 0 | AV14: 0 | AW14: 0 | AX14: 0 | AY14: 0 | AZ14: 0 | BA14: 0 | BB14: 0 | BC14: 0 | BD14: 0 | BE14: 0 | BF14: 0
D15: Ancillary cost percentage of ECC | F15: =IF(ISNUMBER(F14/F13),F14/F13," ") ->  | I15: =IF(ISNUMBER(I14/I13),I14/I13," ") -> 
C17: Subtotal | E17: =EPCBaseYear -> 0 | F17: =F13+F14 -> 0 | I17: =I13+I14 -> 0 | J17: 0 | K17: 0 | L17: 0 | M17: 0 | N17: 0 | O17: 0 | P17: 0 | Q17: 0 | R17: 0 | S17: 0 | T17: 0 | U17: 0 | V17: 0 | W17: 0 | X17: 0 | Y17: 0 | Z17: 0 | AA17: 0 | AB17: 0 | AC17: 0 | AD17: 0 | AE17: 0 | AF17: 0 | AG17: 0 | AH17: 0 | AI17: 0 | AJ17: 0 | AK17: 0 | AL17: 0 | AM17: 0 | AN17: 0 | AO17: 0 | AP17: 0 | AQ17: 0 | AR17: 0 | AS17: 0 | AT17: 0 | AU17: 0 | AV17: 0 | AW17: 0 | AX17: 0 | AY17: 0 | AZ17: 0 | BA17: 0 | BB17: 0 | BC17: 0 | BD17: 0 | BE17: 0 | BF17: 0
C18: Contingency allowance | E18: =CapCostConting -> 0.3 | F18: =F17*$E18 -> 0 | I18: =I17*$E18 -> 0 | J18: =J17*$E18 -> 0 | K18: 0 | L18: 0 | M18: 0 | N18: 0 | O18: 0 | P18: 0 | Q18: 0 | R18: 0 | S18: 0 | T18: 0 | U18: 0 | V18: 0 | W18: 0 | X18: 0 | Y18: 0 | Z18: 0 | AA18: 0 | AB18: 0 | AC18: 0 | AD18: 0 | AE18: 0 | AF18: 0 | AG18: 0 | AH18: 0 | AI18: 0 | AJ18: 0 | AK18: 0 | AL18: 0 | AM18: 0 | AN18: 0 | AO18: 0 | AP18: 0 | AQ18: 0 | AR18: 0 | AS18: 0 | AT18: 0 | AU18: 0 | AV18: 0 | AW18: 0 | AX18: 0 | AY18: 0 | AZ18: 0 | BA18: 0 | BB18: 0 | BC18: 0 | BD18: 0 | BE18: 0 | BF18: 0
C19: Capital cost basis, not including… | E19: =EPCBaseYear -> 0 | F19: =SUM(F17:F18) -> 0 | I19: =IF(CapitalTrtmt="LS",F19," ") ->  | J19: =SUM(J17:J18) -> 0 | K19: =SUM(K17:K18) -> 0 | L19: 0 | M19: 0 | N19: 0 | O19: =SUM(O17:O18) -> 0 | P19: 0 | Q19: 0 | R19: 0 | S19: 0 | T19: 0 | U19: 0 | V19: 0 | W19: 0 | X19: 0 | Y19: 0 | Z19: 0 | AA19: 0 | AB19: 0 | AC19: 0 | AD19: 0 | AE19: 0 | AF19: 0 | AG19: 0 | AH19: 0 | AI19: 0 | AJ19: 0 | AK19: 0 | AL19: 0 | AM19: 0 | AN19: 0 | AO19: 0 | AP19: 0 | AQ19: 0 | AR19: 0 | AS19: 0 | AT19: 0 | AU19: 0 | AV19: 0 | AW19: 0 | AX19: 0 | AY19: 0 | AZ19: 0 | BA19: 0 | BB19: 0 | BC19: 0 | BD19: 0 | BE19: 0 | BF19: 0
C20: …financial costs or cost escalation
H21: End of
B22: Subsequent Capital Replacements | E22: Useful Life | F22: =EPCBaseYear -> 0 | H22: Life Cycle
C23: First Main Component | E23: (years) | F23: Costs | G23: Re-caps | H23: Residual | I23: Recapitalize Schedule . . .
C25: Principal component | E25: =' LCC Inputs Capital New Page 14'!D18 -> 5 | F25: =' LCC Inputs Capital New Page 14'!E18 -> 0 | G25: =IF(E25>0,TRUNC((LCCPeriod-1)/E25),0) -> 0 | H25: =IF(IF(E25>0,(1-((LCCPeriod/E25)-TRUNC(LCCPeriod/E25)))*F25,0)=F25,0,IF(E25>0,(1-((LCCPeriod/E25)-TRUNC(LCCPeriod/E25)))*F25,0)) -> 0 | I25: =IF($E25>0,IF(I$7<LCCPeriod,IF(I$7/$E25=INT(I$7/$E25),$F25,0),0),0) -> 0 | J25: 0 | K25: 0 | L25: 0 | M25: 0 | N25: 0 | O25: 0 | P25: 0 | Q25: 0 | R25: 0 | S25: 0 | T25: 0 | U25: 0 | V25: 0 | W25: 0 | X25: 0 | Y25: =IF($E25>0,IF(Y$7<LCCPeriod,IF(Y$7/$E25=INT(Y$7/$E25),$F25,0),0),0) -> 0 | Z25: 0 | AA25: 0 | AB25: 0 | AC25: 0 | AD25: 0 | AE25: 0 | AF25: 0 | AG25: 0 | AH25: 0 | AI25: 0 | AJ25: 0 | AK25: 0 | AL25: 0 | AM25: 0 | AN25: 0 | AO25: 0 | AP25: 0 | AQ25: 0 | AR25: 0 | AS25: 0 | AT25: 0 | AU25: 0 | AV25: 0 | AW25: 0 | AX25: 0 | AY25: 0 | AZ25: 0 | BA25: 0 | BB25: 0 | BC25: 0 | BD25: 0 | BE25: 0 | BF25: 0
C26: Sub-component | E26: =' LCC Inputs Capital New Page 14'!D19 -> 5 | F26: =' LCC Inputs Capital New Page 14'!E19 -> 0 | G26: =IF(E26>0,TRUNC((LCCPeriod-1)/E26),0) -> 0 | H26: =IF(IF(E26>0,(1-((LCCPeriod/E26)-TRUNC(LCCPeriod/E26)))*F26,0)=F26,0,IF(E26>0,(1-((LCCPeriod/E26)-TRUNC(LCCPeriod/E26)))*F26,0)) -> 0 | I26: =IF(I$25>0,0,IF($E26>0,IF(I$7<LCCPeriod,IF(I$7/$E26=INT(I$7/$E26),$F26,0),0),0)) -> 0 | J26: 0 | K26: 0 | L26: 0 | M26: 0 | N26: 0 | O26: 0 | P26: 0 | Q26: =IF(Q$25>0,0,IF($E26>0,IF(Q$7<LCCPeriod,IF(Q$7/$E26=INT(Q$7/$E26),$F26,0),0),0)) -> 0 | R26: 0 | S26: =IF(S$25>0,0,IF($E26>0,IF(S$7<LCCPeriod,IF(S$7/$E26=INT(S$7/$E26),$F26,0),0),0)) -> 0 | T26: 0 | U26: 0 | V26: 0 | W26: 0 | X26: 0 | Y26: 0 | Z26: 0 | AA26: 0 | AB26: 0 | AC26: =IF(AC$25>0,0,IF($E26>0,IF(AC$7<LCCPeriod,IF(AC$7/$E26=INT(AC$7/$E26),$F26,0),0),0)) -> 0 | AD26: 0 | AE26: 0 | AF26: 0 | AG26: 0 | AH26: 0 | AI26: 0 | AJ26: 0 | AK26: 0 | AL26: 0 | AM26: =IF(AM$25>0,0,IF($E26>0,IF(AM$7<LCCPeriod,IF(AM$7/$E26=INT(AM$7/$E26),$F26,0),0),0)) -> 0 | AN26: 0 | AO26: 0 | AP26: 0 | AQ26: 0 | AR26: 0 | AS26: 0 | AT26: 0 | AU26: 0 | AV26: 0 | AW26: =IF(AW$25>0,0,IF($E26>0,IF(AW$7<LCCPeriod,IF(AW$7/$E26=INT(AW$7/$E26),$F26,0),0),0)) -> 0 | AX26: 0 | AY26: 0 | AZ26: 0 | BA26: 0 | BB26: 0 | BC26: 0 | BD26: 0 | BE26: 0 | BF26: 0
C27: Sub-component | E27: =' LCC Inputs Capital New Page 14'!D20 -> 5 | F27: =' LCC Inputs Capital New Page 14'!E20 -> 0 | G27: =IF(E27>0,TRUNC((LCCPeriod-1)/E27),0) -> 0 | H27: =IF(IF(E27>0,(1-((LCCPeriod/E27)-TRUNC(LCCPeriod/E27)))*F27,0)=F27,0,IF(E27>0,(1-((LCCPeriod/E27)-TRUNC(LCCPeriod/E27)))*F27,0)) -> 0 | I27: 0 | J27: 0 | K27: 0 | L27: 0 | M27: 0 | N27: 0 | O27: 0 | P27: 0 | Q27: 0 | R27: 0 | S27: 0 | T27: 0 | U27: 0 | V27: 0 | W27: 0 | X27: 0 | Y27: 0 | Z27: 0 | AA27: 0 | AB27: 0 | AC27: 0 | AD27: 0 | AE27: 0 | AF27: 0 | AG27: 0 | AH27: 0 | AI27: 0 | AJ27: 0 | AK27: 0 | AL27: 0 | AM27: 0 | AN27: 0 | AO27: 0 | AP27: 0 | AQ27: 0 | AR27: 0 | AS27: 0 | AT27: 0 | AU27: 0 | AV27: 0 | AW27: 0 | AX27: 0 | AY27: 0 | AZ27: 0 | BA27: 0 | BB27: 0 | BC27: 0 | BD27: 0 | BE27: 0 | BF27: 0
H28: =SUM(H25:H27) -> 0 | I28: 0 | J28: 0 | K28: 0 | L28: 0 | M28: 0 | N28: 0 | O28: 0 | P28: 0 | Q28: 0 | R28: 0 | S28: 0 | T28: 0 | U28: 0 | V28: 0 | W28: 0 | X28: 0 | Y28: 0 | Z28: 0 | AA28: 0 | AB28: 0 | AC28: 0 | AD28: 0 | AE28: 0 | AF28: 0 | AG28: 0 | AH28: 0 | AI28: 0 | AJ28: 0 | AK28: 0 | AL28: 0 | AM28: 0 | AN28: =SUM(AN25:AN27) -> 0 | AO28: 0 | AP28: 0 | AQ28: 0 | AR28: 0 | AS28: 0 | AT28: 0 | AU28: 0 | AV28: 0 | AW28: 0 | AX28: 0 | AY28: 0 | AZ28: 0 | BA28: 0 | BB28: 0 | BC28: 0 | BD28: 0 | BE28: 0 | BF28: 0
C29: Second Main Component
C30: Principal component | E30: =' LCC Inputs Capital New Page 14'!D23 -> 5 | F30: =' LCC Inputs Capital New Page 14'!E23 -> 0 | G30: =IF(E30>0,TRUNC((LCCPeriod-1)/E30),0) -> 0 | H30: =IF(IF(E30>0,(1-((LCCPeriod/E30)-TRUNC(LCCPeriod/E30)))*F30,0)=F30,0,IF(E30>0,(1-((LCCPeriod/E30)-TRUNC(LCCPeriod/E30)))*F30,0)) -> 0 | I30: =IF($E30>0,IF(I$7<LCCPeriod,IF(I$7/$E30=INT(I$7/$E30),$F30,0),0),0) -> 0 | J30: 0 | K30: 0 | L30: 0 | M30: 0 | N30: 0 | O30: 0 | P30: 0 | Q30: 0 | R30: 0 | S30: 0 | T30: 0 | U30: 0 | V30: 0 | W30: 0 | X30: 0 | Y30: =IF($E30>0,IF(Y$7<LCCPeriod,IF(Y$7/$E30=INT(Y$7/$E30),$F30,0),0),0) -> 0 | Z30: 0 | AA30: 0 | AB30: 0 | AC30: 0 | AD30: 0 | AE30: 0 | AF30: 0 | AG30: 0 | AH30: 0 | AI30: 0 | AJ30: 0 | AK30: 0 | AL30: 0 | AM30: 0 | AN30: 0 | AO30: 0 | AP30: 0 | AQ30: 0 | AR30: 0 | AS30: 0 | AT30: 0 | AU30: 0 | AV30: 0 | AW30: 0 | AX30: 0 | AY30: 0 | AZ30: 0 | BA30: 0 | BB30: 0 | BC30: 0 | BD30: 0 | BE30: 0 | BF30: 0
C31: Sub-component | E31: =' LCC Inputs Capital New Page 14'!D24 -> 5 | F31: =' LCC Inputs Capital New Page 14'!E24 -> 0 | G31: =IF(E31>0,TRUNC((LCCPeriod-1)/E31),0) -> 0 | H31: =IF(IF(E31>0,(1-((LCCPeriod/E31)-TRUNC(LCCPeriod/E31)))*F31,0)=F31,0,IF(E31>0,(1-((LCCPeriod/E31)-TRUNC(LCCPeriod/E31)))*F31,0)) -> 0 | I31: =IF(I$30>0,0,IF($E31>0,IF(I$7<LCCPeriod,IF(I$7/$E31=INT(I$7/$E31),$F31,0),0),0)) -> 0 | J31: 0 | K31: 0 | L31: 0 | M31: 0 | N31: 0 | O31: 0 | P31: 0 | Q31: 0 | R31: 0 | S31: =IF(S$30>0,0,IF($E31>0,IF(S$7<LCCPeriod,IF(S$7/$E31=INT(S$7/$E31),$F31,0),0),0)) -> 0 | T31: 0 | U31: 0 | V31: 0 | W31: 0 | X31: 0 | Y31: 0 | Z31: 0 | AA31: 0 | AB31: 0 | AC31: =IF(AC$30>0,0,IF($E31>0,IF(AC$7<LCCPeriod,IF(AC$7/$E31=INT(AC$7/$E31),$F31,0),0),0)) -> 0 | AD31: 0 | AE31: 0 | AF31: 0 | AG31: 0 | AH31: 0 | AI31: 0 | AJ31: 0 | AK31: 0 | AL31: 0 | AM31: =IF(AM$30>0,0,IF($E31>0,IF(AM$7<LCCPeriod,IF(AM$7/$E31=INT(AM$7/$E31),$F31,0),0),0)) -> 0 | AN31: 0 | AO31: 0 | AP31: 0 | AQ31: 0 | AR31: 0 | AS31: 0 | AT31: 0 | AU31: 0 | AV31: 0 | AW31: =IF(AW$30>0,0,IF($E31>0,IF(AW$7<LCCPeriod,IF(AW$7/$E31=INT(AW$7/$E31),$F31,0),0),0)) -> 0 | AX31: 0 | AY31: 0 | AZ31: 0 | BA31: 0 | BB31: 0 | BC31: 0 | BD31: 0 | BE31: 0 | BF31: 0
C32: Sub-component | E32: =' LCC Inputs Capital New Page 14'!D25 -> 5 | F32: =' LCC Inputs Capital New Page 14'!E25 -> 0 | G32: =IF(E32>0,TRUNC((LCCPeriod-1)/E32),0) -> 0 | H32: =IF(IF(E32>0,(1-((LCCPeriod/E32)-TRUNC(LCCPeriod/E32)))*F32,0)=F32,0,IF(E32>0,(1-((LCCPeriod/E32)-TRUNC(LCCPeriod/E32)))*F32,0)) -> 0 | I32: 0 | J32: 0 | K32: 0 | L32: 0 | M32: 0 | N32: 0 | O32: 0 | P32: 0 | Q32: 0 | R32: 0 | S32: 0 | T32: 0 | U32: 0 | V32: 0 | W32: 0 | X32: 0 | Y32: 0 | Z32: 0 | AA32: 0 | AB32: 0 | AC32: 0 | AD32: 0 | AE32: 0 | AF32: 0 | AG32: 0 | AH32: 0 | AI32: 0 | AJ32: 0 | AK32: 0 | AL32: 0 | AM32: 0 | AN32: 0 | AO32: 0 | AP32: 0 | AQ32: 0 | AR32: 0 | AS32: 0 | AT32: 0 | AU32: 0 | AV32: 0 | AW32: 0 | AX32: 0 | AY32: 0 | AZ32: 0 | BA32: 0 | BB32: 0 | BC32: 0 | BD32: 0 | BE32: 0 | BF32: 0
F33: =IF((F25+F30)>F13,"Oops, too much alloction!"," ") ->  | H33: =SUM(H30:H32) -> 0 | I33: 0 | J33: 0 | K33: 0 | L33: 0 | M33: 0 | N33: 0 | O33: 0 | P33: 0 | Q33: 0 | R33: 0 | S33: 0 | T33: 0 | U33: 0 | V33: 0 | W33: 0 | X33: 0 | Y33: 0 | Z33: 0 | AA33: 0 | AB33: 0 | AC33: 0 | AD33: 0 | AE33: 0 | AF33: 0 | AG33: 0 | AH33: 0 | AI33: 0 | AJ33: 0 | AK33: 0 | AL33: 0 | AM33: 0 | AN33: =SUM(AN30:AN32) -> 0 | AO33: 0 | AP33: 0 | AQ33: 0 | AR33: 0 | AS33: 0 | AT33: 0 | AU33: 0 | AV33: 0 | AW33: 0 | AX33: 0 | AY33: 0 | AZ33: 0 | BA33: 0 | BB33: 0 | BC33: 0 | BD33: 0 | BE33: 0 | BF33: 0
B34: Existing Depreciating Assets
C35: Name | E35: =' LCC Inputs Capital New Page 14'!D28 -> 5 | F35: =' LCC Inputs Capital New Page 14'!E28 -> 0 | G35: =IF(E35>0,TRUNC((LCCPeriod-1-E36)/E35+1),0) -> 0 | H35: =IF(IF(E35>0,(1-(((LCCPeriod-E36)/E35)-TRUNC((LCCPeriod-E36)/E35)))*F35,0)=F35,0,IF(E35>0,(1-(((LCCPeriod-E36)/E35)-TRUNC((LCCPeriod-E36)/E35)))*F35,0)) -> 0 | I35: =IF(I$7=$E36,$F35,IF(I$7>$E36,IF(I$7<LCCPeriod,IF((I$7-$E36)/($E35)=INT((I$7-$E36)/($E35)),$F35,0),0),0)) -> 0 | J35: 0 | K35: 0 | L35: 0 | M35: 0 | N35: 0 | O35: 0 | P35: 0 | Q35: 0 | R35: 0 | S35: 0 | T35: 0 | U35: 0 | V35: 0 | W35: 0 | X35: 0 | Y35: 0 | Z35: 0 | AA35: 0 | AB35: 0 | AC35: 0 | AD35: 0 | AE35: 0 | AF35: 0 | AG35: 0 | AH35: 0 | AI35: 0 | AJ35: 0 | AK35: 0 | AL35: 0 | AM35: 0 | AN35: 0 | AO35: 0 | AP35: 0 | AQ35: 0 | AR35: 0 | AS35: 0 | AT35: 0 | AU35: 0 | AV35: 0 | AW35: 0 | AX35: 0 | AY35: 0 | AZ35: 0 | BA35: 0 | BB35: 0 | BC35: 0 | BD35: 0 | BE35: 0 | BF35: 0
D36: Estimated remaining life: | E36: =' LCC Inputs Capital New Page 14'!D29 -> 5
C37: Name | E37: =' LCC Inputs Capital New Page 14'!D30 -> 5 | F37: =' LCC Inputs Capital New Page 14'!E30 -> 0 | G37: =IF(E37>0,TRUNC((LCCPeriod-1-E38)/E37+1),0) -> 0 | H37: =IF(IF(E37>0,(1-(((LCCPeriod-E38)/E37)-TRUNC((LCCPeriod-E38)/E37)))*F37,0)=F37,0,IF(E37>0,(1-(((LCCPeriod-E38)/E37)-TRUNC((LCCPeriod-E38)/E37)))*F37,0)) -> 0 | I37: =IF(I$7=$E38,$F37,IF(I$7>$E38,IF(I$7<LCCPeriod,IF((I$7-$E38)/($E37)=INT((I$7-$E38)/($E37)),$F37,0),0),0)) -> 0 | J37: 0 | K37: 0 | L37: 0 | M37: 0 | N37: 0 | O37: 0 | P37: 0 | Q37: 0 | R37: 0 | S37: 0 | T37: 0 | U37: 0 | V37: 0 | W37: 0 | X37: 0 | Y37: 0 | Z37: 0 | AA37: 0 | AB37: 0 | AC37: 0 | AD37: 0 | AE37: 0 | AF37: 0 | AG37: 0 | AH37: 0 | AI37: 0 | AJ37: 0 | AK37: 0 | AL37: 0 | AM37: 0 | AN37: 0 | AO37: 0 | AP37: 0 | AQ37: 0 | AR37: 0 | AS37: 0 | AT37: 0 | AU37: 0 | AV37: 0 | AW37: 0 | AX37: 0 | AY37: 0 | AZ37: 0 | BA37: 0 | BB37: 0 | BC37: 0 | BD37: 0 | BE37: 0 | BF37: 0
D38: Estimated remaining life: | E38: =' LCC Inputs Capital New Page 14'!D31 -> 5
C39: Sum of existing asset re-cap costs | H39: =SUM(H35:H37) -> 0 | I39: =SUM(I35:I37) -> 0 | J39: =SUM(J35:J37) -> 0 | K39: =SUM(K35:K37) -> 0 | L39: =SUM(L35:L37) -> 0 | M39: =SUM(M35:M37) -> 0 | N39: 0 | O39: 0 | P39: 0 | Q39: 0 | R39: 0 | S39: 0 | T39: 0 | U39: 0 | V39: 0 | W39: 0 | X39: 0 | Y39: 0 | Z39: 0 | AA39: 0 | AB39: 0 | AC39: 0 | AD39: 0 | AE39: 0 | AF39: 0 | AG39: 0 | AH39: 0 | AI39: 0 | AJ39: 0 | AK39: 0 | AL39: 0 | AM39: 0 | AN39: 0 | AO39: 0 | AP39: 0 | AQ39: 0 | AR39: 0 | AS39: 0 | AT39: 0 | AU39: 0 | AV39: 0 | AW39: 0 | AX39: 0 | AY39: 0 | AZ39: 0 | BA39: 0 | BB39: 0 | BC39: 0 | BD39: 0 | BE39: 0 | BF39: 0
F40: PV of Residual Values: | H40: =(H$28+H$33+H$39)/(1+DiscRat)^(LCCPeriod+1-(PresentYear-EPCBaseYear)) -> 0
B42: Ancillary Cost Components* | E42: =EPCBaseYear -> 0
C43: Land acquisition or rights of way | E43: Dollar value | F43: =' LCC Inputs Capital New Page 14'!E34 -> 0 | I43: =IF(I$13>0,"N/A",0) -> 0 | J43: =IF(J$13>0,"N/A",0) -> 0 | K43: 0 | L43: 0 | M43: 0 | N43: 0 | O43: 0 | P43: 0 | Q43: 0 | R43: 0 | S43: 0 | T43: 0 | U43: 0 | V43: 0 | W43: 0 | X43: 0 | Y43: 0 | Z43: 0 | AA43: 0 | AB43: 0 | AC43: 0 | AD43: 0 | AE43: 0 | AF43: 0 | AG43: 0 | AH43: 0 | AI43: 0 | AJ43: 0 | AK43: 0 | AL43: 0 | AM43: 0 | AN43: 0 | AO43: 0 | AP43: 0 | AQ43: 0 | AR43: 0 | AS43: 0 | AT43: 0 | AU43: 0 | AV43: 0 | AW43: 0 | AX43: 0 | AY43: 0 | AZ43: 0 | BA43: 0 | BB43: 0 | BC43: 0 | BD43: 0 | BE43: 0 | BF43: 0
C44: Environmental mitigation | E44: Dollar value | F44: =' LCC Inputs Capital New Page 14'!E35 -> 0 | I44: =IF(I$13>0,"N/A",0) -> 0 | J44: 0 | K44: 0 | L44: 0 | M44: 0 | N44: 0 | O44: 0 | P44: 0 | Q44: 0 | R44: 0 | S44: 0 | T44: 0 | U44: 0 | V44: 0 | W44: 0 | X44: 0 | Y44: 0 | Z44: 0 | AA44: 0 | AB44: 0 | AC44: 0 | AD44: 0 | AE44: 0 | AF44: 0 | AG44: 0 | AH44: 0 | AI44: 0 | AJ44: 0 | AK44: 0 | AL44: 0 | AM44: 0 | AN44: 0 | AO44: 0 | AP44: 0 | AQ44: 0 | AR44: 0 | AS44: 0 | AT44: 0 | AU44: 0 | AV44: 0 | AW44: 0 | AX44: 0 | AY44: 0 | AZ44: 0 | BA44: 0 | BB44: 0 | BC44: 0 | BD44: 0 | BE44: 0 | BF44: 0
C45: Permits | E45: % of ECC | F45: =' LCC Inputs Capital New Page 14'!E36 -> 0.005 | I45: =IF(I$13>0,$F45,0) -> 0 | J45: =IF(J$13>0,$F45,0) -> 0 | K45: 0 | L45: 0 | M45: 0 | N45: 0 | O45: 0 | P45: 0 | Q45: 0 | R45: 0 | S45: 0 | T45: 0 | U45: 0 | V45: 0 | W45: 0 | X45: 0 | Y45: 0 | Z45: 0 | AA45: 0 | AB45: 0 | AC45: 0 | AD45: 0 | AE45: 0 | AF45: 0 | AG45: 0 | AH45: 0 | AI45: 0 | AJ45: 0 | AK45: 0 | AL45: 0 | AM45: 0 | AN45: 0 | AO45: 0 | AP45: 0 | AQ45: 0 | AR45: 0 | AS45: 0 | AT45: 0 | AU45: 0 | AV45: 0 | AW45: 0 | AX45: 0 | AY45: 0 | AZ45: 0 | BA45: 0 | BB45: 0 | BC45: 0 | BD45: 0 | BE45: 0 | BF45: 0
C46: Engineering (pre thru final) | E46: % of ECC | F46: =' LCC Inputs Capital New Page 14'!E37 -> 0.1325 | I46: =IF(I$13>0,$F46,0) -> 0 | J46: 0 | K46: 0 | L46: 0 | M46: 0 | N46: 0 | O46: 0 | P46: 0 | Q46: 0 | R46: 0 | S46: 0 | T46: 0 | U46: 0 | V46: 0 | W46: 0 | X46: 0 | Y46: 0 | Z46: 0 | AA46: 0 | AB46: 0 | AC46: 0 | AD46: 0 | AE46: 0 | AF46: 0 | AG46: 0 | AH46: 0 | AI46: 0 | AJ46: 0 | AK46: 0 | AL46: 0 | AM46: 0 | AN46: 0 | AO46: 0 | AP46: 0 | AQ46: 0 | AR46: 0 | AS46: 0 | AT46: 0 | AU46: 0 | AV46: 0 | AW46: 0 | AX46: 0 | AY46: 0 | AZ46: 0 | BA46: 0 | BB46: 0 | BC46: 0 | BD46: 0 | BE46: 0 | BF46: 0
C47: Constn mgmt/observation | E47: % of ECC | F47: =' LCC Inputs Capital New Page 14'!E38 -> 0.09 | I47: =IF(I$13>0,$F47,0) -> 0 | J47: 0 | K47: 0 | L47: 0 | M47: 0 | N47: 0 | O47: 0 | P47: 0 | Q47: 0 | R47: 0 | S47: 0 | T47: 0 | U47: 0 | V47: 0 | W47: 0 | X47: 0 | Y47: 0 | Z47: 0 | AA47: 0 | AB47: 0 | AC47: 0 | AD47: 0 | AE47: 0 | AF47: 0 | AG47: 0 | AH47: 0 | AI47: 0 | AJ47: 0 | AK47: 0 | AL47: 0 | AM47: 0 | AN47: 0 | AO47: 0 | AP47: 0 | AQ47: 0 | AR47: 0 | AS47: 0 | AT47: 0 | AU47: 0 | AV47: 0 | AW47: 0 | AX47: 0 | AY47: 0 | AZ47: 0 | BA47: 0 | BB47: 0 | BC47: 0 | BD47: 0 | BE47: 0 | BF47: 0
C48: Administration/legal | E48: % of ECC | F48: =' LCC Inputs Capital New Page 14'!E39 -> 0.1225 | I48: 0 | J48: 0 | K48: 0 | L48: 0 | M48: 0 | N48: 0 | O48: 0 | P48: 0 | Q48: 0 | R48: 0 | S48: 0 | T48: 0 | U48: 0 | V48: 0 | W48: 0 | X48: 0 | Y48: 0 | Z48: 0 | AA48: 0 | AB48: 0 | AC48: 0 | AD48: 0 | AE48: 0 | AF48: 0 | AG48: 0 | AH48: 0 | AI48: 0 | AJ48: 0 | AK48: 0 | AL48: 0 | AM48: 0 | AN48: 0 | AO48: 0 | AP48: 0 | AQ48: 0 | AR48: 0 | AS48: 0 | AT48: 0 | AU48: 0 | AV48: 0 | AW48: 0 | AX48: 0 | AY48: 0 | AZ48: 0 | BA48: 0 | BB48: 0 | BC48: 0 | BD48: 0 | BE48: 0 | BF48: 0
C49: =' LCC Inputs Capital New Page 14'!B40 -> (other) | F49: =' LCC Inputs Capital New Page 14'!E40 -> 0 | I49: 0 | J49: 0 | K49: 0 | L49: 0 | M49: 0 | N49: 0 | O49: 0 | P49: 0 | Q49: 0 | R49: 0 | S49: 0 | T49: 0 | U49: 0 | V49: 0 | W49: 0 | X49: 0 | Y49: 0 | Z49: 0 | AA49: 0 | AB49: 0 | AC49: 0 | AD49: 0 | AE49: 0 | AF49: 0 | AG49: 0 | AH49: 0 | AI49: 0 | AJ49: 0 | AK49: 0 | AL49: 0 | AM49: 0 | AN49: 0 | AO49: 0 | AP49: 0 | AQ49: 0 | AR49: 0 | AS49: 0 | AT49: 0 | AU49: 0 | AV49: 0 | AW49: 0 | AX49: 0 | AY49: 0 | AZ49: 0 | BA49: 0 | BB49: 0 | BC49: 0 | BD49: 0 | BE49: 0 | BF49: 0
C50: =' LCC Inputs Capital New Page 14'!B41 -> (other) | F50: =' LCC Inputs Capital New Page 14'!E41 -> 0 | I50: 0 | J50: 0 | K50: 0 | L50: 0 | M50: 0 | N50: 0 | O50: 0 | P50: 0 | Q50: 0 | R50: 0 | S50: 0 | T50: 0 | U50: 0 | V50: 0 | W50: 0 | X50: 0 | Y50: 0 | Z50: 0 | AA50: 0 | AB50: 0 | AC50: 0 | AD50: 0 | AE50: 0 | AF50: 0 | AG50: 0 | AH50: 0 | AI50: =IF(AI$13>0,$F50,0) -> 0 | AJ50: 0 | AK50: 0 | AL50: 0 | AM50: 0 | AN50: 0 | AO50: 0 | AP50: 0 | AQ50: 0 | AR50: 0 | AS50: 0 | AT50: 0 | AU50: 0 | AV50: 0 | AW50: 0 | AX50: 0 | AY50: 0 | AZ50: 0 | BA50: 0 | BB50: 0 | BC50: 0 | BD50: 0 | BE50: 0 | BF50: 0
C51: (other) | F51: 0 | I51: 0 | J51: 0 | K51: 0 | L51: 0 | M51: 0 | N51: 0 | O51: 0 | P51: 0 | Q51: 0 | R51: 0 | S51: 0 | T51: 0 | U51: 0 | V51: 0 | W51: 0 | X51: 0 | Y51: =IF(Y$13>0,$F51,0) -> 0 | Z51: 0 | AA51: 0 | AB51: 0 | AC51: 0 | AD51: 0 | AE51: 0 | AF51: 0 | AG51: 0 | AH51: 0 | AI51: 0 | AJ51: 0 | AK51: 0 | AL51: 0 | AM51: 0 | AN51: 0 | AO51: 0 | AP51: 0 | AQ51: 0 | AR51: 0 | AS51: 0 | AT51: 0 | AU51: 0 | AV51: 0 | AW51: 0 | AX51: 0 | AY51: 0 | AZ51: 0 | BA51: 0 | BB51: 0 | BC51: 0 | BD51: 0 | BE51: 0 | BF51: 0
C52: (other) | F52: 0 | I52: 0 | J52: 0 | K52: 0 | L52: 0 | M52: 0 | N52: 0 | O52: 0 | P52: 0 | Q52: 0 | R52: 0 | S52: 0 | T52: 0 | U52: 0 | V52: 0 | W52: 0 | X52: 0 | Y52: 0 | Z52: 0 | AA52: 0 | AB52: 0 | AC52: 0 | AD52: 0 | AE52: 0 | AF52: 0 | AG52: 0 | AH52: 0 | AI52: 0 | AJ52: 0 | AK52: 0 | AL52: 0 | AM52: 0 | AN52: 0 | AO52: 0 | AP52: 0 | AQ52: 0 | AR52: 0 | AS52: 0 | AT52: 0 | AU52: 0 | AV52: 0 | AW52: 0 | AX52: 0 | AY52: 0 | AZ52: 0 | BA52: 0 | BB52: 0 | BC52: 0 | BD52: 0 | BE52: 0 | BF52: 0
C53: Support of the Arts | E53: % of ECC | F53: =' LCC Inputs Capital New Page 14'!E42 -> 0.01 | J53: 0 | K53: 0 | L53: 0 | M53: 0 | N53: 0 | O53: 0 | P53: 0 | Q53: 0 | R53: 0 | S53: 0 | T53: 0 | U53: 0 | V53: 0 | W53: 0 | X53: 0 | Y53: 0 | Z53: 0 | AA53: 0 | AB53: 0 | AC53: 0 | AD53: 0 | AE53: 0 | AF53: 0 | AG53: 0 | AH53: 0 | AI53: 0 | AJ53: 0 | AK53: 0 | AL53: 0 | AM53: 0 | AN53: 0 | AO53: 0 | AP53: 0 | AQ53: 0 | AR53: 0 | AS53: 0 | AT53: 0 | AU53: 0 | AV53: 0 | AW53: 0 | AX53: 0 | AY53: 0 | AZ53: 0 | BA53: 0 | BB53: 0 | BC53: 0 | BD53: 0 | BE53: 0 | BF53: 0
C54: Sales tax | E54: % of ECC | F54: =' LCC Inputs Capital New Page 14'!E43 -> 0.095 | I54: 0 | J54: 0 | K54: 0 | L54: 0 | M54: 0 | N54: 0 | O54: 0 | P54: 0 | Q54: 0 | R54: 0 | S54: 0 | T54: 0 | U54: 0 | V54: 0 | W54: 0 | X54: 0 | Y54: 0 | Z54: 0 | AA54: 0 | AB54: 0 | AC54: 0 | AD54: 0 | AE54: 0 | AF54: 0 | AG54: 0 | AH54: 0 | AI54: 0 | AJ54: 0 | AK54: 0 | AL54: 0 | AM54: 0 | AN54: 0 | AO54: 0 | AP54: 0 | AQ54: 0 | AR54: 0 | AS54: 0 | AT54: 0 | AU54: 0 | AV54: 0 | AW54: 0 | AX54: 0 | AY54: 0 | AZ54: 0 | BA54: 0 | BB54: 0 | BC54: 0 | BD54: 0 | BE54: 0 | BF54: 0
A57: =IF(CapitalTrtmt="LS","The following rows are not used with the Lump Sum Capital Treatment method"," ") -> 
A58: Annual Debt Service Determinations | F58: Initial
B59: Cost in unescalated dollars | F59: =F19 -> 0 | M59: =M19 -> 0 | N59: =N19 -> 0 | O59: 0 | P59: 0 | Q59: 0 | R59: 0 | S59: 0 | T59: 0 | U59: 0 | V59: 0 | W59: 0 | X59: 0 | Y59: 0 | Z59: 0 | AA59: 0 | AB59: 0 | AC59: 0 | AD59: 0 | AE59: 0 | AF59: 0 | AG59: 0 | AH59: 0 | AI59: 0 | AJ59: 0 | AK59: 0 | AL59: 0 | AM59: 0 | AN59: 0 | AO59: 0 | AP59: 0 | AQ59: 0 | AR59: 0 | AS59: 0 | AT59: 0 | AU59: 0 | AV59: 0 | AW59: 0 | AX59: 0 | AY59: 0 | AZ59: 0 | BA59: 0 | BB59: 0 | BC59: 0 | BD59: 0 | BE59: 0 | BF59: 0
B60: Proceeds required, escalated | E60: (escalated) | F60: =F19*(1+CostEscalCap)^($I$5-1-EPCBaseYear) -> 0 | M60: =M59*(1+CostEscalCap)^(M5-EPCBaseYear) -> 0 | N60: 0 | O60: 0 | P60: 0 | Q60: 0 | R60: 0 | S60: 0 | T60: 0 | U60: 0 | V60: 0 | W60: 0 | X60: 0 | Y60: 0 | Z60: 0 | AA60: 0 | AB60: 0 | AC60: 0 | AD60: 0 | AE60: 0 | AF60: 0 | AG60: 0 | AH60: 0 | AI60: 0 | AJ60: 0 | AK60: 0 | AL60: 0 | AM60: 0 | AN60: 0 | AO60: 0 | AP60: 0 | AQ60: 0 | AR60: 0 | AS60: 0 | AT60: 0 | AU60: 0 | AV60: 0 | AW60: 0 | AX60: 0 | AY60: 0 | AZ60: 0 | BA60: 0 | BB60: 0 | BC60: 0 | BD60: 0 | BE60: 0 | BF60: 0
B61: Bond sizing | F61: =F60/(1-BondSofts) -> 0 | M61: =M60/(1-BondSofts) -> 0 | N61: 0 | O61: 0 | P61: 0 | Q61: 0 | R61: 0 | S61: 0 | T61: 0 | U61: 0 | V61: 0 | W61: 0 | X61: 0 | Y61: 0 | Z61: 0 | AA61: 0 | AB61: 0 | AC61: 0 | AD61: 0 | AE61: 0 | AF61: 0 | AG61: 0 | AH61: 0 | AI61: 0 | AJ61: 0 | AK61: 0 | AL61: 0 | AM61: 0 | AN61: 0 | AO61: 0 | AP61: 0 | AQ61: 0 | AR61: 0 | AS61: 0 | AT61: 0 | AU61: 0 | AV61: 0 | AW61: 0 | AX61: 0 | AY61: 0 | AZ61: 0 | BA61: 0 | BB61: 0 | BC61: 0 | BD61: 0 | BE61: 0 | BF61: 0
B62: Annual debt service | E62: (No coverage) | F62: =-PMT(BondInt,BondMat,F61) ->  | M62: =-PMT(BondInt,BondMat,M61) -> 
A64: Debt Service Projection
B65: Sum of projected annual debt service | I65: =SUM(I66:I165) ->  | J65: =SUM(J66:J165) -> 0 | K65: 0 | L65: =SUM(L66:L165) -> 0 | M65: 0 | R65: =SUM(R66:R165) -> 
D66: Initial financing | I66: =F$62 ->  | J66: =IF((J$5-FirstOps+1)<=BondMat,I66,0) -> 0 | K66: 0 | L66: 0 | M66: 0 | N66: 0 | O66: 0 | P66: 0 | Q66: 0 | R66: 0 | S66: 0 | T66: 0 | U66: 0 | V66: 0 | W66: 0 | X66: 0 | Y66: 0 | Z66: 0 | AA66: 0 | AB66: 0 | AC66: 0 | AD66: 0 | AE66: 0 | AF66: 0 | AG66: 0 | AH66: 0 | AI66: 0 | AJ66: 0 | AK66: 0 | AL66: 0 | AM66: 0 | AN66: 0 | AO66: 0 | AP66: 0 | AQ66: 0 | AR66: 0 | AS66: 0 | AT66: 0 | AU66: 0 | AV66: 0 | AW66: 0 | AX66: 0 | AY66: 0 | AZ66: 0 | BA66: 0 | BB66: 0 | BC66: 0 | BD66: 0 | BE66: 0 | BF66: 0
D67: =I5 -> 0 | J67: =I$62 -> 0 | K67: =IF((K$5-$D67)<=BondMat,J67,0) -> 0 | L67: 0 | M67: 0 | N67: 0 | O67: 0 | P67: 0 | Q67: 0 | R67: 0 | S67: 0 | T67: 0 | U67: 0 | V67: 0 | W67: 0 | X67: 0 | Y67: 0 | Z67: 0 | AA67: =IF((AA$5-$D67)<=BondMat,Z67,0) -> 0 | AB67: 0 | AC67: 0 | AD67: 0 | AE67: 0 | AF67: 0 | AG67: 0 | AH67: 0 | AI67: 0 | AJ67: 0 | AK67: 0 | AL67: 0 | AM67: 0 | AN67: 0 | AO67: 0 | AP67: 0 | AQ67: =IF((AQ$5-$D67)<=BondMat,AP67,0) -> 0 | AR67: 0 | AS67: 0 | AT67: 0 | AU67: 0 | AV67: 0 | AW67: 0 | AX67: 0 | AY67: 0 | AZ67: 0 | BA67: 0 | BB67: 0 | BC67: 0 | BD67: 0 | BE67: 0 | BF67: 0
D68: =D67+1 -> 1 | K68: =J$62 -> 0 | L68: 0 | M68: 0 | N68: 0 | O68: 0 | P68: 0 | Q68: 0 | R68: 0 | S68: 0 | T68: 0 | U68: 0 | V68: 0 | W68: 0 | X68: 0 | Y68: 0 | Z68: 0 | AA68: 0 | AB68: 0 | AC68: 0 | AD68: 0 | AE68: 0 | AF68: 0 | AG68: 0 | AH68: 0 | AI68: 0 | AJ68: 0 | AK68: 0 | AL68: 0 | AM68: 0 | AN68: 0 | AO68: 0 | AP68: 0 | AQ68: 0 | AR68: 0 | AS68: 0 | AT68: 0 | AU68: 0 | AV68: 0 | AW68: 0 | AX68: 0 | AY68: 0 | AZ68: 0 | BA68: 0 | BB68: 0 | BC68: 0 | BD68: 0 | BE68: 0 | BF68: 0
D69: =D68+1 -> 2 | L69: =K$62 -> 0 | M69: 0 | N69: 0 | O69: 0 | P69: 0 | Q69: 0 | R69: 0 | S69: 0 | T69: 0 | U69: 0 | V69: 0 | W69: 0 | X69: 0 | Y69: 0 | Z69: 0 | AA69: 0 | AB69: 0 | AC69: 0 | AD69: 0 | AE69: 0 | AF69: 0 | AG69: 0 | AH69: 0 | AI69: 0 | AJ69: 0 | AK69: 0 | AL69: 0 | AM69: 0 | AN69: 0 | AO69: 0 | AP69: 0 | AQ69: 0 | AR69: 0 | AS69: 0 | AT69: 0 | AU69: 0 | AV69: 0 | AW69: 0 | AX69: 0 | AY69: 0 | AZ69: 0 | BA69: 0 | BB69: 0 | BC69: 0 | BD69: 0 | BE69: 0 | BF69: 0
D70: 3 | M70: =L$62 -> 0 | N70: 0 | O70: 0 | P70: 0 | Q70: 0 | R70: 0 | S70: 0 | T70: 0 | U70: 0 | V70: 0 | W70: 0 | X70: 0 | Y70: 0 | Z70: 0 | AA70: 0 | AB70: 0 | AC70: 0 | AD70: 0 | AE70: 0 | AF70: 0 | AG70: 0 | AH70: 0 | AI70: 0 | AJ70: 0 | AK70: 0 | AL70: 0 | AM70: 0 | AN70: 0 | AO70: 0 | AP70: 0 | AQ70: 0 | AR70: 0 | AS70: 0 | AT70: 0 | AU70: 0 | AV70: 0 | AW70: 0 | AX70: 0 | AY70: 0 | AZ70: 0 | BA70: 0 | BB70: 0 | BC70: 0 | BD70: 0 | BE70: 0 | BF70: 0
D71: 4 | N71: =M$62 ->  | O71: 0 | P71: 0 | Q71: 0 | R71: 0 | S71: 0 | T71: 0 | U71: 0 | V71: 0 | W71: 0 | X71: 0 | Y71: 0 | Z71: 0 | AA71: 0 | AB71: 0 | AC71: 0 | AD71: 0 | AE71: 0 | AF71: 0 | AG71: 0 | AH71: 0 | AI71: 0 | AJ71: 0 | AK71: 0 | AL71: 0 | AM71: 0 | AN71: 0 | AO71: 0 | AP71: 0 | AQ71: 0 | AR71: 0 | AS71: 0 | AT71: 0 | AU71: 0 | AV71: 0 | AW71: 0 | AX71: 0 | AY71: 0 | AZ71: 0 | BA71: 0 | BB71: 0 | BC71: 0 | BD71: 0 | BE71: 0 | BF71: 0
D72: 5 | O72: =N$62 ->  | P72: 0 | Q72: 0 | R72: 0 | S72: 0 | T72: 0 | U72: 0 | V72: 0 | W72: 0 | X72: 0 | Y72: 0 | Z72: 0 | AA72: 0 | AB72: 0 | AC72: 0 | AD72: 0 | AE72: 0 | AF72: 0 | AG72: 0 | AH72: 0 | AI72: 0 | AJ72: 0 | AK72: 0 | AL72: 0 | AM72: 0 | AN72: 0 | AO72: 0 | AP72: 0 | AQ72: 0 | AR72: 0 | AS72: 0 | AT72: 0 | AU72: 0 | AV72: 0 | AW72: 0 | AX72: 0 | AY72: 0 | AZ72: 0 | BA72: 0 | BB72: 0 | BC72: 0 | BD72: 0 | BE72: 0 | BF72: 0
D73: 6 | P73: =O$62 ->  | Q73: 0 | R73: 0 | S73: 0 | T73: 0 | U73: 0 | V73: 0 | W73: 0 | X73: 0 | Y73: 0 | Z73: 0 | AA73: 0 | AB73: 0 | AC73: 0 | AD73: 0 | AE73: 0 | AF73: 0 | AG73: 0 | AH73: 0 | AI73: 0 | AJ73: 0 | AK73: 0 | AL73: 0 | AM73: 0 | AN73: 0 | AO73: 0 | AP73: 0 | AQ73: 0 | AR73: 0 | AS73: 0 | AT73: 0 | AU73: 0 | AV73: 0 | AW73: 0 | AX73: 0 | AY73: 0 | AZ73: 0 | BA73: 0 | BB73: 0 | BC73: 0 | BD73: 0 | BE73: 0 | BF73: 0
D74: 7 | Q74: =P$62 ->  | R74: 0 | S74: 0 | T74: 0 | U74: 0 | V74: 0 | W74: 0 | X74: 0 | Y74: 0 | Z74: 0 | AA74: 0 | AB74: 0 | AC74: 0 | AD74: 0 | AE74: 0 | AF74: 0 | AG74: 0 | AH74: 0 | AI74: 0 | AJ74: 0 | AK74: 0 | AL74: 0 | AM74: 0 | AN74: 0 | AO74: 0 | AP74: 0 | AQ74: 0 | AR74: 0 | AS74: 0 | AT74: 0 | AU74: 0 | AV74: 0 | AW74: 0 | AX74: 0 | AY74: 0 | AZ74: 0 | BA74: 0 | BB74: 0 | BC74: 0 | BD74: 0 | BE74: 0 | BF74: 0
D75: 8 | R75: =Q$62 ->  | S75: 0 | T75: 0 | U75: 0 | V75: 0 | W75: 0 | X75: 0 | Y75: 0 | Z75: 0 | AA75: 0 | AB75: 0 | AC75: 0 | AD75: 0 | AE75: 0 | AF75: 0 | AG75: 0 | AH75: 0 | AI75: 0 | AJ75: 0 | AK75: 0 | AL75: 0 | AM75: 0 | AN75: 0 | AO75: 0 | AP75: 0 | AQ75: 0 | AR75: 0 | AS75: 0 | AT75: 0 | AU75: 0 | AV75: 0 | AW75: 0 | AX75: 0 | AY75: 0 | AZ75: 0 | BA75: 0 | BB75: 0 | BC75: 0 | BD75: 0 | BE75: 0 | BF75: 0
D76: 9 | S76: =R$62 ->  | T76: 0 | U76: 0 | V76: 0 | W76: 0 | X76: 0 | Y76: 0 | Z76: 0 | AA76: 0 | AB76: 0 | AC76: 0 | AD76: 0 | AE76: 0 | AF76: 0 | AG76: 0 | AH76: 0 | AI76: 0 | AJ76: 0 | AK76: 0 | AL76: 0 | AM76: 0 | AN76: 0 | AO76: 0 | AP76: 0 | AQ76: 0 | AR76: 0 | AS76: 0 | AT76: 0 | AU76: 0 | AV76: 0 | AW76: 0 | AX76: 0 | AY76: 0 | AZ76: 0 | BA76: 0 | BB76: 0 | BC76: 0 | BD76: 0 | BE76: 0 | BF76: 0
D77: 10 | T77: =S$62 ->  | U77: 0 | V77: 0 | W77: 0 | X77: 0 | Y77: 0 | Z77: 0 | AA77: 0 | AB77: 0 | AC77: 0 | AD77: 0 | AE77: 0 | AF77: 0 | AG77: 0 | AH77: 0 | AI77: 0 | AJ77: 0 | AK77: 0 | AL77: 0 | AM77: 0 | AN77: 0 | AO77: 0 | AP77: 0 | AQ77: 0 | AR77: 0 | AS77: 0 | AT77: 0 | AU77: 0 | AV77: 0 | AW77: 0 | AX77: 0 | AY77: 0 | AZ77: 0 | BA77: 0 | BB77: 0 | BC77: 0 | BD77: 0 | BE77: 0 | BF77: 0
D78: 11 | U78: =T$62 ->  | V78: 0 | W78: 0 | X78: 0 | Y78: 0 | Z78: 0 | AA78: 0 | AB78: 0 | AC78: 0 | AD78: 0 | AE78: 0 | AF78: 0 | AG78: 0 | AH78: 0 | AI78: 0 | AJ78: 0 | AK78: 0 | AL78: 0 | AM78: 0 | AN78: 0 | AO78: 0 | AP78: 0 | AQ78: 0 | AR78: 0 | AS78: 0 | AT78: 0 | AU78: 0 | AV78: 0 | AW78: 0 | AX78: 0 | AY78: 0 | AZ78: 0 | BA78: 0 | BB78: 0 | BC78: 0 | BD78: 0 | BE78: 0 | BF78: 0
D79: 12 | V79: =U$62 ->  | W79: 0 | X79: 0 | Y79: 0 | Z79: 0 | AA79: 0 | AB79: 0 | AC79: 0 | AD79: 0 | AE79: 0 | AF79: 0 | AG79: 0 | AH79: 0 | AI79: 0 | AJ79: 0 | AK79: 0 | AL79: 0 | AM79: 0 | AN79: 0 | AO79: 0 | AP79: 0 | AQ79: 0 | AR79: 0 | AS79: 0 | AT79: 0 | AU79: 0 | AV79: 0 | AW79: 0 | AX79: 0 | AY79: 0 | AZ79: 0 | BA79: 0 | BB79: 0 | BC79: 0 | BD79: 0 | BE79: 0 | BF79: 0
D80: 13 | W80: =V$62 ->  | X80: 0 | Y80: 0 | Z80: 0 | AA80: 0 | AB80: 0 | AC80: 0 | AD80: 0 | AE80: 0 | AF80: 0 | AG80: 0 | AH80: 0 | AI80: 0 | AJ80: 0 | AK80: 0 | AL80: 0 | AM80: 0 | AN80: 0 | AO80: 0 | AP80: 0 | AQ80: 0 | AR80: 0 | AS80: 0 | AT80: 0 | AU80: 0 | AV80: 0 | AW80: 0 | AX80: 0 | AY80: 0 | AZ80: 0 | BA80: 0 | BB80: 0 | BC80: 0 | BD80: 0 | BE80: 0 | BF80: 0
D81: 14 | X81: =W$62 ->  | Y81: 0 | Z81: 0 | AA81: 0 | AB81: 0 | AC81: 0 | AD81: 0 | AE81: 0 | AF81: 0 | AG81: 0 | AH81: 0 | AI81: 0 | AJ81: 0 | AK81: 0 | AL81: 0 | AM81: 0 | AN81: 0 | AO81: 0 | AP81: 0 | AQ81: 0 | AR81: 0 | AS81: 0 | AT81: 0 | AU81: 0 | AV81: 0 | AW81: 0 | AX81: 0 | AY81: 0 | AZ81: 0 | BA81: 0 | BB81: 0 | BC81: 0 | BD81: 0 | BE81: 0 | BF81: 0
D82: 15 | Y82: =X$62 ->  | Z82: 0 | AA82: 0 | AB82: 0 | AC82: 0 | AD82: 0 | AE82: 0 | AF82: 0 | AG82: 0 | AH82: 0 | AI82: 0 | AJ82: 0 | AK82: 0 | AL82: 0 | AM82: 0 | AN82: 0 | AO82: 0 | AP82: =IF((AP$5-$D82)<=BondMat,AO82,0) -> 0 | AQ82: 0 | AR82: 0 | AS82: 0 | AT82: 0 | AU82: 0 | AV82: 0 | AW82: 0 | AX82: 0 | AY82: 0 | AZ82: 0 | BA82: 0 | BB82: 0 | BC82: 0 | BD82: 0 | BE82: 0 | BF82: 0
D83: 16 | Z83: =Y$62 ->  | AA83: =IF((AA$5-$D83)<=BondMat,Z83,0) -> 0 | AB83: 0 | AC83: 0 | AD83: 0 | AE83: 0 | AF83: 0 | AG83: 0 | AH83: 0 | AI83: 0 | AJ83: 0 | AK83: 0 | AL83: 0 | AM83: 0 | AN83: 0 | AO83: 0 | AP83: 0 | AQ83: 0 | AR83: 0 | AS83: 0 | AT83: 0 | AU83: 0 | AV83: 0 | AW83: 0 | AX83: 0 | AY83: 0 | AZ83: 0 | BA83: 0 | BB83: 0 | BC83: 0 | BD83: 0 | BE83: 0 | BF83: =IF((BF$5-$D83)<=BondMat,BE83,0) -> 0
D84: 17 | AA84: =Z$62 ->  | AB84: 0 | AC84: 0 | AD84: 0 | AE84: 0 | AF84: 0 | AG84: 0 | AH84: 0 | AI84: 0 | AJ84: 0 | AK84: 0 | AL84: 0 | AM84: 0 | AN84: 0 | AO84: 0 | AP84: 0 | AQ84: 0 | AR84: 0 | AS84: 0 | AT84: 0 | AU84: 0 | AV84: 0 | AW84: 0 | AX84: 0 | AY84: 0 | AZ84: 0 | BA84: 0 | BB84: 0 | BC84: 0 | BD84: 0 | BE84: 0 | BF84: 0
D85: 18 | AB85: =AA$62 ->  | AC85: 0 | AD85: 0 | AE85: 0 | AF85: 0 | AG85: 0 | AH85: 0 | AI85: 0 | AJ85: 0 | AK85: 0 | AL85: 0 | AM85: 0 | AN85: 0 | AO85: 0 | AP85: 0 | AQ85: 0 | AR85: 0 | AS85: 0 | AT85: 0 | AU85: 0 | AV85: 0 | AW85: 0 | AX85: 0 | AY85: 0 | AZ85: 0 | BA85: 0 | BB85: 0 | BC85: 0 | BD85: 0 | BE85: 0 | BF85: 0
D86: 19 | AC86: =AB$62 ->  | AD86: 0 | AE86: 0 | AF86: 0 | AG86: 0 | AH86: 0 | AI86: 0 | AJ86: 0 | AK86: 0 | AL86: 0 | AM86: 0 | AN86: 0 | AO86: 0 | AP86: 0 | AQ86: 0 | AR86: 0 | AS86: 0 | AT86: 0 | AU86: 0 | AV86: 0 | AW86: 0 | AX86: 0 | AY86: 0 | AZ86: 0 | BA86: 0 | BB86: 0 | BC86: 0 | BD86: 0 | BE86: 0 | BF86: 0
D87: 20 | AD87: =AC$62 ->  | AE87: 0 | AF87: 0 | AG87: 0 | AH87: 0 | AI87: 0 | AJ87: 0 | AK87: 0 | AL87: 0 | AM87: 0 | AN87: 0 | AO87: 0 | AP87: 0 | AQ87: 0 | AR87: 0 | AS87: 0 | AT87: 0 | AU87: 0 | AV87: 0 | AW87: 0 | AX87: 0 | AY87: 0 | AZ87: 0 | BA87: 0 | BB87: 0 | BC87: 0 | BD87: 0 | BE87: 0 | BF87: 0
D88: 21 | AE88: =AD$62 ->  | AF88: 0 | AG88: 0 | AH88: 0 | AI88: 0 | AJ88: 0 | AK88: 0 | AL88: 0 | AM88: 0 | AN88: 0 | AO88: 0 | AP88: 0 | AQ88: 0 | AR88: 0 | AS88: 0 | AT88: 0 | AU88: 0 | AV88: 0 | AW88: 0 | AX88: 0 | AY88: 0 | AZ88: 0 | BA88: 0 | BB88: 0 | BC88: 0 | BD88: 0 | BE88: 0 | BF88: 0
D89: 22 | AF89: =AE$62 ->  | AG89: 0 | AH89: 0 | AI89: 0 | AJ89: 0 | AK89: 0 | AL89: 0 | AM89: 0 | AN89: 0 | AO89: 0 | AP89: 0 | AQ89: 0 | AR89: 0 | AS89: 0 | AT89: 0 | AU89: 0 | AV89: 0 | AW89: 0 | AX89: 0 | AY89: 0 | AZ89: 0 | BA89: 0 | BB89: 0 | BC89: 0 | BD89: 0 | BE89: 0 | BF89: 0
D90: 23 | AG90: =AF$62 ->  | AH90: 0 | AI90: 0 | AJ90: 0 | AK90: 0 | AL90: 0 | AM90: 0 | AN90: 0 | AO90: 0 | AP90: 0 | AQ90: 0 | AR90: 0 | AS90: 0 | AT90: 0 | AU90: 0 | AV90: 0 | AW90: 0 | AX90: 0 | AY90: 0 | AZ90: 0 | BA90: 0 | BB90: 0 | BC90: 0 | BD90: 0 | BE90: 0 | BF90: 0
D91: 24 | AH91: =AG$62 ->  | AI91: 0 | AJ91: 0 | AK91: 0 | AL91: 0 | AM91: 0 | AN91: 0 | AO91: 0 | AP91: 0 | AQ91: 0 | AR91: 0 | AS91: 0 | AT91: 0 | AU91: 0 | AV91: 0 | AW91: 0 | AX91: 0 | AY91: 0 | AZ91: 0 | BA91: 0 | BB91: 0 | BC91: 0 | BD91: 0 | BE91: 0 | BF91: 0
D92: 25 | AI92: =AH$62 ->  | AJ92: 0 | AK92: 0 | AL92: 0 | AM92: 0 | AN92: 0 | AO92: 0 | AP92: 0 | AQ92: 0 | AR92: 0 | AS92: 0 | AT92: 0 | AU92: 0 | AV92: 0 | AW92: 0 | AX92: 0 | AY92: 0 | AZ92: 0 | BA92: 0 | BB92: 0 | BC92: 0 | BD92: 0 | BE92: 0 | BF92: 0
D93: 26 | AJ93: =AI$62 ->  | AK93: 0 | AL93: 0 | AM93: 0 | AN93: 0 | AO93: 0 | AP93: 0 | AQ93: 0 | AR93: 0 | AS93: 0 | AT93: 0 | AU93: 0 | AV93: 0 | AW93: 0 | AX93: 0 | AY93: 0 | AZ93: 0 | BA93: 0 | BB93: 0 | BC93: 0 | BD93: 0 | BE93: 0 | BF93: 0
D94: 27 | AK94: =AJ$62 ->  | AL94: 0 | AM94: 0 | AN94: 0 | AO94: 0 | AP94: 0 | AQ94: 0 | AR94: 0 | AS94: 0 | AT94: 0 | AU94: 0 | AV94: 0 | AW94: 0 | AX94: 0 | AY94: 0 | AZ94: 0 | BA94: 0 | BB94: 0 | BC94: 0 | BD94: 0 | BE94: 0 | BF94: 0
D95: 28 | AL95: =AK$62 ->  | AM95: 0 | AN95: 0 | AO95: 0 | AP95: 0 | AQ95: 0 | AR95: 0 | AS95: 0 | AT95: 0 | AU95: 0 | AV95: 0 | AW95: 0 | AX95: 0 | AY95: 0 | AZ95: 0 | BA95: 0 | BB95: 0 | BC95: 0 | BD95: 0 | BE95: 0 | BF95: 0
D96: 29 | AM96: =AL$62 ->  | AN96: 0 | AO96: 0 | AP96: 0 | AQ96: 0 | AR96: 0 | AS96: 0 | AT96: 0 | AU96: 0 | AV96: 0 | AW96: 0 | AX96: 0 | AY96: 0 | AZ96: 0 | BA96: 0 | BB96: 0 | BC96: 0 | BD96: 0 | BE96: 0 | BF96: 0
D97: 30 | AN97: =AM$62 ->  | AO97: 0 | AP97: 0 | AQ97: 0 | AR97: 0 | AS97: 0 | AT97: 0 | AU97: 0 | AV97: 0 | AW97: 0 | AX97: 0 | AY97: 0 | AZ97: 0 | BA97: 0 | BB97: 0 | BC97: 0 | BD97: 0 | BE97: 0 | BF97: 0
D98: 31 | AO98: =AN$62 ->  | AP98: 0 | AQ98: =IF((AQ$5-$D98)<=BondMat,AP98,0) -> 0 | AR98: 0 | AS98: 0 | AT98: 0 | AU98: 0 | AV98: 0 | AW98: 0 | AX98: 0 | AY98: 0 | AZ98: 0 | BA98: 0 | BB98: 0 | BC98: 0 | BD98: 0 | BE98: 0 | BF98: 0
D99: 32 | AP99: =AO$62 ->  | AQ99: 0 | AR99: 0 | AS99: 0 | AT99: 0 | AU99: 0 | AV99: 0 | AW99: 0 | AX99: 0 | AY99: 0 | AZ99: 0 | BA99: 0 | BB99: 0 | BC99: 0 | BD99: 0 | BE99: 0 | BF99: 0
D100: 33 | AQ100: =AP$62 ->  | AR100: 0 | AS100: 0 | AT100: 0 | AU100: 0 | AV100: 0 | AW100: 0 | AX100: 0 | AY100: 0 | AZ100: 0 | BA100: 0 | BB100: 0 | BC100: 0 | BD100: 0 | BE100: 0 | BF100: 0
D101: 34 | AR101: =AQ$62 ->  | AS101: 0 | AT101: 0 | AU101: 0 | AV101: 0 | AW101: 0 | AX101: 0 | AY101: 0 | AZ101: 0 | BA101: 0 | BB101: 0 | BC101: 0 | BD101: 0 | BE101: 0 | BF101: 0
D102: 35 | AS102: =AR$62 ->  | AT102: 0 | AU102: 0 | AV102: 0 | AW102: 0 | AX102: 0 | AY102: 0 | AZ102: 0 | BA102: 0 | BB102: 0 | BC102: 0 | BD102: 0 | BE102: 0 | BF102: 0
D103: 36 | AT103: =AS$62 ->  | AU103: 0 | AV103: 0 | AW103: 0 | AX103: 0 | AY103: 0 | AZ103: 0 | BA103: 0 | BB103: 0 | BC103: 0 | BD103: 0 | BE103: 0 | BF103: 0
D104: 37 | AU104: =AT$62 ->  | AV104: 0 | AW104: 0 | AX104: 0 | AY104: 0 | AZ104: 0 | BA104: 0 | BB104: 0 | BC104: 0 | BD104: 0 | BE104: 0 | BF104: 0
D105: 38 | AV105: =AU$62 ->  | AW105: 0 | AX105: 0 | AY105: 0 | AZ105: 0 | BA105: 0 | BB105: 0 | BC105: 0 | BD105: 0 | BE105: 0 | BF105: 0
D106: 39 | AW106: =AV$62 ->  | AX106: 0 | AY106: 0 | AZ106: 0 | BA106: 0 | BB106: 0 | BC106: 0 | BD106: 0 | BE106: 0 | BF106: 0
D107: 40 | AX107: =AW$62 ->  | AY107: 0 | AZ107: 0 | BA107: 0 | BB107: 0 | BC107: 0 | BD107: 0 | BE107: 0 | BF107: 0
D108: 41 | AY108: =AX$62 ->  | AZ108: 0 | BA108: 0 | BB108: 0 | BC108: 0 | BD108: 0 | BE108: 0 | BF108: 0
D109: 42 | AZ109: =AY$62 ->  | BA109: 0 | BB109: 0 | BC109: 0 | BD109: 0 | BE109: 0 | BF109: 0
D110: 43 | BA110: =AZ$62 ->  | BB110: =IF((BB$5-$D110)<=BondMat,BA110,0) -> 0 | BC110: =IF((BC$5-$D110)<=BondMat,BB110,0) -> 0 | BD110: =IF((BD$5-$D110)<=BondMat,BC110,0) -> 0 | BE110: =IF((BE$5-$D110)<=BondMat,BD110,0) -> 0 | BF110: 0
D111: 44 | BB111: =BA$62 ->  | BC111: =IF((BC$5-$D111)<=BondMat,BB111,0) -> 0 | BD111: =IF((BD$5-$D111)<=BondMat,BC111,0) -> 0 | BE111: =IF((BE$5-$D111)<=BondMat,BD111,0) -> 0 | BF111: 0
D112: 45 | BC112: =BB$62 ->  | BD112: =IF((BD$5-$D112)<=BondMat,BC112,0) -> 0 | BE112: =IF((BE$5-$D112)<=BondMat,BD112,0) -> 0 | BF112: 0
D113: 46 | BD113: =BC$62 ->  | BE113: =IF((BE$5-$D113)<=BondMat,BD113,0) -> 0 | BF113: 0
D114: 47 | BE114: =BD$62 ->  | BF114: =IF((BF$5-$D114)<=BondMat,BE114,0) -> 0
D115: 48 | BF115: =BE$62 -> 

Sheet LCC O&M Alt 1 New (hidden)
A1: Life Cycle Cost Model
A2: =ProjName -> Project Name
A3: LCC O&M Costs and Intangibles, | E3: Status Quo | J3: =DiscRat -> 0.08
A4: ($0s)
F5: ='LCC Cap Alt 1 New'!I5 -> 0 | G5: =F5+1 -> 1 | H5: =G5+1 -> 2 | I5: 3 | J5: 4 | K5: 5 | L5: 6 | M5: 7 | N5: 8 | O5: 9 | P5: 10 | Q5: 11 | R5: 12 | S5: 13 | T5: 14 | U5: 15 | V5: 16 | W5: 17 | X5: 18 | Y5: 19 | Z5: 20 | AA5: 21 | AB5: 22 | AC5: 23 | AD5: 24 | AE5: 25 | AF5: 26 | AG5: 27 | AH5: 28 | AI5: 29 | AJ5: 30 | AK5: 31 | AL5: 32 | AM5: 33 | AN5: 34 | AO5: 35 | AP5: 36 | AQ5: 37 | AR5: 38 | AS5: 39 | AT5: 40 | AU5: 41 | AV5: 42 | AW5: 43 | AX5: 44 | AY5: 45 | AZ5: 46 | BA5: 47 | BB5: 48 | BC5: 49
F7: 1 | G7: =F7+1 -> 2 | H7: =G7+1 -> 3 | I7: 4 | J7: 5 | K7: 6 | L7: 7 | M7: 8 | N7: 9 | O7: 10 | P7: 11 | Q7: 12 | R7: 13 | S7: 14 | T7: 15 | U7: 16 | V7: 17 | W7: 18 | X7: 19 | Y7: 20 | Z7: 21 | AA7: 22 | AB7: 23 | AC7: 24 | AD7: 25 | AE7: 26 | AF7: 27 | AG7: 28 | AH7: 29 | AI7: 30 | AJ7: 31 | AK7: 32 | AL7: 33 | AM7: 34 | AN7: 35 | AO7: 36 | AP7: 37 | AQ7: 38 | AR7: 39 | AS7: 40 | AT7: 41 | AU7: 42 | AV7: 43 | AW7: 44 | AX7: 45 | AY7: 46 | AZ7: 47 | BA7: 48 | BB7: 49 | BC7: 50
A8: PV of O&M and Intang. Costs
B9: Total | E9: =PresentYear -> 0 | F9: =SUM(F10:BC10) -> 
B10: Annual | E10: =PresentYear -> 0 | F10: =F$24/(1+DiscRat)^(F$5-PresentYear) ->  | G10: =IF(G$7<=LCCPeriod,(G$24/(1+DiscRat)^(G$5-PresentYear)),0) -> 0 | H10: 0 | I10: 0 | J10: 0 | K10: 0 | L10: 0 | M10: 0 | N10: 0 | O10: 0 | P10: 0 | Q10: 0 | R10: 0 | S10: 0 | T10: 0 | U10: 0 | V10: 0 | W10: 0 | X10: 0 | Y10: 0 | Z10: 0 | AA10: 0 | AB10: 0 | AC10: 0 | AD10: 0 | AE10: 0 | AF10: 0 | AG10: 0 | AH10: 0 | AI10: 0 | AJ10: 0 | AK10: 0 | AL10: 0 | AM10: =IF(AM$7<=LCCPeriod,(AM$24/(1+DiscRat)^(AM$5-PresentYear)),0) -> 0 | AN10: 0 | AO10: 0 | AP10: 0 | AQ10: 0 | AR10: 0 | AS10: 0 | AT10: 0 | AU10: 0 | AV10: 0 | AW10: 0 | AX10: 0 | AY10: 0 | AZ10: 0 | BA10: 0 | BB10: 0 | BC10: 0
B12: Energy | E12: =PresentYear -> 0 | F12: =F$57/(1+DiscRat)^(F$5-PresentYear) ->  | G12: =IF(G$7<=LCCPeriod,(G$57/(1+DiscRat)^(G$5-PresentYear)),0) -> 0 | H12: 0 | I12: 0 | J12: 0 | K12: 0 | L12: 0 | M12: 0 | N12: 0 | O12: 0 | P12: 0 | Q12: 0 | R12: 0 | S12: 0 | T12: 0 | U12: 0 | V12: 0 | W12: 0 | X12: 0 | Y12: 0 | Z12: 0 | AA12: 0 | AB12: 0 | AC12: 0 | AD12: 0 | AE12: 0 | AF12: 0 | AG12: 0 | AH12: 0 | AI12: 0 | AJ12: 0 | AK12: 0 | AL12: 0 | AM12: 0 | AN12: 0 | AO12: 0 | AP12: 0 | AQ12: 0 | AR12: 0 | AS12: 0 | AT12: 0 | AU12: 0 | AV12: 0 | AW12: 0 | AX12: 0 | AY12: 0 | AZ12: 0 | BA12: 0 | BB12: 0 | BC12: 0
B13: Energy Total | F13: =SUM(F12:BC12) -> 
A14: PV of Benefits
B15: Total | E15: =PresentYear -> 0 | F15: =SUM(F16:BC16) -> 0
B16: Annual | E16: =PresentYear -> 0 | F16: =F$19/(1+DiscRat)^(F$5-PresentYear) -> 0 | G16: 0 | H16: 0 | I16: 0 | J16: 0 | K16: 0 | L16: 0 | M16: 0 | N16: 0 | O16: 0 | P16: 0 | Q16: 0 | R16: 0 | S16: 0 | T16: 0 | U16: 0 | V16: 0 | W16: 0 | X16: 0 | Y16: 0 | Z16: 0 | AA16: 0 | AB16: 0 | AC16: 0 | AD16: 0 | AE16: 0 | AF16: 0 | AG16: 0 | AH16: 0 | AI16: 0 | AJ16: 0 | AK16: 0 | AL16: =AL$19/(1+DiscRat)^(AL$5-PresentYear) -> 0 | AM16: 0 | AN16: 0 | AO16: 0 | AP16: 0 | AQ16: 0 | AR16: 0 | AS16: 0 | AT16: 0 | AU16: 0 | AV16: 0 | AW16: 0 | AX16: 0 | AY16: 0 | AZ16: 0 | BA16: 0 | BB16: 0 | BC16: 0
A18: Component Summaries
B19: Benefits | F19: =F34 -> 0 | G19: =G34 -> 0 | H19: 0 | I19: 0 | J19: 0 | K19: 0 | L19: 0 | M19: 0 | N19: 0 | O19: 0 | P19: 0 | Q19: 0 | R19: 0 | S19: 0 | T19: 0 | U19: 0 | V19: 0 | W19: 0 | X19: 0 | Y19: 0 | Z19: 0 | AA19: 0 | AB19: 0 | AC19: 0 | AD19: 0 | AE19: 0 | AF19: 0 | AG19: 0 | AH19: 0 | AI19: 0 | AJ19: 0 | AK19: 0 | AL19: 0 | AM19: 0 | AN19: 0 | AO19: 0 | AP19: 0 | AQ19: 0 | AR19: 0 | AS19: 0 | AT19: 0 | AU19: 0 | AV19: 0 | AW19: 0 | AX19: 0 | AY19: 0 | AZ19: 0 | BA19: 0 | BB19: 0 | BC19: 0
B21: Risk | F21: =F43 -> 0 | G21: =G43 -> 0 | H21: 0 | I21: 0 | J21: 0 | K21: 0 | L21: 0 | M21: 0 | N21: 0 | O21: 0 | P21: 0 | Q21: 0 | R21: 0 | S21: 0 | T21: 0 | U21: 0 | V21: 0 | W21: 0 | X21: 0 | Y21: 0 | Z21: 0 | AA21: 0 | AB21: 0 | AC21: 0 | AD21: 0 | AE21: 0 | AF21: 0 | AG21: 0 | AH21: 0 | AI21: 0 | AJ21: 0 | AK21: 0 | AL21: 0 | AM21: 0 | AN21: 0 | AO21: 0 | AP21: 0 | AQ21: 0 | AR21: 0 | AS21: 0 | AT21: 0 | AU21: 0 | AV21: 0 | AW21: 0 | AX21: 0 | AY21: 0 | AZ21: 0 | BA21: 0 | BB21: 0 | BC21: 0
B22: Uncertainty | F22: =F52 -> 0 | G22: =G52 -> 0 | H22: 0 | I22: 0 | J22: 0 | K22: 0 | L22: 0 | M22: 0 | N22: 0 | O22: 0 | P22: 0 | Q22: 0 | R22: 0 | S22: 0 | T22: 0 | U22: 0 | V22: 0 | W22: 0 | X22: 0 | Y22: 0 | Z22: 0 | AA22: 0 | AB22: 0 | AC22: 0 | AD22: 0 | AE22: 0 | AF22: 0 | AG22: 0 | AH22: 0 | AI22: 0 | AJ22: 0 | AK22: 0 | AL22: 0 | AM22: 0 | AN22: 0 | AO22: 0 | AP22: 0 | AQ22: 0 | AR22: 0 | AS22: 0 | AT22: 0 | AU22: 0 | AV22: 0 | AW22: 0 | AX22: 0 | AY22: 0 | AZ22: 0 | BA22: 0 | BB22: 0 | BC22: 0
B23: O&M | F23: =F62 ->  | G23: =G62 -> 
B24: Total (not incl Benefits) | F24: =SUM(F21:F23) ->  | G24: =SUM(G21:G23) -> 
A26: Details
A28: Benefits
C29: 1. | E29: =EPCBaseYear -> 0 | F29: 0 | G29: =F29 -> 0 | H29: =G29 -> 0 | I29: 0 | J29: 0 | K29: 0 | L29: 0 | M29: 0 | N29: 0 | O29: 0 | P29: 0 | Q29: 0 | R29: 0 | S29: 0 | T29: 0 | U29: 0 | V29: 0 | W29: 0 | X29: 0 | Y29: 0 | Z29: 0 | AA29: 0 | AB29: 0 | AC29: 0 | AD29: 0 | AE29: 0 | AF29: 0 | AG29: 0 | AH29: 0 | AI29: 0 | AJ29: 0 | AK29: 0 | AL29: 0 | AM29: 0 | AN29: 0 | AO29: 0 | AP29: 0 | AQ29: 0 | AR29: 0 | AS29: 0 | AT29: 0 | AU29: 0 | AV29: 0 | AW29: 0 | AX29: 0 | AY29: 0 | AZ29: 0 | BA29: 0 | BB29: 0 | BC29: 0
C30: 2. | E30: =EPCBaseYear -> 0 | F30: 0 | G30: =F30 -> 0 | H30: 0 | I30: 0 | J30: 0 | K30: 0 | L30: 0 | M30: 0 | N30: 0 | O30: 0 | P30: 0 | Q30: 0 | R30: 0 | S30: 0 | T30: 0 | U30: 0 | V30: 0 | W30: 0 | X30: 0 | Y30: 0 | Z30: 0 | AA30: 0 | AB30: 0 | AC30: 0 | AD30: 0 | AE30: 0 | AF30: 0 | AG30: 0 | AH30: 0 | AI30: 0 | AJ30: 0 | AK30: 0 | AL30: 0 | AM30: 0 | AN30: 0 | AO30: 0 | AP30: 0 | AQ30: 0 | AR30: 0 | AS30: 0 | AT30: 0 | AU30: 0 | AV30: 0 | AW30: 0 | AX30: 0 | AY30: 0 | AZ30: 0 | BA30: 0 | BB30: 0 | BC30: 0
C31: 3. | E31: =EPCBaseYear -> 0 | F31: 0 | G31: =F31 -> 0 | H31: 0 | I31: 0 | J31: 0 | K31: 0 | L31: 0 | M31: 0 | N31: 0 | O31: 0 | P31: 0 | Q31: 0 | R31: 0 | S31: 0 | T31: 0 | U31: 0 | V31: 0 | W31: 0 | X31: 0 | Y31: 0 | Z31: 0 | AA31: 0 | AB31: 0 | AC31: 0 | AD31: 0 | AE31: 0 | AF31: 0 | AG31: 0 | AH31: 0 | AI31: 0 | AJ31: 0 | AK31: 0 | AL31: 0 | AM31: 0 | AN31: 0 | AO31: 0 | AP31: 0 | AQ31: 0 | AR31: 0 | AS31: 0 | AT31: 0 | AU31: 0 | AV31: 0 | AW31: 0 | AX31: 0 | AY31: 0 | AZ31: 0 | BA31: 0 | BB31: 0 | BC31: 0
C32: 4. | E32: =EPCBaseYear -> 0 | F32: 0 | G32: =F32 -> 0 | H32: 0 | I32: 0 | J32: 0 | K32: 0 | L32: 0 | M32: 0 | N32: 0 | O32: 0 | P32: 0 | Q32: 0 | R32: 0 | S32: 0 | T32: 0 | U32: 0 | V32: 0 | W32: 0 | X32: 0 | Y32: 0 | Z32: 0 | AA32: 0 | AB32: 0 | AC32: 0 | AD32: 0 | AE32: 0 | AF32: 0 | AG32: 0 | AH32: 0 | AI32: 0 | AJ32: 0 | AK32: 0 | AL32: 0 | AM32: 0 | AN32: 0 | AO32: 0 | AP32: 0 | AQ32: 0 | AR32: 0 | AS32: 0 | AT32: 0 | AU32: 0 | AV32: 0 | AW32: 0 | AX32: 0 | AY32: 0 | AZ32: 0 | BA32: 0 | BB32: 0 | BC32: 0
D33: Sum of benefits | E33: =EPCBaseYear -> 0 | F33: =SUM(F29:F32) -> 0 | G33: =SUM(G29:G32) -> 0 | H33: 0 | I33: 0 | J33: 0 | K33: 0 | L33: 0 | M33: 0 | N33: 0 | O33: 0 | P33: 0 | Q33: 0 | R33: 0 | S33: 0 | T33: 0 | U33: 0 | V33: 0 | W33: 0 | X33: 0 | Y33: 0 | Z33: 0 | AA33: 0 | AB33: 0 | AC33: 0 | AD33: 0 | AE33: 0 | AF33: 0 | AG33: 0 | AH33: 0 | AI33: 0 | AJ33: 0 | AK33: 0 | AL33: 0 | AM33: 0 | AN33: 0 | AO33: 0 | AP33: 0 | AQ33: 0 | AR33: 0 | AS33: 0 | AT33: 0 | AU33: 0 | AV33: 0 | AW33: 0 | AX33: 0 | AY33: 0 | AZ33: 0 | BA33: 0 | BB33: 0 | BC33: 0
D34: Escalated to indicated year | E34: =CostEscalOM -> 0.03 | F34: =F33*(1+RateSQ)^(F$5-EPCBaseYear) -> 0 | G34: =G33*(1+RateSQ)^(G$5-EPCBaseYear) -> 0 | H34: =H33*(1+RateSQ)^(H$5-EPCBaseYear) -> 0 | I34: 0 | J34: 0 | K34: 0 | L34: 0 | M34: 0 | N34: 0 | O34: 0 | P34: 0 | Q34: 0 | R34: 0 | S34: 0 | T34: 0 | U34: 0 | V34: 0 | W34: 0 | X34: 0 | Y34: 0 | Z34: 0 | AA34: 0 | AB34: 0 | AC34: 0 | AD34: 0 | AE34: 0 | AF34: 0 | AG34: 0 | AH34: 0 | AI34: 0 | AJ34: 0 | AK34: 0 | AL34: 0 | AM34: 0 | AN34: 0 | AO34: 0 | AP34: 0 | AQ34: 0 | AR34: 0 | AS34: 0 | AT34: 0 | AU34: 0 | AV34: 0 | AW34: 0 | AX34: 0 | AY34: 0 | AZ34: 0 | BA34: 0 | BB34: 0 | BC34: 0
A37: Risks
C38: 1. | F38: 0 | G38: =F38 -> 0 | H38: =G38 -> 0 | I38: 0 | J38: 0 | K38: 0 | L38: 0 | M38: 0 | N38: 0 | O38: 0 | P38: 0 | Q38: 0 | R38: 0 | S38: 0 | T38: 0 | U38: 0 | V38: 0 | W38: 0 | X38: 0 | Y38: 0 | Z38: 0 | AA38: 0 | AB38: 0 | AC38: 0 | AD38: 0 | AE38: 0 | AF38: 0 | AG38: 0 | AH38: 0 | AI38: 0 | AJ38: 0 | AK38: 0 | AL38: 0 | AM38: 0 | AN38: 0 | AO38: 0 | AP38: 0 | AQ38: 0 | AR38: 0 | AS38: 0 | AT38: 0 | AU38: 0 | AV38: 0 | AW38: 0 | AX38: 0 | AY38: 0 | AZ38: 0 | BA38: 0 | BB38: 0 | BC38: 0
C39: 2. | F39: 0 | G39: =F39 -> 0 | H39: 0 | I39: 0 | J39: 0 | K39: 0 | L39: 0 | M39: 0 | N39: 0 | O39: 0 | P39: 0 | Q39: 0 | R39: 0 | S39: 0 | T39: 0 | U39: 0 | V39: 0 | W39: 0 | X39: 0 | Y39: 0 | Z39: 0 | AA39: 0 | AB39: 0 | AC39: 0 | AD39: 0 | AE39: 0 | AF39: 0 | AG39: 0 | AH39: 0 | AI39: 0 | AJ39: 0 | AK39: 0 | AL39: 0 | AM39: 0 | AN39: 0 | AO39: 0 | AP39: 0 | AQ39: 0 | AR39: 0 | AS39: 0 | AT39: 0 | AU39: 0 | AV39: 0 | AW39: 0 | AX39: 0 | AY39: 0 | AZ39: 0 | BA39: 0 | BB39: 0 | BC39: 0
C40: 3. | F40: 0 | G40: =F40 -> 0 | H40: 0 | I40: 0 | J40: 0 | K40: 0 | L40: 0 | M40: 0 | N40: 0 | O40: 0 | P40: 0 | Q40: 0 | R40: 0 | S40: 0 | T40: 0 | U40: 0 | V40: 0 | W40: 0 | X40: 0 | Y40: 0 | Z40: 0 | AA40: 0 | AB40: 0 | AC40: 0 | AD40: 0 | AE40: 0 | AF40: 0 | AG40: 0 | AH40: 0 | AI40: 0 | AJ40: 0 | AK40: 0 | AL40: 0 | AM40: 0 | AN40: 0 | AO40: 0 | AP40: 0 | AQ40: 0 | AR40: 0 | AS40: 0 | AT40: 0 | AU40: 0 | AV40: 0 | AW40: 0 | AX40: 0 | AY40: 0 | AZ40: 0 | BA40: 0 | BB40: 0 | BC40: 0
C41: 4. | F41: 0 | G41: =F41 -> 0 | H41: 0 | I41: 0 | J41: 0 | K41: 0 | L41: 0 | M41: 0 | N41: 0 | O41: 0 | P41: 0 | Q41: 0 | R41: 0 | S41: 0 | T41: 0 | U41: 0 | V41: 0 | W41: 0 | X41: 0 | Y41: 0 | Z41: 0 | AA41: 0 | AB41: 0 | AC41: 0 | AD41: 0 | AE41: 0 | AF41: 0 | AG41: 0 | AH41: 0 | AI41: 0 | AJ41: 0 | AK41: 0 | AL41: 0 | AM41: 0 | AN41: 0 | AO41: 0 | AP41: 0 | AQ41: 0 | AR41: 0 | AS41: 0 | AT41: 0 | AU41: 0 | AV41: 0 | AW41: 0 | AX41: 0 | AY41: 0 | AZ41: 0 | BA41: 0 | BB41: 0 | BC41: 0
D42: Sum of benefits | E42: =EPCBaseYear -> 0 | F42: =SUM(F38:F41) -> 0 | G42: =SUM(G38:G41) -> 0 | H42: 0 | I42: 0 | J42: 0 | K42: 0 | L42: 0 | M42: 0 | N42: 0 | O42: 0 | P42: 0 | Q42: 0 | R42: 0 | S42: 0 | T42: 0 | U42: 0 | V42: 0 | W42: 0 | X42: 0 | Y42: 0 | Z42: 0 | AA42: 0 | AB42: 0 | AC42: 0 | AD42: 0 | AE42: 0 | AF42: 0 | AG42: 0 | AH42: 0 | AI42: 0 | AJ42: 0 | AK42: 0 | AL42: 0 | AM42: 0 | AN42: 0 | AO42: 0 | AP42: 0 | AQ42: 0 | AR42: 0 | AS42: 0 | AT42: 0 | AU42: 0 | AV42: 0 | AW42: 0 | AX42: 0 | AY42: 0 | AZ42: 0 | BA42: 0 | BB42: 0 | BC42: 0
D43: Escalated to indicated year | E43: =CostEscalOM -> 0.03 | F43: =F42*(1+RateSQ)^(F$5-EPCBaseYear) -> 0 | G43: =G42*(1+RateSQ)^(G$5-EPCBaseYear) -> 0 | H43: =H42*(1+RateSQ)^(H$5-EPCBaseYear) -> 0 | I43: 0 | J43: 0 | K43: 0 | L43: 0 | M43: 0 | N43: 0 | O43: 0 | P43: 0 | Q43: 0 | R43: 0 | S43: 0 | T43: 0 | U43: 0 | V43: 0 | W43: 0 | X43: 0 | Y43: 0 | Z43: 0 | AA43: 0 | AB43: 0 | AC43: 0 | AD43: 0 | AE43: 0 | AF43: 0 | AG43: 0 | AH43: 0 | AI43: 0 | AJ43: 0 | AK43: 0 | AL43: 0 | AM43: 0 | AN43: 0 | AO43: 0 | AP43: 0 | AQ43: 0 | AR43: 0 | AS43: 0 | AT43: 0 | AU43: 0 | AV43: 0 | AW43: 0 | AX43: 0 | AY43: 0 | AZ43: 0 | BA43: 0 | BB43: 0 | BC43: 0
A46: Uncertainties
C47: 1. | F47: 0 | G47: =F47 -> 0 | H47: =G47 -> 0 | I47: 0 | J47: 0 | K47: 0 | L47: 0 | M47: 0 | N47: 0 | O47: 0 | P47: 0 | Q47: 0 | R47: 0 | S47: 0 | T47: 0 | U47: 0 | V47: 0 | W47: 0 | X47: 0 | Y47: 0 | Z47: 0 | AA47: 0 | AB47: 0 | AC47: 0 | AD47: 0 | AE47: 0 | AF47: 0 | AG47: 0 | AH47: 0 | AI47: 0 | AJ47: 0 | AK47: 0 | AL47: 0 | AM47: 0 | AN47: 0 | AO47: 0 | AP47: 0 | AQ47: 0 | AR47: 0 | AS47: 0 | AT47: 0 | AU47: 0 | AV47: 0 | AW47: 0 | AX47: 0 | AY47: 0 | AZ47: 0 | BA47: 0 | BB47: 0 | BC47: 0
C48: 2. | F48: 0 | G48: =F48 -> 0 | H48: 0 | I48: 0 | J48: 0 | K48: 0 | L48: 0 | M48: 0 | N48: 0 | O48: 0 | P48: 0 | Q48: 0 | R48: 0 | S48: 0 | T48: 0 | U48: 0 | V48: 0 | W48: 0 | X48: 0 | Y48: 0 | Z48: 0 | AA48: 0 | AB48: 0 | AC48: 0 | AD48: 0 | AE48: 0 | AF48: 0 | AG48: 0 | AH48: 0 | AI48: 0 | AJ48: 0 | AK48: 0 | AL48: 0 | AM48: 0 | AN48: 0 | AO48: 0 | AP48: 0 | AQ48: 0 | AR48: 0 | AS48: 0 | AT48: 0 | AU48: 0 | AV48: 0 | AW48: 0 | AX48: 0 | AY48: 0 | AZ48: 0 | BA48: 0 | BB48: 0 | BC48: 0
C49: 3. | F49: 0 | G49: =F49 -> 0 | H49: 0 | I49: 0 | J49: 0 | K49: 0 | L49: 0 | M49: 0 | N49: 0 | O49: 0 | P49: 0 | Q49: 0 | R49: 0 | S49: 0 | T49: 0 | U49: 0 | V49: 0 | W49: 0 | X49: 0 | Y49: 0 | Z49: 0 | AA49: 0 | AB49: 0 | AC49: 0 | AD49: 0 | AE49: 0 | AF49: 0 | AG49: 0 | AH49: 0 | AI49: 0 | AJ49: 0 | AK49: 0 | AL49: 0 | AM49: 0 | AN49: 0 | AO49: 0 | AP49: 0 | AQ49: 0 | AR49: 0 | AS49: 0 | AT49: 0 | AU49: 0 | AV49: 0 | AW49: 0 | AX49: 0 | AY49: 0 | AZ49: 0 | BA49: 0 | BB49: 0 | BC49: 0
C50: 4. | F50: 0 | G50: =F50 -> 0 | H50: 0 | I50: 0 | J50: 0 | K50: 0 | L50: 0 | M50: 0 | N50: 0 | O50: 0 | P50: 0 | Q50: 0 | R50: 0 | S50: 0 | T50: 0 | U50: 0 | V50: 0 | W50: 0 | X50: 0 | Y50: 0 | Z50: 0 | AA50: 0 | AB50: 0 | AC50: 0 | AD50: 0 | AE50: 0 | AF50: 0 | AG50: 0 | AH50: 0 | AI50: 0 | AJ50: 0 | AK50: 0 | AL50: 0 | AM50: 0 | AN50: 0 | AO50: 0 | AP50: 0 | AQ50: 0 | AR50: 0 | AS50: 0 | AT50: 0 | AU50: 0 | AV50: 0 | AW50: 0 | AX50: 0 | AY50: 0 | AZ50: 0 | BA50: 0 | BB50: 0 | BC50: 0
D51: Sum of benefits | E51: =EPCBaseYear -> 0 | F51: =SUM(F47:F50) -> 0 | G51: =SUM(G47:G50) -> 0 | H51: 0 | I51: 0 | J51: 0 | K51: 0 | L51: 0 | M51: 0 | N51: 0 | O51: 0 | P51: 0 | Q51: 0 | R51: 0 | S51: 0 | T51: 0 | U51: 0 | V51: 0 | W51: 0 | X51: 0 | Y51: 0 | Z51: 0 | AA51: 0 | AB51: 0 | AC51: 0 | AD51: 0 | AE51: 0 | AF51: 0 | AG51: 0 | AH51: 0 | AI51: 0 | AJ51: 0 | AK51: 0 | AL51: 0 | AM51: 0 | AN51: 0 | AO51: 0 | AP51: 0 | AQ51: 0 | AR51: 0 | AS51: 0 | AT51: 0 | AU51: 0 | AV51: 0 | AW51: 0 | AX51: 0 | AY51: 0 | AZ51: 0 | BA51: 0 | BB51: 0 | BC51: 0
D52: Escalated to indicated year | E52: =CostEscalOM -> 0.03 | F52: =F51*(1+RateSQ)^(F$5-EPCBaseYear) -> 0 | G52: =G51*(1+RateSQ)^(G$5-EPCBaseYear) -> 0 | H52: =H51*(1+RateSQ)^(H$5-EPCBaseYear) -> 0 | I52: 0 | J52: 0 | K52: 0 | L52: 0 | M52: 0 | N52: 0 | O52: 0 | P52: 0 | Q52: 0 | R52: 0 | S52: 0 | T52: 0 | U52: 0 | V52: 0 | W52: 0 | X52: 0 | Y52: 0 | Z52: 0 | AA52: 0 | AB52: 0 | AC52: 0 | AD52: 0 | AE52: 0 | AF52: 0 | AG52: 0 | AH52: 0 | AI52: 0 | AJ52: 0 | AK52: 0 | AL52: 0 | AM52: 0 | AN52: 0 | AO52: 0 | AP52: 0 | AQ52: 0 | AR52: 0 | AS52: 0 | AT52: 0 | AU52: 0 | AV52: 0 | AW52: 0 | AX52: 0 | AY52: 0 | AZ52: 0 | BA52: 0 | BB52: 0 | BC52: 0
A55: Operations and Maintenance
B56: Summaries, escalated costs
C57: Energy | F57: =F76 ->  | G57: =G76 -> 
C58: Chemicals | F58: =F85 ->  | G58: =G85 -> 
C59: Materials & Supplies | F59: =F94 -> 0 | G59: =G94 -> 0 | H59: 0 | I59: 0 | J59: 0 | K59: 0 | L59: 0 | M59: 0 | N59: 0 | O59: 0 | P59: 0 | Q59: 0 | R59: 0 | S59: 0 | T59: 0 | U59: 0 | V59: 0 | W59: 0 | X59: 0 | Y59: 0 | Z59: 0 | AA59: 0 | AB59: 0 | AC59: 0 | AD59: 0 | AE59: 0 | AF59: 0 | AG59: 0 | AH59: 0 | AI59: 0 | AJ59: 0 | AK59: 0 | AL59: 0 | AM59: 0 | AN59: 0 | AO59: 0 | AP59: 0 | AQ59: 0 | AR59: 0 | AS59: 0 | AT59: 0 | AU59: 0 | AV59: 0 | AW59: 0 | AX59: 0 | AY59: 0 | AZ59: 0 | BA59: 0 | BB59: 0 | BC59: 0
C60: Other | F60: =F103 -> 0 | G60: =G103 -> 0 | H60: 0 | I60: 0 | J60: 0 | K60: 0 | L60: 0 | M60: 0 | N60: 0 | O60: 0 | P60: 0 | Q60: 0 | R60: 0 | S60: 0 | T60: 0 | U60: 0 | V60: 0 | W60: 0 | X60: 0 | Y60: 0 | Z60: 0 | AA60: 0 | AB60: 0 | AC60: 0 | AD60: 0 | AE60: 0 | AF60: 0 | AG60: 0 | AH60: 0 | AI60: 0 | AJ60: 0 | AK60: 0 | AL60: 0 | AM60: 0 | AN60: 0 | AO60: 0 | AP60: 0 | AQ60: 0 | AR60: 0 | AS60: 0 | AT60: 0 | AU60: 0 | AV60: 0 | AW60: 0 | AX60: 0 | AY60: 0 | AZ60: 0 | BA60: 0 | BB60: 0 | BC60: 0
C61: Labor | F61: =F108 ->  | G61: =G108 -> 
C62: Total O&M | F62: =SUM(F57:F61) ->  | G62: =SUM(G57:G61) ->  | H62: =SUM(H57:H61) -> 
B64: Energy
C65: Natural gas therms | F65: ='LCC Inputs O &M New Page 15'!E17 -> 0 | G65: =F65 -> 0 | H65: =G65 -> 0 | I65: 0 | J65: 0 | K65: 0 | L65: 0 | M65: 0 | N65: 0 | O65: 0 | P65: 0 | Q65: 0 | R65: 0 | S65: 0 | T65: 0 | U65: 0 | V65: 0 | W65: 0 | X65: 0 | Y65: 0 | Z65: 0 | AA65: 0 | AB65: 0 | AC65: 0 | AD65: 0 | AE65: 0 | AF65: 0 | AG65: 0 | AH65: 0 | AI65: 0 | AJ65: 0 | AK65: 0 | AL65: 0 | AM65: 0 | AN65: 0 | AO65: 0 | AP65: 0 | AQ65: 0 | AR65: 0 | AS65: 0 | AT65: 0 | AU65: 0 | AV65: 0 | AW65: 0 | AX65: 0 | AY65: 0 | AZ65: 0 | BA65: 0 | BB65: 0 | BC65: 0
C66: Natural gas cost, escalated | E66: (embedded) | F66: =F65*ROUND(HLOOKUP(F$5,OMUnitCostsNew,6,FALSE),2) ->  | AL66: =AL65*ROUND(HLOOKUP(AL$5,OMUnitCostsNew,6,FALSE),2) -> 
C68: Electricity
D69: Base elec. use, kwh/yr | F69: ='LCC Inputs O &M New Page 15'!E18 -> 0
D70: Elec.consump.growth/yr | F70: =ElecGrowth -> 0.03 | G70: 0.03 | H70: 0.03 | I70: 0.03 | J70: 0.03 | K70: 0.03 | L70: 0.03 | M70: 0.03 | N70: 0.03 | O70: 0.03 | P70: 0.03 | Q70: 0.03 | R70: 0.03 | S70: 0.03 | T70: 0.03 | U70: 0.03 | V70: 0.03 | W70: 0.03 | X70: 0.03 | Y70: 0.03 | Z70: 0.03 | AA70: 0.03 | AB70: 0.03 | AC70: 0.03 | AD70: 0.03 | AE70: 0.03 | AF70: 0.03 | AG70: 0.03 | AH70: 0.03 | AI70: 0.03 | AJ70: 0.03 | AK70: 0.03 | AL70: =ElecGrowth -> 0.03 | AM70: 0.03 | AN70: 0.03 | AO70: 0.03 | AP70: 0.03 | AQ70: 0.03 | AR70: 0.03 | AS70: 0.03 | AT70: 0.03 | AU70: 0.03 | AV70: 0.03 | AW70: 0.03 | AX70: 0.03 | AY70: 0.03 | AZ70: 0.03 | BA70: 0.03 | BB70: 0.03 | BC70: 0.03
D71: Electricity use, kwh | F71: =F69*(1+F70)^(F5-EPCBaseYear) -> 0 | G71: =F71*(1+G70) -> 0 | H71: =G71*(1+H70) -> 0 | I71: 0 | J71: 0 | K71: 0 | L71: 0 | M71: 0 | N71: 0 | O71: 0 | P71: 0 | Q71: 0 | R71: 0 | S71: 0 | T71: 0 | U71: 0 | V71: 0 | W71: 0 | X71: 0 | Y71: 0 | Z71: 0 | AA71: 0 | AB71: 0 | AC71: 0 | AD71: 0 | AE71: 0 | AF71: 0 | AG71: 0 | AH71: 0 | AI71: 0 | AJ71: 0 | AK71: 0 | AL71: 0 | AM71: 0 | AN71: 0 | AO71: 0 | AP71: 0 | AQ71: 0 | AR71: 0 | AS71: 0 | AT71: 0 | AU71: 0 | AV71: 0 | AW71: 0 | AX71: 0 | AY71: 0 | AZ71: 0 | BA71: 0 | BB71: 0 | BC71: 0
D72: Electricty cost, escalated | E72: (embedded) | F72: =HLOOKUP(F$5,OMUnitCostsNew,10,FALSE)*F71 ->  | AL72: =HLOOKUP(AL$5,OMUnitCostsNew,10,FALSE)*AL71 -> 
D73: Demand, kW or kVa | F73: ='LCC Inputs O &M New Page 15'!E19 -> 0 | G73: =F73 -> 0 | H73: =G73 -> 0 | I73: 0 | J73: 0 | K73: 0 | L73: 0 | M73: 0 | N73: 0 | O73: 0 | P73: 0 | Q73: 0 | R73: 0 | S73: 0 | T73: 0 | U73: 0 | V73: 0 | W73: 0 | X73: 0 | Y73: 0 | Z73: 0 | AA73: 0 | AB73: 0 | AC73: 0 | AD73: 0 | AE73: 0 | AF73: 0 | AG73: 0 | AH73: 0 | AI73: 0 | AJ73: 0 | AK73: 0 | AL73: 0 | AM73: 0 | AN73: 0 | AO73: 0 | AP73: 0 | AQ73: 0 | AR73: 0 | AS73: 0 | AT73: 0 | AU73: 0 | AV73: 0 | AW73: 0 | AX73: 0 | AY73: 0 | AZ73: 0 | BA73: 0 | BB73: 0 | BC73: 0
D74: Demand charge, escalated | E74: (embedded) | F74: =HLOOKUP(F$5,OMUnitCostsNew,11,FALSE)*F73 ->  | AL74: =HLOOKUP(AL$5,OMUnitCostsNew,11,FALSE)*AL73 -> 
D75: Total electricity cost, escalated | F75: =F72+F74 ->  | G75: =G72+G74 -> 
C76: Total, energy, escalated | F76: =F75+F66 ->  | G76: =G75+G66 -> 
B78: Chemicals
C79: Sodium hypochlorite required in gal. | F79: 0 | G79: =F79 -> 0 | H79: =G79 -> 0 | I79: 0 | J79: 0 | K79: 0 | L79: 0 | M79: 0 | N79: 0 | O79: 0 | P79: 0 | Q79: 0 | R79: 0 | S79: 0 | T79: 0 | U79: 0 | V79: 0 | W79: 0 | X79: 0 | Y79: 0 | Z79: 0 | AA79: 0 | AB79: 0 | AC79: 0 | AD79: 0 | AE79: 0 | AF79: 0 | AG79: 0 | AH79: 0 | AI79: 0 | AJ79: 0 | AK79: 0 | AL79: 0 | AM79: 0 | AN79: 0 | AO79: 0 | AP79: 0 | AQ79: 0 | AR79: 0 | AS79: 0 | AT79: 0 | AU79: 0 | AV79: 0 | AW79: 0 | AX79: 0 | AY79: 0 | AZ79: 0 | BA79: 0 | BB79: 0 | BC79: 0
C80: Bisulfide required in gal. | F80: 0 | G80: =F80 -> 0 | H80: 0 | I80: 0 | J80: 0 | K80: 0 | L80: 0 | M80: 0 | N80: 0 | O80: 0 | P80: 0 | Q80: 0 | R80: 0 | S80: 0 | T80: 0 | U80: 0 | V80: 0 | W80: 0 | X80: 0 | Y80: 0 | Z80: 0 | AA80: 0 | AB80: 0 | AC80: 0 | AD80: 0 | AE80: 0 | AF80: 0 | AG80: 0 | AH80: 0 | AI80: 0 | AJ80: 0 | AK80: 0 | AL80: 0 | AM80: 0 | AN80: 0 | AO80: 0 | AP80: 0 | AQ80: 0 | AR80: 0 | AS80: 0 | AT80: 0 | AU80: 0 | AV80: 0 | AW80: 0 | AX80: 0 | AY80: 0 | AZ80: 0 | BA80: 0 | BB80: 0 | BC80: 0
C81: Other chemical costs - enter $
D82: Item | E82: =EPCBaseYear -> 0 | F82: 0 | G82: =F82 -> 0 | H82: =G82 -> 0 | I82: 0 | J82: 0 | K82: 0 | L82: 0 | M82: 0 | N82: 0 | O82: 0 | P82: 0 | Q82: 0 | R82: 0 | S82: 0 | T82: 0 | U82: 0 | V82: 0 | W82: 0 | X82: =W82 -> 0 | Y82: 0 | Z82: 0 | AA82: 0 | AB82: 0 | AC82: 0 | AD82: 0 | AE82: 0 | AF82: 0 | AG82: 0 | AH82: 0 | AI82: 0 | AJ82: 0 | AK82: 0 | AL82: 0 | AM82: 0 | AN82: =AM82 -> 0 | AO82: 0 | AP82: 0 | AQ82: 0 | AR82: 0 | AS82: 0 | AT82: 0 | AU82: 0 | AV82: 0 | AW82: 0 | AX82: 0 | AY82: 0 | AZ82: 0 | BA82: 0 | BB82: 0 | BC82: 0
D83: Item | E83: =EPCBaseYear -> 0 | F83: 0 | G83: =F83 -> 0 | H83: 0 | I83: 0 | J83: 0 | K83: 0 | L83: 0 | M83: 0 | N83: 0 | O83: 0 | P83: 0 | Q83: 0 | R83: 0 | S83: 0 | T83: 0 | U83: 0 | V83: 0 | W83: 0 | X83: 0 | Y83: 0 | Z83: 0 | AA83: 0 | AB83: 0 | AC83: 0 | AD83: 0 | AE83: 0 | AF83: 0 | AG83: 0 | AH83: 0 | AI83: 0 | AJ83: 0 | AK83: 0 | AL83: 0 | AM83: 0 | AN83: 0 | AO83: 0 | AP83: 0 | AQ83: 0 | AR83: 0 | AS83: 0 | AT83: 0 | AU83: 0 | AV83: 0 | AW83: 0 | AX83: 0 | AY83: 0 | AZ83: 0 | BA83: 0 | BB83: 0 | BC83: 0
D84: Item | E84: =EPCBaseYear -> 0 | F84: 0 | G84: =F84 -> 0 | H84: 0 | I84: 0 | J84: 0 | K84: 0 | L84: 0 | M84: 0 | N84: 0 | O84: 0 | P84: 0 | Q84: 0 | R84: 0 | S84: 0 | T84: 0 | U84: 0 | V84: 0 | W84: 0 | X84: 0 | Y84: 0 | Z84: 0 | AA84: 0 | AB84: 0 | AC84: 0 | AD84: 0 | AE84: 0 | AF84: 0 | AG84: 0 | AH84: 0 | AI84: 0 | AJ84: 0 | AK84: 0 | AL84: 0 | AM84: 0 | AN84: 0 | AO84: 0 | AP84: 0 | AQ84: 0 | AR84: 0 | AS84: 0 | AT84: 0 | AU84: 0 | AV84: 0 | AW84: 0 | AX84: 0 | AY84: 0 | AZ84: 0 | BA84: 0 | BB84: 0 | BC84: 0
C85: Total, chemicals, escalated | E85: =CostEscalOM -> 0.03 | F85: =F79*(HLOOKUP(F$5,OMUnitCostsNew,16,FALSE))+F80*(HLOOKUP(F$5,OMUnitCostsNew,19,FALSE))+SUM(F82:F84)*(1+RateSQ)^(F$5-EPCBaseYear) ->  | AL85: =AL79*(HLOOKUP(AL$5,OMUnitCostsNew,16,FALSE))+AL80*(HLOOKUP(AL$5,OMUnitCostsNew,19,FALSE))+SUM(AL82:AL84)*(1+RateSQ)^(AL$5-EPCBaseYear) -> 
B87: Materials & Supplies
C88: Item | E88: =EPCBaseYear -> 0 | F88: ='LCC Inputs O &M New Page 15'!E22 -> 0 | G88: =F88 -> 0 | H88: =G88 -> 0 | I88: 0 | J88: 0 | K88: 0 | L88: 0 | M88: 0 | N88: 0 | O88: 0 | P88: 0 | Q88: 0 | R88: 0 | S88: 0 | T88: 0 | U88: 0 | V88: 0 | W88: 0 | X88: 0 | Y88: 0 | Z88: 0 | AA88: 0 | AB88: 0 | AC88: 0 | AD88: 0 | AE88: 0 | AF88: 0 | AG88: 0 | AH88: 0 | AI88: 0 | AJ88: 0 | AK88: 0 | AL88: 0 | AM88: 0 | AN88: 0 | AO88: 0 | AP88: 0 | AQ88: 0 | AR88: 0 | AS88: 0 | AT88: 0 | AU88: 0 | AV88: 0 | AW88: 0 | AX88: 0 | AY88: 0 | AZ88: 0 | BA88: 0 | BB88: 0 | BC88: 0
C89: Item | E89: 0 | F89: ='LCC Inputs O &M New Page 15'!E23 -> 0 | G89: =F89 -> 0 | H89: 0 | I89: 0 | J89: 0 | K89: 0 | L89: 0 | M89: 0 | N89: 0 | O89: 0 | P89: 0 | Q89: 0 | R89: 0 | S89: 0 | T89: 0 | U89: 0 | V89: 0 | W89: 0 | X89: 0 | Y89: 0 | Z89: 0 | AA89: 0 | AB89: 0 | AC89: 0 | AD89: 0 | AE89: 0 | AF89: 0 | AG89: 0 | AH89: 0 | AI89: 0 | AJ89: 0 | AK89: 0 | AL89: 0 | AM89: 0 | AN89: 0 | AO89: 0 | AP89: 0 | AQ89: 0 | AR89: 0 | AS89: 0 | AT89: 0 | AU89: 0 | AV89: 0 | AW89: 0 | AX89: 0 | AY89: 0 | AZ89: 0 | BA89: 0 | BB89: 0 | BC89: 0
C90: Item | E90: 0 | F90: ='LCC Inputs O &M New Page 15'!E24 -> 0 | G90: =F90 -> 0 | H90: 0 | I90: 0 | J90: 0 | K90: 0 | L90: 0 | M90: 0 | N90: 0 | O90: 0 | P90: 0 | Q90: 0 | R90: 0 | S90: 0 | T90: 0 | U90: 0 | V90: 0 | W90: 0 | X90: 0 | Y90: 0 | Z90: 0 | AA90: 0 | AB90: 0 | AC90: 0 | AD90: 0 | AE90: 0 | AF90: 0 | AG90: 0 | AH90: 0 | AI90: 0 | AJ90: 0 | AK90: 0 | AL90: 0 | AM90: 0 | AN90: 0 | AO90: 0 | AP90: 0 | AQ90: 0 | AR90: 0 | AS90: 0 | AT90: 0 | AU90: 0 | AV90: 0 | AW90: 0 | AX90: 0 | AY90: 0 | AZ90: 0 | BA90: 0 | BB90: 0 | BC90: 0
C91: Item | E91: 0 | F91: 0 | G91: =F91 -> 0 | H91: 0 | I91: 0 | J91: 0 | K91: 0 | L91: 0 | M91: 0 | N91: 0 | O91: 0 | P91: 0 | Q91: 0 | R91: 0 | S91: 0 | T91: 0 | U91: 0 | V91: 0 | W91: 0 | X91: 0 | Y91: 0 | Z91: 0 | AA91: 0 | AB91: 0 | AC91: 0 | AD91: 0 | AE91: 0 | AF91: 0 | AG91: 0 | AH91: 0 | AI91: 0 | AJ91: 0 | AK91: 0 | AL91: 0 | AM91: 0 | AN91: 0 | AO91: 0 | AP91: 0 | AQ91: 0 | AR91: 0 | AS91: 0 | AT91: 0 | AU91: 0 | AV91: 0 | AW91: 0 | AX91: 0 | AY91: 0 | AZ91: 0 | BA91: 0 | BB91: 0 | BC91: 0
C92: Item | E92: 0 | F92: 0 | G92: =F92 -> 0 | H92: 0 | I92: 0 | J92: 0 | K92: 0 | L92: 0 | M92: 0 | N92: 0 | O92: 0 | P92: 0 | Q92: 0 | R92: 0 | S92: 0 | T92: 0 | U92: 0 | V92: 0 | W92: 0 | X92: 0 | Y92: 0 | Z92: 0 | AA92: 0 | AB92: 0 | AC92: 0 | AD92: 0 | AE92: 0 | AF92: 0 | AG92: 0 | AH92: 0 | AI92: 0 | AJ92: 0 | AK92: 0 | AL92: 0 | AM92: 0 | AN92: 0 | AO92: 0 | AP92: 0 | AQ92: 0 | AR92: 0 | AS92: 0 | AT92: 0 | AU92: 0 | AV92: 0 | AW92: 0 | AX92: 0 | AY92: 0 | AZ92: 0 | BA92: 0 | BB92: 0 | BC92: 0
C93: Sum of above | E93: 0 | F93: =SUM(F88:F92) -> 0 | G93: =SUM(G88:G92) -> 0 | H93: 0 | I93: 0 | J93: 0 | K93: 0 | L93: 0 | M93: 0 | N93: 0 | O93: 0 | P93: 0 | Q93: 0 | R93: 0 | S93: 0 | T93: 0 | U93: 0 | V93: 0 | W93: 0 | X93: 0 | Y93: 0 | Z93: 0 | AA93: 0 | AB93: 0 | AC93: 0 | AD93: 0 | AE93: 0 | AF93: 0 | AG93: 0 | AH93: 0 | AI93: 0 | AJ93: 0 | AK93: 0 | AL93: 0 | AM93: 0 | AN93: 0 | AO93: 0 | AP93: 0 | AQ93: 0 | AR93: 0 | AS93: 0 | AT93: 0 | AU93: 0 | AV93: 0 | AW93: 0 | AX93: 0 | AY93: 0 | AZ93: 0 | BA93: 0 | BB93: 0 | BC93: 0
C94: Escalated | E94: =CostEscalOM -> 0.03 | F94: =F93*(1+RateSQ)^(F$5-EPCBaseYear) -> 0 | G94: =G93*(1+RateSQ)^(G$5-EPCBaseYear) -> 0 | H94: =H93*(1+RateSQ)^(H$5-EPCBaseYear) -> 0 | I94: 0 | J94: 0 | K94: 0 | L94: 0 | M94: 0 | N94: 0 | O94: 0 | P94: 0 | Q94: 0 | R94: 0 | S94: 0 | T94: 0 | U94: 0 | V94: 0 | W94: 0 | X94: 0 | Y94: 0 | Z94: 0 | AA94: 0 | AB94: 0 | AC94: 0 | AD94: 0 | AE94: 0 | AF94: 0 | AG94: 0 | AH94: 0 | AI94: 0 | AJ94: 0 | AK94: 0 | AL94: 0 | AM94: 0 | AN94: 0 | AO94: 0 | AP94: 0 | AQ94: 0 | AR94: 0 | AS94: 0 | AT94: 0 | AU94: 0 | AV94: 0 | AW94: 0 | AX94: 0 | AY94: 0 | AZ94: 0 | BA94: 0 | BB94: 0 | BC94: 0
B96: Other Costs
C97: Item | E97: =EPCBaseYear -> 0 | F97: 0 | G97: =F97 -> 0 | H97: 0 | I97: 0 | J97: 0 | K97: 0 | L97: 0 | M97: 0 | N97: 0 | O97: 0 | P97: 0 | Q97: 0 | R97: 0 | S97: 0 | T97: 0 | U97: 0 | V97: 0 | W97: 0 | X97: =W97 -> 0 | Y97: 0 | Z97: 0 | AA97: 0 | AB97: 0 | AC97: 0 | AD97: 0 | AE97: 0 | AF97: 0 | AG97: 0 | AH97: 0 | AI97: 0 | AJ97: 0 | AK97: 0 | AL97: 0 | AM97: 0 | AN97: =AM97 -> 0 | AO97: 0 | AP97: 0 | AQ97: 0 | AR97: 0 | AS97: 0 | AT97: 0 | AU97: 0 | AV97: 0 | AW97: 0 | AX97: 0 | AY97: 0 | AZ97: 0 | BA97: 0 | BB97: 0 | BC97: 0
C98: Item | E98: =EPCBaseYear -> 0 | F98: 0 | G98: =F98 -> 0 | H98: 0 | I98: 0 | J98: 0 | K98: 0 | L98: 0 | M98: 0 | N98: 0 | O98: 0 | P98: 0 | Q98: 0 | R98: 0 | S98: 0 | T98: 0 | U98: 0 | V98: 0 | W98: =V98 -> 0 | X98: 0 | Y98: 0 | Z98: 0 | AA98: 0 | AB98: 0 | AC98: 0 | AD98: 0 | AE98: 0 | AF98: 0 | AG98: 0 | AH98: 0 | AI98: 0 | AJ98: 0 | AK98: 0 | AL98: 0 | AM98: 0 | AN98: 0 | AO98: 0 | AP98: 0 | AQ98: 0 | AR98: 0 | AS98: 0 | AT98: 0 | AU98: 0 | AV98: 0 | AW98: 0 | AX98: 0 | AY98: 0 | AZ98: 0 | BA98: 0 | BB98: 0 | BC98: 0
C99: Item | E99: =EPCBaseYear -> 0 | F99: 0 | G99: 0 | H99: 0 | I99: 0 | J99: 0 | K99: 0 | L99: 0 | M99: 0 | N99: 0 | O99: 0 | P99: 0 | Q99: 0 | R99: 0 | S99: 0 | T99: 0 | U99: 0 | V99: 0 | W99: =V99 -> 0 | X99: 0 | Y99: 0 | Z99: 0 | AA99: 0 | AB99: 0 | AC99: 0 | AD99: 0 | AE99: 0 | AF99: 0 | AG99: 0 | AH99: 0 | AI99: 0 | AJ99: 0 | AK99: 0 | AL99: 0 | AM99: 0 | AN99: 0 | AO99: 0 | AP99: 0 | AQ99: 0 | AR99: 0 | AS99: 0 | AT99: 0 | AU99: 0 | AV99: 0 | AW99: 0 | AX99: 0 | AY99: 0 | AZ99: 0 | BA99: 0 | BB99: 0 | BC99: 0
C100: Item | E100: =EPCBaseYear -> 0 | F100: 0 | G100: 0 | H100: 0 | I100: 0 | J100: 0 | K100: 0 | L100: 0 | M100: 0 | N100: 0 | O100: 0 | P100: 0 | Q100: 0 | R100: 0 | S100: 0 | T100: 0 | U100: 0 | V100: 0 | W100: =V100 -> 0 | X100: 0 | Y100: 0 | Z100: 0 | AA100: 0 | AB100: 0 | AC100: 0 | AD100: 0 | AE100: 0 | AF100: 0 | AG100: 0 | AH100: 0 | AI100: 0 | AJ100: 0 | AK100: 0 | AL100: 0 | AM100: 0 | AN100: 0 | AO100: 0 | AP100: 0 | AQ100: 0 | AR100: 0 | AS100: 0 | AT100: 0 | AU100: 0 | AV100: 0 | AW100: 0 | AX100: 0 | AY100: 0 | AZ100: 0 | BA100: 0 | BB100: 0 | BC100: 0
C101: Item | E101: =EPCBaseYear -> 0 | F101: 0 | G101: 0 | H101: 0 | I101: 0 | J101: 0 | K101: 0 | L101: 0 | M101: 0 | N101: 0 | O101: 0 | P101: 0 | Q101: 0 | R101: 0 | S101: 0 | T101: 0 | U101: 0 | V101: 0 | W101: =V101 -> 0 | X101: 0 | Y101: 0 | Z101: 0 | AA101: 0 | AB101: 0 | AC101: 0 | AD101: 0 | AE101: 0 | AF101: 0 | AG101: 0 | AH101: 0 | AI101: 0 | AJ101: 0 | AK101: 0 | AL101: 0 | AM101: 0 | AN101: 0 | AO101: 0 | AP101: 0 | AQ101: 0 | AR101: 0 | AS101: 0 | AT101: 0 | AU101: 0 | AV101: 0 | AW101: 0 | AX101: 0 | AY101: 0 | AZ101: 0 | BA101: 0 | BB101: 0 | BC101: 0
C102: Sum of above | F102: =SUM(F97:F101) -> 0 | G102: =SUM(G97:G101) -> 0 | H102: 0 | I102: 0 | J102: 0 | K102: 0 | L102: 0 | M102: 0 | N102: 0 | O102: 0 | P102: 0 | Q102: 0 | R102: 0 | S102: 0 | T102: 0 | U102: 0 | V102: 0 | W102: 0 | X102: 0 | Y102: 0 | Z102: 0 | AA102: 0 | AB102: 0 | AC102: 0 | AD102: 0 | AE102: 0 | AF102: 0 | AG102: 0 | AH102: 0 | AI102: 0 | AJ102: 0 | AK102: 0 | AL102: 0 | AM102: 0 | AN102: 0 | AO102: 0 | AP102: 0 | AQ102: 0 | AR102: 0 | AS102: 0 | AT102: 0 | AU102: 0 | AV102: 0 | AW102: 0 | AX102: 0 | AY102: 0 | AZ102: 0 | BA102: 0 | BB102: 0 | BC102: 0
C103: Escalated | E103: =CostEscalOM -> 0.03 | F103: =F102*(1+RateSQ)^(F$5-EPCBaseYear) -> 0 | G103: =G102*(1+RateSQ)^(G$5-EPCBaseYear) -> 0 | H103: =H102*(1+RateSQ)^(H$5-EPCBaseYear) -> 0 | I103: 0 | J103: 0 | K103: 0 | L103: 0 | M103: 0 | N103: 0 | O103: 0 | P103: 0 | Q103: 0 | R103: 0 | S103: 0 | T103: 0 | U103: 0 | V103: 0 | W103: 0 | X103: 0 | Y103: 0 | Z103: 0 | AA103: 0 | AB103: 0 | AC103: 0 | AD103: 0 | AE103: 0 | AF103: 0 | AG103: 0 | AH103: 0 | AI103: 0 | AJ103: 0 | AK103: 0 | AL103: 0 | AM103: 0 | AN103: 0 | AO103: 0 | AP103: 0 | AQ103: 0 | AR103: 0 | AS103: 0 | AT103: 0 | AU103: 0 | AV103: 0 | AW103: 0 | AX103: 0 | AY103: 0 | AZ103: 0 | BA103: 0 | BB103: 0 | BC103: 0
B105: Labor
C106: Labor hours per year | F106: ='LCC Inputs O &M New Page 15'!E27 -> 0 | G106: =F106 -> 0 | H106: =G106 -> 0 | I106: 0 | J106: 0 | K106: 0 | L106: 0 | M106: 0 | N106: 0 | O106: 0 | P106: 0 | Q106: 0 | R106: 0 | S106: 0 | T106: 0 | U106: 0 | V106: 0 | W106: 0 | X106: 0 | Y106: 0 | Z106: 0 | AA106: 0 | AB106: 0 | AC106: 0 | AD106: 0 | AE106: 0 | AF106: 0 | AG106: 0 | AH106: 0 | AI106: 0 | AJ106: 0 | AK106: 0 | AL106: 0 | AM106: 0 | AN106: 0 | AO106: 0 | AP106: 0 | AQ106: 0 | AR106: 0 | AS106: 0 | AT106: 0 | AU106: 0 | AV106: 0 | AW106: 0 | AX106: 0 | AY106: 0 | AZ106: 0 | BA106: 0 | BB106: 0 | BC106: 0
C107: Raw labor cost | E107: (embedded) | F107: =F106*(HLOOKUP(F$5,OMUnitCostsNew,24,FALSE)) ->  | AL107: =AL106*(HLOOKUP(AL$5,OMUnitCostsNew,24,FALSE)) -> 
C108: Labor cost, burdened | E108: =LaborOverhead -> 1.6 | F108: =F107*(1+LaborOverhead) ->  | AL108: =AL107*(1+LaborOverhead) -> 

Sheet LCC Cap Alt 2 New (hidden)
A1: Life Cycle Cost Model
A2: =ProjName -> Project Name
A3: LCC Capital Costs and Schedule, | E3: Alt. 1 Name
A4: ($000s)
I5: =FirstOps -> 0 | J5: =I5+1 -> 1 | K5: =J5+1 -> 2 | L5: =K5+1 -> 3 | M5: 4 | N5: 5 | O5: 6 | P5: 7 | Q5: 8 | R5: 9 | S5: 10 | T5: 11 | U5: 12 | V5: 13 | W5: 14 | X5: 15 | Y5: 16 | Z5: 17 | AA5: 18 | AB5: 19 | AC5: 20 | AD5: 21 | AE5: 22 | AF5: 23 | AG5: 24 | AH5: 25 | AI5: 26 | AJ5: 27 | AK5: 28 | AL5: 29 | AM5: 30 | AN5: 31 | AO5: 32 | AP5: 33 | AQ5: 34 | AR5: 35 | AS5: 36 | AT5: 37 | AU5: 38 | AV5: 39 | AW5: 40 | AX5: 41 | AY5: 42 | AZ5: 43 | BA5: 44 | BB5: 45 | BC5: 46 | BD5: 47 | BE5: 48 | BF5: 49
I7: 1 | J7: =I7+1 -> 2 | K7: =J7+1 -> 3 | L7: =K7+1 -> 4 | M7: 5 | N7: 6 | O7: 7 | P7: 8 | Q7: 9 | R7: 10 | S7: 11 | T7: 12 | U7: 13 | V7: 14 | W7: 15 | X7: 16 | Y7: 17 | Z7: 18 | AA7: 19 | AB7: 20 | AC7: 21 | AD7: 22 | AE7: 23 | AF7: 24 | AG7: 25 | AH7: 26 | AI7: 27 | AJ7: 28 | AK7: 29 | AL7: 30 | AM7: 31 | AN7: 32 | AO7: 33 | AP7: 34 | AQ7: 35 | AR7: 36 | AS7: 37 | AT7: 38 | AU7: 39 | AV7: 40 | AW7: 41 | AX7: 42 | AY7: 43 | AZ7: 44 | BA7: 45 | BB7: 46 | BC7: 47 | BD7: 48 | BE7: 49 | BF7: 50
A8: Present Values of Capital Components | F8: Totals
E9: =PresentYear -> 0 | F9: =SUM(I9:BF9)-H40 ->  | I9: =IF(CapitalTrtmt="d/s",I$65/(1+DiscRat)^(I$5-PresentYear),I$19/(1+DiscRat)^(I$5-PresentYear)) ->  | J9: 0 | K9: 0 | L9: 0 | M9: 0 | AO9: =IF(CapitalTrtmt="d/s",AO$65/(1+DiscRat)^(AO$5-PresentYear),AO$19/(1+DiscRat)^(AO$5-PresentYear)) -> 
I10: =I9*1000 ->  | J10: =J9*1000 -> 0 | K10: 0 | L10: 0 | M10: 0
A11: Capital Costs ($000s) | F11: Initial
B12: Initial Capital Construction | F12: Const'n
C13: Estimated Construction Cost ("ECC") | E13: =EPCBaseYear -> 0 | F13: =' LCC Inputs Capital New Page 14'!H13 -> 0 | I13: =I28+I33+I39 -> 0 | J13: 0 | K13: 0 | L13: 0 | M13: 0 | N13: 0 | O13: 0 | P13: 0 | Q13: 0 | R13: 0 | S13: 0 | T13: 0 | U13: 0 | V13: 0 | W13: 0 | X13: 0 | Y13: 0 | Z13: 0 | AA13: 0 | AB13: 0 | AC13: 0 | AD13: 0 | AE13: 0 | AF13: 0 | AG13: 0 | AH13: 0 | AI13: 0 | AJ13: 0 | AK13: 0 | AL13: 0 | AM13: 0 | AN13: 0 | AO13: =AO28+AO33+AO39 -> 0 | AP13: 0 | AQ13: 0 | AR13: 0 | AS13: 0 | AT13: 0 | AU13: 0 | AV13: 0 | AW13: 0 | AX13: 0 | AY13: 0 | AZ13: 0 | BA13: 0 | BB13: 0 | BC13: 0 | BD13: 0 | BE13: 0 | BF13: 0
C14: Ancillary cost* | E14: =EPCBaseYear -> 0 | F14: =SUM(F43:F44)+SUM(F45:F53)*F13+F54*F53*F13 -> 0 | I14: =SUM(I43:I45)+SUM(I46:I53)*I13+I54*I53*I13 -> 0 | J14: 0 | K14: 0 | L14: 0 | M14: 0 | N14: 0 | O14: 0 | P14: 0 | Q14: 0 | R14: 0 | S14: 0 | T14: 0 | U14: 0 | V14: 0 | W14: 0 | X14: 0 | Y14: 0 | Z14: 0 | AA14: 0 | AB14: 0 | AC14: 0 | AD14: 0 | AE14: 0 | AF14: 0 | AG14: 0 | AH14: 0 | AI14: 0 | AJ14: 0 | AK14: 0 | AL14: 0 | AM14: 0 | AN14: 0 | AO14: =SUM(AO43:AO45)+SUM(AO46:AO53)*AO13+AO54*AO53*AO13 -> 0 | AP14: 0 | AQ14: 0 | AR14: 0 | AS14: 0 | AT14: 0 | AU14: 0 | AV14: 0 | AW14: 0 | AX14: 0 | AY14: 0 | AZ14: 0 | BA14: 0 | BB14: 0 | BC14: 0 | BD14: 0 | BE14: 0 | BF14: 0
D15: Ancillary cost percentage of ECC | F15: =IF(ISNUMBER(F14/F13),F14/F13," ") ->  | I15: =IF(ISNUMBER(I14/I13),I14/I13," ") -> 
C17: Subtotal | E17: =EPCBaseYear -> 0 | F17: =F13+F14 -> 0 | I17: =I13+I14 -> 0 | J17: 0 | K17: 0 | L17: 0 | M17: 0 | N17: 0 | O17: 0 | P17: 0 | Q17: 0 | R17: 0 | S17: 0 | T17: 0 | U17: 0 | V17: 0 | W17: 0 | X17: 0 | Y17: 0 | Z17: 0 | AA17: 0 | AB17: 0 | AC17: 0 | AD17: 0 | AE17: 0 | AF17: 0 | AG17: 0 | AH17: 0 | AI17: 0 | AJ17: 0 | AK17: 0 | AL17: 0 | AM17: 0 | AN17: 0 | AO17: 0 | AP17: 0 | AQ17: 0 | AR17: 0 | AS17: 0 | AT17: 0 | AU17: 0 | AV17: 0 | AW17: 0 | AX17: 0 | AY17: 0 | AZ17: 0 | BA17: 0 | BB17: 0 | BC17: 0 | BD17: 0 | BE17: 0 | BF17: 0
C18: Contingency allowance | E18: =CapCostConting -> 0.3 | F18: =F17*$E18 -> 0 | I18: =I17*$E18 -> 0 | J18: =J17*$E18 -> 0 | K18: 0 | L18: 0 | M18: 0 | N18: 0 | O18: 0 | P18: 0 | Q18: 0 | R18: 0 | S18: 0 | T18: 0 | U18: 0 | V18: 0 | W18: 0 | X18: 0 | Y18: 0 | Z18: 0 | AA18: 0 | AB18: 0 | AC18: 0 | AD18: 0 | AE18: 0 | AF18: 0 | AG18: 0 | AH18: 0 | AI18: 0 | AJ18: 0 | AK18: 0 | AL18: 0 | AM18: 0 | AN18: 0 | AO18: 0 | AP18: 0 | AQ18: 0 | AR18: 0 | AS18: 0 | AT18: 0 | AU18: 0 | AV18: 0 | AW18: 0 | AX18: 0 | AY18: 0 | AZ18: 0 | BA18: 0 | BB18: 0 | BC18: 0 | BD18: 0 | BE18: 0 | BF18: 0
C19: Capital cost basis, not including… | E19: =EPCBaseYear -> 0 | F19: =SUM(F17:F18) -> 0 | I19: =IF(CapitalTrtmt="LS",F19," ") ->  | J19: =SUM(J17:J18) -> 0 | K19: 0 | L19: 0 | M19: 0 | N19: 0 | O19: 0 | P19: 0 | Q19: 0 | R19: 0 | S19: 0 | T19: 0 | U19: 0 | V19: 0 | W19: 0 | X19: 0 | Y19: 0 | Z19: 0 | AA19: 0 | AB19: 0 | AC19: 0 | AD19: 0 | AE19: 0 | AF19: 0 | AG19: 0 | AH19: 0 | AI19: 0 | AJ19: 0 | AK19: 0 | AL19: 0 | AM19: 0 | AN19: 0 | AO19: 0 | AP19: 0 | AQ19: 0 | AR19: 0 | AS19: 0 | AT19: 0 | AU19: 0 | AV19: 0 | AW19: 0 | AX19: 0 | AY19: 0 | AZ19: 0 | BA19: 0 | BB19: 0 | BC19: 0 | BD19: 0 | BE19: 0 | BF19: 0
C20: …financial costs or cost escalation
H21: End of
B22: Subsequent Capital Replacements | E22: Useful Life | F22: =EPCBaseYear -> 0 | H22: Life Cycle
C23: First Main Component | E23: (years) | F23: Costs | G23: Re-caps | H23: Residual | I23: Recapitalize Schedule . . .
C25: Principal component | E25: =' LCC Inputs Capital New Page 14'!G18 -> 5 | F25: =' LCC Inputs Capital New Page 14'!H18 -> 0 | G25: =IF(E25>0,TRUNC((LCCPeriod-1)/E25),0) -> 0 | H25: =IF(IF(E25>0,(1-((LCCPeriod/E25)-TRUNC(LCCPeriod/E25)))*F25,0)=F25,0,IF(E25>0,(1-((LCCPeriod/E25)-TRUNC(LCCPeriod/E25)))*F25,0)) -> 0 | I25: =IF($E25>0,IF(I$7<LCCPeriod,IF(I$7/$E25=INT(I$7/$E25),$F25,0),0),0) -> 0 | J25: 0 | K25: 0 | L25: 0 | M25: 0 | N25: 0 | O25: 0 | P25: 0 | Q25: 0 | R25: 0 | S25: =IF($E25>0,IF(S$7<LCCPeriod,IF(S$7/$E25=INT(S$7/$E25),$F25,0),0),0) -> 0 | T25: =IF($E25>0,IF(T$7<LCCPeriod,IF(T$7/$E25=INT(T$7/$E25),$F25,0),0),0) -> 0 | U25: 0 | V25: 0 | W25: 0 | X25: 0 | Y25: 0 | Z25: 0 | AA25: 0 | AB25: 0 | AC25: =IF($E25>0,IF(AC$7<LCCPeriod,IF(AC$7/$E25=INT(AC$7/$E25),$F25,0),0),0) -> 0 | AD25: 0 | AE25: 0 | AF25: 0 | AG25: 0 | AH25: 0 | AI25: 0 | AJ25: 0 | AK25: 0 | AL25: 0 | AM25: =IF($E25>0,IF(AM$7<LCCPeriod,IF(AM$7/$E25=INT(AM$7/$E25),$F25,0),0),0) -> 0 | AN25: 0 | AO25: 0 | AP25: 0 | AQ25: 0 | AR25: 0 | AS25: 0 | AT25: 0 | AU25: 0 | AV25: 0 | AW25: =IF($E25>0,IF(AW$7<LCCPeriod,IF(AW$7/$E25=INT(AW$7/$E25),$F25,0),0),0) -> 0 | AX25: 0 | AY25: 0 | AZ25: 0 | BA25: 0 | BB25: 0 | BC25: 0 | BD25: 0 | BE25: 0 | BF25: 0
C26: Sub-component | E26: =' LCC Inputs Capital New Page 14'!G19 -> 5 | F26: =' LCC Inputs Capital New Page 14'!H19 -> 0 | G26: =IF(E26>0,TRUNC((LCCPeriod-1)/E26),0) -> 0 | H26: =IF(IF(E26>0,(1-((LCCPeriod/E26)-TRUNC(LCCPeriod/E26)))*F26,0)=F26,0,IF(E26>0,(1-((LCCPeriod/E26)-TRUNC(LCCPeriod/E26)))*F26,0)) -> 0 | I26: =IF(I$25>0,0,IF($E26>0,IF(I$7<LCCPeriod,IF(I$7/$E26=INT(I$7/$E26),$F26,0),0),0)) -> 0 | J26: 0 | K26: 0 | L26: 0 | M26: 0 | N26: 0 | O26: 0 | P26: 0 | Q26: 0 | R26: 0 | S26: =IF(S$25>0,0,IF($E26>0,IF(S$7<LCCPeriod,IF(S$7/$E26=INT(S$7/$E26),$F26,0),0),0)) -> 0 | T26: 0 | U26: 0 | V26: 0 | W26: 0 | X26: 0 | Y26: 0 | Z26: 0 | AA26: 0 | AB26: 0 | AC26: =IF(AC$25>0,0,IF($E26>0,IF(AC$7<LCCPeriod,IF(AC$7/$E26=INT(AC$7/$E26),$F26,0),0),0)) -> 0 | AD26: 0 | AE26: 0 | AF26: 0 | AG26: 0 | AH26: 0 | AI26: 0 | AJ26: 0 | AK26: 0 | AL26: 0 | AM26: =IF(AM$25>0,0,IF($E26>0,IF(AM$7<LCCPeriod,IF(AM$7/$E26=INT(AM$7/$E26),$F26,0),0),0)) -> 0 | AN26: 0 | AO26: 0 | AP26: 0 | AQ26: 0 | AR26: 0 | AS26: 0 | AT26: 0 | AU26: 0 | AV26: 0 | AW26: =IF(AW$25>0,0,IF($E26>0,IF(AW$7<LCCPeriod,IF(AW$7/$E26=INT(AW$7/$E26),$F26,0),0),0)) -> 0 | AX26: 0 | AY26: 0 | AZ26: 0 | BA26: 0 | BB26: 0 | BC26: 0 | BD26: 0 | BE26: 0 | BF26: 0
C27: Sub-component | E27: =' LCC Inputs Capital New Page 14'!G20 -> 5 | F27: =' LCC Inputs Capital New Page 14'!H20 -> 0 | G27: =IF(E27>0,TRUNC((LCCPeriod-1)/E27),0) -> 0 | H27: =IF(IF(E27>0,(1-((LCCPeriod/E27)-TRUNC(LCCPeriod/E27)))*F27,0)=F27,0,IF(E27>0,(1-((LCCPeriod/E27)-TRUNC(LCCPeriod/E27)))*F27,0)) -> 0 | I27: 0 | J27: 0 | K27: 0 | L27: 0 | M27: 0 | N27: 0 | O27: 0 | P27: 0 | Q27: 0 | R27: 0 | S27: 0 | T27: 0 | U27: 0 | V27: 0 | W27: 0 | X27: 0 | Y27: 0 | Z27: 0 | AA27: 0 | AB27: 0 | AC27: 0 | AD27: 0 | AE27: 0 | AF27: 0 | AG27: 0 | AH27: 0 | AI27: 0 | AJ27: 0 | AK27: 0 | AL27: 0 | AM27: 0 | AN27: 0 | AO27: 0 | AP27: 0 | AQ27: 0 | AR27: 0 | AS27: 0 | AT27: 0 | AU27: 0 | AV27: 0 | AW27: 0 | AX27: 0 | AY27: 0 | AZ27: 0 | BA27: 0 | BB27: 0 | BC27: 0 | BD27: 0 | BE27: 0 | BF27: 0
H28: =SUM(H25:H27) -> 0 | I28: 0 | J28: 0 | K28: 0 | L28: 0 | M28: 0 | N28: 0 | O28: 0 | P28: 0 | Q28: 0 | R28: 0 | S28: 0 | T28: 0 | U28: 0 | V28: 0 | W28: 0 | X28: 0 | Y28: 0 | Z28: 0 | AA28: 0 | AB28: 0 | AC28: 0 | AD28: 0 | AE28: 0 | AF28: 0 | AG28: 0 | AH28: 0 | AI28: 0 | AJ28: 0 | AK28: 0 | AL28: 0 | AM28: 0 | AN28: =SUM(AN25:AN27) -> 0 | AO28: 0 | AP28: 0 | AQ28: 0 | AR28: 0 | AS28: 0 | AT28: 0 | AU28: 0 | AV28: 0 | AW28: 0 | AX28: 0 | AY28: 0 | AZ28: 0 | BA28: 0 | BB28: 0 | BC28: 0 | BD28: 0 | BE28: 0 | BF28: 0
C29: Second Main Component
C30: Principal component | E30: =' LCC Inputs Capital New Page 14'!G23 -> 5 | F30: =' LCC Inputs Capital New Page 14'!H23 -> 0 | G30: =IF(E30>0,TRUNC((LCCPeriod-1)/E30),0) -> 0 | H30: =IF(IF(E30>0,(1-((LCCPeriod/E30)-TRUNC(LCCPeriod/E30)))*F30,0)=F30,0,IF(E30>0,(1-((LCCPeriod/E30)-TRUNC(LCCPeriod/E30)))*F30,0)) -> 0 | I30: =IF($E30>0,IF(I$7<LCCPeriod,IF(I$7/$E30=INT(I$7/$E30),$F30,0),0),0) -> 0 | J30: 0 | K30: 0 | L30: 0 | M30: 0 | N30: 0 | O30: 0 | P30: 0 | Q30: 0 | R30: 0 | S30: 0 | T30: 0 | U30: 0 | V30: 0 | W30: 0 | X30: 0 | Y30: =IF($E30>0,IF(Y$7<LCCPeriod,IF(Y$7/$E30=INT(Y$7/$E30),$F30,0),0),0) -> 0 | Z30: 0 | AA30: 0 | AB30: 0 | AC30: 0 | AD30: 0 | AE30: 0 | AF30: 0 | AG30: 0 | AH30: 0 | AI30: 0 | AJ30: 0 | AK30: 0 | AL30: 0 | AM30: 0 | AN30: 0 | AO30: 0 | AP30: 0 | AQ30: 0 | AR30: 0 | AS30: 0 | AT30: 0 | AU30: 0 | AV30: 0 | AW30: 0 | AX30: 0 | AY30: 0 | AZ30: 0 | BA30: 0 | BB30: 0 | BC30: 0 | BD30: 0 | BE30: 0 | BF30: 0
C31: Sub-component | E31: =' LCC Inputs Capital New Page 14'!G24 -> 5 | F31: =' LCC Inputs Capital New Page 14'!H24 -> 0 | G31: =IF(E31>0,TRUNC((LCCPeriod-1)/E31),0) -> 0 | H31: =IF(IF(E31>0,(1-((LCCPeriod/E31)-TRUNC(LCCPeriod/E31)))*F31,0)=F31,0,IF(E31>0,(1-((LCCPeriod/E31)-TRUNC(LCCPeriod/E31)))*F31,0)) -> 0 | I31: =IF(I$30>0,0,IF($E31>0,IF(I$7<LCCPeriod,IF(I$7/$E31=INT(I$7/$E31),$F31,0),0),0)) -> 0 | J31: 0 | K31: 0 | L31: 0 | M31: 0 | N31: 0 | O31: 0 | P31: 0 | Q31: 0 | R31: 0 | S31: =IF(S$30>0,0,IF($E31>0,IF(S$7<LCCPeriod,IF(S$7/$E31=INT(S$7/$E31),$F31,0),0),0)) -> 0 | T31: 0 | U31: 0 | V31: 0 | W31: 0 | X31: 0 | Y31: 0 | Z31: 0 | AA31: 0 | AB31: 0 | AC31: =IF(AC$30>0,0,IF($E31>0,IF(AC$7<LCCPeriod,IF(AC$7/$E31=INT(AC$7/$E31),$F31,0),0),0)) -> 0 | AD31: 0 | AE31: 0 | AF31: 0 | AG31: 0 | AH31: 0 | AI31: 0 | AJ31: 0 | AK31: 0 | AL31: 0 | AM31: =IF(AM$30>0,0,IF($E31>0,IF(AM$7<LCCPeriod,IF(AM$7/$E31=INT(AM$7/$E31),$F31,0),0),0)) -> 0 | AN31: 0 | AO31: 0 | AP31: 0 | AQ31: 0 | AR31: 0 | AS31: 0 | AT31: 0 | AU31: 0 | AV31: 0 | AW31: =IF(AW$30>0,0,IF($E31>0,IF(AW$7<LCCPeriod,IF(AW$7/$E31=INT(AW$7/$E31),$F31,0),0),0)) -> 0 | AX31: 0 | AY31: 0 | AZ31: 0 | BA31: 0 | BB31: 0 | BC31: 0 | BD31: 0 | BE31: 0 | BF31: 0
C32: Sub-component | E32: =' LCC Inputs Capital New Page 14'!G25 -> 5 | F32: =' LCC Inputs Capital New Page 14'!H25 -> 0 | G32: =IF(E32>0,TRUNC((LCCPeriod-1)/E32),0) -> 0 | H32: =IF(IF(E32>0,(1-((LCCPeriod/E32)-TRUNC(LCCPeriod/E32)))*F32,0)=F32,0,IF(E32>0,(1-((LCCPeriod/E32)-TRUNC(LCCPeriod/E32)))*F32,0)) -> 0 | I32: 0 | J32: 0 | K32: 0 | L32: 0 | M32: 0 | N32: 0 | O32: 0 | P32: 0 | Q32: 0 | R32: 0 | S32: 0 | T32: 0 | U32: 0 | V32: 0 | W32: 0 | X32: 0 | Y32: 0 | Z32: 0 | AA32: 0 | AB32: 0 | AC32: 0 | AD32: 0 | AE32: 0 | AF32: 0 | AG32: 0 | AH32: 0 | AI32: 0 | AJ32: 0 | AK32: 0 | AL32: 0 | AM32: 0 | AN32: 0 | AO32: 0 | AP32: 0 | AQ32: 0 | AR32: 0 | AS32: 0 | AT32: 0 | AU32: 0 | AV32: 0 | AW32: 0 | AX32: 0 | AY32: 0 | AZ32: 0 | BA32: 0 | BB32: 0 | BC32: 0 | BD32: 0 | BE32: 0 | BF32: 0
F33: =IF((F25+F30)>F13,"Oops, too much alloction!"," ") ->  | H33: =SUM(H30:H32) -> 0 | I33: 0 | J33: 0 | K33: 0 | L33: 0 | M33: 0 | N33: 0 | O33: 0 | P33: 0 | Q33: 0 | R33: 0 | S33: 0 | T33: 0 | U33: 0 | V33: 0 | W33: 0 | X33: 0 | Y33: 0 | Z33: 0 | AA33: 0 | AB33: 0 | AC33: 0 | AD33: 0 | AE33: 0 | AF33: 0 | AG33: 0 | AH33: 0 | AI33: 0 | AJ33: 0 | AK33: 0 | AL33: 0 | AM33: 0 | AN33: =SUM(AN30:AN32) -> 0 | AO33: 0 | AP33: 0 | AQ33: 0 | AR33: 0 | AS33: 0 | AT33: 0 | AU33: 0 | AV33: 0 | AW33: 0 | AX33: 0 | AY33: 0 | AZ33: 0 | BA33: 0 | BB33: 0 | BC33: 0 | BD33: 0 | BE33: 0 | BF33: 0
B34: Existing Depreciating Assets
C35: Name | E35: =' LCC Inputs Capital New Page 14'!G28 -> 5 | F35: =' LCC Inputs Capital New Page 14'!H28 -> 0 | G35: =IF(E35>0,TRUNC((LCCPeriod-1-E36)/E35+1),0) -> 0 | H35: =IF(IF(E35>0,(1-(((LCCPeriod-E36)/E35)-TRUNC((LCCPeriod-E36)/E35)))*F35,0)=F35,0,IF(E35>0,(1-(((LCCPeriod-E36)/E35)-TRUNC((LCCPeriod-E36)/E35)))*F35,0)) -> 0 | I35: =IF(I$7=$E36,$F35,IF(I$7>$E36,IF(I$7<LCCPeriod,IF((I$7-$E36)/($E35)=INT((I$7-$E36)/($E35)),$F35,0),0),0)) -> 0 | J35: 0 | K35: 0 | L35: 0 | M35: 0 | N35: 0 | O35: 0 | P35: 0 | Q35: 0 | R35: 0 | S35: 0 | T35: 0 | U35: 0 | V35: 0 | W35: 0 | X35: 0 | Y35: 0 | Z35: 0 | AA35: 0 | AB35: 0 | AC35: 0 | AD35: 0 | AE35: 0 | AF35: 0 | AG35: 0 | AH35: 0 | AI35: 0 | AJ35: 0 | AK35: 0 | AL35: 0 | AM35: 0 | AN35: 0 | AO35: =IF(AO$7=$E36,$F35,IF(AO$7>$E36,IF(AO$7<LCCPeriod,IF((AO$7-$E36)/($E35)=INT((AO$7-$E36)/($E35)),$F35,0),0),0)) -> 0 | AP35: 0 | AQ35: 0 | AR35: 0 | AS35: 0 | AT35: 0 | AU35: 0 | AV35: 0 | AW35: 0 | AX35: 0 | AY35: 0 | AZ35: 0 | BA35: 0 | BB35: 0 | BC35: 0 | BD35: 0 | BE35: 0 | BF35: 0
D36: Estimated remaining life: | E36: =' LCC Inputs Capital New Page 14'!G29 -> 5
C37: Name | E37: =' LCC Inputs Capital New Page 14'!G30 -> 5 | F37: =' LCC Inputs Capital New Page 14'!H30 -> 0 | G37: =IF(E37>0,TRUNC((LCCPeriod-1-E38)/E37+1),0) -> 0 | H37: =IF(IF(E37>0,(1-(((LCCPeriod-E38)/E37)-TRUNC((LCCPeriod-E38)/E37)))*F37,0)=F37,0,IF(E37>0,(1-(((LCCPeriod-E38)/E37)-TRUNC((LCCPeriod-E38)/E37)))*F37,0)) -> 0 | I37: =IF(I$7=$E38,$F37,IF(I$7>$E38,IF(I$7<LCCPeriod,IF((I$7-$E38)/($E37)=INT((I$7-$E38)/($E37)),$F37,0),0),0)) -> 0 | J37: 0 | K37: 0 | L37: 0 | M37: 0 | N37: 0 | O37: 0 | P37: 0 | Q37: 0 | R37: 0 | S37: 0 | T37: 0 | U37: 0 | V37: 0 | W37: 0 | X37: 0 | Y37: 0 | Z37: 0 | AA37: 0 | AB37: 0 | AC37: 0 | AD37: 0 | AE37: 0 | AF37: 0 | AG37: 0 | AH37: 0 | AI37: 0 | AJ37: 0 | AK37: 0 | AL37: 0 | AM37: 0 | AN37: 0 | AO37: =IF(AO$7=$E38,$F37,IF(AO$7>$E38,IF(AO$7<LCCPeriod,IF((AO$7-$E38)/($E37)=INT((AO$7-$E38)/($E37)),$F37,0),0),0)) -> 0 | AP37: 0 | AQ37: 0 | AR37: 0 | AS37: 0 | AT37: 0 | AU37: 0 | AV37: 0 | AW37: 0 | AX37: 0 | AY37: 0 | AZ37: 0 | BA37: 0 | BB37: 0 | BC37: 0 | BD37: 0 | BE37: 0 | BF37: 0
D38: Estimated remaining life: | E38: =' LCC Inputs Capital New Page 14'!G31 -> 5
C39: Sum of existing asset re-cap costs | H39: =SUM(H35:H37) -> 0 | I39: =SUM(I35:I37) -> 0 | J39: =SUM(J35:J37) -> 0 | K39: =SUM(K35:K37) -> 0 | L39: =SUM(L35:L37) -> 0 | M39: =SUM(M35:M37) -> 0 | N39: 0 | O39: 0 | P39: 0 | Q39: 0 | R39: 0 | S39: 0 | T39: 0 | U39: 0 | V39: 0 | W39: 0 | X39: 0 | Y39: 0 | Z39: 0 | AA39: 0 | AB39: 0 | AC39: 0 | AD39: 0 | AE39: 0 | AF39: 0 | AG39: 0 | AH39: 0 | AI39: 0 | AJ39: 0 | AK39: 0 | AL39: 0 | AM39: 0 | AN39: 0 | AO39: 0 | AP39: 0 | AQ39: 0 | AR39: 0 | AS39: 0 | AT39: 0 | AU39: 0 | AV39: 0 | AW39: 0 | AX39: 0 | AY39: 0 | AZ39: 0 | BA39: 0 | BB39: 0 | BC39: 0 | BD39: 0 | BE39: 0 | BF39: 0
F40: PV of Residual Values: | H40: =(H$28+H$33+H$39)/(1+DiscRat)^(LCCPeriod+1-(PresentYear-EPCBaseYear)) -> 0
B42: Ancillary Cost Components* | E42: =EPCBaseYear -> 0
C43: Land acquisition or rights of way | E43: Dollar value | F43: =' LCC Inputs Capital New Page 14'!H34 -> 0 | I43: =IF(I$13>0,"N/A",0) -> 0 | J43: =IF(J$13>0,"N/A",0) -> 0 | K43: 0 | L43: 0 | M43: 0 | N43: 0 | O43: 0 | P43: 0 | Q43: 0 | R43: 0 | S43: 0 | T43: 0 | U43: 0 | V43: 0 | W43: 0 | X43: 0 | Y43: 0 | Z43: 0 | AA43: 0 | AB43: 0 | AC43: 0 | AD43: 0 | AE43: 0 | AF43: 0 | AG43: 0 | AH43: 0 | AI43: 0 | AJ43: 0 | AK43: 0 | AL43: 0 | AM43: 0 | AN43: 0 | AO43: 0 | AP43: 0 | AQ43: 0 | AR43: 0 | AS43: 0 | AT43: 0 | AU43: 0 | AV43: 0 | AW43: 0 | AX43: 0 | AY43: 0 | AZ43: 0 | BA43: 0 | BB43: 0 | BC43: 0 | BD43: 0 | BE43: 0 | BF43: 0
C44: Environmental mitigation | E44: Dollar value | F44: =' LCC Inputs Capital New Page 14'!H35 -> 0 | I44: =IF(I$13>0,"N/A",0) -> 0 | J44: 0 | K44: 0 | L44: 0 | M44: 0 | N44: 0 | O44: 0 | P44: 0 | Q44: 0 | R44: 0 | S44: 0 | T44: 0 | U44: 0 | V44: 0 | W44: 0 | X44: 0 | Y44: 0 | Z44: 0 | AA44: 0 | AB44: 0 | AC44: 0 | AD44: 0 | AE44: 0 | AF44: 0 | AG44: 0 | AH44: 0 | AI44: 0 | AJ44: 0 | AK44: 0 | AL44: 0 | AM44: 0 | AN44: 0 | AO44: 0 | AP44: 0 | AQ44: 0 | AR44: 0 | AS44: 0 | AT44: 0 | AU44: 0 | AV44: 0 | AW44: 0 | AX44: 0 | AY44: 0 | AZ44: 0 | BA44: 0 | BB44: 0 | BC44: 0 | BD44: 0 | BE44: 0 | BF44: 0
C45: Permits | E45: % of ECC | F45: =' LCC Inputs Capital New Page 14'!H36 -> 0.005 | I45: =IF(I$13>0,$F45,0) -> 0 | J45: =IF(J$13>0,$F45,0) -> 0 | K45: 0 | L45: 0 | M45: 0 | N45: 0 | O45: 0 | P45: 0 | Q45: 0 | R45: 0 | S45: 0 | T45: 0 | U45: 0 | V45: 0 | W45: 0 | X45: 0 | Y45: 0 | Z45: 0 | AA45: 0 | AB45: 0 | AC45: 0 | AD45: 0 | AE45: 0 | AF45: 0 | AG45: 0 | AH45: 0 | AI45: 0 | AJ45: 0 | AK45: 0 | AL45: 0 | AM45: 0 | AN45: 0 | AO45: 0 | AP45: 0 | AQ45: 0 | AR45: 0 | AS45: 0 | AT45: 0 | AU45: 0 | AV45: 0 | AW45: 0 | AX45: 0 | AY45: 0 | AZ45: 0 | BA45: 0 | BB45: 0 | BC45: 0 | BD45: 0 | BE45: 0 | BF45: 0
C46: Engineering (pre thru final) | E46: % of ECC | F46: =' LCC Inputs Capital New Page 14'!H37 -> 0.1325 | I46: =IF(I$13>0,$F46,0) -> 0 | J46: 0 | K46: 0 | L46: 0 | M46: 0 | N46: 0 | O46: 0 | P46: 0 | Q46: 0 | R46: 0 | S46: 0 | T46: 0 | U46: 0 | V46: 0 | W46: 0 | X46: 0 | Y46: 0 | Z46: 0 | AA46: 0 | AB46: 0 | AC46: 0 | AD46: 0 | AE46: 0 | AF46: 0 | AG46: 0 | AH46: 0 | AI46: 0 | AJ46: 0 | AK46: 0 | AL46: 0 | AM46: 0 | AN46: 0 | AO46: 0 | AP46: 0 | AQ46: 0 | AR46: 0 | AS46: 0 | AT46: 0 | AU46: 0 | AV46: 0 | AW46: 0 | AX46: 0 | AY46: 0 | AZ46: 0 | BA46: 0 | BB46: 0 | BC46: 0 | BD46: 0 | BE46: 0 | BF46: 0
C47: Constn mgmt/observation | E47: % of ECC | F47: =' LCC Inputs Capital New Page 14'!H38 -> 0.09 | I47: =IF(I$13>0,$F47,0) -> 0 | J47: 0 | K47: 0 | L47: 0 | M47: 0 | N47: 0 | O47: 0 | P47: 0 | Q47: 0 | R47: 0 | S47: 0 | T47: 0 | U47: 0 | V47: 0 | W47: 0 | X47: 0 | Y47: 0 | Z47: 0 | AA47: 0 | AB47: 0 | AC47: 0 | AD47: 0 | AE47: 0 | AF47: 0 | AG47: 0 | AH47: 0 | AI47: 0 | AJ47: 0 | AK47: 0 | AL47: 0 | AM47: 0 | AN47: 0 | AO47: 0 | AP47: 0 | AQ47: 0 | AR47: 0 | AS47: 0 | AT47: 0 | AU47: 0 | AV47: 0 | AW47: 0 | AX47: 0 | AY47: 0 | AZ47: 0 | BA47: 0 | BB47: 0 | BC47: 0 | BD47: 0 | BE47: 0 | BF47: 0
C48: Administration/legal | E48: % of ECC | F48: =' LCC Inputs Capital New Page 14'!H39 -> 0.1225 | I48: 0 | J48: 0 | K48: 0 | L48: 0 | M48: 0 | N48: 0 | O48: 0 | P48: 0 | Q48: 0 | R48: 0 | S48: 0 | T48: 0 | U48: 0 | V48: 0 | W48: 0 | X48: 0 | Y48: 0 | Z48: 0 | AA48: 0 | AB48: 0 | AC48: 0 | AD48: 0 | AE48: 0 | AF48: 0 | AG48: 0 | AH48: 0 | AI48: 0 | AJ48: 0 | AK48: 0 | AL48: 0 | AM48: 0 | AN48: 0 | AO48: 0 | AP48: 0 | AQ48: 0 | AR48: 0 | AS48: 0 | AT48: 0 | AU48: 0 | AV48: 0 | AW48: 0 | AX48: 0 | AY48: 0 | AZ48: 0 | BA48: 0 | BB48: 0 | BC48: 0 | BD48: 0 | BE48: 0 | BF48: 0
C49: =' LCC Inputs Capital New Page 14'!B40 -> (other) | F49: =' LCC Inputs Capital New Page 14'!H40 -> 0 | I49: 0 | J49: 0 | K49: 0 | L49: 0 | M49: 0 | N49: 0 | O49: 0 | P49: 0 | Q49: 0 | R49: 0 | S49: 0 | T49: 0 | U49: 0 | V49: 0 | W49: 0 | X49: 0 | Y49: 0 | Z49: 0 | AA49: 0 | AB49: 0 | AC49: 0 | AD49: 0 | AE49: 0 | AF49: 0 | AG49: 0 | AH49: 0 | AI49: 0 | AJ49: 0 | AK49: 0 | AL49: 0 | AM49: 0 | AN49: 0 | AO49: 0 | AP49: 0 | AQ49: 0 | AR49: 0 | AS49: 0 | AT49: 0 | AU49: 0 | AV49: 0 | AW49: 0 | AX49: 0 | AY49: 0 | AZ49: 0 | BA49: 0 | BB49: 0 | BC49: 0 | BD49: 0 | BE49: 0 | BF49: 0
C50: =' LCC Inputs Capital New Page 14'!B41 -> (other) | F50: =' LCC Inputs Capital New Page 14'!H41 -> 0 | I50: 0 | J50: 0 | K50: 0 | L50: 0 | M50: 0 | N50: 0 | O50: 0 | P50: 0 | Q50: 0 | R50: 0 | S50: 0 | T50: 0 | U50: 0 | V50: 0 | W50: 0 | X50: 0 | Y50: 0 | Z50: 0 | AA50: 0 | AB50: 0 | AC50: 0 | AD50: 0 | AE50: 0 | AF50: 0 | AG50: 0 | AH50: 0 | AI50: =IF(AI$13>0,$F50,0) -> 0 | AJ50: 0 | AK50: 0 | AL50: 0 | AM50: 0 | AN50: 0 | AO50: 0 | AP50: 0 | AQ50: 0 | AR50: 0 | AS50: 0 | AT50: 0 | AU50: 0 | AV50: 0 | AW50: 0 | AX50: 0 | AY50: 0 | AZ50: 0 | BA50: 0 | BB50: 0 | BC50: 0 | BD50: 0 | BE50: 0 | BF50: 0
C51: (other) | F51: 0 | I51: 0 | J51: 0 | K51: 0 | L51: 0 | M51: 0 | N51: 0 | O51: 0 | P51: 0 | Q51: 0 | R51: 0 | S51: 0 | T51: 0 | U51: 0 | V51: 0 | W51: 0 | X51: 0 | Y51: =IF(Y$13>0,$F51,0) -> 0 | Z51: 0 | AA51: 0 | AB51: 0 | AC51: 0 | AD51: 0 | AE51: 0 | AF51: 0 | AG51: 0 | AH51: 0 | AI51: 0 | AJ51: 0 | AK51: 0 | AL51: 0 | AM51: 0 | AN51: 0 | AO51: 0 | AP51: 0 | AQ51: 0 | AR51: 0 | AS51: 0 | AT51: 0 | AU51: 0 | AV51: 0 | AW51: 0 | AX51: 0 | AY51: 0 | AZ51: 0 | BA51: 0 | BB51: 0 | BC51: 0 | BD51: 0 | BE51: 0 | BF51: 0
C52: (other) | F52: 0 | I52: 0 | J52: 0 | K52: 0 | L52: 0 | M52: 0 | N52: 0 | O52: 0 | P52: 0 | Q52: 0 | R52: 0 | S52: 0 | T52: 0 | U52: 0 | V52: 0 | W52: 0 | X52: 0 | Y52: 0 | Z52: 0 | AA52: 0 | AB52: 0 | AC52: 0 | AD52: 0 | AE52: 0 | AF52: 0 | AG52: 0 | AH52: 0 | AI52: 0 | AJ52: 0 | AK52: 0 | AL52: 0 | AM52: 0 | AN52: 0 | AO52: 0 | AP52: 0 | AQ52: 0 | AR52: 0 | AS52: 0 | AT52: 0 | AU52: 0 | AV52: 0 | AW52: 0 | AX52: 0 | AY52: 0 | AZ52: 0 | BA52: 0 | BB52: 0 | BC52: 0 | BD52: 0 | BE52: 0 | BF52: 0
C53: Support of the Arts | E53: % of ECC | F53: =Arts -> 0.01 | J53: 0 | K53: 0 | L53: 0 | M53: 0 | N53: 0 | O53: 0 | P53: 0 | Q53: 0 | R53: 0 | S53: 0 | T53: 0 | U53: 0 | V53: 0 | W53: 0 | X53: 0 | Y53: 0 | Z53: 0 | AA53: 0 | AB53: 0 | AC53: 0 | AD53: 0 | AE53: 0 | AF53: 0 | AG53: 0 | AH53: 0 | AI53: 0 | AJ53: 0 | AK53: 0 | AL53: 0 | AM53: 0 | AN53: 0 | AO53: 0 | AP53: 0 | AQ53: 0 | AR53: 0 | AS53: 0 | AT53: 0 | AU53: 0 | AV53: 0 | AW53: 0 | AX53: 0 | AY53: 0 | AZ53: 0 | BA53: 0 | BB53: 0 | BC53: 0 | BD53: 0 | BE53: 0 | BF53: 0
C54: Sales tax | E54: % of ECC | F54: =SalesTax -> 0.095 | I54: 0 | J54: 0 | K54: 0 | L54: 0 | M54: 0 | N54: 0 | O54: 0 | P54: 0 | Q54: 0 | R54: 0 | S54: 0 | T54: 0 | U54: 0 | V54: 0 | W54: 0 | X54: 0 | Y54: 0 | Z54: 0 | AA54: 0 | AB54: 0 | AC54: 0 | AD54: 0 | AE54: 0 | AF54: 0 | AG54: 0 | AH54: 0 | AI54: 0 | AJ54: 0 | AK54: 0 | AL54: 0 | AM54: 0 | AN54: 0 | AO54: 0 | AP54: 0 | AQ54: 0 | AR54: 0 | AS54: 0 | AT54: 0 | AU54: 0 | AV54: 0 | AW54: 0 | AX54: 0 | AY54: 0 | AZ54: 0 | BA54: 0 | BB54: 0 | BC54: 0 | BD54: 0 | BE54: 0 | BF54: 0
A57: =IF(CapitalTrtmt="LS","The following rows are not used with the Lump Sum Capital Treatment method"," ") -> 
A58: Annual Debt Service Determinations | F58: Initial
B59: Cost in unescalated dollars | F59: =F19 -> 0 | M59: =M19 -> 0 | N59: 0 | O59: 0 | P59: 0 | Q59: 0 | R59: 0 | S59: 0 | T59: 0 | U59: 0 | V59: 0 | W59: 0 | X59: 0 | Y59: 0 | Z59: 0 | AA59: 0 | AB59: 0 | AC59: 0 | AD59: 0 | AE59: 0 | AF59: 0 | AG59: 0 | AH59: 0 | AI59: 0 | AJ59: 0 | AK59: 0 | AL59: 0 | AM59: 0 | AN59: 0 | AO59: 0 | AP59: 0 | AQ59: 0 | AR59: 0 | AS59: 0 | AT59: 0 | AU59: 0 | AV59: 0 | AW59: 0 | AX59: 0 | AY59: 0 | AZ59: 0 | BA59: 0 | BB59: 0 | BC59: 0 | BD59: 0 | BE59: 0 | BF59: 0
B60: Proceeds required, escalated | E60: (escalated) | F60: =F19*(1+CostEscalCap)^($I$5-1-EPCBaseYear) -> 0 | M60: =M59*(1+CostEscalCap)^(M5-EPCBaseYear) -> 0 | N60: 0 | O60: 0 | P60: 0 | Q60: 0 | R60: 0 | S60: 0 | T60: 0 | U60: 0 | V60: 0 | W60: 0 | X60: 0 | Y60: 0 | Z60: 0 | AA60: 0 | AB60: 0 | AC60: 0 | AD60: 0 | AE60: 0 | AF60: 0 | AG60: 0 | AH60: 0 | AI60: 0 | AJ60: 0 | AK60: 0 | AL60: 0 | AM60: 0 | AN60: 0 | AO60: 0 | AP60: 0 | AQ60: 0 | AR60: 0 | AS60: 0 | AT60: 0 | AU60: 0 | AV60: 0 | AW60: 0 | AX60: 0 | AY60: 0 | AZ60: 0 | BA60: 0 | BB60: 0 | BC60: 0 | BD60: 0 | BE60: 0 | BF60: 0
B61: Bond sizing | F61: =F60/(1-BondSofts) -> 0 | M61: =M60/(1-BondSofts) -> 0 | N61: 0 | O61: 0 | P61: 0 | Q61: 0 | R61: 0 | S61: 0 | T61: 0 | U61: 0 | V61: 0 | W61: 0 | X61: 0 | Y61: 0 | Z61: 0 | AA61: 0 | AB61: 0 | AC61: 0 | AD61: 0 | AE61: 0 | AF61: 0 | AG61: 0 | AH61: 0 | AI61: 0 | AJ61: 0 | AK61: 0 | AL61: 0 | AM61: 0 | AN61: 0 | AO61: =AO60/(1-BondSofts) -> 0 | AP61: 0 | AQ61: 0 | AR61: 0 | AS61: 0 | AT61: 0 | AU61: 0 | AV61: 0 | AW61: 0 | AX61: 0 | AY61: 0 | AZ61: 0 | BA61: 0 | BB61: 0 | BC61: 0 | BD61: 0 | BE61: 0 | BF61: =BF60/(1-BondSofts) -> 0
B62: Annual debt service | E62: (No coverage) | F62: =-PMT(BondInt,BondMat,F61) ->  | M62: =-PMT(BondInt,BondMat,M61) ->  | N62: =-PMT(BondInt,BondMat,N61) ->  | AO62: =-PMT(BondInt,BondMat,AO61) ->  | BF62: =-PMT(BondInt,BondMat,BF61) -> 
A64: Debt Service Projection
B65: Sum of projected annual debt service | I65: =SUM(I66:I165) ->  | J65: =SUM(J66:J165) -> 0 | K65: 0 | L65: 0 | M65: 0 | R65: =SUM(R66:R165) ->  | BF65: =SUM(BF66:BF165) -> 
D66: Initial financing | I66: =F$62 ->  | J66: =IF((J$5-FirstOps+1)<=BondMat,I66,0) -> 0 | K66: =IF((K$5-FirstOps+1)<=BondMat,J66,0) -> 0 | L66: 0 | M66: 0 | N66: 0 | O66: 0 | P66: 0 | Q66: 0 | R66: 0 | S66: 0 | T66: 0 | U66: 0 | V66: 0 | W66: 0 | X66: 0 | Y66: 0 | Z66: 0 | AA66: 0 | AB66: 0 | AC66: 0 | AD66: 0 | AE66: 0 | AF66: 0 | AG66: 0 | AH66: 0 | AI66: 0 | AJ66: 0 | AK66: 0 | AL66: 0 | AM66: 0 | AN66: 0 | AO66: 0 | AP66: 0 | AQ66: 0 | AR66: 0 | AS66: 0 | AT66: 0 | AU66: 0 | AV66: 0 | AW66: 0 | AX66: 0 | AY66: 0 | AZ66: 0 | BA66: 0 | BB66: 0 | BC66: 0 | BD66: 0 | BE66: 0 | BF66: =IF((BF$5-FirstOps+1)<=BondMat,BE66,0) -> 0
D67: =I5 -> 0 | J67: =I$62 -> 0 | K67: =IF((K$5-$D67)<=BondMat,J67,0) -> 0 | L67: 0 | M67: 0 | N67: 0 | O67: 0 | P67: 0 | Q67: 0 | R67: 0 | S67: 0 | T67: 0 | U67: 0 | V67: 0 | W67: 0 | X67: 0 | Y67: 0 | Z67: 0 | AA67: =IF((AA$5-$D67)<=BondMat,Z67,0) -> 0 | AB67: 0 | AC67: 0 | AD67: 0 | AE67: 0 | AF67: 0 | AG67: 0 | AH67: 0 | AI67: 0 | AJ67: 0 | AK67: 0 | AL67: 0 | AM67: 0 | AN67: 0 | AO67: 0 | AP67: 0 | AQ67: =IF((AQ$5-$D67)<=BondMat,AP67,0) -> 0 | AR67: 0 | AS67: 0 | AT67: 0 | AU67: 0 | AV67: 0 | AW67: 0 | AX67: 0 | AY67: 0 | AZ67: 0 | BA67: 0 | BB67: 0 | BC67: 0 | BD67: 0 | BE67: 0 | BF67: =IF((BF$5-$D67)<=BondMat,BE67,0) -> 0
D68: =D67+1 -> 1 | K68: =J$62 -> 0 | L68: 0 | M68: 0 | N68: 0 | O68: =IF((O$5-$D68)<=BondMat,N68,0) -> 0 | P68: 0 | Q68: 0 | R68: 0 | S68: 0 | T68: 0 | U68: 0 | V68: 0 | W68: 0 | X68: 0 | Y68: 0 | Z68: 0 | AA68: 0 | AB68: 0 | AC68: 0 | AD68: 0 | AE68: 0 | AF68: 0 | AG68: 0 | AH68: 0 | AI68: 0 | AJ68: 0 | AK68: 0 | AL68: 0 | AM68: 0 | AN68: 0 | AO68: 0 | AP68: 0 | AQ68: 0 | AR68: 0 | AS68: 0 | AT68: 0 | AU68: 0 | AV68: 0 | AW68: 0 | AX68: 0 | AY68: 0 | AZ68: 0 | BA68: 0 | BB68: 0 | BC68: 0 | BD68: 0 | BE68: 0 | BF68: 0
D69: =D68+1 -> 2 | L69: =K$62 -> 0 | M69: 0 | N69: 0 | O69: 0 | P69: 0 | Q69: 0 | R69: 0 | S69: 0 | T69: 0 | U69: 0 | V69: 0 | W69: 0 | X69: 0 | Y69: 0 | Z69: 0 | AA69: 0 | AB69: 0 | AC69: 0 | AD69: 0 | AE69: 0 | AF69: 0 | AG69: 0 | AH69: 0 | AI69: 0 | AJ69: 0 | AK69: 0 | AL69: 0 | AM69: 0 | AN69: 0 | AO69: 0 | AP69: 0 | AQ69: 0 | AR69: 0 | AS69: 0 | AT69: 0 | AU69: 0 | AV69: 0 | AW69: 0 | AX69: 0 | AY69: 0 | AZ69: 0 | BA69: 0 | BB69: 0 | BC69: 0 | BD69: 0 | BE69: 0 | BF69: 0
D70: 3 | M70: =L$62 -> 0 | N70: 0 | O70: 0 | P70: 0 | Q70: 0 | R70: 0 | S70: 0 | T70: 0 | U70: 0 | V70: 0 | W70: 0 | X70: 0 | Y70: 0 | Z70: 0 | AA70: 0 | AB70: 0 | AC70: 0 | AD70: 0 | AE70: 0 | AF70: 0 | AG70: 0 | AH70: 0 | AI70: 0 | AJ70: 0 | AK70: 0 | AL70: 0 | AM70: 0 | AN70: 0 | AO70: 0 | AP70: 0 | AQ70: 0 | AR70: 0 | AS70: 0 | AT70: 0 | AU70: 0 | AV70: 0 | AW70: 0 | AX70: 0 | AY70: 0 | AZ70: 0 | BA70: 0 | BB70: 0 | BC70: 0 | BD70: 0 | BE70: 0 | BF70: 0
D71: 4 | N71: =M$62 ->  | O71: 0 | P71: 0 | Q71: 0 | R71: 0 | S71: 0 | T71: 0 | U71: 0 | V71: 0 | W71: 0 | X71: 0 | Y71: 0 | Z71: 0 | AA71: 0 | AB71: 0 | AC71: 0 | AD71: 0 | AE71: 0 | AF71: 0 | AG71: 0 | AH71: 0 | AI71: 0 | AJ71: 0 | AK71: 0 | AL71: 0 | AM71: 0 | AN71: 0 | AO71: 0 | AP71: 0 | AQ71: 0 | AR71: 0 | AS71: 0 | AT71: 0 | AU71: 0 | AV71: 0 | AW71: 0 | AX71: 0 | AY71: 0 | AZ71: 0 | BA71: 0 | BB71: 0 | BC71: 0 | BD71: 0 | BE71: 0 | BF71: 0
D72: 5 | O72: =N$62 ->  | P72: 0 | Q72: 0 | R72: =IF((R$5-$D72)<=BondMat,Q72,0) -> 0 | S72: 0 | T72: 0 | U72: 0 | V72: 0 | W72: 0 | X72: 0 | Y72: 0 | Z72: 0 | AA72: 0 | AB72: 0 | AC72: 0 | AD72: 0 | AE72: 0 | AF72: 0 | AG72: 0 | AH72: 0 | AI72: 0 | AJ72: 0 | AK72: 0 | AL72: 0 | AM72: 0 | AN72: 0 | AO72: 0 | AP72: 0 | AQ72: 0 | AR72: 0 | AS72: 0 | AT72: 0 | AU72: 0 | AV72: 0 | AW72: 0 | AX72: 0 | AY72: 0 | AZ72: 0 | BA72: 0 | BB72: 0 | BC72: 0 | BD72: 0 | BE72: 0 | BF72: 0
D73: 6 | P73: =O$62 ->  | Q73: 0 | R73: 0 | S73: 0 | T73: 0 | U73: 0 | V73: 0 | W73: 0 | X73: 0 | Y73: 0 | Z73: 0 | AA73: 0 | AB73: 0 | AC73: 0 | AD73: 0 | AE73: 0 | AF73: 0 | AG73: 0 | AH73: 0 | AI73: 0 | AJ73: 0 | AK73: 0 | AL73: 0 | AM73: 0 | AN73: 0 | AO73: 0 | AP73: 0 | AQ73: 0 | AR73: 0 | AS73: 0 | AT73: 0 | AU73: 0 | AV73: 0 | AW73: 0 | AX73: 0 | AY73: 0 | AZ73: 0 | BA73: 0 | BB73: 0 | BC73: 0 | BD73: 0 | BE73: 0 | BF73: 0
D74: 7 | Q74: =P$62 ->  | R74: 0 | S74: 0 | T74: 0 | U74: 0 | V74: 0 | W74: 0 | X74: 0 | Y74: 0 | Z74: 0 | AA74: 0 | AB74: 0 | AC74: 0 | AD74: 0 | AE74: 0 | AF74: 0 | AG74: 0 | AH74: 0 | AI74: 0 | AJ74: 0 | AK74: 0 | AL74: 0 | AM74: 0 | AN74: 0 | AO74: 0 | AP74: 0 | AQ74: 0 | AR74: 0 | AS74: 0 | AT74: 0 | AU74: 0 | AV74: 0 | AW74: 0 | AX74: 0 | AY74: 0 | AZ74: 0 | BA74: 0 | BB74: 0 | BC74: 0 | BD74: 0 | BE74: 0 | BF74: 0
D75: 8 | R75: =Q$62 ->  | S75: 0 | T75: 0 | U75: 0 | V75: 0 | W75: 0 | X75: 0 | Y75: 0 | Z75: 0 | AA75: 0 | AB75: 0 | AC75: 0 | AD75: 0 | AE75: 0 | AF75: 0 | AG75: 0 | AH75: 0 | AI75: 0 | AJ75: 0 | AK75: 0 | AL75: 0 | AM75: 0 | AN75: 0 | AO75: 0 | AP75: 0 | AQ75: 0 | AR75: 0 | AS75: 0 | AT75: 0 | AU75: 0 | AV75: 0 | AW75: 0 | AX75: 0 | AY75: 0 | AZ75: 0 | BA75: 0 | BB75: 0 | BC75: 0 | BD75: 0 | BE75: 0 | BF75: 0
D76: 9 | S76: =R$62 ->  | T76: 0 | U76: 0 | V76: 0 | W76: 0 | X76: 0 | Y76: 0 | Z76: 0 | AA76: 0 | AB76: 0 | AC76: 0 | AD76: 0 | AE76: 0 | AF76: 0 | AG76: 0 | AH76: 0 | AI76: 0 | AJ76: 0 | AK76: 0 | AL76: 0 | AM76: 0 | AN76: 0 | AO76: 0 | AP76: 0 | AQ76: 0 | AR76: 0 | AS76: 0 | AT76: 0 | AU76: 0 | AV76: 0 | AW76: 0 | AX76: 0 | AY76: 0 | AZ76: 0 | BA76: 0 | BB76: 0 | BC76: 0 | BD76: 0 | BE76: 0 | BF76: 0
D77: 10 | T77: =S$62 ->  | U77: 0 | V77: 0 | W77: 0 | X77: 0 | Y77: 0 | Z77: 0 | AA77: 0 | AB77: 0 | AC77: 0 | AD77: 0 | AE77: 0 | AF77: 0 | AG77: 0 | AH77: 0 | AI77: 0 | AJ77: 0 | AK77: 0 | AL77: 0 | AM77: 0 | AN77: 0 | AO77: 0 | AP77: 0 | AQ77: 0 | AR77: 0 | AS77: 0 | AT77: 0 | AU77: 0 | AV77: 0 | AW77: 0 | AX77: 0 | AY77: 0 | AZ77: 0 | BA77: 0 | BB77: 0 | BC77: 0 | BD77: 0 | BE77: 0 | BF77: 0
D78: 11 | U78: =T$62 ->  | V78: 0 | W78: 0 | X78: 0 | Y78: 0 | Z78: 0 | AA78: 0 | AB78: 0 | AC78: 0 | AD78: 0 | AE78: 0 | AF78: 0 | AG78: 0 | AH78: 0 | AI78: 0 | AJ78: 0 | AK78: 0 | AL78: 0 | AM78: 0 | AN78: 0 | AO78: 0 | AP78: 0 | AQ78: 0 | AR78: 0 | AS78: 0 | AT78: 0 | AU78: 0 | AV78: 0 | AW78: 0 | AX78: 0 | AY78: 0 | AZ78: 0 | BA78: 0 | BB78: 0 | BC78: 0 | BD78: 0 | BE78: 0 | BF78: 0
D79: 12 | V79: =U$62 ->  | W79: 0 | X79: 0 | Y79: 0 | Z79: 0 | AA79: 0 | AB79: 0 | AC79: 0 | AD79: 0 | AE79: 0 | AF79: 0 | AG79: 0 | AH79: 0 | AI79: 0 | AJ79: 0 | AK79: 0 | AL79: 0 | AM79: 0 | AN79: 0 | AO79: 0 | AP79: 0 | AQ79: 0 | AR79: 0 | AS79: 0 | AT79: 0 | AU79: 0 | AV79: 0 | AW79: 0 | AX79: 0 | AY79: 0 | AZ79: 0 | BA79: 0 | BB79: 0 | BC79: 0 | BD79: 0 | BE79: 0 | BF79: 0
D80: 13 | W80: =V$62 ->  | X80: 0 | Y80: 0 | Z80: 0 | AA80: 0 | AB80: 0 | AC80: 0 | AD80: 0 | AE80: 0 | AF80: 0 | AG80: 0 | AH80: 0 | AI80: 0 | AJ80: 0 | AK80: 0 | AL80: 0 | AM80: 0 | AN80: 0 | AO80: 0 | AP80: 0 | AQ80: 0 | AR80: 0 | AS80: 0 | AT80: 0 | AU80: 0 | AV80: 0 | AW80: 0 | AX80: 0 | AY80: 0 | AZ80: 0 | BA80: 0 | BB80: 0 | BC80: 0 | BD80: 0 | BE80: 0 | BF80: 0
D81: 14 | X81: =W$62 ->  | Y81: 0 | Z81: 0 | AA81: 0 | AB81: 0 | AC81: 0 | AD81: 0 | AE81: 0 | AF81: 0 | AG81: 0 | AH81: 0 | AI81: 0 | AJ81: 0 | AK81: 0 | AL81: 0 | AM81: 0 | AN81: 0 | AO81: 0 | AP81: 0 | AQ81: 0 | AR81: 0 | AS81: 0 | AT81: 0 | AU81: 0 | AV81: 0 | AW81: 0 | AX81: 0 | AY81: 0 | AZ81: 0 | BA81: 0 | BB81: 0 | BC81: 0 | BD81: 0 | BE81: 0 | BF81: 0
D82: 15 | Y82: =X$62 ->  | Z82: 0 | AA82: 0 | AB82: 0 | AC82: 0 | AD82: 0 | AE82: 0 | AF82: 0 | AG82: 0 | AH82: 0 | AI82: 0 | AJ82: 0 | AK82: 0 | AL82: 0 | AM82: 0 | AN82: 0 | AO82: 0 | AP82: =IF((AP$5-$D82)<=BondMat,AO82,0) -> 0 | AQ82: 0 | AR82: 0 | AS82: 0 | AT82: 0 | AU82: 0 | AV82: 0 | AW82: 0 | AX82: 0 | AY82: 0 | AZ82: 0 | BA82: 0 | BB82: 0 | BC82: 0 | BD82: 0 | BE82: 0 | BF82: 0
D83: 16 | Z83: =Y$62 ->  | AA83: =IF((AA$5-$D83)<=BondMat,Z83,0) -> 0 | AB83: 0 | AC83: 0 | AD83: 0 | AE83: 0 | AF83: 0 | AG83: 0 | AH83: 0 | AI83: 0 | AJ83: 0 | AK83: 0 | AL83: 0 | AM83: 0 | AN83: 0 | AO83: 0 | AP83: 0 | AQ83: 0 | AR83: 0 | AS83: 0 | AT83: 0 | AU83: 0 | AV83: 0 | AW83: 0 | AX83: 0 | AY83: 0 | AZ83: 0 | BA83: 0 | BB83: 0 | BC83: 0 | BD83: 0 | BE83: 0 | BF83: 0
D84: 17 | AA84: =Z$62 ->  | AB84: =IF((AB$5-$D84)<=BondMat,AA84,0) -> 0 | AC84: 0 | AD84: 0 | AE84: 0 | AF84: 0 | AG84: 0 | AH84: 0 | AI84: 0 | AJ84: 0 | AK84: 0 | AL84: 0 | AM84: 0 | AN84: 0 | AO84: 0 | AP84: 0 | AQ84: 0 | AR84: =IF((AR$5-$D84)<=BondMat,AQ84,0) -> 0 | AS84: 0 | AT84: 0 | AU84: 0 | AV84: 0 | AW84: 0 | AX84: 0 | AY84: 0 | AZ84: 0 | BA84: 0 | BB84: 0 | BC84: 0 | BD84: 0 | BE84: 0 | BF84: 0
D85: 18 | AB85: =AA$62 ->  | AC85: =IF((AC$5-$D85)<=BondMat,AB85,0) -> 0 | AD85: 0 | AE85: 0 | AF85: 0 | AG85: 0 | AH85: 0 | AI85: 0 | AJ85: 0 | AK85: 0 | AL85: 0 | AM85: 0 | AN85: 0 | AO85: 0 | AP85: 0 | AQ85: 0 | AR85: 0 | AS85: =IF((AS$5-$D85)<=BondMat,AR85,0) -> 0 | AT85: 0 | AU85: 0 | AV85: 0 | AW85: 0 | AX85: 0 | AY85: 0 | AZ85: 0 | BA85: 0 | BB85: 0 | BC85: 0 | BD85: 0 | BE85: 0 | BF85: =IF((BF$5-$D85)<=BondMat,BE85,0) -> 0
D86: 19 | AC86: =AB$62 ->  | AD86: =IF((AD$5-$D86)<=BondMat,AC86,0) -> 0 | AE86: 0 | AF86: 0 | AG86: 0 | AH86: 0 | AI86: 0 | AJ86: 0 | AK86: 0 | AL86: 0 | AM86: 0 | AN86: 0 | AO86: 0 | AP86: 0 | AQ86: 0 | AR86: 0 | AS86: 0 | AT86: =IF((AT$5-$D86)<=BondMat,AS86,0) -> 0 | AU86: 0 | AV86: 0 | AW86: 0 | AX86: 0 | AY86: 0 | AZ86: 0 | BA86: 0 | BB86: 0 | BC86: 0 | BD86: 0 | BE86: 0 | BF86: 0
D87: 20 | AD87: =AC$62 ->  | AE87: =IF((AE$5-$D87)<=BondMat,AD87,0) -> 0 | AF87: 0 | AG87: 0 | AH87: 0 | AI87: 0 | AJ87: 0 | AK87: 0 | AL87: 0 | AM87: 0 | AN87: 0 | AO87: 0 | AP87: 0 | AQ87: 0 | AR87: 0 | AS87: 0 | AT87: 0 | AU87: =IF((AU$5-$D87)<=BondMat,AT87,0) -> 0 | AV87: 0 | AW87: 0 | AX87: 0 | AY87: 0 | AZ87: 0 | BA87: 0 | BB87: 0 | BC87: 0 | BD87: 0 | BE87: 0 | BF87: 0
D88: 21 | AE88: =AD$62 ->  | AF88: =IF((AF$5-$D88)<=BondMat,AE88,0) -> 0 | AG88: 0 | AH88: 0 | AI88: 0 | AJ88: 0 | AK88: 0 | AL88: 0 | AM88: 0 | AN88: 0 | AO88: 0 | AP88: 0 | AQ88: 0 | AR88: 0 | AS88: 0 | AT88: 0 | AU88: 0 | AV88: =IF((AV$5-$D88)<=BondMat,AU88,0) -> 0 | AW88: 0 | AX88: 0 | AY88: 0 | AZ88: 0 | BA88: 0 | BB88: 0 | BC88: 0 | BD88: 0 | BE88: 0 | BF88: 0
D89: 22 | AF89: =AE$62 ->  | AG89: =IF((AG$5-$D89)<=BondMat,AF89,0) -> 0 | AH89: 0 | AI89: 0 | AJ89: 0 | AK89: 0 | AL89: 0 | AM89: 0 | AN89: 0 | AO89: 0 | AP89: 0 | AQ89: 0 | AR89: 0 | AS89: 0 | AT89: 0 | AU89: 0 | AV89: 0 | AW89: =IF((AW$5-$D89)<=BondMat,AV89,0) -> 0 | AX89: 0 | AY89: 0 | AZ89: 0 | BA89: 0 | BB89: 0 | BC89: 0 | BD89: 0 | BE89: 0 | BF89: 0
D90: 23 | AG90: =AF$62 ->  | AH90: =IF((AH$5-$D90)<=BondMat,AG90,0) -> 0 | AI90: 0 | AJ90: 0 | AK90: 0 | AL90: 0 | AM90: 0 | AN90: 0 | AO90: 0 | AP90: 0 | AQ90: 0 | AR90: 0 | AS90: 0 | AT90: 0 | AU90: 0 | AV90: 0 | AW90: 0 | AX90: =IF((AX$5-$D90)<=BondMat,AW90,0) -> 0 | AY90: 0 | AZ90: 0 | BA90: 0 | BB90: 0 | BC90: 0 | BD90: 0 | BE90: 0 | BF90: 0
D91: 24 | AH91: =AG$62 ->  | AI91: =IF((AI$5-$D91)<=BondMat,AH91,0) -> 0 | AJ91: 0 | AK91: 0 | AL91: 0 | AM91: 0 | AN91: 0 | AO91: 0 | AP91: 0 | AQ91: 0 | AR91: 0 | AS91: 0 | AT91: 0 | AU91: 0 | AV91: 0 | AW91: 0 | AX91: 0 | AY91: =IF((AY$5-$D91)<=BondMat,AX91,0) -> 0 | AZ91: 0 | BA91: 0 | BB91: 0 | BC91: 0 | BD91: 0 | BE91: 0 | BF91: 0
D92: 25 | AI92: =AH$62 ->  | AJ92: =IF((AJ$5-$D92)<=BondMat,AI92,0) -> 0 | AK92: 0 | AL92: 0 | AM92: 0 | AN92: 0 | AO92: 0 | AP92: 0 | AQ92: 0 | AR92: 0 | AS92: 0 | AT92: 0 | AU92: 0 | AV92: 0 | AW92: 0 | AX92: 0 | AY92: 0 | AZ92: =IF((AZ$5-$D92)<=BondMat,AY92,0) -> 0 | BA92: 0 | BB92: 0 | BC92: 0 | BD92: 0 | BE92: 0 | BF92: 0
D93: 26 | AJ93: =AI$62 ->  | AK93: =IF((AK$5-$D93)<=BondMat,AJ93,0) -> 0 | AL93: 0 | AM93: 0 | AN93: 0 | AO93: 0 | AP93: 0 | AQ93: 0 | AR93: 0 | AS93: 0 | AT93: 0 | AU93: 0 | AV93: =IF((AV$5-$D93)<=BondMat,AU93,0) -> 0 | AW93: 0 | AX93: 0 | AY93: 0 | AZ93: 0 | BA93: 0 | BB93: 0 | BC93: 0 | BD93: 0 | BE93: 0 | BF93: 0
D94: 27 | AK94: =AJ$62 ->  | AL94: =IF((AL$5-$D94)<=BondMat,AK94,0) -> 0 | AM94: 0 | AN94: 0 | AO94: 0 | AP94: 0 | AQ94: 0 | AR94: 0 | AS94: 0 | AT94: 0 | AU94: 0 | AV94: 0 | AW94: 0 | AX94: 0 | AY94: 0 | AZ94: 0 | BA94: 0 | BB94: 0 | BC94: 0 | BD94: 0 | BE94: 0 | BF94: 0
D95: 28 | AL95: =AK$62 ->  | AM95: 0 | AN95: 0 | AO95: 0 | AP95: 0 | AQ95: 0 | AR95: 0 | AS95: 0 | AT95: 0 | AU95: 0 | AV95: 0 | AW95: 0 | AX95: 0 | AY95: 0 | AZ95: 0 | BA95: 0 | BB95: 0 | BC95: 0 | BD95: 0 | BE95: 0 | BF95: 0
D96: 29 | AM96: =AL$62 ->  | AN96: 0 | AO96: 0 | AP96: 0 | AQ96: 0 | AR96: 0 | AS96: 0 | AT96: 0 | AU96: 0 | AV96: 0 | AW96: 0 | AX96: 0 | AY96: 0 | AZ96: 0 | BA96: 0 | BB96: 0 | BC96: 0 | BD96: 0 | BE96: 0 | BF96: 0
D97: 30 | AN97: =AM$62 ->  | AO97: 0 | AP97: 0 | AQ97: 0 | AR97: 0 | AS97: 0 | AT97: 0 | AU97: 0 | AV97: 0 | AW97: 0 | AX97: 0 | AY97: 0 | AZ97: 0 | BA97: 0 | BB97: 0 | BC97: 0 | BD97: 0 | BE97: 0 | BF97: 0
D98: 31 | AO98: =AN$62 ->  | AP98: 0 | AQ98: 0 | AR98: 0 | AS98: 0 | AT98: 0 | AU98: 0 | AV98: 0 | AW98: 0 | AX98: 0 | AY98: 0 | AZ98: 0 | BA98: 0 | BB98: 0 | BC98: 0 | BD98: 0 | BE98: 0 | BF98: 0
D99: 32 | AP99: =AO$62 ->  | AQ99: 0 | AR99: 0 | AS99: 0 | AT99: 0 | AU99: 0 | AV99: 0 | AW99: 0 | AX99: 0 | AY99: 0 | AZ99: 0 | BA99: 0 | BB99: 0 | BC99: 0 | BD99: 0 | BE99: 0 | BF99: 0
D100: 33 | AQ100: =AP$62 ->  | AR100: 0 | AS100: 0 | AT100: 0 | AU100: 0 | AV100: 0 | AW100: 0 | AX100: 0 | AY100: 0 | AZ100: 0 | BA100: 0 | BB100: 0 | BC100: 0 | BD100: 0 | BE100: 0 | BF100: 0
D101: 34 | AR101: =AQ$62 ->  | AS101: 0 | AT101: 0 | AU101: 0 | AV101: 0 | AW101: 0 | AX101: 0 | AY101: 0 | AZ101: 0 | BA101: 0 | BB101: =IF((BB$5-$D101)<=BondMat,BA101,0) -> 0 | BC101: =IF((BC$5-$D101)<=BondMat,BB101,0) -> 0 | BD101: =IF((BD$5-$D101)<=BondMat,BC101,0) -> 0 | BE101: =IF((BE$5-$D101)<=BondMat,BD101,0) -> 0 | BF101: =IF((BF$5-$D101)<=BondMat,BE101,0) -> 0
D102: 35 | AS102: =AR$62 ->  | AT102: 0 | AU102: 0 | AV102: 0 | AW102: 0 | AX102: 0 | AY102: 0 | AZ102: 0 | BA102: 0 | BB102: 0 | BC102: 0 | BD102: 0 | BE102: 0 | BF102: =IF((BF$5-$D102)<=BondMat,BE102,0) -> 0
D103: 36 | AT103: =AS$62 ->  | AU103: 0 | AV103: 0 | AW103: 0 | AX103: 0 | AY103: 0 | AZ103: 0 | BA103: 0 | BB103: 0 | BC103: 0 | BD103: 0 | BE103: 0 | BF103: 0
D104: 37 | AU104: =AT$62 ->  | AV104: 0 | AW104: 0 | AX104: 0 | AY104: 0 | AZ104: 0 | BA104: 0 | BB104: 0 | BC104: 0 | BD104: 0 | BE104: 0 | BF104: 0
D105: 38 | AV105: =AU$62 ->  | AW105: 0 | AX105: 0 | AY105: 0 | AZ105: 0 | BA105: 0 | BB105: 0 | BC105: 0 | BD105: 0 | BE105: 0 | BF105: 0
D106: 39 | AW106: =AV$62 ->  | AX106: 0 | AY106: 0 | AZ106: 0 | BA106: 0 | BB106: 0 | BC106: 0 | BD106: 0 | BE106: 0 | BF106: 0
D107: 40 | AX107: =AW$62 ->  | AY107: 0 | AZ107: 0 | BA107: 0 | BB107: 0 | BC107: 0 | BD107: 0 | BE107: 0 | BF107: 0
D108: 41 | AY108: =AX$62 ->  | AZ108: 0 | BA108: 0 | BB108: 0 | BC108: 0 | BD108: 0 | BE108: 0 | BF108: 0
D109: 42 | AZ109: =AY$62 ->  | BA109: =IF((BA$5-$D109)<=BondMat,AZ109,0) -> 0 | BB109: =IF((BB$5-$D109)<=BondMat,BA109,0) -> 0 | BC109: =IF((BC$5-$D109)<=BondMat,BB109,0) -> 0 | BD109: =IF((BD$5-$D109)<=BondMat,BC109,0) -> 0 | BE109: =IF((BE$5-$D109)<=BondMat,BD109,0) -> 0 | BF109: 0
D110: 43 | BA110: =AZ$62 ->  | BB110: =IF((BB$5-$D110)<=BondMat,BA110,0) -> 0 | BC110: =IF((BC$5-$D110)<=BondMat,BB110,0) -> 0 | BD110: =IF((BD$5-$D110)<=BondMat,BC110,0) -> 0 | BE110: =IF((BE$5-$D110)<=BondMat,BD110,0) -> 0 | BF110: 0
D111: 44 | BB111: =BA$62 ->  | BC111: =IF((BC$5-$D111)<=BondMat,BB111,0) -> 0 | BD111: =IF((BD$5-$D111)<=BondMat,BC111,0) -> 0 | BE111: =IF((BE$5-$D111)<=BondMat,BD111,0) -> 0 | BF111: 0
D112: 45 | BC112: =BB$62 ->  | BD112: =IF((BD$5-$D112)<=BondMat,BC112,0) -> 0 | BE112: =IF((BE$5-$D112)<=BondMat,BD112,0) -> 0 | BF112: 0
D113: 46 | BD113: =BC$62 ->  | BE113: =IF((BE$5-$D113)<=BondMat,BD113,0) -> 0 | BF113: 0
D114: 47 | BE114: =BD$62 ->  | BF114: =IF((BF$5-$D114)<=BondMat,BE114,0) -> 0
D115: 48 | BF115: =BE$62 -> 

Sheet LCC O&M Alt 2 New (hidden)
A1: Life Cycle Cost Model
A2: =ProjName -> Project Name
A3: LCC O&M Costs and Intangibles, | E3: =Alt1Name -> Alt. 1 Name
A4: ($0s)
F5: ='LCC Cap Alt 2 New'!I5 -> 0 | G5: =F5+1 -> 1 | H5: =G5+1 -> 2 | I5: 3 | J5: 4 | K5: 5 | L5: 6 | M5: 7 | N5: 8 | O5: 9 | P5: 10 | Q5: 11 | R5: 12 | S5: 13 | T5: 14 | U5: 15 | V5: 16 | W5: 17 | X5: 18 | Y5: 19 | Z5: 20 | AA5: 21 | AB5: 22 | AC5: 23 | AD5: 24 | AE5: 25 | AF5: 26 | AG5: 27 | AH5: 28 | AI5: 29 | AJ5: 30 | AK5: 31 | AL5: 32 | AM5: 33 | AN5: 34 | AO5: 35 | AP5: 36 | AQ5: 37 | AR5: 38 | AS5: 39 | AT5: 40 | AU5: 41 | AV5: 42 | AW5: 43 | AX5: 44 | AY5: 45 | AZ5: 46 | BA5: 47 | BB5: 48 | BC5: 49
F7: 1 | G7: =F7+1 -> 2 | H7: =G7+1 -> 3 | I7: 4 | J7: 5 | K7: 6 | L7: 7 | M7: 8 | N7: 9 | O7: 10 | P7: 11 | Q7: 12 | R7: 13 | S7: 14 | T7: 15 | U7: 16 | V7: 17 | W7: 18 | X7: 19 | Y7: 20 | Z7: 21 | AA7: 22 | AB7: 23 | AC7: 24 | AD7: 25 | AE7: 26 | AF7: 27 | AG7: 28 | AH7: 29 | AI7: 30 | AJ7: 31 | AK7: 32 | AL7: 33 | AM7: 34 | AN7: 35 | AO7: 36 | AP7: 37 | AQ7: 38 | AR7: 39 | AS7: 40 | AT7: 41 | AU7: 42 | AV7: 43 | AW7: 44 | AX7: 45 | AY7: 46 | AZ7: 47 | BA7: 48 | BB7: 49 | BC7: 50
A8: PV of O&M and Intang. Costs
B9: Total | E9: =PresentYear -> 0 | F9: =SUM(F10:BC10) -> 
B10: Annual | E10: =PresentYear -> 0 | F10: =F$24/(1+DiscRat)^(F$5-PresentYear) ->  | G10: =IF(G$7<=LCCPeriod,(G$24/(1+DiscRat)^(G$5-PresentYear)),0) -> 0 | H10: 0 | I10: 0 | J10: 0 | K10: 0 | L10: 0 | M10: 0 | N10: 0 | O10: 0 | P10: 0 | Q10: 0 | R10: 0 | S10: 0 | T10: 0 | U10: 0 | V10: 0 | W10: 0 | X10: 0 | Y10: 0 | Z10: 0 | AA10: 0 | AB10: 0 | AC10: 0 | AD10: 0 | AE10: 0 | AF10: 0 | AG10: 0 | AH10: 0 | AI10: 0 | AJ10: 0 | AK10: 0 | AL10: 0 | AM10: 0 | AN10: 0 | AO10: 0 | AP10: 0 | AQ10: 0 | AR10: 0 | AS10: 0 | AT10: 0 | AU10: 0 | AV10: 0 | AW10: 0 | AX10: 0 | AY10: 0 | AZ10: 0 | BA10: 0 | BB10: 0 | BC10: 0
B11: Energy | E11: =PresentYear -> 0 | F11: =F$57/(1+DiscRat)^(F$5-PresentYear) ->  | G11: =IF(G$7<=LCCPeriod,(G$57/(1+DiscRat)^(G$5-PresentYear)),0) -> 0 | H11: 0 | I11: 0 | J11: 0 | K11: 0 | L11: 0 | M11: 0 | N11: 0 | O11: 0 | P11: 0 | Q11: 0 | R11: 0 | S11: 0 | T11: 0 | U11: 0 | V11: 0 | W11: 0 | X11: 0 | Y11: 0 | Z11: 0 | AA11: 0 | AB11: 0 | AC11: 0 | AD11: 0 | AE11: 0 | AF11: 0 | AG11: 0 | AH11: 0 | AI11: 0 | AJ11: 0 | AK11: 0 | AL11: 0 | AM11: =IF(AM$7<=LCCPeriod,(AM$57/(1+DiscRat)^(AM$5-PresentYear)),0) -> 0 | AN11: 0 | AO11: 0 | AP11: 0 | AQ11: 0 | AR11: 0 | AS11: 0 | AT11: 0 | AU11: 0 | AV11: 0 | AW11: 0 | AX11: 0 | AY11: 0 | AZ11: 0 | BA11: 0 | BB11: 0 | BC11: 0
B12: Energy Total | F12: =SUM(F11:BC11) -> 
A14: PV of Benefits
B15: Total | E15: =PresentYear -> 0 | F15: =SUM(F16:BC16) -> 0
B16: Annual | E16: =PresentYear -> 0 | F16: =F$19/(1+DiscRat)^(F$5-PresentYear) -> 0 | G16: 0 | H16: 0 | I16: 0 | J16: 0 | K16: 0 | L16: 0 | M16: 0 | N16: 0 | O16: 0 | P16: 0 | Q16: 0 | R16: 0 | S16: 0 | T16: 0 | U16: 0 | V16: 0 | W16: 0 | X16: 0 | Y16: 0 | Z16: 0 | AA16: 0 | AB16: 0 | AC16: 0 | AD16: 0 | AE16: 0 | AF16: 0 | AG16: 0 | AH16: 0 | AI16: 0 | AJ16: 0 | AK16: 0 | AL16: 0 | AM16: 0 | AN16: 0 | AO16: 0 | AP16: 0 | AQ16: 0 | AR16: 0 | AS16: 0 | AT16: 0 | AU16: 0 | AV16: 0 | AW16: 0 | AX16: 0 | AY16: 0 | AZ16: 0 | BA16: 0 | BB16: 0 | BC16: 0
A18: Component Summaries
B19: Benefits | F19: =F34 -> 0 | G19: =G34 -> 0 | H19: 0 | I19: 0 | J19: 0 | K19: 0 | L19: 0 | M19: 0 | N19: 0 | O19: 0 | P19: 0 | Q19: 0 | R19: 0 | S19: 0 | T19: 0 | U19: 0 | V19: 0 | W19: 0 | X19: 0 | Y19: 0 | Z19: 0 | AA19: 0 | AB19: 0 | AC19: 0 | AD19: 0 | AE19: 0 | AF19: 0 | AG19: 0 | AH19: 0 | AI19: 0 | AJ19: 0 | AK19: 0 | AL19: 0 | AM19: 0 | AN19: 0 | AO19: 0 | AP19: 0 | AQ19: 0 | AR19: 0 | AS19: 0 | AT19: 0 | AU19: 0 | AV19: 0 | AW19: 0 | AX19: 0 | AY19: 0 | AZ19: 0 | BA19: 0 | BB19: 0 | BC19: 0
B21: Risk | F21: =F43 -> 0 | G21: =G43 -> 0 | H21: 0 | I21: 0 | J21: 0 | K21: 0 | L21: 0 | M21: 0 | N21: 0 | O21: 0 | P21: 0 | Q21: 0 | R21: 0 | S21: 0 | T21: 0 | U21: 0 | V21: 0 | W21: 0 | X21: 0 | Y21: 0 | Z21: 0 | AA21: 0 | AB21: 0 | AC21: 0 | AD21: 0 | AE21: 0 | AF21: 0 | AG21: 0 | AH21: 0 | AI21: 0 | AJ21: 0 | AK21: 0 | AL21: 0 | AM21: 0 | AN21: 0 | AO21: 0 | AP21: 0 | AQ21: 0 | AR21: 0 | AS21: 0 | AT21: 0 | AU21: 0 | AV21: 0 | AW21: 0 | AX21: 0 | AY21: 0 | AZ21: 0 | BA21: 0 | BB21: 0 | BC21: 0
B22: Uncertainty | F22: =F52 -> 0 | G22: =G52 -> 0 | H22: 0 | I22: 0 | J22: 0 | K22: 0 | L22: 0 | M22: 0 | N22: 0 | O22: 0 | P22: 0 | Q22: 0 | R22: 0 | S22: 0 | T22: 0 | U22: 0 | V22: 0 | W22: 0 | X22: 0 | Y22: 0 | Z22: 0 | AA22: 0 | AB22: 0 | AC22: 0 | AD22: 0 | AE22: 0 | AF22: 0 | AG22: 0 | AH22: 0 | AI22: 0 | AJ22: 0 | AK22: 0 | AL22: 0 | AM22: 0 | AN22: 0 | AO22: 0 | AP22: 0 | AQ22: 0 | AR22: 0 | AS22: 0 | AT22: 0 | AU22: 0 | AV22: 0 | AW22: 0 | AX22: 0 | AY22: 0 | AZ22: 0 | BA22: 0 | BB22: 0 | BC22: 0
B23: O&M | F23: =F62 ->  | G23: =G62 -> 
B24: Total (not incl Benefits) | F24: =SUM(F21:F23) ->  | G24: =SUM(G21:G23) -> 
A26: Details
A28: Benefits
C29: 1. | E29: =EPCBaseYear -> 0 | F29: 0 | G29: =F29 -> 0 | H29: =G29 -> 0 | I29: 0 | J29: 0 | K29: 0 | L29: 0 | M29: 0 | N29: 0 | O29: 0 | P29: 0 | Q29: 0 | R29: 0 | S29: 0 | T29: 0 | U29: 0 | V29: 0 | W29: 0 | X29: =W29 -> 0 | Y29: 0 | Z29: 0 | AA29: 0 | AB29: 0 | AC29: 0 | AD29: 0 | AE29: 0 | AF29: 0 | AG29: 0 | AH29: 0 | AI29: 0 | AJ29: 0 | AK29: 0 | AL29: 0 | AM29: 0 | AN29: =AM29 -> 0 | AO29: 0 | AP29: 0 | AQ29: 0 | AR29: 0 | AS29: 0 | AT29: 0 | AU29: 0 | AV29: 0 | AW29: 0 | AX29: 0 | AY29: 0 | AZ29: 0 | BA29: 0 | BB29: 0 | BC29: 0
C30: 2. | E30: =EPCBaseYear -> 0 | F30: 0 | G30: =F30 -> 0 | H30: 0 | I30: 0 | J30: 0 | K30: 0 | L30: 0 | M30: 0 | N30: 0 | O30: 0 | P30: 0 | Q30: 0 | R30: 0 | S30: 0 | T30: 0 | U30: 0 | V30: 0 | W30: 0 | X30: 0 | Y30: 0 | Z30: 0 | AA30: 0 | AB30: 0 | AC30: 0 | AD30: 0 | AE30: 0 | AF30: 0 | AG30: 0 | AH30: 0 | AI30: 0 | AJ30: 0 | AK30: 0 | AL30: 0 | AM30: 0 | AN30: 0 | AO30: 0 | AP30: 0 | AQ30: 0 | AR30: 0 | AS30: 0 | AT30: 0 | AU30: 0 | AV30: 0 | AW30: 0 | AX30: 0 | AY30: 0 | AZ30: 0 | BA30: 0 | BB30: 0 | BC30: 0
C31: 3. | E31: =EPCBaseYear -> 0 | F31: 0 | G31: =F31 -> 0 | H31: 0 | I31: 0 | J31: 0 | K31: 0 | L31: 0 | M31: 0 | N31: 0 | O31: 0 | P31: 0 | Q31: 0 | R31: 0 | S31: 0 | T31: 0 | U31: 0 | V31: 0 | W31: 0 | X31: 0 | Y31: 0 | Z31: 0 | AA31: 0 | AB31: 0 | AC31: 0 | AD31: 0 | AE31: 0 | AF31: 0 | AG31: 0 | AH31: 0 | AI31: 0 | AJ31: 0 | AK31: 0 | AL31: 0 | AM31: 0 | AN31: 0 | AO31: 0 | AP31: 0 | AQ31: 0 | AR31: 0 | AS31: 0 | AT31: 0 | AU31: 0 | AV31: 0 | AW31: 0 | AX31: 0 | AY31: 0 | AZ31: 0 | BA31: 0 | BB31: 0 | BC31: 0
C32: 4. | E32: =EPCBaseYear -> 0 | F32: 0 | G32: =F32 -> 0 | H32: 0 | I32: 0 | J32: 0 | K32: 0 | L32: 0 | M32: 0 | N32: 0 | O32: 0 | P32: 0 | Q32: 0 | R32: 0 | S32: 0 | T32: 0 | U32: 0 | V32: 0 | W32: 0 | X32: 0 | Y32: 0 | Z32: 0 | AA32: 0 | AB32: 0 | AC32: 0 | AD32: 0 | AE32: 0 | AF32: 0 | AG32: 0 | AH32: 0 | AI32: 0 | AJ32: 0 | AK32: 0 | AL32: 0 | AM32: 0 | AN32: 0 | AO32: 0 | AP32: 0 | AQ32: 0 | AR32: 0 | AS32: 0 | AT32: 0 | AU32: 0 | AV32: 0 | AW32: 0 | AX32: 0 | AY32: 0 | AZ32: 0 | BA32: 0 | BB32: 0 | BC32: 0
D33: Sum of benefits | E33: =EPCBaseYear -> 0 | F33: =SUM(F29:F32) -> 0 | G33: =SUM(G29:G32) -> 0 | H33: 0 | I33: 0 | J33: 0 | K33: 0 | L33: 0 | M33: 0 | N33: 0 | O33: 0 | P33: 0 | Q33: 0 | R33: 0 | S33: 0 | T33: 0 | U33: 0 | V33: 0 | W33: 0 | X33: 0 | Y33: 0 | Z33: 0 | AA33: 0 | AB33: 0 | AC33: 0 | AD33: 0 | AE33: 0 | AF33: 0 | AG33: 0 | AH33: 0 | AI33: 0 | AJ33: 0 | AK33: 0 | AL33: 0 | AM33: 0 | AN33: 0 | AO33: 0 | AP33: 0 | AQ33: 0 | AR33: 0 | AS33: 0 | AT33: 0 | AU33: 0 | AV33: 0 | AW33: 0 | AX33: 0 | AY33: 0 | AZ33: 0 | BA33: 0 | BB33: 0 | BC33: 0
D34: Escalated to indicated year | E34: =CostEscalOM -> 0.03 | F34: =F33*(1+RateSQ)^(F$5-EPCBaseYear) -> 0 | G34: 0 | H34: 0 | I34: 0 | J34: 0 | K34: 0 | L34: 0 | M34: 0 | N34: 0 | O34: 0 | P34: 0 | Q34: 0 | R34: 0 | S34: 0 | T34: 0 | U34: 0 | V34: 0 | W34: 0 | X34: 0 | Y34: 0 | Z34: 0 | AA34: 0 | AB34: 0 | AC34: 0 | AD34: 0 | AE34: 0 | AF34: 0 | AG34: 0 | AH34: 0 | AI34: 0 | AJ34: 0 | AK34: 0 | AL34: 0 | AM34: 0 | AN34: 0 | AO34: 0 | AP34: 0 | AQ34: 0 | AR34: 0 | AS34: 0 | AT34: 0 | AU34: 0 | AV34: 0 | AW34: 0 | AX34: 0 | AY34: 0 | AZ34: 0 | BA34: 0 | BB34: 0 | BC34: 0
A37: Risks
C38: 1. | F38: 0 | G38: =F38 -> 0 | H38: =G38 -> 0 | I38: 0 | J38: 0 | K38: 0 | L38: 0 | M38: 0 | N38: 0 | O38: 0 | P38: 0 | Q38: 0 | R38: 0 | S38: 0 | T38: 0 | U38: 0 | V38: 0 | W38: 0 | X38: =W38 -> 0 | Y38: 0 | Z38: 0 | AA38: 0 | AB38: 0 | AC38: 0 | AD38: 0 | AE38: 0 | AF38: 0 | AG38: 0 | AH38: 0 | AI38: 0 | AJ38: 0 | AK38: 0 | AL38: 0 | AM38: 0 | AN38: =AM38 -> 0 | AO38: 0 | AP38: 0 | AQ38: 0 | AR38: 0 | AS38: 0 | AT38: 0 | AU38: 0 | AV38: 0 | AW38: 0 | AX38: 0 | AY38: 0 | AZ38: 0 | BA38: 0 | BB38: 0 | BC38: 0
C39: 2. | F39: 0 | G39: =F39 -> 0 | H39: 0 | I39: 0 | J39: 0 | K39: 0 | L39: 0 | M39: 0 | N39: 0 | O39: 0 | P39: 0 | Q39: 0 | R39: 0 | S39: 0 | T39: 0 | U39: 0 | V39: 0 | W39: 0 | X39: 0 | Y39: 0 | Z39: 0 | AA39: 0 | AB39: 0 | AC39: 0 | AD39: 0 | AE39: 0 | AF39: 0 | AG39: 0 | AH39: 0 | AI39: 0 | AJ39: 0 | AK39: 0 | AL39: 0 | AM39: 0 | AN39: 0 | AO39: 0 | AP39: 0 | AQ39: 0 | AR39: 0 | AS39: 0 | AT39: 0 | AU39: 0 | AV39: 0 | AW39: 0 | AX39: 0 | AY39: 0 | AZ39: 0 | BA39: 0 | BB39: 0 | BC39: 0
C40: 3. | F40: 0 | G40: =F40 -> 0 | H40: 0 | I40: 0 | J40: 0 | K40: 0 | L40: 0 | M40: 0 | N40: 0 | O40: 0 | P40: 0 | Q40: 0 | R40: 0 | S40: 0 | T40: 0 | U40: 0 | V40: 0 | W40: 0 | X40: 0 | Y40: 0 | Z40: 0 | AA40: 0 | AB40: 0 | AC40: 0 | AD40: 0 | AE40: 0 | AF40: 0 | AG40: 0 | AH40: 0 | AI40: 0 | AJ40: 0 | AK40: 0 | AL40: 0 | AM40: 0 | AN40: 0 | AO40: 0 | AP40: 0 | AQ40: 0 | AR40: 0 | AS40: 0 | AT40: 0 | AU40: 0 | AV40: 0 | AW40: 0 | AX40: 0 | AY40: 0 | AZ40: 0 | BA40: 0 | BB40: 0 | BC40: 0
C41: 4. | F41: 0 | G41: =F41 -> 0 | H41: 0 | I41: 0 | J41: 0 | K41: 0 | L41: 0 | M41: 0 | N41: 0 | O41: 0 | P41: 0 | Q41: 0 | R41: 0 | S41: 0 | T41: 0 | U41: 0 | V41: 0 | W41: 0 | X41: 0 | Y41: 0 | Z41: 0 | AA41: 0 | AB41: 0 | AC41: 0 | AD41: 0 | AE41: 0 | AF41: 0 | AG41: 0 | AH41: 0 | AI41: 0 | AJ41: 0 | AK41: 0 | AL41: 0 | AM41: 0 | AN41: 0 | AO41: 0 | AP41: 0 | AQ41: 0 | AR41: 0 | AS41: 0 | AT41: 0 | AU41: 0 | AV41: 0 | AW41: 0 | AX41: 0 | AY41: 0 | AZ41: 0 | BA41: 0 | BB41: 0 | BC41: 0
D42: Sum of benefits | E42: =EPCBaseYear -> 0 | F42: =SUM(F38:F41) -> 0 | G42: =SUM(G38:G41) -> 0 | H42: 0 | I42: 0 | J42: 0 | K42: 0 | L42: 0 | M42: 0 | N42: 0 | O42: 0 | P42: 0 | Q42: 0 | R42: 0 | S42: 0 | T42: 0 | U42: 0 | V42: 0 | W42: 0 | X42: 0 | Y42: 0 | Z42: 0 | AA42: 0 | AB42: 0 | AC42: 0 | AD42: 0 | AE42: 0 | AF42: 0 | AG42: 0 | AH42: 0 | AI42: 0 | AJ42: 0 | AK42: 0 | AL42: 0 | AM42: 0 | AN42: 0 | AO42: 0 | AP42: 0 | AQ42: 0 | AR42: 0 | AS42: 0 | AT42: 0 | AU42: 0 | AV42: 0 | AW42: 0 | AX42: 0 | AY42: 0 | AZ42: 0 | BA42: 0 | BB42: 0 | BC42: 0
D43: Escalated to indicated year | E43: =CostEscalOM -> 0.03 | F43: =F42*(1+RateSQ)^(F$5-EPCBaseYear) -> 0 | G43: 0 | H43: 0 | I43: 0 | J43: 0 | K43: 0 | L43: 0 | M43: 0 | N43: 0 | O43: 0 | P43: 0 | Q43: 0 | R43: 0 | S43: 0 | T43: 0 | U43: 0 | V43: 0 | W43: 0 | X43: 0 | Y43: 0 | Z43: 0 | AA43: 0 | AB43: 0 | AC43: 0 | AD43: 0 | AE43: 0 | AF43: 0 | AG43: 0 | AH43: 0 | AI43: 0 | AJ43: 0 | AK43: 0 | AL43: 0 | AM43: 0 | AN43: 0 | AO43: 0 | AP43: 0 | AQ43: 0 | AR43: 0 | AS43: 0 | AT43: 0 | AU43: 0 | AV43: 0 | AW43: 0 | AX43: 0 | AY43: 0 | AZ43: 0 | BA43: 0 | BB43: 0 | BC43: 0
A46: Uncertainties
C47: 1. | F47: 0 | G47: =F47 -> 0 | H47: =G47 -> 0 | I47: 0 | J47: 0 | K47: 0 | L47: 0 | M47: 0 | N47: 0 | O47: 0 | P47: 0 | Q47: 0 | R47: 0 | S47: 0 | T47: 0 | U47: 0 | V47: 0 | W47: 0 | X47: =W47 -> 0 | Y47: 0 | Z47: 0 | AA47: 0 | AB47: 0 | AC47: 0 | AD47: 0 | AE47: 0 | AF47: 0 | AG47: 0 | AH47: 0 | AI47: 0 | AJ47: 0 | AK47: 0 | AL47: 0 | AM47: 0 | AN47: =AM47 -> 0 | AO47: 0 | AP47: 0 | AQ47: 0 | AR47: 0 | AS47: 0 | AT47: 0 | AU47: 0 | AV47: 0 | AW47: 0 | AX47: 0 | AY47: 0 | AZ47: 0 | BA47: 0 | BB47: 0 | BC47: 0
C48: 2. | F48: 0 | G48: =F48 -> 0 | H48: 0 | I48: 0 | J48: 0 | K48: 0 | L48: 0 | M48: 0 | N48: 0 | O48: 0 | P48: 0 | Q48: 0 | R48: 0 | S48: 0 | T48: 0 | U48: 0 | V48: 0 | W48: 0 | X48: 0 | Y48: 0 | Z48: 0 | AA48: 0 | AB48: 0 | AC48: 0 | AD48: 0 | AE48: 0 | AF48: 0 | AG48: 0 | AH48: 0 | AI48: 0 | AJ48: 0 | AK48: 0 | AL48: 0 | AM48: 0 | AN48: 0 | AO48: 0 | AP48: 0 | AQ48: 0 | AR48: 0 | AS48: 0 | AT48: 0 | AU48: 0 | AV48: 0 | AW48: 0 | AX48: 0 | AY48: 0 | AZ48: 0 | BA48: 0 | BB48: 0 | BC48: 0
C49: 3. | F49: 0 | G49: =F49 -> 0 | H49: 0 | I49: 0 | J49: 0 | K49: 0 | L49: 0 | M49: 0 | N49: 0 | O49: 0 | P49: 0 | Q49: 0 | R49: 0 | S49: 0 | T49: 0 | U49: 0 | V49: 0 | W49: 0 | X49: 0 | Y49: 0 | Z49: 0 | AA49: 0 | AB49: 0 | AC49: 0 | AD49: 0 | AE49: 0 | AF49: 0 | AG49: 0 | AH49: 0 | AI49: 0 | AJ49: 0 | AK49: 0 | AL49: 0 | AM49: 0 | AN49: 0 | AO49: 0 | AP49: 0 | AQ49: 0 | AR49: 0 | AS49: 0 | AT49: 0 | AU49: 0 | AV49: 0 | AW49: 0 | AX49: 0 | AY49: 0 | AZ49: 0 | BA49: 0 | BB49: 0 | BC49: 0
C50: 4. | F50: 0 | G50: =F50 -> 0 | H50: 0 | I50: 0 | J50: 0 | K50: 0 | L50: 0 | M50: 0 | N50: 0 | O50: 0 | P50: 0 | Q50: 0 | R50: 0 | S50: 0 | T50: 0 | U50: 0 | V50: 0 | W50: 0 | X50: 0 | Y50: 0 | Z50: 0 | AA50: 0 | AB50: 0 | AC50: 0 | AD50: 0 | AE50: 0 | AF50: 0 | AG50: 0 | AH50: 0 | AI50: 0 | AJ50: 0 | AK50: 0 | AL50: 0 | AM50: 0 | AN50: 0 | AO50: 0 | AP50: 0 | AQ50: 0 | AR50: 0 | AS50: 0 | AT50: 0 | AU50: 0 | AV50: 0 | AW50: 0 | AX50: 0 | AY50: 0 | AZ50: 0 | BA50: 0 | BB50: 0 | BC50: 0
D51: Sum of benefits | E51: =EPCBaseYear -> 0 | F51: =SUM(F47:F50) -> 0 | G51: =SUM(G47:G50) -> 0 | H51: 0 | I51: 0 | J51: 0 | K51: 0 | L51: 0 | M51: 0 | N51: 0 | O51: 0 | P51: 0 | Q51: 0 | R51: 0 | S51: 0 | T51: 0 | U51: 0 | V51: 0 | W51: 0 | X51: 0 | Y51: 0 | Z51: 0 | AA51: 0 | AB51: 0 | AC51: 0 | AD51: 0 | AE51: 0 | AF51: 0 | AG51: 0 | AH51: 0 | AI51: 0 | AJ51: 0 | AK51: 0 | AL51: 0 | AM51: 0 | AN51: 0 | AO51: 0 | AP51: 0 | AQ51: 0 | AR51: 0 | AS51: 0 | AT51: 0 | AU51: 0 | AV51: 0 | AW51: 0 | AX51: 0 | AY51: 0 | AZ51: 0 | BA51: 0 | BB51: 0 | BC51: 0
D52: Escalated to indicated year | E52: =CostEscalOM -> 0.03 | F52: =F51*(1+RateSQ)^(F$5-EPCBaseYear) -> 0 | G52: 0 | H52: 0 | I52: 0 | J52: 0 | K52: 0 | L52: 0 | M52: 0 | N52: 0 | O52: 0 | P52: 0 | Q52: 0 | R52: 0 | S52: 0 | T52: 0 | U52: 0 | V52: 0 | W52: 0 | X52: 0 | Y52: 0 | Z52: 0 | AA52: 0 | AB52: 0 | AC52: 0 | AD52: 0 | AE52: 0 | AF52: 0 | AG52: 0 | AH52: 0 | AI52: 0 | AJ52: 0 | AK52: 0 | AL52: 0 | AM52: 0 | AN52: 0 | AO52: 0 | AP52: 0 | AQ52: 0 | AR52: 0 | AS52: 0 | AT52: 0 | AU52: 0 | AV52: 0 | AW52: 0 | AX52: 0 | AY52: 0 | AZ52: 0 | BA52: 0 | BB52: 0 | BC52: 0
A55: Operations and Maintenance
B56: Summaries, escalated costs
C57: Energy | F57: =F76 ->  | G57: =G76 -> 
C58: Chemicals | F58: =F85 ->  | G58: =G85 -> 
C59: Materials & Supplies | F59: =F94 -> 0 | G59: =G94 -> 0 | H59: 0 | I59: 0 | J59: 0 | K59: 0 | L59: 0 | M59: 0 | N59: 0 | O59: 0 | P59: 0 | Q59: 0 | R59: 0 | S59: 0 | T59: 0 | U59: 0 | V59: 0 | W59: 0 | X59: 0 | Y59: 0 | Z59: 0 | AA59: 0 | AB59: 0 | AC59: 0 | AD59: 0 | AE59: 0 | AF59: 0 | AG59: 0 | AH59: 0 | AI59: 0 | AJ59: 0 | AK59: 0 | AL59: 0 | AM59: 0 | AN59: 0 | AO59: 0 | AP59: 0 | AQ59: 0 | AR59: 0 | AS59: 0 | AT59: 0 | AU59: 0 | AV59: 0 | AW59: 0 | AX59: 0 | AY59: 0 | AZ59: 0 | BA59: 0 | BB59: 0 | BC59: 0
C60: Other | F60: =F103 -> 0 | G60: =G103 -> 0 | H60: 0 | I60: 0 | J60: 0 | K60: 0 | L60: 0 | M60: 0 | N60: 0 | O60: 0 | P60: 0 | Q60: 0 | R60: 0 | S60: 0 | T60: 0 | U60: 0 | V60: 0 | W60: 0 | X60: 0 | Y60: 0 | Z60: 0 | AA60: 0 | AB60: 0 | AC60: 0 | AD60: 0 | AE60: 0 | AF60: 0 | AG60: 0 | AH60: 0 | AI60: 0 | AJ60: 0 | AK60: 0 | AL60: 0 | AM60: 0 | AN60: 0 | AO60: 0 | AP60: 0 | AQ60: 0 | AR60: 0 | AS60: 0 | AT60: 0 | AU60: 0 | AV60: 0 | AW60: 0 | AX60: 0 | AY60: 0 | AZ60: 0 | BA60: 0 | BB60: 0 | BC60: 0
C61: Labor | F61: =F108 ->  | G61: =G108 -> 
C62: Total O&M | F62: =SUM(F57:F61) ->  | G62: =SUM(G57:G61) -> 
B64: Energy
C65: Natural gas therms | F65: ='LCC Inputs O &M New Page 15'!G17 -> 0 | G65: =F65 -> 0 | H65: =G65 -> 0 | I65: 0 | J65: 0 | K65: 0 | L65: 0 | M65: 0 | N65: 0 | O65: 0 | P65: 0 | Q65: 0 | R65: 0 | S65: 0 | T65: 0 | U65: 0 | V65: 0 | W65: 0 | X65: 0 | Y65: 0 | Z65: 0 | AA65: 0 | AB65: 0 | AC65: 0 | AD65: 0 | AE65: 0 | AF65: 0 | AG65: 0 | AH65: 0 | AI65: 0 | AJ65: 0 | AK65: 0 | AL65: 0 | AM65: 0 | AN65: 0 | AO65: 0 | AP65: 0 | AQ65: 0 | AR65: 0 | AS65: 0 | AT65: 0 | AU65: 0 | AV65: 0 | AW65: 0 | AX65: 0 | AY65: 0 | AZ65: 0 | BA65: 0 | BB65: 0 | BC65: 0
C66: Natural gas cost, escalated | E66: (embedded) | F66: =F65*ROUND(HLOOKUP(F$5,OMUnitCosts,6,FALSE),2) ->  | G66: =G65*ROUND(HLOOKUP(G$5,OMUnitCosts,7,FALSE),2) -> 
C68: Electricity
D69: Base elec. use, kwh/yr | F69: ='LCC Inputs O &M New Page 15'!G18 -> 0
D70: Elec.consump.growth/yr | F70: =ElecGrowth -> 0.03 | G70: 0.03 | H70: 0.03 | I70: 0.03 | J70: 0.03 | K70: 0.03 | L70: 0.03 | M70: 0.03 | N70: 0.03 | O70: 0.03 | P70: 0.03 | Q70: 0.03 | R70: 0.03 | S70: 0.03 | T70: 0.03 | U70: 0.03 | V70: 0.03 | W70: 0.03 | X70: 0.03 | Y70: 0.03 | Z70: 0.03 | AA70: 0.03 | AB70: 0.03 | AC70: 0.03 | AD70: 0.03 | AE70: 0.03 | AF70: 0.03 | AG70: 0.03 | AH70: 0.03 | AI70: 0.03 | AJ70: 0.03 | AK70: 0.03 | AL70: 0.03 | AM70: 0.03 | AN70: 0.03 | AO70: 0.03 | AP70: 0.03 | AQ70: 0.03 | AR70: 0.03 | AS70: 0.03 | AT70: 0.03 | AU70: 0.03 | AV70: 0.03 | AW70: 0.03 | AX70: 0.03 | AY70: 0.03 | AZ70: 0.03 | BA70: 0.03 | BB70: 0.03 | BC70: 0.03
D71: Electricity use, kwh | F71: =F69*(1+F70)^(F5-EPCBaseYear) -> 0 | G71: =F71*(1+G70) -> 0 | H71: =G71*(1+H70) -> 0 | I71: 0 | J71: 0 | K71: 0 | L71: 0 | M71: 0 | N71: 0 | O71: 0 | P71: 0 | Q71: 0 | R71: 0 | S71: 0 | T71: 0 | U71: 0 | V71: 0 | W71: 0 | X71: 0 | Y71: 0 | Z71: 0 | AA71: 0 | AB71: 0 | AC71: 0 | AD71: 0 | AE71: 0 | AF71: 0 | AG71: 0 | AH71: 0 | AI71: 0 | AJ71: 0 | AK71: 0 | AL71: 0 | AM71: 0 | AN71: 0 | AO71: 0 | AP71: 0 | AQ71: 0 | AR71: 0 | AS71: 0 | AT71: 0 | AU71: 0 | AV71: 0 | AW71: 0 | AX71: 0 | AY71: 0 | AZ71: 0 | BA71: 0 | BB71: 0 | BC71: 0
D72: Electricty cost, escalated | E72: (embedded) | F72: =HLOOKUP(F$5,OMUnitCostsNew,10,FALSE)*F71 ->  | AL72: =HLOOKUP(AL$5,OMUnitCostsNew,10,FALSE)*AL71 -> 
D73: Demand, kW or kVa | F73: ='LCC Inputs O &M New Page 15'!G19 -> 0 | G73: =F73 -> 0 | H73: =G73 -> 0 | I73: 0 | J73: 0 | K73: 0 | L73: 0 | M73: 0 | N73: 0 | O73: 0 | P73: 0 | Q73: 0 | R73: 0 | S73: 0 | T73: 0 | U73: 0 | V73: 0 | W73: 0 | X73: 0 | Y73: 0 | Z73: 0 | AA73: 0 | AB73: 0 | AC73: 0 | AD73: 0 | AE73: 0 | AF73: 0 | AG73: 0 | AH73: 0 | AI73: 0 | AJ73: 0 | AK73: 0 | AL73: 0 | AM73: 0 | AN73: 0 | AO73: 0 | AP73: 0 | AQ73: 0 | AR73: 0 | AS73: 0 | AT73: 0 | AU73: 0 | AV73: 0 | AW73: 0 | AX73: 0 | AY73: 0 | AZ73: 0 | BA73: 0 | BB73: 0 | BC73: 0
D74: Demand charge, escalated | E74: (embedded) | F74: =HLOOKUP(F$5,OMUnitCostsNew,11,FALSE)*F73 ->  | AL74: =HLOOKUP(AL$5,OMUnitCostsNew,11,FALSE)*AL73 -> 
D75: Total electricity cost, escalated | F75: =F72+F74 ->  | G75: =G72+G74 -> 
C76: Total, energy, escalated | F76: =F75+F66 ->  | G76: =G75+G66 -> 
B78: Chemicals
C79: Sodium hypochlorite required in gal. | F79: 0 | G79: =F79 -> 0 | H79: =G79 -> 0 | I79: 0 | J79: 0 | K79: 0 | L79: 0 | M79: 0 | N79: 0 | O79: 0 | P79: 0 | Q79: 0 | R79: 0 | S79: 0 | T79: 0 | U79: 0 | V79: 0 | W79: 0 | X79: =W79 -> 0 | Y79: 0 | Z79: 0 | AA79: 0 | AB79: 0 | AC79: 0 | AD79: 0 | AE79: 0 | AF79: 0 | AG79: 0 | AH79: 0 | AI79: 0 | AJ79: 0 | AK79: 0 | AL79: 0 | AM79: 0 | AN79: =AM79 -> 0 | AO79: 0 | AP79: 0 | AQ79: 0 | AR79: 0 | AS79: 0 | AT79: 0 | AU79: 0 | AV79: 0 | AW79: 0 | AX79: 0 | AY79: 0 | AZ79: 0 | BA79: 0 | BB79: 0 | BC79: 0
C80: Bisulfide required in gal. | F80: 0 | G80: =F80 -> 0 | H80: 0 | I80: 0 | J80: 0 | K80: 0 | L80: 0 | M80: 0 | N80: 0 | O80: 0 | P80: 0 | Q80: 0 | R80: 0 | S80: 0 | T80: 0 | U80: 0 | V80: 0 | W80: 0 | X80: 0 | Y80: 0 | Z80: 0 | AA80: 0 | AB80: 0 | AC80: 0 | AD80: 0 | AE80: 0 | AF80: 0 | AG80: 0 | AH80: 0 | AI80: 0 | AJ80: 0 | AK80: 0 | AL80: 0 | AM80: 0 | AN80: 0 | AO80: 0 | AP80: 0 | AQ80: 0 | AR80: 0 | AS80: 0 | AT80: 0 | AU80: 0 | AV80: 0 | AW80: 0 | AX80: 0 | AY80: 0 | AZ80: 0 | BA80: 0 | BB80: 0 | BC80: 0
C81: Other chemical costs - enter $
D82: Item | E82: =EPCBaseYear -> 0 | F82: 0 | G82: =F82 -> 0 | H82: =G82 -> 0 | I82: 0 | J82: 0 | K82: 0 | L82: 0 | M82: 0 | N82: 0 | O82: 0 | P82: 0 | Q82: 0 | R82: 0 | S82: 0 | T82: 0 | U82: 0 | V82: 0 | W82: 0 | X82: =W82 -> 0 | Y82: 0 | Z82: 0 | AA82: 0 | AB82: 0 | AC82: 0 | AD82: 0 | AE82: 0 | AF82: 0 | AG82: 0 | AH82: 0 | AI82: 0 | AJ82: 0 | AK82: 0 | AL82: 0 | AM82: 0 | AN82: =AM82 -> 0 | AO82: 0 | AP82: 0 | AQ82: 0 | AR82: 0 | AS82: 0 | AT82: 0 | AU82: 0 | AV82: 0 | AW82: 0 | AX82: 0 | AY82: 0 | AZ82: 0 | BA82: 0 | BB82: 0 | BC82: 0
D83: Item | E83: =EPCBaseYear -> 0 | F83: 0 | G83: =F83 -> 0 | H83: 0 | I83: 0 | J83: 0 | K83: 0 | L83: 0 | M83: 0 | N83: 0 | O83: 0 | P83: 0 | Q83: 0 | R83: 0 | S83: 0 | T83: 0 | U83: 0 | V83: 0 | W83: 0 | X83: 0 | Y83: 0 | Z83: 0 | AA83: 0 | AB83: 0 | AC83: 0 | AD83: 0 | AE83: 0 | AF83: 0 | AG83: 0 | AH83: 0 | AI83: 0 | AJ83: 0 | AK83: 0 | AL83: 0 | AM83: 0 | AN83: 0 | AO83: 0 | AP83: 0 | AQ83: 0 | AR83: 0 | AS83: 0 | AT83: 0 | AU83: 0 | AV83: 0 | AW83: 0 | AX83: 0 | AY83: 0 | AZ83: 0 | BA83: 0 | BB83: 0 | BC83: 0
D84: Item | E84: =EPCBaseYear -> 0 | F84: 0 | G84: =F84 -> 0 | H84: 0 | I84: 0 | J84: 0 | K84: 0 | L84: 0 | M84: 0 | N84: 0 | O84: 0 | P84: 0 | Q84: 0 | R84: 0 | S84: 0 | T84: 0 | U84: 0 | V84: 0 | W84: 0 | X84: 0 | Y84: 0 | Z84: 0 | AA84: 0 | AB84: 0 | AC84: 0 | AD84: 0 | AE84: 0 | AF84: 0 | AG84: 0 | AH84: 0 | AI84: 0 | AJ84: 0 | AK84: 0 | AL84: 0 | AM84: 0 | AN84: 0 | AO84: 0 | AP84: 0 | AQ84: 0 | AR84: 0 | AS84: 0 | AT84: 0 | AU84: 0 | AV84: 0 | AW84: 0 | AX84: 0 | AY84: 0 | AZ84: 0 | BA84: 0 | BB84: 0 | BC84: 0
C85: Total, chemicals, escalated | E85: =CostEscalOM -> 0.03 | F85: =F79*(HLOOKUP(F$5,OMUnitCostsNew,16,FALSE))+F80*(HLOOKUP(F$5,OMUnitCostsNew,19,FALSE))+SUM(F82:F84)*(1+RateSQ)^(F$5-EPCBaseYear) ->  | AL85: =AL79*(HLOOKUP(AL$5,OMUnitCostsNew,16,FALSE))+AL80*(HLOOKUP(AL$5,OMUnitCostsNew,19,FALSE))+SUM(AL82:AL84)*(1+RateSQ)^(AL$5-EPCBaseYear) -> 
B87: Materials & Supplies
C88: Item | E88: =EPCBaseYear -> 0 | F88: ='LCC Inputs O &M New Page 15'!G22 -> 0 | G88: =F88 -> 0 | H88: =G88 -> 0 | I88: 0 | J88: 0 | K88: 0 | L88: 0 | M88: 0 | N88: 0 | O88: 0 | P88: 0 | Q88: 0 | R88: 0 | S88: 0 | T88: 0 | U88: 0 | V88: 0 | W88: 0 | X88: =W88 -> 0 | Y88: 0 | Z88: 0 | AA88: 0 | AB88: 0 | AC88: 0 | AD88: 0 | AE88: 0 | AF88: 0 | AG88: 0 | AH88: 0 | AI88: 0 | AJ88: 0 | AK88: 0 | AL88: 0 | AM88: 0 | AN88: =AM88 -> 0 | AO88: 0 | AP88: 0 | AQ88: 0 | AR88: 0 | AS88: 0 | AT88: 0 | AU88: 0 | AV88: 0 | AW88: 0 | AX88: 0 | AY88: 0 | AZ88: 0 | BA88: 0 | BB88: 0 | BC88: 0
C89: Item | E89: 0 | F89: ='LCC Inputs O &M New Page 15'!G23 -> 0 | G89: =F89 -> 0 | H89: 0 | I89: 0 | J89: 0 | K89: 0 | L89: 0 | M89: 0 | N89: 0 | O89: 0 | P89: 0 | Q89: 0 | R89: 0 | S89: 0 | T89: 0 | U89: 0 | V89: 0 | W89: 0 | X89: 0 | Y89: 0 | Z89: 0 | AA89: 0 | AB89: 0 | AC89: 0 | AD89: 0 | AE89: 0 | AF89: 0 | AG89: 0 | AH89: 0 | AI89: 0 | AJ89: 0 | AK89: 0 | AL89: 0 | AM89: 0 | AN89: 0 | AO89: 0 | AP89: 0 | AQ89: 0 | AR89: 0 | AS89: 0 | AT89: 0 | AU89: 0 | AV89: 0 | AW89: 0 | AX89: 0 | AY89: 0 | AZ89: 0 | BA89: 0 | BB89: 0 | BC89: 0
C90: Item | E90: 0 | F90: ='LCC Inputs O &M New Page 15'!G24 -> 0 | G90: =F90 -> 0 | H90: 0 | I90: 0 | J90: 0 | K90: 0 | L90: 0 | M90: 0 | N90: 0 | O90: 0 | P90: 0 | Q90: 0 | R90: 0 | S90: 0 | T90: 0 | U90: 0 | V90: 0 | W90: 0 | X90: 0 | Y90: 0 | Z90: 0 | AA90: 0 | AB90: 0 | AC90: 0 | AD90: 0 | AE90: 0 | AF90: 0 | AG90: 0 | AH90: 0 | AI90: 0 | AJ90: 0 | AK90: 0 | AL90: 0 | AM90: 0 | AN90: 0 | AO90: 0 | AP90: 0 | AQ90: 0 | AR90: 0 | AS90: 0 | AT90: 0 | AU90: 0 | AV90: 0 | AW90: 0 | AX90: 0 | AY90: 0 | AZ90: 0 | BA90: 0 | BB90: 0 | BC90: 0
C91: Item | E91: 0 | F91: 0 | G91: =F91 -> 0 | H91: 0 | I91: 0 | J91: 0 | K91: 0 | L91: 0 | M91: 0 | N91: 0 | O91: 0 | P91: 0 | Q91: 0 | R91: 0 | S91: 0 | T91: 0 | U91: 0 | V91: 0 | W91: 0 | X91: 0 | Y91: 0 | Z91: 0 | AA91: 0 | AB91: 0 | AC91: 0 | AD91: 0 | AE91: 0 | AF91: 0 | AG91: 0 | AH91: 0 | AI91: 0 | AJ91: 0 | AK91: 0 | AL91: 0 | AM91: 0 | AN91: 0 | AO91: 0 | AP91: 0 | AQ91: 0 | AR91: 0 | AS91: 0 | AT91: 0 | AU91: 0 | AV91: 0 | AW91: 0 | AX91: 0 | AY91: 0 | AZ91: 0 | BA91: 0 | BB91: 0 | BC91: 0
C92: Item | E92: 0 | F92: 0 | G92: =F92 -> 0 | H92: 0 | I92: 0 | J92: 0 | K92: 0 | L92: 0 | M92: 0 | N92: 0 | O92: 0 | P92: 0 | Q92: 0 | R92: 0 | S92: 0 | T92: 0 | U92: 0 | V92: 0 | W92: 0 | X92: 0 | Y92: 0 | Z92: 0 | AA92: 0 | AB92: 0 | AC92: 0 | AD92: 0 | AE92: 0 | AF92: 0 | AG92: 0 | AH92: 0 | AI92: 0 | AJ92: 0 | AK92: 0 | AL92: 0 | AM92: 0 | AN92: 0 | AO92: 0 | AP92: 0 | AQ92: 0 | AR92: 0 | AS92: 0 | AT92: 0 | AU92: 0 | AV92: 0 | AW92: 0 | AX92: 0 | AY92: 0 | AZ92: 0 | BA92: 0 | BB92: 0 | BC92: 0
C93: Sum of above | E93: 0 | F93: =SUM(F88:F92) -> 0 | G93: =SUM(G88:G92) -> 0 | H93: 0 | I93: 0 | J93: 0 | K93: 0 | L93: 0 | M93: 0 | N93: 0 | O93: 0 | P93: 0 | Q93: 0 | R93: 0 | S93: 0 | T93: 0 | U93: 0 | V93: 0 | W93: 0 | X93: 0 | Y93: 0 | Z93: 0 | AA93: 0 | AB93: 0 | AC93: 0 | AD93: 0 | AE93: 0 | AF93: 0 | AG93: 0 | AH93: 0 | AI93: 0 | AJ93: 0 | AK93: 0 | AL93: 0 | AM93: 0 | AN93: 0 | AO93: 0 | AP93: 0 | AQ93: 0 | AR93: 0 | AS93: 0 | AT93: 0 | AU93: 0 | AV93: 0 | AW93: 0 | AX93: 0 | AY93: 0 | AZ93: 0 | BA93: 0 | BB93: 0 | BC93: 0
C94: Escalated | E94: =CostEscalOM -> 0.03 | F94: =F93*(1+RateSQ)^(F$5-EPCBaseYear) -> 0 | G94: 0 | H94: 0 | I94: 0 | J94: 0 | K94: 0 | L94: 0 | M94: 0 | N94: 0 | O94: 0 | P94: 0 | Q94: 0 | R94: 0 | S94: 0 | T94: 0 | U94: 0 | V94: 0 | W94: 0 | X94: 0 | Y94: 0 | Z94: 0 | AA94: 0 | AB94: 0 | AC94: 0 | AD94: 0 | AE94: 0 | AF94: 0 | AG94: 0 | AH94: 0 | AI94: 0 | AJ94: 0 | AK94: 0 | AL94: 0 | AM94: 0 | AN94: 0 | AO94: 0 | AP94: 0 | AQ94: 0 | AR94: 0 | AS94: 0 | AT94: 0 | AU94: 0 | AV94: 0 | AW94: 0 | AX94: 0 | AY94: 0 | AZ94: 0 | BA94: 0 | BB94: 0 | BC94: 0
B96: Other Costs
C97: Item | E97: =EPCBaseYear -> 0 | F97: ='LCC Inputs O &M New Page 15'!G31 -> 0 | G97: =F97 -> 0 | H97: 0 | I97: 0 | J97: 0 | K97: 0 | L97: 0 | M97: 0 | N97: 0 | O97: 0 | P97: 0 | Q97: 0 | R97: 0 | S97: 0 | T97: 0 | U97: 0 | V97: 0 | W97: 0 | X97: =W97 -> 0 | Y97: 0 | Z97: 0 | AA97: 0 | AB97: 0 | AC97: 0 | AD97: 0 | AE97: 0 | AF97: 0 | AG97: 0 | AH97: 0 | AI97: 0 | AJ97: 0 | AK97: 0 | AL97: 0 | AM97: 0 | AN97: =AM97 -> 0 | AO97: 0 | AP97: 0 | AQ97: 0 | AR97: 0 | AS97: 0 | AT97: 0 | AU97: 0 | AV97: 0 | AW97: 0 | AX97: 0 | AY97: 0 | AZ97: 0 | BA97: 0 | BB97: 0 | BC97: 0
C98: Item | E98: =EPCBaseYear -> 0 | F98: ='LCC Inputs O &M New Page 15'!G32 -> 0 | G98: =F98 -> 0 | H98: 0 | I98: 0 | J98: 0 | K98: 0 | L98: 0 | M98: 0 | N98: 0 | O98: 0 | P98: 0 | Q98: 0 | R98: 0 | S98: 0 | T98: 0 | U98: 0 | V98: 0 | W98: =V98 -> 0 | X98: 0 | Y98: 0 | Z98: 0 | AA98: 0 | AB98: 0 | AC98: 0 | AD98: 0 | AE98: 0 | AF98: 0 | AG98: 0 | AH98: 0 | AI98: 0 | AJ98: 0 | AK98: 0 | AL98: 0 | AM98: 0 | AN98: 0 | AO98: 0 | AP98: 0 | AQ98: 0 | AR98: 0 | AS98: 0 | AT98: 0 | AU98: 0 | AV98: 0 | AW98: 0 | AX98: 0 | AY98: 0 | AZ98: 0 | BA98: 0 | BB98: 0 | BC98: 0
C99: Item | E99: =EPCBaseYear -> 0 | F99: ='LCC Inputs O &M New Page 15'!G33 -> 0 | G99: 0 | H99: 0 | I99: 0 | J99: 0 | K99: 0 | L99: 0 | M99: 0 | N99: 0 | O99: 0 | P99: 0 | Q99: 0 | R99: 0 | S99: 0 | T99: 0 | U99: 0 | V99: 0 | W99: =V99 -> 0 | X99: 0 | Y99: 0 | Z99: 0 | AA99: 0 | AB99: 0 | AC99: 0 | AD99: 0 | AE99: 0 | AF99: 0 | AG99: 0 | AH99: 0 | AI99: 0 | AJ99: 0 | AK99: 0 | AL99: 0 | AM99: 0 | AN99: 0 | AO99: 0 | AP99: 0 | AQ99: 0 | AR99: 0 | AS99: 0 | AT99: 0 | AU99: 0 | AV99: 0 | AW99: 0 | AX99: 0 | AY99: 0 | AZ99: 0 | BA99: 0 | BB99: 0 | BC99: 0
C100: Item | E100: =EPCBaseYear -> 0 | F100: 0 | G100: 0 | H100: 0 | I100: 0 | J100: 0 | K100: 0 | L100: 0 | M100: 0 | N100: 0 | O100: 0 | P100: 0 | Q100: 0 | R100: 0 | S100: 0 | T100: 0 | U100: 0 | V100: 0 | W100: =V100 -> 0 | X100: 0 | Y100: 0 | Z100: 0 | AA100: 0 | AB100: 0 | AC100: 0 | AD100: 0 | AE100: 0 | AF100: 0 | AG100: 0 | AH100: 0 | AI100: 0 | AJ100: 0 | AK100: 0 | AL100: 0 | AM100: 0 | AN100: 0 | AO100: 0 | AP100: 0 | AQ100: 0 | AR100: 0 | AS100: 0 | AT100: 0 | AU100: 0 | AV100: 0 | AW100: 0 | AX100: 0 | AY100: 0 | AZ100: 0 | BA100: 0 | BB100: 0 | BC100: 0
C101: Item | E101: =EPCBaseYear -> 0 | F101: 0 | G101: 0 | H101: 0 | I101: 0 | J101: 0 | K101: 0 | L101: 0 | M101: 0 | N101: 0 | O101: 0 | P101: 0 | Q101: 0 | R101: 0 | S101: 0 | T101: 0 | U101: 0 | V101: 0 | W101: =V101 -> 0 | X101: 0 | Y101: 0 | Z101: 0 | AA101: 0 | AB101: 0 | AC101: 0 | AD101: 0 | AE101: 0 | AF101: 0 | AG101: 0 | AH101: 0 | AI101: 0 | AJ101: 0 | AK101: 0 | AL101: 0 | AM101: 0 | AN101: 0 | AO101: 0 | AP101: 0 | AQ101: 0 | AR101: 0 | AS101: 0 | AT101: 0 | AU101: 0 | AV101: 0 | AW101: 0 | AX101: 0 | AY101: 0 | AZ101: 0 | BA101: 0 | BB101: 0 | BC101: 0
C102: Sum of above | F102: =SUM(F97:F101) -> 0 | G102: =SUM(G97:G101) -> 0 | H102: 0 | I102: 0 | J102: 0 | K102: 0 | L102: 0 | M102: 0 | N102: 0 | O102: 0 | P102: 0 | Q102: 0 | R102: 0 | S102: 0 | T102: 0 | U102: 0 | V102: 0 | W102: 0 | X102: 0 | Y102: 0 | Z102: 0 | AA102: 0 | AB102: 0 | AC102: 0 | AD102: 0 | AE102: 0 | AF102: 0 | AG102: 0 | AH102: 0 | AI102: 0 | AJ102: 0 | AK102: 0 | AL102: 0 | AM102: 0 | AN102: 0 | AO102: 0 | AP102: 0 | AQ102: 0 | AR102: 0 | AS102: 0 | AT102: 0 | AU102: 0 | AV102: 0 | AW102: 0 | AX102: 0 | AY102: 0 | AZ102: 0 | BA102: 0 | BB102: 0 | BC102: 0
C103: Escalated | E103: =CostEscalOM -> 0.03 | F103: =F102*(1+RateSQ)^(F$5-EPCBaseYear) -> 0 | G103: 0 | H103: 0 | I103: 0 | J103: 0 | K103: 0 | L103: 0 | M103: 0 | N103: 0 | O103: 0 | P103: 0 | Q103: 0 | R103: 0 | S103: 0 | T103: 0 | U103: 0 | V103: 0 | W103: 0 | X103: 0 | Y103: 0 | Z103: 0 | AA103: 0 | AB103: 0 | AC103: 0 | AD103: 0 | AE103: 0 | AF103: 0 | AG103: 0 | AH103: 0 | AI103: 0 | AJ103: 0 | AK103: 0 | AL103: 0 | AM103: 0 | AN103: 0 | AO103: 0 | AP103: 0 | AQ103: 0 | AR103: 0 | AS103: 0 | AT103: 0 | AU103: 0 | AV103: 0 | AW103: 0 | AX103: 0 | AY103: 0 | AZ103: 0 | BA103: 0 | BB103: 0 | BC103: 0
B105: Labor
C106: Labor hours per year | F106: ='LCC Inputs O &M New Page 15'!G27 -> 0 | G106: =F106 -> 0 | H106: =G106 -> 0 | I106: 0 | J106: 0 | K106: 0 | L106: 0 | M106: 0 | N106: 0 | O106: 0 | P106: 0 | Q106: 0 | R106: 0 | S106: 0 | T106: 0 | U106: 0 | V106: 0 | W106: 0 | X106: 0 | Y106: 0 | Z106: 0 | AA106: 0 | AB106: 0 | AC106: 0 | AD106: 0 | AE106: 0 | AF106: 0 | AG106: 0 | AH106: 0 | AI106: 0 | AJ106: 0 | AK106: 0 | AL106: 0 | AM106: 0 | AN106: 0 | AO106: 0 | AP106: 0 | AQ106: 0 | AR106: 0 | AS106: 0 | AT106: 0 | AU106: 0 | AV106: 0 | AW106: 0 | AX106: 0 | AY106: 0 | AZ106: 0 | BA106: 0 | BB106: 0 | BC106: 0
C107: Raw labor cost | E107: (embedded) | F107: =F106*(HLOOKUP(F$5,OMUnitCostsNew,24,FALSE)) ->  | AL107: =AL106*(HLOOKUP(AL$5,OMUnitCostsNew,24,FALSE)) -> 
C108: Labor cost, burdened | E108: =LaborOverhead -> 1.6 | F108: =F107*(1+LaborOverhead) -> 

Sheet STOP (hidden)

Sheet General Assumptions New-Page 13 (hidden)
H6: Project Name: | I6: ='Input for New PS - Page 12'!L7 -> 
H7: Project Description: | I7: ='Input for New PS - Page 12'!L8 -> 
A11: Topic | E11: Units | F11: Value
A12: Life Cycle Assumptions
B13: Period | E13: years | F13: ='Page 5'!X14 -> 0
B14: Initial Year of Operations | F14: ='Page 5'!X16 -> 0
B15: Year of analysis | F15: ='Page 5'!X18 -> 0
A17: Cost Assumptions
B18: Cost estimate dollar basis year | F18: ='Page 5'!X22 -> 0
B20: Construction cost escalation | E20: annual | F20: ='Page 5'!X24 -> 0.035
B21: O&M and general cost escalation | E21: annual | F21: ='Page 5'!X26 -> 0.03
B23: Ancillary capital costs*
B24: Sales tax | F24: ='Page 5'!X30 -> 0.095
B25: Support of the arts | F25: ='Page 5'!X32 -> 0.01
B26: Construction cost contingency allowance | F26: ='Page 5'!X34 -> 0.3
B27: Overhead applied to labor only | F27: ='Page 5'!X36 -> 1.6
A29: Financial Assumptions
B30: Capital Treatment: Lump Sum or Financed | F30: ='Page 5'!X40 -> D/S
B31: Financing interest rate | F31: ='Page 5'!X42 -> 0.08
B32: Financing maturity | E32: years | F32: ='Page 5'!X44 -> 0
B33: Financing costs, capitalized | F33: ='Page 5'!X46 -> 0.04
A35: Economic Assumptions
B36: Discount rate (cost of capital) | F36: ='Page 5'!X50 -> 0.08
B37: Annual growth in electricty consumption | F37: ='Page 5'!X52 -> 0.03
A56: Cell fill color: 204/255/255
A78: LS
A79: D/S

Sheet Option page (New Pump) (hidden)
A1: Alternative Reference page: Creating drop down lists on these pages:
B3: New Pump Station
B5: Pump Type | E5: Energy Efficiency | F5: Motor Type | I5: Hydroturbines
B6: Horizontal end suction: stainless steel (8" or smaller) | E6: 72-83% | F6: Synchronous | G6: 90-95%
B7: Horizontal end suction: stainless steel (10"-18") | E7: 83-85% | F7: Induction - High | G7: 90-95% | I7: Install hydroturbines | J7: Detailed analysis needed
B8: Horizontal end suction: cast iron/bronze (8" or smaller) | E8: 75-85% | F8: Induction - Premium | G8: 95-97% | I8: Not selected | J8: N/A
B9: Horizontal end suction: cast iron/bronze (10"-18") | E9: 85-87% | F9: Induction - Super-premium | G9: 95-98%
B10: Horizontal split case - stainless steel (8" or smaller) | E10: 73-83% | F10: Not selected | G10: N/A | I10: Jockey Pump
B11: Horizontal split case - stainless steel (10"-18") | E11: 80-84% | F11: Drive
B12: Horizontal split case - stainless steel (20"-30") | E12: 84-87% | F12: None | G12: 100% | I12: Install jockey pump | J12: Detailed analysis needed
B13: Horizontal split case - stainless steel (32" or larger) | E13: 85-90% | F13: VFD | G13: 94-97% | I13: Not selected | J13: N/A
B14: Horizontal split case - cast iron/bronze (8" or smaller) | E14: 75-85% | F14: Wound Rotor Motor with Liquid Rheostat | G14: 50-95% (proportional to speed)
B15: Horizontal split case - cast iron/bronze (10" -18") | E15: 82-86% | F15: Magnetic Coupling | G15: 70-95%
B16: Horizontal split case - cast iron/bronze (20"-30") | E16: 85-88% | F16: Not selected | G16: N/A
B17: Horizontal split case - cast iron/bronze (32" or larger) | E17: 85-90% | F17: Control
B18: Vertical turbine: stainless steel (12"-16" Bowl dia) | E18: 70-74% | F18: VFD | G18: Detailed analysis needed
B19: Vertical turbine: stainless steel (20"-24" Bowl dia) | E19: 80-84% | F19: Constant speed without storage | G19: Detailed analysis needed
B20: Vertical turbine: stainless steel (26"-30" Bowl dia) | E20: 82-84% | F20: Constant speed with reservoir | G20: Detailed analysis needed
B21: Vertical turbine: stainless steel (32"- 38" Bowl dia) | E21: 83-86% | F21: Constant speed with hydropneumatic tank | G21: Detailed analysis needed
B22: Vertical turbine: cast iron/bronze (12"-16" Bowl dia) | E22: 72-76% | F22: Not selected | G22: N/A
B23: Vertical turbine: cast iron/bronze (20"-24" Bowl dia) | E23: 82-86%
B24: Vertical turbine: cast iron/bronze (26"-30" Bowl dia) | E24: 84-86%
B25: Vertical turbine: cast iron/bronze (32"-38" Bowl dia) | E25: 85-88%
B26: Not selected | E26: N/A | F26: Pipe diameter
B27: Wear Ring material | F27: None
B28: Soft | E28: 0 | F28: Smaller diameter | G28: Detailed analysis needed
B29: Hard | E29: add 0.5% efficiency | F29: Larger diameter | G29: Detailed analysis needed
B30: Not selected | E30: N/A | F30: Not selected | G30: N/A
B31: Type of Seals
B32: Mechanical | E32: add 0.5% efficiency
B33: Packing | E33: 0
B34: Not selected | E34: N/A
B35: Casing Coating
B36: None | E36: 0
B37: Coating | E37: add 1% efficiency
B38: Not selected | E38: N/A
B43: LS
B44: D/S

Sheet Output file - Page 11 (hidden)
H6: Project Name: | I6: Project Name
H7: Project Description: | I7: Pump Station Name
C11: Description | E11: Units | G11: Baseline | I11: Alternative 1 | K11: Alternative 2
C13: List of Modifications | E13: - | G13: ="No Modification" -> No Modification | I13: =eo_Alt1Name -> Please enter name for Alternative 1 here | K13: =eo_Alt2Name -> Please enter name for Alternative 2 here
C15: Estimated Percent Energy Savings | E15: % | G15: Not applicable | I15: =eo_EES_Energy_Alt1 -> 0 | K15: =eo_EES_Energy_Alt2 -> 0
C17: Estimated Annual Energy Savings | E17: kWh/yr | G17: Not applicable | I17: ='Page 8'!H16-'Page 8'!L26 -> 0 | K17: ='Page 8'!H16-'Page 8'!Q26 -> 0
C19: Initial Capital Cost | E19: $ | G19: ='Output Ex '!F11*1000 -> 0 | I19: ='Output Ex '!F12*1000 -> 0 | K19: ='Output Ex '!F13*1000 -> 0
C21: Life Cycle Capital Cost (Present Value) | E21: $ | G21: ='Output Ex '!I11*1000 ->  | I21: ='Output Ex '!I12*1000 ->  | K21: ='Output Ex '!I13*1000 -> 
C23: Life Cycle O&M Cost (Present Value) | E23: $ | G23: ='Output Ex '!J11*1000 ->  | I23: ='Output Ex '!J12*1000 ->  | K23: ='Output Ex '!J13*1000 -> 
C25: Life Cycle Total Cost (Present Value) | E25: $ | G25: ='Output Ex '!K11*1000 ->  | I25: ='Output Ex '!K12*1000 ->  | K25: ='Output Ex '!K13*1000 -> 
C27: Life Cycle Energy Cost (Present Value) | E27: $ | G27: ='Output Ex '!L11*1000 ->  | I27: ='Output Ex '!L12*1000 ->  | K27: ='Output Ex '!L13*1000 -> 
C29: GHG Annual Emissions Reduction | E29: CO2-e lb/yr | G29: ="Not Applicable" -> Not Applicable | I29: ='GHG Emission Calculation'!G18 -> 0 | K29: ='GHG Emission Calculation'!I18 -> 0
C31: Life Cycle GHG Emissions Reduction | E31: CO2-e lb/yr | G31: ="Not Applicable" -> Not Applicable | I31: ='GHG Emission Calculation'!G20 -> 0 | K31: ='GHG Emission Calculation'!I20 -> 0

Sheet Output Ex (hidden)
A1: Life Cycle Cost Model
A2: Project Name
A3: LCC Summary
A5: Dollars in $000s
A6: LCC Period (years) | D6: =LCCPeriod -> 0
A7: Present value year: | D7: =PresentYear -> 0
F8: Initial | G8: Present Value Determinations
F9: Capital | I9: Capital | J9: O&M and
A10: Project | F10: Cost* | H10: Benefits | I10: Costs* | J10: Intangibles | K10: Net Costs | L10: Energy Cost
A11: Status Quo | F11: ='LCC Cap StatQuo Ex'!F$13 -> 0 | H11: ='LCC O&M StatQuo Ex'!F$15/1000 -> 0 | I11: ='LCC Cap StatQuo Ex'!F$9 ->  | J11: ='LCC O&M StatQuo Ex'!F$9/1000 ->  | K11: =I11+J11-H11 ->  | L11: ='LCC O&M StatQuo Ex'!F13/1000 -> 
A12: =Alt1Name -> Alt. 1 Name | F12: ='LCC Cap Alt 1 Ex'!F$13 -> 0 | H12: ='LCC O&M Alt 1 Ex'!F$15/1000 -> 0 | I12: ='LCC Cap Alt 1 Ex'!F$9 ->  | J12: ='LCC O&M Alt 1 Ex'!F$9/1000 ->  | K12: =I12+J12-H12 ->  | L12: ='LCC O&M Alt 1 Ex'!F12/1000 -> 
A13: =Alt2Name -> Alt. 2 Name | F13: ='LCC Cap Alt 2 Ex'!F$13 -> 0 | H13: ='LCC O&M Alt 2 Ex'!F$15/1000 -> 0 | I13: ='LCC Cap Alt 2 Ex'!F$9 ->  | J13: ='LCC O&M Alt 2 Ex'!F$9/1000 ->  | K13: =I13+J13-H13 ->  | L13: ='LCC O&M Alt 2 Ex'!F12/1000 -> 
A15: * | B15: Includes ancillary costs and contingency allowances

Sheet LCC Assumptions Ex (hidden)
A1: Life Cycle Cost Model
A2: =ProjName -> Project Name
A3: LCC Period, Cost, Financial and Economic Assumptions
A5: Topic | E5: Value | F5: Units | G5: Notes
A6: Life Cycle Assumptions
B7: Period | E7: =' General Assumptions Ex Page 7'!LCCPeriod -> 0 | F7: years
B8: Initial Year of Operations | E8: =' General Assumptions Ex Page 7'!FirstOps -> 0 | G8: First year of operations following initial construction
B9: Year of analysis | E9: =' General Assumptions Ex Page 7'!PresentYear -> 0 | G9: "Present" year for present value or present worth computations
A11: Cost Assumptions
B12: Cost estimate dollar basis year | E12: =' General Assumptions Ex Page 7'!EPCBaseYear -> 0 | G12: Capital and O&M cost bases
B14: Construction cost escalation | E14: =' General Assumptions Ex Page 7'!CostEscalCap -> 0.035 | F14: annual | G14: (from cost estimate base year)
B15: O&M and general cost escalation | E15: =' General Assumptions Ex Page 7'!CostEscalOM -> 0.03 | F15: annual | G15: (from cost estimate base year)
B17: Ancillary capital costs* | G17: Computed from components
B18: Sales tax | E18: =' General Assumptions Ex Page 7'!SalesTax -> 0.095
B19: Support of the arts | E19: =' General Assumptions Ex Page 7'!Arts -> 0.01
B20: Construction cost contingency allowance | E20: =' General Assumptions Ex Page 7'!CapCostConting -> 0.3 | G20: Applied to estimated construction plus ancillary costs.*
B21: Overhead applied to labor only | E21: =' General Assumptions Ex Page 7'!LaborOverhead -> 1.6
A23: Financial Assumptions
B24: Capital Treatment: Lump Sum or Financed | E24: =' General Assumptions Ex Page 7'!CapitalTrtmt -> D/S | G24: "LS" if lump sum, "D/S" (debt service) if financed
B25: Financing interest rate | E25: =' General Assumptions Ex Page 7'!BondInt -> 0.08
B26: Financing maturity | E26: =' General Assumptions Ex Page 7'!BondMat -> 0 | F26: years
B27: Financing costs, capitalized | E27: =' General Assumptions Ex Page 7'!BondSofts -> 0.02 | G27: Percentage of bond sale, not % of capital cost
B28: Capitalized interest | E28: 0 | G28: No capitalized interest or other production feature
B29: Debt structure | E29: Equal | F29: Annual | G29: Payments through maturity
B30: Bond reserve | E30: 0 | G30: Not capitalized (self supporting)
A32: Economic Assumptions
B33: Discount rate (cost of capital) | E33: =E25 -> 0.08 | G33: Follows Capital Asset Pricing Model. Same discount rate for all alternatives.
B34: Annual growth in electricty consumption | E34: =' General Assumptions Ex Page 7'!ElecGrowth -> 0.03
A36: * | B36: Ancillary capital costs are computed for each project option as they can vary project by project
A38: ** | B38: Initial Year of Operations is assumed to be common among alternatives. See cell [E8], above
B39: However, Initial Year of Operations can be different for each of the alternatives.
C40: Currently the Initial Year of Operations for the project options are:
D41: StatusQuo | E41: ='LCC Cap StatQuo Ex'!I$5 -> 0
D42: Alt 1 | E42: ='LCC Cap Alt 1 Ex'!I$5 -> 0
D43: Alt 2 | E43: ='LCC Cap Alt 2 Ex'!I$5 -> 0
A45: Data in Blue/outlined cells are to be provided by the user.
A46: Date in outlined cells without blue fill MAY be changed by the user if verified by project manager (if a "common" value is inappropriate),
A47: Data without cell color or outline should be changed only by project manager -- or verified with project manager.
A61: Cell fill color: 204/255/255
A83: LS
A84: D/S

Sheet LCC Inputs Capital Ex Page 8 (hidden)
H6: Project Name: | I6: ='Pump Test - Page 3'!K5 -> 
H7: Project Description: | I7: ='Pump Test - Page 3'!K6 -> 
C9: Existing Condition | F9: Alternative 1 | I9: Alternative 2
D10: =EPCBaseYear -> 0 | G10: =EPCBaseYear -> 0 | J10: =EPCBaseYear -> 0
B11: Estimated Construction Cost ("ECC") | D11: ='Page 6'!G16 -> 0 | G11: ='Page 6'!M16 -> 0 | J11: ='Page 6'!S16 -> 0
B13: Subsequent Capital Replacements | D13: Useful Life | G13: Useful Life | J13: Useful Life
B14: First Main Component | C14: (years) | D14: Costs | F14: (years) | G14: Costs | I14: (years) | J14: Costs
B16: Principal component | C16: ='Page 6'!G23 -> 5 | D16: ='Page 6'!J23 -> 0 | F16: ='Page 6'!M23 -> 5 | G16: ='Page 6'!P23 -> 0 | I16: ='Page 6'!S23 -> 5 | J16: ='Page 6'!V23 -> 0
B17: Sub-component | C17: ='Page 6'!G25 -> 5 | D17: ='Page 6'!J25 -> 0 | F17: 0 | G17: ='Page 6'!P25 -> 0 | I17: ='Page 6'!S27 -> 5 | J17: ='Page 6'!V25 -> 0
B18: Sub-component | C18: ='Page 6'!G27 -> 5 | D18: ='Page 6'!J27 -> 0 | F18: 0 | G18: ='Page 6'!P27 -> 0 | I18: 0 | J18: ='Page 6'!V27 -> 0
B20: Second Main Component
B21: Principal component | C21: ='Page 6'!G31 -> 5 | D21: ='Page 6'!J31 -> 0 | F21: ='Page 6'!M31 -> 5 | G21: ='Page 6'!P31 -> 0 | I21: ='Page 6'!S31 -> 5 | J21: ='Page 6'!V31 -> 0
B22: Sub-component | C22: ='Page 6'!G33 -> 5 | D22: ='Page 6'!J33 -> 0 | F22: ='Page 6'!M33 -> 5 | G22: ='Page 6'!P33 -> 0 | I22: ='Page 6'!S33 -> 5 | J22: ='Page 6'!V33 -> 0
B23: Sub-component | C23: ='Page 6'!G35 -> 5 | D23: ='Page 6'!J35 -> 0 | F23: ='Page 6'!M35 -> 5 | G23: ='Page 6'!P35 -> 0 | I23: ='Page 6'!S35 -> 5 | J23: ='Page 6'!V35 -> 0
B25: Existing Depreciating Assets
B26: Name | C26: ='Page 6'!G41 -> 5 | D26: ='Page 6'!J41 -> 0 | F26: ='Page 6'!M41 -> 5 | G26: ='Page 6'!P41 -> 0 | I26: ='Page 6'!S41 -> 5 | J26: ='Page 6'!V41 -> 0
B27: Estimated remaining life: | C27: ='Page 6'!G43 -> 5 | F27: ='Page 6'!M43 -> 5 | I27: ='Page 6'!S43 -> 5
B28: Name | C28: ='Page 6'!G45 -> 5 | D28: ='Page 6'!J45 -> 0 | F28: ='Page 6'!M45 -> 5 | G28: ='Page 6'!P45 -> 0 | I28: ='Page 6'!S45 -> 5 | J28: ='Page 6'!V45 -> 0
B29: Estimated remaining life: | C29: ='Page 6'!G47 -> 5 | F29: ='Page 6'!M47 -> 5 | I29: ='Page 6'!S47 -> 5
B31: Ancillary Cost Components
B32: Land acquisition or rights of way | C32: Dollar value | D32: ='Page 6'!G54 -> 0 | G32: ='Page 6'!M54 -> 0 | J32: ='Page 6'!S54 -> 0
B33: Environmental mitigation | C33: Dollar value | D33: ='Page 6'!G56 -> 0 | G33: ='Page 6'!M56 -> 0 | J33: ='Page 6'!S56 -> 0
B34: Permits | C34: % of ECC | D34: ='Page 6'!G58 -> 0.005 | G34: ='Page 6'!M58 -> 0.005 | J34: ='Page 6'!S58 -> 0.005
B35: Engineering (pre thru final) | C35: % of ECC | D35: ='Page 6'!G60 -> 0.1325 | G35: ='Page 6'!M60 -> 0.1325 | J35: ='Page 6'!S60 -> 0.1325
B36: Constn mgmt/observation | C36: % of ECC | D36: ='Page 6'!G62 -> 0.09 | G36: ='Page 6'!M62 -> 0.09 | J36: ='Page 6'!S62 -> 0.09
B37: Administration/legal | C37: % of ECC | D37: ='Page 6'!G64 -> 0.1225 | G37: ='Page 6'!M64 -> 0.1225 | J37: ='Page 6'!S64 -> 0.1225
B38: (other) | D38: ='Page 6'!G66 -> 0 | G38: ='Page 6'!M66 -> 0 | J38: ='Page 6'!S66 -> 0
B39: (other) | D39: ='Page 6'!G68 -> 0 | G39: ='Page 6'!M68 -> 0 | J39: ='Page 6'!S68 -> 0
B40: Support of the Arts | C40: % of ECC | D40: ='Page 6'!G70 -> 0.01 | G40: ='Page 6'!M68 -> 0 | J40: ='Page 6'!S70 -> 0.01
B41: Sales tax | C41: % of ECC | D41: ='Page 6'!G72 -> 0.095 | G41: ='Page 6'!M72 -> 0.095 | J41: ='Page 6'!S72 -> 0.095

Sheet LCC Inputs O &M Ex Page 9 (hidden)
E6: Project Name: | F6: ='Pump Test - Page 3'!K5 -> 
E7: Project Description: | F7: ='Pump Test - Page 3'!K6 -> 
C11: Unit price ($/therms) | D11: ='Page 7'!G47 -> 0
C12: Unit price ($/kwh) | D12: ='Page 7'!G49 -> 0
C13: Unit price, $/kVa | D13: ='Page 7'!G51 -> 0
C14: Hourly rate ($/hr) | D14: ='Page 7'!G53 -> 0
D17: Existing Condition | F17: Alternative 1 | H17: Alternative 2
D19: =EPCBaseYear -> 0 | F19: =EPCBaseYear -> 0 | H19: =EPCBaseYear -> 0
C20: Energy
C21: Natural gas therms | D21: ='Page 7'!G17 -> 0 | F21: ='Page 7'!M17 -> 0 | H21: ='Page 7'!S17 -> 0
C22: Base elec. use, kwh/yr | D22: ='Page 7'!G19 -> 0 | F22: ='Page 7'!M19 -> 0 | H22: ='Page 7'!S19 -> 0
C23: Demand, kVa | D23: ='Page 7'!G21 -> 0 | F23: ='Page 7'!M21 -> 0 | H23: ='Page 7'!M21 -> 0
C25: Materials and Supply
C26: Item | D26: ='Page 7'!G25 -> 0 | F26: ='Page 7'!M25 -> 0 | H26: ='Page 7'!S25 -> 0
C27: Item | D27: ='Page 7'!G27 -> 0 | F27: ='Page 7'!M27 -> 0 | H27: ='Page 7'!M27 -> 0
C28: Item | D28: ='Page 7'!G29 -> 0 | F28: ='Page 7'!M29 -> 0 | H28: ='Page 7'!M27 -> 0
C30: Labor
C31: Labor hours per year | D31: ='Page 7'!G33 -> 0 | F31: ='Page 7'!M33 -> 0 | H31: ='Page 7'!S33 -> 0
C34: Others
C35: Item | D35: ='Page 7'!G37 -> 0 | F35: ='Page 7'!M37 -> 0 | H35: ='Page 7'!S37 -> 0
C36: Item | D36: ='Page 7'!G39 -> 0 | F36: ='Page 7'!M39 -> 0 | H36: ='Page 7'!S39 -> 0
C37: Item | D37: ='Page 7'!G41 -> 0 | F37: ='Page 7'!M41 -> 0 | H37: ='Page 7'!S41 -> 0

Sheet LCC Cap StatQuo Ex (hidden)
A1: Life Cycle Cost Model | R1: formula: =IF(CapitalTrtmt="d/s",O$65/(1+DiscRat)^(O$5-PresentYear),O$19/(1+DiscRat)^(O$5-PresentYear))
A2: =ProjName -> Project Name | L2: =CapitalTrtmt -> D/S | M2: =DiscRat -> 0.08 | O2: =PresentYear -> 0 | P2: =IF(CapitalTrtmt="d/s",O$65/(1+DiscRat)^(O$5-PresentYear),O$19/(1+DiscRat)^(O$5-PresentYear)) ->  | R2: =O$65 ->  | S2: =O$5 -> 6 | T2: =O$5 -> 6
A3: LCC Capital Costs and Schedule, | E3: Status Quo
A4: ($000s)
I5: =FirstOps -> 0 | J5: =I5+1 -> 1 | K5: =J5+1 -> 2 | L5: =K5+1 -> 3 | M5: 4 | N5: 5 | O5: 6 | P5: 7 | Q5: 8 | R5: 9 | S5: 10 | T5: 11 | U5: 12 | V5: 13 | W5: 14 | X5: 15 | Y5: 16 | Z5: 17 | AA5: 18 | AB5: 19 | AC5: 20 | AD5: 21 | AE5: 22 | AF5: 23 | AG5: 24 | AH5: 25 | AI5: 26 | AJ5: 27 | AK5: 28 | AL5: 29 | AM5: 30 | AN5: 31 | AO5: 32 | AP5: 33 | AQ5: 34 | AR5: 35 | AS5: 36 | AT5: 37 | AU5: 38 | AV5: 39 | AW5: 40 | AX5: 41 | AY5: 42 | AZ5: 43 | BA5: 44 | BB5: 45 | BC5: 46 | BD5: 47 | BE5: 48 | BF5: 49
I7: 1 | J7: =I7+1 -> 2 | K7: =J7+1 -> 3 | L7: =K7+1 -> 4 | M7: 5 | N7: 6 | O7: 7 | P7: 8 | Q7: 9 | R7: 10 | S7: 11 | T7: 12 | U7: 13 | V7: 14 | W7: 15 | X7: 16 | Y7: 17 | Z7: 18 | AA7: 19 | AB7: 20 | AC7: 21 | AD7: 22 | AE7: 23 | AF7: 24 | AG7: 25 | AH7: 26 | AI7: 27 | AJ7: 28 | AK7: 29 | AL7: 30 | AM7: 31 | AN7: 32 | AO7: 33 | AP7: 34 | AQ7: 35 | AR7: 36 | AS7: 37 | AT7: 38 | AU7: 39 | AV7: 40 | AW7: 41 | AX7: 42 | AY7: 43 | AZ7: 44 | BA7: 45 | BB7: 46 | BC7: 47 | BD7: 48 | BE7: 49 | BF7: 50
A8: Present Values of Capital Components | F8: Totals
E9: =PresentYear -> 0 | F9: =SUM(I9:BF9)-H40 ->  | I9: =IF(CapitalTrtmt="d/s",I$65/(1+DiscRat)^(I$5-PresentYear),I$19/(1+DiscRat)^(I$5-PresentYear)) ->  | J9: =IF(CapitalTrtmt="d/s",J$65/(1+DiscRat)^(J$5-PresentYear),J$19/(1+DiscRat)^(J$5-PresentYear)) -> 0 | K9: 0 | L9: 0 | M9: 0 | O9: =IF(CapitalTrtmt="d/s",O$65/(1+DiscRat)^(O$5-PresentYear),O$19/(1+DiscRat)^(O$5-PresentYear)) ->  | AO9: =IF(CapitalTrtmt="d/s",AO$65/(1+DiscRat)^(AO$5-PresentYear),AO$19/(1+DiscRat)^(AO$5-PresentYear)) -> 
I10: =I9*1000 ->  | J10: =J9*1000 -> 0 | K10: 0 | L10: 0 | M10: 0
A11: Capital Costs ($000s) | F11: Initial
B12: Initial Capital Construction | F12: Const'n
C13: Estimated Construction Cost ("ECC") | E13: =EPCBaseYear -> 0 | F13: =' LCC Inputs Capital Ex Page 8'!D11 -> 0 | I13: =I28+I33+I39 -> 0 | J13: =J28+J33+J39 -> 0 | K13: 0 | L13: 0 | M13: 0 | N13: 0 | O13: 0 | P13: 0 | Q13: 0 | R13: 0 | S13: 0 | T13: 0 | U13: 0 | V13: 0 | W13: 0 | X13: 0 | Y13: 0 | Z13: 0 | AA13: 0 | AB13: 0 | AC13: 0 | AD13: 0 | AE13: 0 | AF13: 0 | AG13: 0 | AH13: 0 | AI13: 0 | AJ13: 0 | AK13: 0 | AL13: 0 | AM13: 0 | AN13: 0 | AO13: =AO28+AO33+AO39 -> 0 | AP13: 0 | AQ13: 0 | AR13: 0 | AS13: 0 | AT13: 0 | AU13: 0 | AV13: 0 | AW13: 0 | AX13: 0 | AY13: 0 | AZ13: 0 | BA13: 0 | BB13: 0 | BC13: 0 | BD13: 0 | BE13: 0 | BF13: 0
C14: Ancillary cost* | E14: =EPCBaseYear -> 0 | F14: =SUM(F43:F44)+SUM(F45:F53)*F13+F54*F53*F13 -> 0 | I14: =SUM(I43:I45)+SUM(I46:I53)*I13+I54*I53*I13 -> 0 | J14: 0 | K14: 0 | L14: 0 | M14: 0 | N14: 0 | O14: 0 | P14: 0 | Q14: 0 | R14: 0 | S14: 0 | T14: 0 | U14: 0 | V14: 0 | W14: 0 | X14: 0 | Y14: 0 | Z14: 0 | AA14: 0 | AB14: 0 | AC14: 0 | AD14: 0 | AE14: 0 | AF14: 0 | AG14: 0 | AH14: 0 | AI14: 0 | AJ14: 0 | AK14: 0 | AL14: 0 | AM14: 0 | AN14: 0 | AO14: =SUM(AO43:AO45)+SUM(AO46:AO53)*AO13+AO54*AO53*AO13 -> 0 | AP14: 0 | AQ14: 0 | AR14: 0 | AS14: 0 | AT14: 0 | AU14: 0 | AV14: 0 | AW14: 0 | AX14: 0 | AY14: 0 | AZ14: 0 | BA14: 0 | BB14: 0 | BC14: 0 | BD14: 0 | BE14: 0 | BF14: 0
D15: Ancillary cost percentage of ECC | F15: =IF(ISNUMBER(F14/F13),F14/F13," ") ->  | I15: =IF(ISNUMBER(I14/I13),I14/I13," ") -> 
C17: Subtotal | E17: =EPCBaseYear -> 0 | F17: =F13+F14 -> 0 | I17: =I13+I14 -> 0 | J17: 0 | K17: 0 | L17: 0 | M17: 0 | N17: 0 | O17: 0 | P17: 0 | Q17: 0 | R17: 0 | S17: 0 | T17: 0 | U17: 0 | V17: 0 | W17: 0 | X17: 0 | Y17: 0 | Z17: 0 | AA17: 0 | AB17: 0 | AC17: 0 | AD17: 0 | AE17: 0 | AF17: 0 | AG17: 0 | AH17: 0 | AI17: 0 | AJ17: 0 | AK17: 0 | AL17: 0 | AM17: 0 | AN17: 0 | AO17: 0 | AP17: 0 | AQ17: 0 | AR17: 0 | AS17: 0 | AT17: 0 | AU17: 0 | AV17: 0 | AW17: 0 | AX17: 0 | AY17: 0 | AZ17: 0 | BA17: 0 | BB17: 0 | BC17: 0 | BD17: 0 | BE17: 0 | BF17: 0
C18: Contingency allowance | E18: =CapCostConting -> 0.3 | F18: =F17*$E18 -> 0 | I18: =I17*$E18 -> 0 | J18: =J17*$E18 -> 0 | K18: 0 | L18: 0 | M18: 0 | N18: 0 | O18: 0 | P18: 0 | Q18: 0 | R18: 0 | S18: 0 | T18: 0 | U18: 0 | V18: 0 | W18: 0 | X18: 0 | Y18: 0 | Z18: 0 | AA18: 0 | AB18: 0 | AC18: 0 | AD18: 0 | AE18: 0 | AF18: 0 | AG18: 0 | AH18: 0 | AI18: 0 | AJ18: 0 | AK18: 0 | AL18: 0 | AM18: 0 | AN18: 0 | AO18: 0 | AP18: 0 | AQ18: 0 | AR18: 0 | AS18: 0 | AT18: 0 | AU18: 0 | AV18: 0 | AW18: 0 | AX18: 0 | AY18: 0 | AZ18: 0 | BA18: 0 | BB18: 0 | BC18: 0 | BD18: 0 | BE18: 0 | BF18: 0
C19: Capital cost basis, not including… | E19: =EPCBaseYear -> 0 | F19: =SUM(F17:F18) -> 0 | I19: =IF(CapitalTrtmt="LS",F19," ") ->  | J19: =SUM(J17:J18) -> 0 | K19: 0 | L19: 0 | M19: 0 | N19: 0 | O19: =SUM(O17:O18) -> 0 | P19: 0 | Q19: 0 | R19: 0 | S19: 0 | T19: 0 | U19: 0 | V19: 0 | W19: 0 | X19: 0 | Y19: 0 | Z19: 0 | AA19: 0 | AB19: 0 | AC19: 0 | AD19: 0 | AE19: 0 | AF19: 0 | AG19: 0 | AH19: 0 | AI19: 0 | AJ19: 0 | AK19: 0 | AL19: 0 | AM19: 0 | AN19: 0 | AO19: 0 | AP19: 0 | AQ19: 0 | AR19: 0 | AS19: 0 | AT19: 0 | AU19: 0 | AV19: 0 | AW19: 0 | AX19: 0 | AY19: 0 | AZ19: 0 | BA19: 0 | BB19: 0 | BC19: 0 | BD19: 0 | BE19: 0 | BF19: 0
C20: …financial costs or cost escalation
H21: End of
B22: Subsequent Capital Replacements | E22: Useful Life | F22: =EPCBaseYear -> 0 | H22: Life Cycle
C23: First Main Component | E23: (years) | F23: Costs | G23: Re-caps | H23: Residual | I23: Recapitalize Schedule . . .
C25: Principal component | E25: =' LCC Inputs Capital Ex Page 8'!C16 -> 5 | F25: =' LCC Inputs Capital Ex Page 8'!D16 -> 0 | G25: =IF(E25>0,TRUNC((LCCPeriod-1)/E25),0) -> 0 | H25: =IF(IF(E25>0,(1-((LCCPeriod/E25)-TRUNC(LCCPeriod/E25)))*F25,0)=F25,0,IF(E25>0,(1-((LCCPeriod/E25)-TRUNC(LCCPeriod/E25)))*F25,0)) -> 0 | I25: =IF($E25>0,IF(I$7<LCCPeriod,IF(I$7/$E25=INT(I$7/$E25),$F25,0),0),0) -> 0 | J25: 0 | K25: 0 | L25: 0 | M25: 0 | N25: 0 | O25: 0 | P25: 0 | Q25: 0 | R25: 0 | S25: 0 | T25: 0 | U25: 0 | V25: 0 | W25: 0 | X25: 0 | Y25: =IF($E25>0,IF(Y$7<LCCPeriod,IF(Y$7/$E25=INT(Y$7/$E25),$F25,0),0),0) -> 0 | Z25: 0 | AA25: 0 | AB25: 0 | AC25: 0 | AD25: 0 | AE25: 0 | AF25: 0 | AG25: 0 | AH25: 0 | AI25: 0 | AJ25: 0 | AK25: 0 | AL25: 0 | AM25: 0 | AN25: 0 | AO25: 0 | AP25: 0 | AQ25: 0 | AR25: 0 | AS25: 0 | AT25: 0 | AU25: 0 | AV25: 0 | AW25: 0 | AX25: 0 | AY25: 0 | AZ25: 0 | BA25: 0 | BB25: 0 | BC25: 0 | BD25: 0 | BE25: 0 | BF25: 0
C26: Sub-component | E26: =' LCC Inputs Capital Ex Page 8'!C17 -> 5 | F26: =' LCC Inputs Capital Ex Page 8'!D17 -> 0 | G26: =IF(E26>0,TRUNC((LCCPeriod-1)/E26),0) -> 0 | H26: =IF(IF(E26>0,(1-((LCCPeriod/E26)-TRUNC(LCCPeriod/E26)))*F26,0)=F26,0,IF(E26>0,(1-((LCCPeriod/E26)-TRUNC(LCCPeriod/E26)))*F26,0)) -> 0 | I26: =IF(I$25>0,0,IF($E26>0,IF(I$7<LCCPeriod,IF(I$7/$E26=INT(I$7/$E26),$F26,0),0),0)) -> 0 | J26: 0 | K26: 0 | L26: 0 | M26: 0 | N26: 0 | O26: 0 | P26: 0 | Q26: =IF(Q$25>0,0,IF($E26>0,IF(Q$7<LCCPeriod,IF(Q$7/$E26=INT(Q$7/$E26),$F26,0),0),0)) -> 0 | R26: 0 | S26: =IF(S$25>0,0,IF($E26>0,IF(S$7<LCCPeriod,IF(S$7/$E26=INT(S$7/$E26),$F26,0),0),0)) -> 0 | T26: 0 | U26: 0 | V26: 0 | W26: 0 | X26: 0 | Y26: 0 | Z26: 0 | AA26: 0 | AB26: 0 | AC26: =IF(AC$25>0,0,IF($E26>0,IF(AC$7<LCCPeriod,IF(AC$7/$E26=INT(AC$7/$E26),$F26,0),0),0)) -> 0 | AD26: 0 | AE26: 0 | AF26: 0 | AG26: 0 | AH26: 0 | AI26: 0 | AJ26: 0 | AK26: 0 | AL26: 0 | AM26: =IF(AM$25>0,0,IF($E26>0,IF(AM$7<LCCPeriod,IF(AM$7/$E26=INT(AM$7/$E26),$F26,0),0),0)) -> 0 | AN26: 0 | AO26: 0 | AP26: 0 | AQ26: 0 | AR26: 0 | AS26: 0 | AT26: 0 | AU26: 0 | AV26: 0 | AW26: =IF(AW$25>0,0,IF($E26>0,IF(AW$7<LCCPeriod,IF(AW$7/$E26=INT(AW$7/$E26),$F26,0),0),0)) -> 0 | AX26: 0 | AY26: 0 | AZ26: 0 | BA26: 0 | BB26: 0 | BC26: 0 | BD26: 0 | BE26: 0 | BF26: 0
C27: Sub-component | E27: =' LCC Inputs Capital Ex Page 8'!C18 -> 5 | F27: =' LCC Inputs Capital Ex Page 8'!D18 -> 0 | G27: =IF(E27>0,TRUNC((LCCPeriod-1)/E27),0) -> 0 | H27: =IF(IF(E27>0,(1-((LCCPeriod/E27)-TRUNC(LCCPeriod/E27)))*F27,0)=F27,0,IF(E27>0,(1-((LCCPeriod/E27)-TRUNC(LCCPeriod/E27)))*F27,0)) -> 0 | I27: 0 | J27: 0 | K27: 0 | L27: 0 | M27: 0 | N27: 0 | O27: 0 | P27: 0 | Q27: 0 | R27: 0 | S27: 0 | T27: 0 | U27: 0 | V27: 0 | W27: 0 | X27: 0 | Y27: 0 | Z27: 0 | AA27: 0 | AB27: 0 | AC27: 0 | AD27: 0 | AE27: 0 | AF27: 0 | AG27: 0 | AH27: 0 | AI27: 0 | AJ27: 0 | AK27: 0 | AL27: 0 | AM27: 0 | AN27: 0 | AO27: 0 | AP27: 0 | AQ27: 0 | AR27: 0 | AS27: 0 | AT27: 0 | AU27: 0 | AV27: 0 | AW27: 0 | AX27: 0 | AY27: 0 | AZ27: 0 | BA27: 0 | BB27: 0 | BC27: 0 | BD27: 0 | BE27: 0 | BF27: 0
H28: =SUM(H25:H27) -> 0 | I28: 0 | J28: 0 | K28: 0 | L28: 0 | M28: 0 | N28: 0 | O28: 0 | P28: 0 | Q28: 0 | R28: 0 | S28: 0 | T28: 0 | U28: 0 | V28: 0 | W28: 0 | X28: 0 | Y28: 0 | Z28: 0 | AA28: 0 | AB28: 0 | AC28: 0 | AD28: 0 | AE28: 0 | AF28: 0 | AG28: 0 | AH28: 0 | AI28: 0 | AJ28: 0 | AK28: 0 | AL28: 0 | AM28: 0 | AN28: =SUM(AN25:AN27) -> 0 | AO28: 0 | AP28: 0 | AQ28: 0 | AR28: 0 | AS28: 0 | AT28: 0 | AU28: 0 | AV28: 0 | AW28: 0 | AX28: 0 | AY28: 0 | AZ28: 0 | BA28: 0 | BB28: 0 | BC28: 0 | BD28: 0 | BE28: 0 | BF28: 0
C29: Second Main Component
C30: Principal component | E30: =' LCC Inputs Capital Ex Page 8'!C21 -> 5 | F30: =' LCC Inputs Capital Ex Page 8'!D21 -> 0 | G30: =IF(E30>0,TRUNC((LCCPeriod-1)/E30),0) -> 0 | H30: =IF(IF(E30>0,(1-((LCCPeriod/E30)-TRUNC(LCCPeriod/E30)))*F30,0)=F30,0,IF(E30>0,(1-((LCCPeriod/E30)-TRUNC(LCCPeriod/E30)))*F30,0)) -> 0 | I30: =IF($E30>0,IF(I$7<LCCPeriod,IF(I$7/$E30=INT(I$7/$E30),$F30,0),0),0) -> 0 | J30: 0 | K30: 0 | L30: 0 | M30: 0 | N30: 0 | O30: 0 | P30: 0 | Q30: 0 | R30: 0 | S30: 0 | T30: 0 | U30: 0 | V30: 0 | W30: 0 | X30: 0 | Y30: =IF($E30>0,IF(Y$7<LCCPeriod,IF(Y$7/$E30=INT(Y$7/$E30),$F30,0),0),0) -> 0 | Z30: 0 | AA30: 0 | AB30: 0 | AC30: 0 | AD30: 0 | AE30: 0 | AF30: 0 | AG30: 0 | AH30: 0 | AI30: 0 | AJ30: 0 | AK30: 0 | AL30: 0 | AM30: 0 | AN30: 0 | AO30: 0 | AP30: 0 | AQ30: 0 | AR30: 0 | AS30: 0 | AT30: 0 | AU30: 0 | AV30: 0 | AW30: 0 | AX30: 0 | AY30: 0 | AZ30: 0 | BA30: 0 | BB30: 0 | BC30: 0 | BD30: 0 | BE30: 0 | BF30: 0
C31: Sub-component | E31: =' LCC Inputs Capital Ex Page 8'!C22 -> 5 | F31: =' LCC Inputs Capital Ex Page 8'!D22 -> 0 | G31: =IF(E31>0,TRUNC((LCCPeriod-1)/E31),0) -> 0 | H31: =IF(IF(E31>0,(1-((LCCPeriod/E31)-TRUNC(LCCPeriod/E31)))*F31,0)=F31,0,IF(E31>0,(1-((LCCPeriod/E31)-TRUNC(LCCPeriod/E31)))*F31,0)) -> 0 | I31: =IF(I$30>0,0,IF($E31>0,IF(I$7<LCCPeriod,IF(I$7/$E31=INT(I$7/$E31),$F31,0),0),0)) -> 0 | J31: 0 | K31: 0 | L31: 0 | M31: 0 | N31: 0 | O31: 0 | P31: 0 | Q31: 0 | R31: 0 | S31: =IF(S$30>0,0,IF($E31>0,IF(S$7<LCCPeriod,IF(S$7/$E31=INT(S$7/$E31),$F31,0),0),0)) -> 0 | T31: 0 | U31: 0 | V31: 0 | W31: 0 | X31: 0 | Y31: 0 | Z31: 0 | AA31: 0 | AB31: 0 | AC31: =IF(AC$30>0,0,IF($E31>0,IF(AC$7<LCCPeriod,IF(AC$7/$E31=INT(AC$7/$E31),$F31,0),0),0)) -> 0 | AD31: 0 | AE31: 0 | AF31: 0 | AG31: 0 | AH31: 0 | AI31: 0 | AJ31: 0 | AK31: 0 | AL31: 0 | AM31: =IF(AM$30>0,0,IF($E31>0,IF(AM$7<LCCPeriod,IF(AM$7/$E31=INT(AM$7/$E31),$F31,0),0),0)) -> 0 | AN31: 0 | AO31: 0 | AP31: 0 | AQ31: 0 | AR31: 0 | AS31: 0 | AT31: 0 | AU31: 0 | AV31: 0 | AW31: =IF(AW$30>0,0,IF($E31>0,IF(AW$7<LCCPeriod,IF(AW$7/$E31=INT(AW$7/$E31),$F31,0),0),0)) -> 0 | AX31: 0 | AY31: 0 | AZ31: 0 | BA31: 0 | BB31: 0 | BC31: 0 | BD31: 0 | BE31: 0 | BF31: 0
C32: Sub-component | E32: =' LCC Inputs Capital Ex Page 8'!C23 -> 5 | F32: =' LCC Inputs Capital Ex Page 8'!D23 -> 0 | G32: =IF(E32>0,TRUNC((LCCPeriod-1)/E32),0) -> 0 | H32: =IF(IF(E32>0,(1-((LCCPeriod/E32)-TRUNC(LCCPeriod/E32)))*F32,0)=F32,0,IF(E32>0,(1-((LCCPeriod/E32)-TRUNC(LCCPeriod/E32)))*F32,0)) -> 0 | I32: 0 | J32: 0 | K32: 0 | L32: 0 | M32: 0 | N32: 0 | O32: 0 | P32: 0 | Q32: 0 | R32: 0 | S32: 0 | T32: 0 | U32: 0 | V32: 0 | W32: 0 | X32: 0 | Y32: 0 | Z32: 0 | AA32: 0 | AB32: 0 | AC32: 0 | AD32: 0 | AE32: 0 | AF32: 0 | AG32: 0 | AH32: 0 | AI32: 0 | AJ32: 0 | AK32: 0 | AL32: 0 | AM32: 0 | AN32: 0 | AO32: 0 | AP32: 0 | AQ32: 0 | AR32: 0 | AS32: 0 | AT32: 0 | AU32: 0 | AV32: 0 | AW32: 0 | AX32: 0 | AY32: 0 | AZ32: 0 | BA32: 0 | BB32: 0 | BC32: 0 | BD32: 0 | BE32: 0 | BF32: 0
H33: =SUM(H30:H32) -> 0 | I33: 0 | J33: 0 | K33: 0 | L33: 0 | M33: 0 | N33: 0 | O33: 0 | P33: 0 | Q33: 0 | R33: 0 | S33: 0 | T33: 0 | U33: 0 | V33: 0 | W33: 0 | X33: 0 | Y33: 0 | Z33: 0 | AA33: 0 | AB33: 0 | AC33: 0 | AD33: 0 | AE33: 0 | AF33: 0 | AG33: 0 | AH33: 0 | AI33: 0 | AJ33: 0 | AK33: 0 | AL33: 0 | AM33: 0 | AN33: =SUM(AN30:AN32) -> 0 | AO33: 0 | AP33: 0 | AQ33: 0 | AR33: 0 | AS33: 0 | AT33: 0 | AU33: 0 | AV33: 0 | AW33: 0 | AX33: 0 | AY33: 0 | AZ33: 0 | BA33: 0 | BB33: 0 | BC33: 0 | BD33: 0 | BE33: 0 | BF33: 0
B34: Existing Depreciating Assets
C35: Name | E35: =' LCC Inputs Capital Ex Page 8'!C26 -> 5 | F35: =' LCC Inputs Capital Ex Page 8'!D26 -> 0 | G35: =IF(E35>0,TRUNC((LCCPeriod-1-E36)/E35+1),0) -> 0 | H35: =IF(IF(E35>0,(1-(((LCCPeriod-E36)/E35)-TRUNC((LCCPeriod-E36)/E35)))*F35,0)=F35,0,IF(E35>0,(1-(((LCCPeriod-E36)/E35)-TRUNC((LCCPeriod-E36)/E35)))*F35,0)) -> 0 | I35: =IF(I$7=$E36,$F35,IF(I$7>$E36,IF(I$7<LCCPeriod,IF((I$7-$E36)/($E35)=INT((I$7-$E36)/($E35)),$F35,0),0),0)) -> 0 | J35: 0 | K35: 0 | L35: 0 | M35: 0 | N35: 0 | O35: 0 | P35: 0 | Q35: 0 | R35: 0 | S35: 0 | T35: 0 | U35: 0 | V35: 0 | W35: 0 | X35: 0 | Y35: 0 | Z35: 0 | AA35: 0 | AB35: 0 | AC35: 0 | AD35: 0 | AE35: 0 | AF35: 0 | AG35: 0 | AH35: 0 | AI35: 0 | AJ35: 0 | AK35: 0 | AL35: 0 | AM35: 0 | AN35: 0 | AO35: 0 | AP35: 0 | AQ35: 0 | AR35: 0 | AS35: 0 | AT35: 0 | AU35: 0 | AV35: 0 | AW35: 0 | AX35: 0 | AY35: 0 | AZ35: 0 | BA35: 0 | BB35: 0 | BC35: 0 | BD35: 0 | BE35: 0 | BF35: 0
D36: Estimated remaining life: | E36: =' LCC Inputs Capital Ex Page 8'!C27 -> 5
C37: Name | E37: =' LCC Inputs Capital Ex Page 8'!C28 -> 5 | F37: =' LCC Inputs Capital Ex Page 8'!D28 -> 0 | G37: =IF(E37>0,TRUNC((LCCPeriod-1-E38)/E37+1),0) -> 0 | H37: =IF(IF(E37>0,(1-(((LCCPeriod-E38)/E37)-TRUNC((LCCPeriod-E38)/E37)))*F37,0)=F37,0,IF(E37>0,(1-(((LCCPeriod-E38)/E37)-TRUNC((LCCPeriod-E38)/E37)))*F37,0)) -> 0 | I37: =IF(I$7=$E38,$F37,IF(I$7>$E38,IF(I$7<LCCPeriod,IF((I$7-$E38)/($E37)=INT((I$7-$E38)/($E37)),$F37,0),0),0)) -> 0 | J37: 0 | K37: 0 | L37: 0 | M37: 0 | N37: 0 | O37: 0 | P37: 0 | Q37: 0 | R37: 0 | S37: 0 | T37: 0 | U37: 0 | V37: 0 | W37: 0 | X37: 0 | Y37: 0 | Z37: 0 | AA37: 0 | AB37: 0 | AC37: 0 | AD37: 0 | AE37: 0 | AF37: 0 | AG37: 0 | AH37: 0 | AI37: 0 | AJ37: 0 | AK37: 0 | AL37: 0 | AM37: 0 | AN37: 0 | AO37: 0 | AP37: 0 | AQ37: 0 | AR37: 0 | AS37: 0 | AT37: 0 | AU37: 0 | AV37: 0 | AW37: 0 | AX37: 0 | AY37: 0 | AZ37: 0 | BA37: 0 | BB37: 0 | BC37: 0 | BD37: 0 | BE37: 0 | BF37: 0
D38: Estimated remaining life: | E38: =' LCC Inputs Capital Ex Page 8'!C29 -> 5
C39: Sum of existing asset re-cap costs | H39: =SUM(H35:H37) -> 0 | I39: =SUM(I35:I37) -> 0 | J39: =SUM(J35:J37) -> 0 | K39: =SUM(K35:K37) -> 0 | L39: =SUM(L35:L37) -> 0 | M39: =SUM(M35:M37) -> 0 | N39: 0 | O39: 0 | P39: 0 | Q39: 0 | R39: 0 | S39: 0 | T39: 0 | U39: 0 | V39: 0 | W39: 0 | X39: 0 | Y39: 0 | Z39: 0 | AA39: 0 | AB39: 0 | AC39: 0 | AD39: 0 | AE39: 0 | AF39: 0 | AG39: 0 | AH39: 0 | AI39: 0 | AJ39: 0 | AK39: 0 | AL39: 0 | AM39: 0 | AN39: 0 | AO39: 0 | AP39: 0 | AQ39: 0 | AR39: 0 | AS39: 0 | AT39: 0 | AU39: 0 | AV39: 0 | AW39: 0 | AX39: 0 | AY39: 0 | AZ39: 0 | BA39: 0 | BB39: 0 | BC39: 0 | BD39: 0 | BE39: 0 | BF39: 0
F40: PV of Residual Values: | H40: =(H$28+H$33+H$39)/(1+DiscRat)^(LCCPeriod+1-(PresentYear-EPCBaseYear)) -> 0
B42: Ancillary Cost Components* | E42: =EPCBaseYear -> 0
C43: Land acquisition or rights of way | E43: Dollar value | F43: =' LCC Inputs Capital Ex Page 8'!D32 -> 0 | I43: =IF(I$13>0,"N/A",0) -> 0 | J43: =IF(J$13>0,"N/A",0) -> 0 | K43: 0 | L43: 0 | M43: 0 | N43: 0 | O43: 0 | P43: 0 | Q43: 0 | R43: 0 | S43: 0 | T43: 0 | U43: 0 | V43: 0 | W43: 0 | X43: 0 | Y43: 0 | Z43: 0 | AA43: 0 | AB43: 0 | AC43: 0 | AD43: 0 | AE43: 0 | AF43: 0 | AG43: 0 | AH43: 0 | AI43: 0 | AJ43: 0 | AK43: 0 | AL43: 0 | AM43: 0 | AN43: 0 | AO43: 0 | AP43: 0 | AQ43: 0 | AR43: 0 | AS43: 0 | AT43: 0 | AU43: 0 | AV43: 0 | AW43: 0 | AX43: 0 | AY43: 0 | AZ43: 0 | BA43: 0 | BB43: 0 | BC43: 0 | BD43: 0 | BE43: 0 | BF43: 0
C44: Environmental mitigation | E44: Dollar value | F44: =' LCC Inputs Capital Ex Page 8'!D33 -> 0 | I44: =IF(I$13>0,"N/A",0) -> 0 | J44: 0 | K44: 0 | L44: 0 | M44: 0 | N44: 0 | O44: 0 | P44: 0 | Q44: 0 | R44: 0 | S44: 0 | T44: 0 | U44: 0 | V44: 0 | W44: 0 | X44: 0 | Y44: 0 | Z44: 0 | AA44: 0 | AB44: 0 | AC44: 0 | AD44: 0 | AE44: 0 | AF44: 0 | AG44: 0 | AH44: 0 | AI44: 0 | AJ44: 0 | AK44: 0 | AL44: 0 | AM44: 0 | AN44: 0 | AO44: 0 | AP44: 0 | AQ44: 0 | AR44: 0 | AS44: 0 | AT44: 0 | AU44: 0 | AV44: 0 | AW44: 0 | AX44: 0 | AY44: 0 | AZ44: 0 | BA44: 0 | BB44: 0 | BC44: 0 | BD44: 0 | BE44: 0 | BF44: 0
C45: Permits | E45: % of ECC | F45: =' LCC Inputs Capital Ex Page 8'!D34 -> 0.005 | I45: =IF(I$13>0,$F45,0) -> 0 | J45: =IF(J$13>0,$F45,0) -> 0 | K45: 0 | L45: 0 | M45: 0 | N45: 0 | O45: 0 | P45: 0 | Q45: 0 | R45: 0 | S45: 0 | T45: 0 | U45: 0 | V45: 0 | W45: 0 | X45: 0 | Y45: 0 | Z45: 0 | AA45: 0 | AB45: 0 | AC45: 0 | AD45: 0 | AE45: 0 | AF45: 0 | AG45: 0 | AH45: 0 | AI45: 0 | AJ45: 0 | AK45: 0 | AL45: 0 | AM45: 0 | AN45: 0 | AO45: 0 | AP45: 0 | AQ45: 0 | AR45: 0 | AS45: 0 | AT45: 0 | AU45: 0 | AV45: 0 | AW45: 0 | AX45: 0 | AY45: 0 | AZ45: 0 | BA45: 0 | BB45: 0 | BC45: 0 | BD45: 0 | BE45: 0 | BF45: 0
C46: Engineering (pre thru final) | E46: % of ECC | F46: =' LCC Inputs Capital Ex Page 8'!D35 -> 0.1325 | I46: =IF(I$13>0,$F46,0) -> 0 | J46: 0 | K46: 0 | L46: 0 | M46: 0 | N46: 0 | O46: 0 | P46: 0 | Q46: 0 | R46: 0 | S46: 0 | T46: 0 | U46: 0 | V46: 0 | W46: 0 | X46: 0 | Y46: 0 | Z46: 0 | AA46: 0 | AB46: 0 | AC46: 0 | AD46: 0 | AE46: 0 | AF46: 0 | AG46: 0 | AH46: 0 | AI46: 0 | AJ46: 0 | AK46: 0 | AL46: 0 | AM46: 0 | AN46: 0 | AO46: 0 | AP46: 0 | AQ46: 0 | AR46: 0 | AS46: 0 | AT46: 0 | AU46: 0 | AV46: 0 | AW46: 0 | AX46: 0 | AY46: 0 | AZ46: 0 | BA46: 0 | BB46: 0 | BC46: 0 | BD46: 0 | BE46: 0 | BF46: 0
C47: Constn mgmt/observation | E47: % of ECC | F47: =' LCC Inputs Capital Ex Page 8'!D36 -> 0.09 | I47: =IF(I$13>0,$F47,0) -> 0 | J47: 0 | K47: 0 | L47: 0 | M47: 0 | N47: 0 | O47: 0 | P47: 0 | Q47: 0 | R47: 0 | S47: 0 | T47: 0 | U47: 0 | V47: 0 | W47: 0 | X47: 0 | Y47: 0 | Z47: 0 | AA47: 0 | AB47: 0 | AC47: 0 | AD47: 0 | AE47: 0 | AF47: 0 | AG47: 0 | AH47: 0 | AI47: 0 | AJ47: 0 | AK47: 0 | AL47: 0 | AM47: 0 | AN47: 0 | AO47: 0 | AP47: 0 | AQ47: 0 | AR47: 0 | AS47: 0 | AT47: 0 | AU47: 0 | AV47: 0 | AW47: 0 | AX47: 0 | AY47: 0 | AZ47: 0 | BA47: 0 | BB47: 0 | BC47: 0 | BD47: 0 | BE47: 0 | BF47: 0
C48: Administration/legal | E48: % of ECC | F48: =' LCC Inputs Capital Ex Page 8'!D37 -> 0.1225 | I48: 0 | J48: 0 | K48: 0 | L48: 0 | M48: 0 | N48: 0 | O48: 0 | P48: 0 | Q48: 0 | R48: 0 | S48: 0 | T48: 0 | U48: 0 | V48: 0 | W48: 0 | X48: 0 | Y48: 0 | Z48: 0 | AA48: 0 | AB48: 0 | AC48: 0 | AD48: 0 | AE48: 0 | AF48: 0 | AG48: 0 | AH48: 0 | AI48: 0 | AJ48: 0 | AK48: 0 | AL48: 0 | AM48: 0 | AN48: 0 | AO48: 0 | AP48: 0 | AQ48: 0 | AR48: 0 | AS48: 0 | AT48: 0 | AU48: 0 | AV48: 0 | AW48: 0 | AX48: 0 | AY48: 0 | AZ48: 0 | BA48: 0 | BB48: 0 | BC48: 0 | BD48: 0 | BE48: 0 | BF48: 0
C49: =' LCC Inputs Capital Ex Page 8'!B38 -> (other) | F49: =' LCC Inputs Capital Ex Page 8'!D38 -> 0 | I49: 0 | J49: 0 | K49: 0 | L49: 0 | M49: 0 | N49: 0 | O49: 0 | P49: 0 | Q49: 0 | R49: 0 | S49: 0 | T49: 0 | U49: 0 | V49: 0 | W49: 0 | X49: 0 | Y49: 0 | Z49: 0 | AA49: 0 | AB49: 0 | AC49: 0 | AD49: 0 | AE49: 0 | AF49: 0 | AG49: 0 | AH49: 0 | AI49: 0 | AJ49: 0 | AK49: 0 | AL49: 0 | AM49: 0 | AN49: 0 | AO49: 0 | AP49: 0 | AQ49: 0 | AR49: 0 | AS49: 0 | AT49: 0 | AU49: 0 | AV49: 0 | AW49: 0 | AX49: 0 | AY49: 0 | AZ49: 0 | BA49: 0 | BB49: 0 | BC49: 0 | BD49: 0 | BE49: 0 | BF49: 0
C50: =' LCC Inputs Capital Ex Page 8'!B39 -> (other) | F50: =' LCC Inputs Capital Ex Page 8'!D39 -> 0 | I50: 0 | J50: 0 | K50: 0 | L50: 0 | M50: 0 | N50: 0 | O50: 0 | P50: 0 | Q50: 0 | R50: 0 | S50: 0 | T50: 0 | U50: 0 | V50: 0 | W50: 0 | X50: 0 | Y50: 0 | Z50: 0 | AA50: 0 | AB50: 0 | AC50: 0 | AD50: 0 | AE50: 0 | AF50: 0 | AG50: 0 | AH50: 0 | AI50: =IF(AI$13>0,$F50,0) -> 0 | AJ50: 0 | AK50: 0 | AL50: 0 | AM50: 0 | AN50: 0 | AO50: 0 | AP50: 0 | AQ50: 0 | AR50: 0 | AS50: 0 | AT50: 0 | AU50: 0 | AV50: 0 | AW50: 0 | AX50: 0 | AY50: 0 | AZ50: 0 | BA50: 0 | BB50: 0 | BC50: 0 | BD50: 0 | BE50: 0 | BF50: 0
C51: (other) | F51: 0 | I51: 0 | J51: 0 | K51: 0 | L51: 0 | M51: 0 | N51: 0 | O51: 0 | P51: 0 | Q51: 0 | R51: 0 | S51: 0 | T51: 0 | U51: 0 | V51: 0 | W51: 0 | X51: 0 | Y51: =IF(Y$13>0,$F51,0) -> 0 | Z51: 0 | AA51: 0 | AB51: 0 | AC51: 0 | AD51: 0 | AE51: 0 | AF51: 0 | AG51: 0 | AH51: 0 | AI51: 0 | AJ51: 0 | AK51: 0 | AL51: 0 | AM51: 0 | AN51: 0 | AO51: 0 | AP51: 0 | AQ51: 0 | AR51: 0 | AS51: 0 | AT51: 0 | AU51: 0 | AV51: 0 | AW51: 0 | AX51: 0 | AY51: 0 | AZ51: 0 | BA51: 0 | BB51: 0 | BC51: 0 | BD51: 0 | BE51: 0 | BF51: 0
C52: (other) | F52: 0 | I52: 0 | J52: 0 | K52: 0 | L52: 0 | M52: 0 | N52: 0 | O52: 0 | P52: 0 | Q52: 0 | R52: 0 | S52: 0 | T52: 0 | U52: 0 | V52: 0 | W52: 0 | X52: 0 | Y52: 0 | Z52: 0 | AA52: 0 | AB52: 0 | AC52: 0 | AD52: 0 | AE52: 0 | AF52: 0 | AG52: 0 | AH52: 0 | AI52: 0 | AJ52: 0 | AK52: 0 | AL52: 0 | AM52: 0 | AN52: 0 | AO52: 0 | AP52: 0 | AQ52: 0 | AR52: 0 | AS52: 0 | AT52: 0 | AU52: 0 | AV52: 0 | AW52: 0 | AX52: 0 | AY52: 0 | AZ52: 0 | BA52: 0 | BB52: 0 | BC52: 0 | BD52: 0 | BE52: 0 | BF52: 0
C53: Support of the Arts | E53: % of ECC | F53: =' LCC Inputs Capital Ex Page 8'!D40 -> 0.01 | J53: 0 | K53: 0 | L53: 0 | M53: 0 | N53: 0 | O53: 0 | P53: 0 | Q53: 0 | R53: 0 | S53: 0 | T53: 0 | U53: 0 | V53: 0 | W53: 0 | X53: 0 | Y53: 0 | Z53: 0 | AA53: 0 | AB53: 0 | AC53: 0 | AD53: 0 | AE53: 0 | AF53: 0 | AG53: 0 | AH53: 0 | AI53: 0 | AJ53: 0 | AK53: 0 | AL53: 0 | AM53: 0 | AN53: 0 | AO53: 0 | AP53: 0 | AQ53: 0 | AR53: 0 | AS53: 0 | AT53: 0 | AU53: 0 | AV53: 0 | AW53: 0 | AX53: 0 | AY53: 0 | AZ53: 0 | BA53: 0 | BB53: 0 | BC53: 0 | BD53: 0 | BE53: 0 | BF53: 0
C54: Sales tax | E54: % of ECC | F54: =' LCC Inputs Capital Ex Page 8'!D41 -> 0.095 | I54: 0 | J54: 0 | K54: 0 | L54: 0 | M54: 0 | N54: 0 | O54: 0 | P54: 0 | Q54: 0 | R54: 0 | S54: 0 | T54: 0 | U54: 0 | V54: 0 | W54: 0 | X54: 0 | Y54: 0 | Z54: 0 | AA54: 0 | AB54: 0 | AC54: 0 | AD54: 0 | AE54: 0 | AF54: 0 | AG54: 0 | AH54: 0 | AI54: 0 | AJ54: 0 | AK54: 0 | AL54: 0 | AM54: 0 | AN54: 0 | AO54: 0 | AP54: 0 | AQ54: 0 | AR54: 0 | AS54: 0 | AT54: 0 | AU54: 0 | AV54: 0 | AW54: 0 | AX54: 0 | AY54: 0 | AZ54: 0 | BA54: 0 | BB54: 0 | BC54: 0 | BD54: 0 | BE54: 0 | BF54: 0
A57: =IF(CapitalTrtmt="LS","The following rows are not used with the Lump Sum Capital Treatment method"," ") -> 
A58: Annual Debt Service Determinations | F58: Initial
B59: Cost in unescalated dollars | F59: =F19 -> 0 | M59: =M19 -> 0 | N59: 0 | O59: 0 | P59: 0 | Q59: 0 | R59: 0 | S59: 0 | T59: 0 | U59: 0 | V59: 0 | W59: 0 | X59: 0 | Y59: 0 | Z59: 0 | AA59: 0 | AB59: 0 | AC59: 0 | AD59: 0 | AE59: 0 | AF59: 0 | AG59: 0 | AH59: 0 | AI59: 0 | AJ59: 0 | AK59: 0 | AL59: 0 | AM59: 0 | AN59: 0 | AO59: 0 | AP59: 0 | AQ59: 0 | AR59: 0 | AS59: 0 | AT59: 0 | AU59: 0 | AV59: 0 | AW59: 0 | AX59: 0 | AY59: 0 | AZ59: 0 | BA59: 0 | BB59: 0 | BC59: 0 | BD59: 0 | BE59: 0 | BF59: 0
B60: Proceeds required, escalated | E60: (escalated) | F60: =F19*(1+CostEscalCap)^($I$5-1-EPCBaseYear) -> 0 | M60: =M59*(1+CostEscalCap)^(M5-EPCBaseYear) -> 0 | N60: 0 | O60: 0 | P60: 0 | Q60: 0 | R60: 0 | S60: 0 | T60: 0 | U60: 0 | V60: 0 | W60: 0 | X60: 0 | Y60: 0 | Z60: 0 | AA60: 0 | AB60: 0 | AC60: 0 | AD60: 0 | AE60: 0 | AF60: 0 | AG60: 0 | AH60: 0 | AI60: 0 | AJ60: 0 | AK60: 0 | AL60: 0 | AM60: 0 | AN60: 0 | AO60: 0 | AP60: 0 | AQ60: 0 | AR60: 0 | AS60: 0 | AT60: 0 | AU60: 0 | AV60: 0 | AW60: 0 | AX60: 0 | AY60: 0 | AZ60: 0 | BA60: 0 | BB60: 0 | BC60: 0 | BD60: 0 | BE60: 0 | BF60: 0
B61: Bond sizing | M61: =M60/(1-BondSofts) -> 0 | N61: 0 | O61: 0 | P61: 0 | Q61: 0 | R61: 0 | S61: 0 | T61: 0 | U61: 0 | V61: 0 | W61: 0 | X61: 0 | Y61: 0 | Z61: 0 | AA61: 0 | AB61: 0 | AC61: 0 | AD61: 0 | AE61: 0 | AF61: 0 | AG61: 0 | AH61: 0 | AI61: 0 | AJ61: 0 | AK61: 0 | AL61: 0 | AM61: 0 | AN61: 0 | AO61: 0 | AP61: 0 | AQ61: 0 | AR61: 0 | AS61: 0 | AT61: 0 | AU61: 0 | AV61: 0 | AW61: 0 | AX61: 0 | AY61: 0 | AZ61: 0 | BA61: 0 | BB61: 0 | BC61: 0 | BD61: 0 | BE61: 0 | BF61: 0
B62: Annual debt service | E62: (No coverage) | F62: =-PMT(BondInt,BondMat,F61) ->  | M62: =-PMT(BondInt,BondMat,M61) -> 
A64: Debt Service Projection
B65: Sum of projected annual debt service | I65: =SUM(I66:I165) ->  | J65: =SUM(J66:J165) -> 0 | K65: 0 | L65: 0 | M65: 0 | R65: =SUM(R66:R165) -> 
D66: Initial financing | I66: =F$62 ->  | J66: =IF((J$5-FirstOps+1)<=BondMat,I66,0) -> 0 | K66: 0 | L66: 0 | M66: 0 | N66: 0 | O66: 0 | P66: 0 | Q66: 0 | R66: 0 | S66: 0 | T66: 0 | U66: 0 | V66: 0 | W66: 0 | X66: 0 | Y66: 0 | Z66: 0 | AA66: 0 | AB66: 0 | AC66: 0 | AD66: 0 | AE66: 0 | AF66: 0 | AG66: 0 | AH66: 0 | AI66: 0 | AJ66: 0 | AK66: 0 | AL66: 0 | AM66: 0 | AN66: 0 | AO66: 0 | AP66: 0 | AQ66: 0 | AR66: 0 | AS66: 0 | AT66: 0 | AU66: 0 | AV66: 0 | AW66: 0 | AX66: 0 | AY66: 0 | AZ66: 0 | BA66: 0 | BB66: 0 | BC66: 0 | BD66: 0 | BE66: 0 | BF66: 0
D67: =I5 -> 0 | J67: =I$62 -> 0 | K67: =IF((K$5-$D67)<=BondMat,J67,0) -> 0 | L67: 0 | M67: 0 | N67: 0 | O67: 0 | P67: 0 | Q67: 0 | R67: 0 | S67: 0 | T67: 0 | U67: 0 | V67: 0 | W67: 0 | X67: 0 | Y67: 0 | Z67: 0 | AA67: =IF((AA$5-$D67)<=BondMat,Z67,0) -> 0 | AB67: 0 | AC67: 0 | AD67: 0 | AE67: 0 | AF67: 0 | AG67: 0 | AH67: 0 | AI67: 0 | AJ67: 0 | AK67: 0 | AL67: 0 | AM67: 0 | AN67: 0 | AO67: 0 | AP67: 0 | AQ67: =IF((AQ$5-$D67)<=BondMat,AP67,0) -> 0 | AR67: 0 | AS67: 0 | AT67: 0 | AU67: 0 | AV67: 0 | AW67: 0 | AX67: 0 | AY67: 0 | AZ67: 0 | BA67: 0 | BB67: 0 | BC67: 0 | BD67: 0 | BE67: 0 | BF67: 0
D68: =D67+1 -> 1 | K68: =J$62 -> 0 | L68: 0 | M68: 0 | N68: 0 | O68: 0 | P68: 0 | Q68: 0 | R68: 0 | S68: 0 | T68: 0 | U68: 0 | V68: 0 | W68: 0 | X68: 0 | Y68: 0 | Z68: 0 | AA68: 0 | AB68: 0 | AC68: 0 | AD68: 0 | AE68: 0 | AF68: 0 | AG68: 0 | AH68: 0 | AI68: 0 | AJ68: 0 | AK68: 0 | AL68: 0 | AM68: 0 | AN68: 0 | AO68: 0 | AP68: 0 | AQ68: 0 | AR68: 0 | AS68: 0 | AT68: 0 | AU68: 0 | AV68: 0 | AW68: 0 | AX68: 0 | AY68: 0 | AZ68: 0 | BA68: 0 | BB68: 0 | BC68: 0 | BD68: 0 | BE68: 0 | BF68: 0
D69: =D68+1 -> 2 | L69: =K$62 -> 0 | M69: 0 | N69: 0 | O69: 0 | P69: 0 | Q69: 0 | R69: 0 | S69: 0 | T69: 0 | U69: 0 | V69: 0 | W69: 0 | X69: 0 | Y69: 0 | Z69: 0 | AA69: 0 | AB69: 0 | AC69: 0 | AD69: 0 | AE69: 0 | AF69: 0 | AG69: 0 | AH69: 0 | AI69: 0 | AJ69: 0 | AK69: 0 | AL69: 0 | AM69: 0 | AN69: 0 | AO69: 0 | AP69: 0 | AQ69: 0 | AR69: 0 | AS69: 0 | AT69: 0 | AU69: 0 | AV69: 0 | AW69: 0 | AX69: 0 | AY69: 0 | AZ69: 0 | BA69: 0 | BB69: 0 | BC69: 0 | BD69: 0 | BE69: 0 | BF69: 0
D70: 3 | M70: =L$62 -> 0 | N70: 0 | O70: 0 | P70: 0 | Q70: 0 | R70: 0 | S70: 0 | T70: 0 | U70: 0 | V70: 0 | W70: 0 | X70: 0 | Y70: 0 | Z70: 0 | AA70: 0 | AB70: 0 | AC70: 0 | AD70: 0 | AE70: 0 | AF70: 0 | AG70: 0 | AH70: 0 | AI70: 0 | AJ70: 0 | AK70: 0 | AL70: 0 | AM70: 0 | AN70: 0 | AO70: 0 | AP70: 0 | AQ70: 0 | AR70: 0 | AS70: 0 | AT70: 0 | AU70: 0 | AV70: 0 | AW70: 0 | AX70: 0 | AY70: 0 | AZ70: 0 | BA70: 0 | BB70: 0 | BC70: 0 | BD70: 0 | BE70: 0 | BF70: 0
D71: 4 | N71: =M$62 ->  | O71: 0 | P71: 0 | Q71: 0 | R71: 0 | S71: 0 | T71: 0 | U71: 0 | V71: 0 | W71: 0 | X71: 0 | Y71: 0 | Z71: 0 | AA71: 0 | AB71: 0 | AC71: 0 | AD71: 0 | AE71: 0 | AF71: 0 | AG71: 0 | AH71: 0 | AI71: 0 | AJ71: 0 | AK71: 0 | AL71: 0 | AM71: 0 | AN71: 0 | AO71: 0 | AP71: 0 | AQ71: 0 | AR71: 0 | AS71: 0 | AT71: 0 | AU71: 0 | AV71: 0 | AW71: 0 | AX71: 0 | AY71: 0 | AZ71: 0 | BA71: 0 | BB71: 0 | BC71: 0 | BD71: 0 | BE71: 0 | BF71: 0
D72: 5 | O72: =N$62 ->  | P72: 0 | Q72: 0 | R72: 0 | S72: 0 | T72: 0 | U72: 0 | V72: 0 | W72: 0 | X72: 0 | Y72: 0 | Z72: 0 | AA72: 0 | AB72: 0 | AC72: 0 | AD72: 0 | AE72: 0 | AF72: 0 | AG72: 0 | AH72: 0 | AI72: 0 | AJ72: 0 | AK72: 0 | AL72: 0 | AM72: 0 | AN72: 0 | AO72: 0 | AP72: 0 | AQ72: 0 | AR72: 0 | AS72: 0 | AT72: 0 | AU72: 0 | AV72: 0 | AW72: 0 | AX72: 0 | AY72: 0 | AZ72: 0 | BA72: 0 | BB72: 0 | BC72: 0 | BD72: 0 | BE72: 0 | BF72: 0
D73: 6 | P73: =O$62 ->  | Q73: 0 | R73: 0 | S73: 0 | T73: 0 | U73: 0 | V73: 0 | W73: 0 | X73: 0 | Y73: 0 | Z73: 0 | AA73: 0 | AB73: 0 | AC73: 0 | AD73: 0 | AE73: 0 | AF73: 0 | AG73: 0 | AH73: 0 | AI73: 0 | AJ73: 0 | AK73: 0 | AL73: 0 | AM73: 0 | AN73: 0 | AO73: 0 | AP73: 0 | AQ73: 0 | AR73: 0 | AS73: 0 | AT73: 0 | AU73: 0 | AV73: 0 | AW73: 0 | AX73: 0 | AY73: 0 | AZ73: 0 | BA73: 0 | BB73: 0 | BC73: 0 | BD73: 0 | BE73: 0 | BF73: 0
D74: 7 | Q74: =P$62 ->  | R74: 0 | S74: 0 | T74: 0 | U74: 0 | V74: 0 | W74: 0 | X74: 0 | Y74: 0 | Z74: 0 | AA74: 0 | AB74: 0 | AC74: 0 | AD74: 0 | AE74: 0 | AF74: 0 | AG74: 0 | AH74: 0 | AI74: 0 | AJ74: 0 | AK74: 0 | AL74: 0 | AM74: 0 | AN74: 0 | AO74: 0 | AP74: 0 | AQ74: 0 | AR74: 0 | AS74: 0 | AT74: 0 | AU74: 0 | AV74: 0 | AW74: 0 | AX74: 0 | AY74: 0 | AZ74: 0 | BA74: 0 | BB74: 0 | BC74: 0 | BD74: 0 | BE74: 0 | BF74: 0
D75: 8 | R75: =Q$62 ->  | S75: 0 | T75: 0 | U75: 0 | V75: 0 | W75: 0 | X75: 0 | Y75: 0 | Z75: 0 | AA75: 0 | AB75: 0 | AC75: 0 | AD75: 0 | AE75: 0 | AF75: 0 | AG75: 0 | AH75: 0 | AI75: 0 | AJ75: 0 | AK75: 0 | AL75: 0 | AM75: 0 | AN75: 0 | AO75: 0 | AP75: 0 | AQ75: 0 | AR75: 0 | AS75: 0 | AT75: 0 | AU75: 0 | AV75: 0 | AW75: 0 | AX75: 0 | AY75: 0 | AZ75: 0 | BA75: 0 | BB75: 0 | BC75: 0 | BD75: 0 | BE75: 0 | BF75: 0
D76: 9 | S76: =R$62 ->  | T76: 0 | U76: 0 | V76: 0 | W76: 0 | X76: 0 | Y76: 0 | Z76: 0 | AA76: 0 | AB76: 0 | AC76: 0 | AD76: 0 | AE76: 0 | AF76: 0 | AG76: 0 | AH76: 0 | AI76: 0 | AJ76: 0 | AK76: 0 | AL76: 0 | AM76: 0 | AN76: 0 | AO76: 0 | AP76: 0 | AQ76: 0 | AR76: 0 | AS76: 0 | AT76: 0 | AU76: 0 | AV76: 0 | AW76: 0 | AX76: 0 | AY76: 0 | AZ76: 0 | BA76: 0 | BB76: 0 | BC76: 0 | BD76: 0 | BE76: 0 | BF76: 0
D77: 10 | T77: =S$62 ->  | U77: 0 | V77: 0 | W77: 0 | X77: 0 | Y77: 0 | Z77: 0 | AA77: 0 | AB77: 0 | AC77: 0 | AD77: 0 | AE77: 0 | AF77: 0 | AG77: 0 | AH77: 0 | AI77: 0 | AJ77: 0 | AK77: 0 | AL77: 0 | AM77: 0 | AN77: 0 | AO77: 0 | AP77: 0 | AQ77: 0 | AR77: 0 | AS77: 0 | AT77: 0 | AU77: 0 | AV77: 0 | AW77: 0 | AX77: 0 | AY77: 0 | AZ77: 0 | BA77: 0 | BB77: 0 | BC77: 0 | BD77: 0 | BE77: 0 | BF77: 0
D78: 11 | U78: =T$62 ->  | V78: 0 | W78: 0 | X78: 0 | Y78: 0 | Z78: 0 | AA78: 0 | AB78: 0 | AC78: 0 | AD78: 0 | AE78: 0 | AF78: 0 | AG78: 0 | AH78: 0 | AI78: 0 | AJ78: 0 | AK78: 0 | AL78: 0 | AM78: 0 | AN78: 0 | AO78: 0 | AP78: 0 | AQ78: 0 | AR78: 0 | AS78: 0 | AT78: 0 | AU78: 0 | AV78: 0 | AW78: 0 | AX78: 0 | AY78: 0 | AZ78: 0 | BA78: 0 | BB78: 0 | BC78: 0 | BD78: 0 | BE78: 0 | BF78: 0
D79: 12 | V79: =U$62 ->  | W79: 0 | X79: 0 | Y79: 0 | Z79: 0 | AA79: 0 | AB79: 0 | AC79: 0 | AD79: 0 | AE79: 0 | AF79: 0 | AG79: 0 | AH79: 0 | AI79: 0 | AJ79: 0 | AK79: 0 | AL79: 0 | AM79: 0 | AN79: 0 | AO79: 0 | AP79: 0 | AQ79: 0 | AR79: 0 | AS79: 0 | AT79: 0 | AU79: 0 | AV79: 0 | AW79: 0 | AX79: 0 | AY79: 0 | AZ79: 0 | BA79: 0 | BB79: 0 | BC79: 0 | BD79: 0 | BE79: 0 | BF79: 0
D80: 13 | W80: =V$62 ->  | X80: 0 | Y80: 0 | Z80: 0 | AA80: 0 | AB80: 0 | AC80: 0 | AD80: 0 | AE80: 0 | AF80: 0 | AG80: 0 | AH80: 0 | AI80: 0 | AJ80: 0 | AK80: 0 | AL80: 0 | AM80: 0 | AN80: 0 | AO80: 0 | AP80: 0 | AQ80: 0 | AR80: 0 | AS80: 0 | AT80: 0 | AU80: 0 | AV80: 0 | AW80: 0 | AX80: 0 | AY80: 0 | AZ80: 0 | BA80: 0 | BB80: 0 | BC80: 0 | BD80: 0 | BE80: 0 | BF80: 0
D81: 14 | X81: =W$62 ->  | Y81: 0 | Z81: 0 | AA81: 0 | AB81: 0 | AC81: 0 | AD81: 0 | AE81: 0 | AF81: 0 | AG81: 0 | AH81: 0 | AI81: 0 | AJ81: 0 | AK81: 0 | AL81: 0 | AM81: 0 | AN81: 0 | AO81: 0 | AP81: 0 | AQ81: 0 | AR81: 0 | AS81: 0 | AT81: 0 | AU81: 0 | AV81: 0 | AW81: 0 | AX81: 0 | AY81: 0 | AZ81: 0 | BA81: 0 | BB81: 0 | BC81: 0 | BD81: 0 | BE81: 0 | BF81: 0
D82: 15 | Y82: =X$62 ->  | Z82: 0 | AA82: 0 | AB82: 0 | AC82: 0 | AD82: 0 | AE82: 0 | AF82: 0 | AG82: 0 | AH82: 0 | AI82: 0 | AJ82: 0 | AK82: 0 | AL82: 0 | AM82: 0 | AN82: 0 | AO82: 0 | AP82: =IF((AP$5-$D82)<=BondMat,AO82,0) -> 0 | AQ82: 0 | AR82: 0 | AS82: 0 | AT82: 0 | AU82: 0 | AV82: 0 | AW82: 0 | AX82: 0 | AY82: 0 | AZ82: 0 | BA82: 0 | BB82: 0 | BC82: 0 | BD82: 0 | BE82: 0 | BF82: 0
D83: 16 | Z83: =Y$62 ->  | AA83: =IF((AA$5-$D83)<=BondMat,Z83,0) -> 0 | AB83: 0 | AC83: 0 | AD83: 0 | AE83: 0 | AF83: 0 | AG83: 0 | AH83: 0 | AI83: 0 | AJ83: 0 | AK83: 0 | AL83: 0 | AM83: 0 | AN83: 0 | AO83: 0 | AP83: 0 | AQ83: 0 | AR83: 0 | AS83: 0 | AT83: 0 | AU83: 0 | AV83: 0 | AW83: 0 | AX83: 0 | AY83: 0 | AZ83: 0 | BA83: 0 | BB83: 0 | BC83: 0 | BD83: 0 | BE83: 0 | BF83: =IF((BF$5-$D83)<=BondMat,BE83,0) -> 0
D84: 17 | AA84: =Z$62 ->  | AB84: 0 | AC84: 0 | AD84: 0 | AE84: 0 | AF84: 0 | AG84: 0 | AH84: 0 | AI84: 0 | AJ84: 0 | AK84: 0 | AL84: 0 | AM84: 0 | AN84: 0 | AO84: 0 | AP84: 0 | AQ84: 0 | AR84: 0 | AS84: 0 | AT84: 0 | AU84: 0 | AV84: 0 | AW84: 0 | AX84: 0 | AY84: 0 | AZ84: 0 | BA84: 0 | BB84: 0 | BC84: 0 | BD84: 0 | BE84: 0 | BF84: 0
D85: 18 | AB85: =AA$62 ->  | AC85: 0 | AD85: 0 | AE85: 0 | AF85: 0 | AG85: 0 | AH85: 0 | AI85: 0 | AJ85: 0 | AK85: 0 | AL85: 0 | AM85: 0 | AN85: 0 | AO85: 0 | AP85: 0 | AQ85: 0 | AR85: 0 | AS85: 0 | AT85: 0 | AU85: 0 | AV85: 0 | AW85: 0 | AX85: 0 | AY85: 0 | AZ85: 0 | BA85: 0 | BB85: 0 | BC85: 0 | BD85: 0 | BE85: 0 | BF85: 0
D86: 19 | AC86: =AB$62 ->  | AD86: 0 | AE86: 0 | AF86: 0 | AG86: 0 | AH86: 0 | AI86: 0 | AJ86: 0 | AK86: 0 | AL86: 0 | AM86: 0 | AN86: 0 | AO86: 0 | AP86: 0 | AQ86: 0 | AR86: 0 | AS86: 0 | AT86: 0 | AU86: 0 | AV86: 0 | AW86: 0 | AX86: 0 | AY86: 0 | AZ86: 0 | BA86: 0 | BB86: 0 | BC86: 0 | BD86: 0 | BE86: 0 | BF86: 0
D87: 20 | AD87: =AC$62 ->  | AE87: 0 | AF87: 0 | AG87: 0 | AH87: 0 | AI87: 0 | AJ87: 0 | AK87: 0 | AL87: 0 | AM87: 0 | AN87: 0 | AO87: 0 | AP87: 0 | AQ87: 0 | AR87: 0 | AS87: 0 | AT87: 0 | AU87: 0 | AV87: 0 | AW87: 0 | AX87: 0 | AY87: 0 | AZ87: 0 | BA87: 0 | BB87: 0 | BC87: 0 | BD87: 0 | BE87: 0 | BF87: 0
D88: 21 | AE88: =AD$62 ->  | AF88: 0 | AG88: 0 | AH88: 0 | AI88: 0 | AJ88: 0 | AK88: 0 | AL88: 0 | AM88: 0 | AN88: 0 | AO88: 0 | AP88: 0 | AQ88: 0 | AR88: 0 | AS88: 0 | AT88: 0 | AU88: 0 | AV88: 0 | AW88: 0 | AX88: 0 | AY88: 0 | AZ88: 0 | BA88: 0 | BB88: 0 | BC88: 0 | BD88: 0 | BE88: 0 | BF88: 0
D89: 22 | AF89: =AE$62 ->  | AG89: 0 | AH89: 0 | AI89: 0 | AJ89: 0 | AK89: 0 | AL89: 0 | AM89: 0 | AN89: 0 | AO89: 0 | AP89: 0 | AQ89: 0 | AR89: 0 | AS89: 0 | AT89: 0 | AU89: 0 | AV89: 0 | AW89: 0 | AX89: 0 | AY89: 0 | AZ89: 0 | BA89: 0 | BB89: 0 | BC89: 0 | BD89: 0 | BE89: 0 | BF89: 0
D90: 23 | AG90: =AF$62 ->  | AH90: 0 | AI90: 0 | AJ90: 0 | AK90: 0 | AL90: 0 | AM90: 0 | AN90: 0 | AO90: 0 | AP90: 0 | AQ90: 0 | AR90: 0 | AS90: 0 | AT90: 0 | AU90: 0 | AV90: 0 | AW90: 0 | AX90: 0 | AY90: 0 | AZ90: 0 | BA90: 0 | BB90: 0 | BC90: 0 | BD90: 0 | BE90: 0 | BF90: 0
D91: 24 | AH91: =AG$62 ->  | AI91: 0 | AJ91: 0 | AK91: 0 | AL91: 0 | AM91: 0 | AN91: 0 | AO91: 0 | AP91: 0 | AQ91: 0 | AR91: 0 | AS91: 0 | AT91: 0 | AU91: 0 | AV91: 0 | AW91: 0 | AX91: 0 | AY91: 0 | AZ91: 0 | BA91: 0 | BB91: 0 | BC91: 0 | BD91: 0 | BE91: 0 | BF91: 0
D92: 25 | AI92: =AH$62 ->  | AJ92: 0 | AK92: 0 | AL92: 0 | AM92: 0 | AN92: 0 | AO92: 0 | AP92: 0 | AQ92: 0 | AR92: 0 | AS92: 0 | AT92: 0 | AU92: 0 | AV92: 0 | AW92: 0 | AX92: 0 | AY92: 0 | AZ92: 0 | BA92: 0 | BB92: 0 | BC92: 0 | BD92: 0 | BE92: 0 | BF92: 0
D93: 26 | AJ93: =AI$62 ->  | AK93: 0 | AL93: 0 | AM93: 0 | AN93: 0 | AO93: 0 | AP93: 0 | AQ93: 0 | AR93: 0 | AS93: 0 | AT93: 0 | AU93: 0 | AV93: 0 | AW93: 0 | AX93: 0 | AY93: 0 | AZ93: 0 | BA93: 0 | BB93: 0 | BC93: 0 | BD93: 0 | BE93: 0 | BF93: 0
D94: 27 | AK94: =AJ$62 ->  | AL94: 0 | AM94: 0 | AN94: 0 | AO94: 0 | AP94: 0 | AQ94: 0 | AR94: 0 | AS94: 0 | AT94: 0 | AU94: 0 | AV94: 0 | AW94: 0 | AX94: 0 | AY94: 0 | AZ94: 0 | BA94: 0 | BB94: 0 | BC94: 0 | BD94: 0 | BE94: 0 | BF94: 0
D95: 28 | AL95: =AK$62 ->  | AM95: 0 | AN95: 0 | AO95: 0 | AP95: 0 | AQ95: 0 | AR95: 0 | AS95: 0 | AT95: 0 | AU95: 0 | AV95: 0 | AW95: 0 | AX95: 0 | AY95: 0 | AZ95: 0 | BA95: 0 | BB95: 0 | BC95: 0 | BD95: 0 | BE95: 0 | BF95: 0
D96: 29 | AM96: =AL$62 ->  | AN96: 0 | AO96: 0 | AP96: 0 | AQ96: 0 | AR96: 0 | AS96: 0 | AT96: 0 | AU96: 0 | AV96: 0 | AW96: 0 | AX96: 0 | AY96: 0 | AZ96: 0 | BA96: 0 | BB96: 0 | BC96: 0 | BD96: 0 | BE96: 0 | BF96: 0
D97: 30 | AN97: =AM$62 ->  | AO97: 0 | AP97: 0 | AQ97: 0 | AR97: 0 | AS97: 0 | AT97: 0 | AU97: 0 | AV97: 0 | AW97: 0 | AX97: 0 | AY97: 0 | AZ97: 0 | BA97: 0 | BB97: 0 | BC97: 0 | BD97: 0 | BE97: 0 | BF97: 0
D98: 31 | AO98: =AN$62 ->  | AP98: 0 | AQ98: =IF((AQ$5-$D98)<=BondMat,AP98,0) -> 0 | AR98: 0 | AS98: 0 | AT98: 0 | AU98: 0 | AV98: 0 | AW98: 0 | AX98: 0 | AY98: 0 | AZ98: 0 | BA98: 0 | BB98: 0 | BC98: 0 | BD98: 0 | BE98: 0 | BF98: 0
D99: 32 | AP99: =AO$62 ->  | AQ99: 0 | AR99: 0 | AS99: 0 | AT99: 0 | AU99: 0 | AV99: 0 | AW99: 0 | AX99: 0 | AY99: 0 | AZ99: 0 | BA99: 0 | BB99: 0 | BC99: 0 | BD99: 0 | BE99: 0 | BF99: 0
D100: 33 | AQ100: =AP$62 ->  | AR100: 0 | AS100: 0 | AT100: 0 | AU100: 0 | AV100: 0 | AW100: 0 | AX100: 0 | AY100: 0 | AZ100: 0 | BA100: 0 | BB100: 0 | BC100: 0 | BD100: 0 | BE100: 0 | BF100: 0
D101: 34 | AR101: =AQ$62 ->  | AS101: 0 | AT101: 0 | AU101: 0 | AV101: 0 | AW101: 0 | AX101: 0 | AY101: 0 | AZ101: 0 | BA101: 0 | BB101: 0 | BC101: 0 | BD101: 0 | BE101: 0 | BF101: 0
D102: 35 | AS102: =AR$62 ->  | AT102: 0 | AU102: 0 | AV102: 0 | AW102: 0 | AX102: 0 | AY102: 0 | AZ102: 0 | BA102: 0 | BB102: 0 | BC102: 0 | BD102: 0 | BE102: 0 | BF102: 0
D103: 36 | AT103: =AS$62 ->  | AU103: 0 | AV103: 0 | AW103: 0 | AX103: 0 | AY103: 0 | AZ103: 0 | BA103: 0 | BB103: 0 | BC103: 0 | BD103: 0 | BE103: 0 | BF103: 0
D104: 37 | AU104: =AT$62 ->  | AV104: 0 | AW104: 0 | AX104: 0 | AY104: 0 | AZ104: 0 | BA104: 0 | BB104: 0 | BC104: 0 | BD104: 0 | BE104: 0 | BF104: 0
D105: 38 | AV105: =AU$62 ->  | AW105: 0 | AX105: 0 | AY105: 0 | AZ105: 0 | BA105: 0 | BB105: 0 | BC105: 0 | BD105: 0 | BE105: 0 | BF105: 0
D106: 39 | AW106: =AV$62 ->  | AX106: 0 | AY106: 0 | AZ106: 0 | BA106: 0 | BB106: 0 | BC106: 0 | BD106: 0 | BE106: 0 | BF106: 0
D107: 40 | AX107: =AW$62 ->  | AY107: 0 | AZ107: 0 | BA107: 0 | BB107: 0 | BC107: 0 | BD107: 0 | BE107: 0 | BF107: 0
D108: 41 | AY108: =AX$62 ->  | AZ108: 0 | BA108: 0 | BB108: 0 | BC108: 0 | BD108: 0 | BE108: 0 | BF108: 0
D109: 42 | AZ109: =AY$62 ->  | BA109: 0 | BB109: 0 | BC109: 0 | BD109: 0 | BE109: 0 | BF109: 0
D110: 43 | BA110: =AZ$62 ->  | BB110: =IF((BB$5-$D110)<=BondMat,BA110,0) -> 0 | BC110: =IF((BC$5-$D110)<=BondMat,BB110,0) -> 0 | BD110: =IF((BD$5-$D110)<=BondMat,BC110,0) -> 0 | BE110: =IF((BE$5-$D110)<=BondMat,BD110,0) -> 0 | BF110: 0
D111: 44 | BB111: =BA$62 ->  | BC111: =IF((BC$5-$D111)<=BondMat,BB111,0) -> 0 | BD111: =IF((BD$5-$D111)<=BondMat,BC111,0) -> 0 | BE111: =IF((BE$5-$D111)<=BondMat,BD111,0) -> 0 | BF111: 0
D112: 45 | BC112: =BB$62 ->  | BD112: =IF((BD$5-$D112)<=BondMat,BC112,0) -> 0 | BE112: =IF((BE$5-$D112)<=BondMat,BD112,0) -> 0 | BF112: 0
D113: 46 | BD113: =BC$62 ->  | BE113: =IF((BE$5-$D113)<=BondMat,BD113,0) -> 0 | BF113: 0
D114: 47 | BE114: =BD$62 ->  | BF114: =IF((BF$5-$D114)<=BondMat,BE114,0) -> 0
D115: 48 | BF115: =BE$62 -> 

Sheet LCC O&M StatQuo Ex (hidden)
A1: Life Cycle Cost Model
A2: =ProjName -> Project Name
A3: LCC O&M Costs and Intangibles, | E3: Status Quo
A4: ($0s)
F5: ='LCC Cap StatQuo Ex'!I5 -> 0 | G5: =F5+1 -> 1 | H5: =G5+1 -> 2 | I5: 3 | J5: 4 | K5: 5 | L5: 6 | M5: 7 | N5: 8 | O5: 9 | P5: 10 | Q5: 11 | R5: 12 | S5: 13 | T5: 14 | U5: 15 | V5: 16 | W5: 17 | X5: 18 | Y5: 19 | Z5: 20 | AA5: 21 | AB5: 22 | AC5: 23 | AD5: 24 | AE5: 25 | AF5: 26 | AG5: 27 | AH5: 28 | AI5: 29 | AJ5: 30 | AK5: 31 | AL5: 32 | AM5: 33 | AN5: 34 | AO5: 35 | AP5: 36 | AQ5: 37 | AR5: 38 | AS5: 39 | AT5: 40 | AU5: 41 | AV5: 42 | AW5: 43 | AX5: 44 | AY5: 45 | AZ5: 46 | BA5: 47 | BB5: 48 | BC5: 49
F7: 1 | G7: =F7+1 -> 2 | H7: =G7+1 -> 3 | I7: 4 | J7: 5 | K7: 6 | L7: 7 | M7: 8 | N7: 9 | O7: 10 | P7: 11 | Q7: 12 | R7: 13 | S7: 14 | T7: 15 | U7: 16 | V7: 17 | W7: 18 | X7: 19 | Y7: 20 | Z7: 21 | AA7: 22 | AB7: 23 | AC7: 24 | AD7: 25 | AE7: 26 | AF7: 27 | AG7: 28 | AH7: 29 | AI7: 30 | AJ7: 31 | AK7: 32 | AL7: 33 | AM7: 34 | AN7: 35 | AO7: 36 | AP7: 37 | AQ7: 38 | AR7: 39 | AS7: 40 | AT7: 41 | AU7: 42 | AV7: 43 | AW7: 44 | AX7: 45 | AY7: 46 | AZ7: 47 | BA7: 48 | BB7: 49 | BC7: 50
A8: PV of O&M and Intang. Costs
B9: Total | E9: =PresentYear -> 0 | F9: =SUM(F10:BC10) -> 
B10: Annual | E10: =PresentYear -> 0 | F10: =F$24/(1+DiscRat)^(F$5-PresentYear) ->  | G10: =IF(G$7<=LCCPeriod,(G$24/(1+DiscRat)^(G$5-PresentYear)),0) -> 0 | H10: 0 | I10: 0 | J10: 0 | K10: 0 | L10: 0 | M10: 0 | N10: 0 | O10: 0 | P10: 0 | Q10: 0 | R10: 0 | S10: 0 | T10: 0 | U10: 0 | V10: 0 | W10: 0 | X10: 0 | Y10: 0 | Z10: 0 | AA10: 0 | AB10: 0 | AC10: 0 | AD10: 0 | AE10: 0 | AF10: 0 | AG10: 0 | AH10: 0 | AI10: 0 | AJ10: 0 | AK10: 0 | AL10: 0 | AM10: =IF(AM$7<=LCCPeriod,(AM$24/(1+DiscRat)^(AM$5-PresentYear)),0) -> 0 | AN10: 0 | AO10: 0 | AP10: 0 | AQ10: 0 | AR10: 0 | AS10: 0 | AT10: 0 | AU10: 0 | AV10: 0 | AW10: 0 | AX10: 0 | AY10: 0 | AZ10: 0 | BA10: 0 | BB10: 0 | BC10: 0
B12: Energy | E12: =PresentYear -> 0 | F12: =F$57/(1+DiscRat)^(F$5-PresentYear) ->  | G12: =IF(G$7<=LCCPeriod,(G$57/(1+DiscRat)^(G$5-PresentYear)),0) -> 0 | H12: 0 | I12: 0 | J12: 0 | K12: 0 | L12: 0 | M12: 0 | N12: 0 | O12: 0 | P12: 0 | Q12: 0 | R12: 0 | S12: 0 | T12: 0 | U12: 0 | V12: 0 | W12: 0 | X12: 0 | Y12: 0 | Z12: 0 | AA12: 0 | AB12: 0 | AC12: 0 | AD12: 0 | AE12: 0 | AF12: 0 | AG12: 0 | AH12: 0 | AI12: 0 | AJ12: 0 | AK12: 0 | AL12: 0 | AM12: 0 | AN12: 0 | AO12: 0 | AP12: 0 | AQ12: 0 | AR12: 0 | AS12: 0 | AT12: 0 | AU12: 0 | AV12: 0 | AW12: 0 | AX12: 0 | AY12: 0 | AZ12: 0 | BA12: 0 | BB12: 0 | BC12: 0
B13: Energy Total | F13: =SUM(F12:BC12) -> 
A14: PV of Benefits
B15: Total | E15: =PresentYear -> 0 | F15: =SUM(F16:BC16) -> 0
B16: Annual | E16: =PresentYear -> 0 | F16: =F$19/(1+DiscRat)^(F$5-PresentYear) -> 0 | G16: 0 | H16: 0 | I16: 0 | J16: 0 | K16: 0 | L16: 0 | M16: 0 | N16: 0 | O16: 0 | P16: 0 | Q16: 0 | R16: 0 | S16: 0 | T16: 0 | U16: 0 | V16: 0 | W16: 0 | X16: 0 | Y16: 0 | Z16: 0 | AA16: 0 | AB16: 0 | AC16: 0 | AD16: 0 | AE16: 0 | AF16: 0 | AG16: 0 | AH16: 0 | AI16: 0 | AJ16: 0 | AK16: 0 | AL16: =AL$19/(1+DiscRat)^(AL$5-PresentYear) -> 0 | AM16: 0 | AN16: 0 | AO16: 0 | AP16: 0 | AQ16: 0 | AR16: 0 | AS16: 0 | AT16: 0 | AU16: 0 | AV16: 0 | AW16: 0 | AX16: 0 | AY16: 0 | AZ16: 0 | BA16: 0 | BB16: 0 | BC16: 0
A18: Component Summaries
B19: Benefits | F19: =F34 -> 0 | G19: =G34 -> 0 | H19: 0 | I19: 0 | J19: 0 | K19: 0 | L19: 0 | M19: 0 | N19: 0 | O19: 0 | P19: 0 | Q19: 0 | R19: 0 | S19: 0 | T19: 0 | U19: 0 | V19: 0 | W19: 0 | X19: 0 | Y19: 0 | Z19: 0 | AA19: 0 | AB19: 0 | AC19: 0 | AD19: 0 | AE19: 0 | AF19: 0 | AG19: 0 | AH19: 0 | AI19: 0 | AJ19: 0 | AK19: 0 | AL19: 0 | AM19: 0 | AN19: 0 | AO19: 0 | AP19: 0 | AQ19: 0 | AR19: 0 | AS19: 0 | AT19: 0 | AU19: 0 | AV19: 0 | AW19: 0 | AX19: 0 | AY19: 0 | AZ19: 0 | BA19: 0 | BB19: 0 | BC19: 0
B21: Risk | F21: =F43 -> 0 | G21: =G43 -> 0 | H21: 0 | I21: 0 | J21: 0 | K21: 0 | L21: 0 | M21: 0 | N21: 0 | O21: 0 | P21: 0 | Q21: 0 | R21: 0 | S21: 0 | T21: 0 | U21: 0 | V21: 0 | W21: 0 | X21: 0 | Y21: 0 | Z21: 0 | AA21: 0 | AB21: 0 | AC21: 0 | AD21: 0 | AE21: 0 | AF21: 0 | AG21: 0 | AH21: 0 | AI21: 0 | AJ21: 0 | AK21: 0 | AL21: 0 | AM21: 0 | AN21: 0 | AO21: 0 | AP21: 0 | AQ21: 0 | AR21: 0 | AS21: 0 | AT21: 0 | AU21: 0 | AV21: 0 | AW21: 0 | AX21: 0 | AY21: 0 | AZ21: 0 | BA21: 0 | BB21: 0 | BC21: 0
B22: Uncertainty | F22: =F52 -> 0 | G22: =G52 -> 0 | H22: 0 | I22: 0 | J22: 0 | K22: 0 | L22: 0 | M22: 0 | N22: 0 | O22: 0 | P22: 0 | Q22: 0 | R22: 0 | S22: 0 | T22: 0 | U22: 0 | V22: 0 | W22: 0 | X22: 0 | Y22: 0 | Z22: 0 | AA22: 0 | AB22: 0 | AC22: 0 | AD22: 0 | AE22: 0 | AF22: 0 | AG22: 0 | AH22: 0 | AI22: 0 | AJ22: 0 | AK22: 0 | AL22: 0 | AM22: 0 | AN22: 0 | AO22: 0 | AP22: 0 | AQ22: 0 | AR22: 0 | AS22: 0 | AT22: 0 | AU22: 0 | AV22: 0 | AW22: 0 | AX22: 0 | AY22: 0 | AZ22: 0 | BA22: 0 | BB22: 0 | BC22: 0
B23: O&M | F23: =F62 ->  | G23: =G62 -> 
B24: Total (not incl Benefits) | F24: =SUM(F21:F23) ->  | G24: =SUM(G21:G23) -> 
A26: Details
A28: Benefits
C29: 1. | E29: =EPCBaseYear -> 0 | F29: 0 | G29: =F29 -> 0 | H29: =G29 -> 0 | I29: 0 | J29: 0 | K29: 0 | L29: 0 | M29: 0 | N29: 0 | O29: 0 | P29: 0 | Q29: 0 | R29: 0 | S29: 0 | T29: 0 | U29: 0 | V29: 0 | W29: 0 | X29: 0 | Y29: 0 | Z29: 0 | AA29: 0 | AB29: 0 | AC29: 0 | AD29: 0 | AE29: 0 | AF29: 0 | AG29: 0 | AH29: 0 | AI29: 0 | AJ29: 0 | AK29: 0 | AL29: 0 | AM29: 0 | AN29: 0 | AO29: 0 | AP29: 0 | AQ29: 0 | AR29: 0 | AS29: 0 | AT29: 0 | AU29: 0 | AV29: 0 | AW29: 0 | AX29: 0 | AY29: 0 | AZ29: 0 | BA29: 0 | BB29: 0 | BC29: 0
C30: 2. | E30: =EPCBaseYear -> 0 | F30: 0 | G30: =F30 -> 0 | H30: 0 | I30: 0 | J30: 0 | K30: 0 | L30: 0 | M30: 0 | N30: 0 | O30: 0 | P30: 0 | Q30: 0 | R30: 0 | S30: 0 | T30: 0 | U30: 0 | V30: 0 | W30: 0 | X30: 0 | Y30: 0 | Z30: 0 | AA30: 0 | AB30: 0 | AC30: 0 | AD30: 0 | AE30: 0 | AF30: 0 | AG30: 0 | AH30: 0 | AI30: 0 | AJ30: 0 | AK30: 0 | AL30: 0 | AM30: 0 | AN30: 0 | AO30: 0 | AP30: 0 | AQ30: 0 | AR30: 0 | AS30: 0 | AT30: 0 | AU30: 0 | AV30: 0 | AW30: 0 | AX30: 0 | AY30: 0 | AZ30: 0 | BA30: 0 | BB30: 0 | BC30: 0
C31: 3. | E31: =EPCBaseYear -> 0 | F31: 0 | G31: =F31 -> 0 | H31: 0 | I31: 0 | J31: 0 | K31: 0 | L31: 0 | M31: 0 | N31: 0 | O31: 0 | P31: 0 | Q31: 0 | R31: 0 | S31: 0 | T31: 0 | U31: 0 | V31: 0 | W31: 0 | X31: 0 | Y31: 0 | Z31: 0 | AA31: 0 | AB31: 0 | AC31: 0 | AD31: 0 | AE31: 0 | AF31: 0 | AG31: 0 | AH31: 0 | AI31: 0 | AJ31: 0 | AK31: 0 | AL31: 0 | AM31: 0 | AN31: 0 | AO31: 0 | AP31: 0 | AQ31: 0 | AR31: 0 | AS31: 0 | AT31: 0 | AU31: 0 | AV31: 0 | AW31: 0 | AX31: 0 | AY31: 0 | AZ31: 0 | BA31: 0 | BB31: 0 | BC31: 0
C32: 4. | E32: =EPCBaseYear -> 0 | F32: 0 | G32: =F32 -> 0 | H32: 0 | I32: 0 | J32: 0 | K32: 0 | L32: 0 | M32: 0 | N32: 0 | O32: 0 | P32: 0 | Q32: 0 | R32: 0 | S32: 0 | T32: 0 | U32: 0 | V32: 0 | W32: 0 | X32: 0 | Y32: 0 | Z32: 0 | AA32: 0 | AB32: 0 | AC32: 0 | AD32: 0 | AE32: 0 | AF32: 0 | AG32: 0 | AH32: 0 | AI32: 0 | AJ32: 0 | AK32: 0 | AL32: 0 | AM32: 0 | AN32: 0 | AO32: 0 | AP32: 0 | AQ32: 0 | AR32: 0 | AS32: 0 | AT32: 0 | AU32: 0 | AV32: 0 | AW32: 0 | AX32: 0 | AY32: 0 | AZ32: 0 | BA32: 0 | BB32: 0 | BC32: 0
D33: Sum of benefits | E33: =EPCBaseYear -> 0 | F33: =SUM(F29:F32) -> 0 | G33: =SUM(G29:G32) -> 0 | H33: 0 | I33: 0 | J33: 0 | K33: 0 | L33: 0 | M33: 0 | N33: 0 | O33: 0 | P33: 0 | Q33: 0 | R33: 0 | S33: 0 | T33: 0 | U33: 0 | V33: 0 | W33: 0 | X33: 0 | Y33: 0 | Z33: 0 | AA33: 0 | AB33: 0 | AC33: 0 | AD33: 0 | AE33: 0 | AF33: 0 | AG33: 0 | AH33: 0 | AI33: 0 | AJ33: 0 | AK33: 0 | AL33: 0 | AM33: 0 | AN33: 0 | AO33: 0 | AP33: 0 | AQ33: 0 | AR33: 0 | AS33: 0 | AT33: 0 | AU33: 0 | AV33: 0 | AW33: 0 | AX33: 0 | AY33: 0 | AZ33: 0 | BA33: 0 | BB33: 0 | BC33: 0
D34: Escalated to indicated year | E34: =CostEscalOM -> 0.03 | F34: =F33*(1+RateSQ)^(F$5-EPCBaseYear) -> 0 | G34: =G33*(1+RateSQ)^(G$5-EPCBaseYear) -> 0 | H34: =H33*(1+RateSQ)^(H$5-EPCBaseYear) -> 0 | I34: 0 | J34: 0 | K34: 0 | L34: 0 | M34: 0 | N34: 0 | O34: 0 | P34: 0 | Q34: 0 | R34: 0 | S34: 0 | T34: 0 | U34: 0 | V34: 0 | W34: 0 | X34: 0 | Y34: 0 | Z34: 0 | AA34: 0 | AB34: 0 | AC34: 0 | AD34: 0 | AE34: 0 | AF34: 0 | AG34: 0 | AH34: 0 | AI34: 0 | AJ34: 0 | AK34: 0 | AL34: 0 | AM34: 0 | AN34: 0 | AO34: 0 | AP34: 0 | AQ34: 0 | AR34: 0 | AS34: 0 | AT34: 0 | AU34: 0 | AV34: 0 | AW34: 0 | AX34: 0 | AY34: 0 | AZ34: 0 | BA34: 0 | BB34: 0 | BC34: 0
A37: Risks
C38: 1. | F38: 0 | G38: =F38 -> 0 | H38: =G38 -> 0 | I38: 0 | J38: 0 | K38: 0 | L38: 0 | M38: 0 | N38: 0 | O38: 0 | P38: 0 | Q38: 0 | R38: 0 | S38: 0 | T38: 0 | U38: 0 | V38: 0 | W38: 0 | X38: 0 | Y38: 0 | Z38: 0 | AA38: 0 | AB38: 0 | AC38: 0 | AD38: 0 | AE38: 0 | AF38: 0 | AG38: 0 | AH38: 0 | AI38: 0 | AJ38: 0 | AK38: 0 | AL38: 0 | AM38: 0 | AN38: 0 | AO38: 0 | AP38: 0 | AQ38: 0 | AR38: 0 | AS38: 0 | AT38: 0 | AU38: 0 | AV38: 0 | AW38: 0 | AX38: 0 | AY38: 0 | AZ38: 0 | BA38: 0 | BB38: 0 | BC38: 0
C39: 2. | F39: 0 | G39: =F39 -> 0 | H39: 0 | I39: 0 | J39: 0 | K39: 0 | L39: 0 | M39: 0 | N39: 0 | O39: 0 | P39: 0 | Q39: 0 | R39: 0 | S39: 0 | T39: 0 | U39: 0 | V39: 0 | W39: 0 | X39: 0 | Y39: 0 | Z39: 0 | AA39: 0 | AB39: 0 | AC39: 0 | AD39: 0 | AE39: 0 | AF39: 0 | AG39: 0 | AH39: 0 | AI39: 0 | AJ39: 0 | AK39: 0 | AL39: 0 | AM39: 0 | AN39: 0 | AO39: 0 | AP39: 0 | AQ39: 0 | AR39: 0 | AS39: 0 | AT39: 0 | AU39: 0 | AV39: 0 | AW39: 0 | AX39: 0 | AY39: 0 | AZ39: 0 | BA39: 0 | BB39: 0 | BC39: 0
C40: 3. | F40: 0 | G40: =F40 -> 0 | H40: 0 | I40: 0 | J40: 0 | K40: 0 | L40: 0 | M40: 0 | N40: 0 | O40: 0 | P40: 0 | Q40: 0 | R40: 0 | S40: 0 | T40: 0 | U40: 0 | V40: 0 | W40: 0 | X40: 0 | Y40: 0 | Z40: 0 | AA40: 0 | AB40: 0 | AC40: 0 | AD40: 0 | AE40: 0 | AF40: 0 | AG40: 0 | AH40: 0 | AI40: 0 | AJ40: 0 | AK40: 0 | AL40: 0 | AM40: 0 | AN40: 0 | AO40: 0 | AP40: 0 | AQ40: 0 | AR40: 0 | AS40: 0 | AT40: 0 | AU40: 0 | AV40: 0 | AW40: 0 | AX40: 0 | AY40: 0 | AZ40: 0 | BA40: 0 | BB40: 0 | BC40: 0
C41: 4. | F41: 0 | G41: =F41 -> 0 | H41: 0 | I41: 0 | J41: 0 | K41: 0 | L41: 0 | M41: 0 | N41: 0 | O41: 0 | P41: 0 | Q41: 0 | R41: 0 | S41: 0 | T41: 0 | U41: 0 | V41: 0 | W41: 0 | X41: 0 | Y41: 0 | Z41: 0 | AA41: 0 | AB41: 0 | AC41: 0 | AD41: 0 | AE41: 0 | AF41: 0 | AG41: 0 | AH41: 0 | AI41: 0 | AJ41: 0 | AK41: 0 | AL41: 0 | AM41: 0 | AN41: 0 | AO41: 0 | AP41: 0 | AQ41: 0 | AR41: 0 | AS41: 0 | AT41: 0 | AU41: 0 | AV41: 0 | AW41: 0 | AX41: 0 | AY41: 0 | AZ41: 0 | BA41: 0 | BB41: 0 | BC41: 0
D42: Sum of benefits | E42: =EPCBaseYear -> 0 | F42: =SUM(F38:F41) -> 0 | G42: =SUM(G38:G41) -> 0 | H42: 0 | I42: 0 | J42: 0 | K42: 0 | L42: 0 | M42: 0 | N42: 0 | O42: 0 | P42: 0 | Q42: 0 | R42: 0 | S42: 0 | T42: 0 | U42: 0 | V42: 0 | W42: 0 | X42: 0 | Y42: 0 | Z42: 0 | AA42: 0 | AB42: 0 | AC42: 0 | AD42: 0 | AE42: 0 | AF42: 0 | AG42: 0 | AH42: 0 | AI42: 0 | AJ42: 0 | AK42: 0 | AL42: 0 | AM42: 0 | AN42: 0 | AO42: 0 | AP42: 0 | AQ42: 0 | AR42: 0 | AS42: 0 | AT42: 0 | AU42: 0 | AV42: 0 | AW42: 0 | AX42: 0 | AY42: 0 | AZ42: 0 | BA42: 0 | BB42: 0 | BC42: 0
D43: Escalated to indicated year | E43: =CostEscalOM -> 0.03 | F43: =F42*(1+RateSQ)^(F$5-EPCBaseYear) -> 0 | G43: =G42*(1+RateSQ)^(G$5-EPCBaseYear) -> 0 | H43: =H42*(1+RateSQ)^(H$5-EPCBaseYear) -> 0 | I43: 0 | J43: 0 | K43: 0 | L43: 0 | M43: 0 | N43: 0 | O43: 0 | P43: 0 | Q43: 0 | R43: 0 | S43: 0 | T43: 0 | U43: 0 | V43: 0 | W43: 0 | X43: 0 | Y43: 0 | Z43: 0 | AA43: 0 | AB43: 0 | AC43: 0 | AD43: 0 | AE43: 0 | AF43: 0 | AG43: 0 | AH43: 0 | AI43: 0 | AJ43: 0 | AK43: 0 | AL43: 0 | AM43: 0 | AN43: 0 | AO43: 0 | AP43: 0 | AQ43: 0 | AR43: 0 | AS43: 0 | AT43: 0 | AU43: 0 | AV43: 0 | AW43: 0 | AX43: 0 | AY43: 0 | AZ43: 0 | BA43: 0 | BB43: 0 | BC43: 0
A46: Uncertainties
C47: 1. | F47: 0 | G47: =F47 -> 0 | H47: =G47 -> 0 | I47: 0 | J47: 0 | K47: 0 | L47: 0 | M47: 0 | N47: 0 | O47: 0 | P47: 0 | Q47: 0 | R47: 0 | S47: 0 | T47: 0 | U47: 0 | V47: 0 | W47: 0 | X47: 0 | Y47: 0 | Z47: 0 | AA47: 0 | AB47: 0 | AC47: 0 | AD47: 0 | AE47: 0 | AF47: 0 | AG47: 0 | AH47: 0 | AI47: 0 | AJ47: 0 | AK47: 0 | AL47: 0 | AM47: 0 | AN47: 0 | AO47: 0 | AP47: 0 | AQ47: 0 | AR47: 0 | AS47: 0 | AT47: 0 | AU47: 0 | AV47: 0 | AW47: 0 | AX47: 0 | AY47: 0 | AZ47: 0 | BA47: 0 | BB47: 0 | BC47: 0
C48: 2. | F48: 0 | G48: =F48 -> 0 | H48: 0 | I48: 0 | J48: 0 | K48: 0 | L48: 0 | M48: 0 | N48: 0 | O48: 0 | P48: 0 | Q48: 0 | R48: 0 | S48: 0 | T48: 0 | U48: 0 | V48: 0 | W48: 0 | X48: 0 | Y48: 0 | Z48: 0 | AA48: 0 | AB48: 0 | AC48: 0 | AD48: 0 | AE48: 0 | AF48: 0 | AG48: 0 | AH48: 0 | AI48: 0 | AJ48: 0 | AK48: 0 | AL48: 0 | AM48: 0 | AN48: 0 | AO48: 0 | AP48: 0 | AQ48: 0 | AR48: 0 | AS48: 0 | AT48: 0 | AU48: 0 | AV48: 0 | AW48: 0 | AX48: 0 | AY48: 0 | AZ48: 0 | BA48: 0 | BB48: 0 | BC48: 0
C49: 3. | F49: 0 | G49: =F49 -> 0 | H49: 0 | I49: 0 | J49: 0 | K49: 0 | L49: 0 | M49: 0 | N49: 0 | O49: 0 | P49: 0 | Q49: 0 | R49: 0 | S49: 0 | T49: 0 | U49: 0 | V49: 0 | W49: 0 | X49: 0 | Y49: 0 | Z49: 0 | AA49: 0 | AB49: 0 | AC49: 0 | AD49: 0 | AE49: 0 | AF49: 0 | AG49: 0 | AH49: 0 | AI49: 0 | AJ49: 0 | AK49: 0 | AL49: 0 | AM49: 0 | AN49: 0 | AO49: 0 | AP49: 0 | AQ49: 0 | AR49: 0 | AS49: 0 | AT49: 0 | AU49: 0 | AV49: 0 | AW49: 0 | AX49: 0 | AY49: 0 | AZ49: 0 | BA49: 0 | BB49: 0 | BC49: 0
C50: 4. | F50: 0 | G50: =F50 -> 0 | H50: 0 | I50: 0 | J50: 0 | K50: 0 | L50: 0 | M50: 0 | N50: 0 | O50: 0 | P50: 0 | Q50: 0 | R50: 0 | S50: 0 | T50: 0 | U50: 0 | V50: 0 | W50: 0 | X50: 0 | Y50: 0 | Z50: 0 | AA50: 0 | AB50: 0 | AC50: 0 | AD50: 0 | AE50: 0 | AF50: 0 | AG50: 0 | AH50: 0 | AI50: 0 | AJ50: 0 | AK50: 0 | AL50: 0 | AM50: 0 | AN50: 0 | AO50: 0 | AP50: 0 | AQ50: 0 | AR50: 0 | AS50: 0 | AT50: 0 | AU50: 0 | AV50: 0 | AW50: 0 | AX50: 0 | AY50: 0 | AZ50: 0 | BA50: 0 | BB50: 0 | BC50: 0
D51: Sum of benefits | E51: =EPCBaseYear -> 0 | F51: =SUM(F47:F50) -> 0 | G51: =SUM(G47:G50) -> 0 | H51: 0 | I51: 0 | J51: 0 | K51: 0 | L51: 0 | M51: 0 | N51: 0 | O51: 0 | P51: 0 | Q51: 0 | R51: 0 | S51: 0 | T51: 0 | U51: 0 | V51: 0 | W51: 0 | X51: 0 | Y51: 0 | Z51: 0 | AA51: 0 | AB51: 0 | AC51: 0 | AD51: 0 | AE51: 0 | AF51: 0 | AG51: 0 | AH51: 0 | AI51: 0 | AJ51: 0 | AK51: 0 | AL51: 0 | AM51: 0 | AN51: 0 | AO51: 0 | AP51: 0 | AQ51: 0 | AR51: 0 | AS51: 0 | AT51: 0 | AU51: 0 | AV51: 0 | AW51: 0 | AX51: 0 | AY51: 0 | AZ51: 0 | BA51: 0 | BB51: 0 | BC51: 0
D52: Escalated to indicated year | E52: =CostEscalOM -> 0.03 | F52: =F51*(1+RateSQ)^(F$5-EPCBaseYear) -> 0 | G52: =G51*(1+RateSQ)^(G$5-EPCBaseYear) -> 0 | H52: =H51*(1+RateSQ)^(H$5-EPCBaseYear) -> 0 | I52: 0 | J52: 0 | K52: 0 | L52: 0 | M52: 0 | N52: 0 | O52: 0 | P52: 0 | Q52: 0 | R52: 0 | S52: 0 | T52: 0 | U52: 0 | V52: 0 | W52: 0 | X52: 0 | Y52: 0 | Z52: 0 | AA52: 0 | AB52: 0 | AC52: 0 | AD52: 0 | AE52: 0 | AF52: 0 | AG52: 0 | AH52: 0 | AI52: 0 | AJ52: 0 | AK52: 0 | AL52: 0 | AM52: 0 | AN52: 0 | AO52: 0 | AP52: 0 | AQ52: 0 | AR52: 0 | AS52: 0 | AT52: 0 | AU52: 0 | AV52: 0 | AW52: 0 | AX52: 0 | AY52: 0 | AZ52: 0 | BA52: 0 | BB52: 0 | BC52: 0
A55: Operations and Maintenance
B56: Summaries, escalated costs
C57: Energy | F57: =F76 ->  | G57: =G76 -> 
C58: Chemicals | F58: =F85 ->  | G58: =G85 -> 
C59: Materials & Supplies | F59: =F94 -> 0 | G59: =G94 -> 0 | H59: 0 | I59: 0 | J59: 0 | K59: 0 | L59: 0 | M59: 0 | N59: 0 | O59: 0 | P59: 0 | Q59: 0 | R59: 0 | S59: 0 | T59: 0 | U59: 0 | V59: 0 | W59: 0 | X59: 0 | Y59: 0 | Z59: 0 | AA59: 0 | AB59: 0 | AC59: 0 | AD59: 0 | AE59: 0 | AF59: 0 | AG59: 0 | AH59: 0 | AI59: 0 | AJ59: 0 | AK59: 0 | AL59: 0 | AM59: 0 | AN59: 0 | AO59: 0 | AP59: 0 | AQ59: 0 | AR59: 0 | AS59: 0 | AT59: 0 | AU59: 0 | AV59: 0 | AW59: 0 | AX59: 0 | AY59: 0 | AZ59: 0 | BA59: 0 | BB59: 0 | BC59: 0
C60: Other | F60: =F103 -> 0 | G60: =G103 -> 0 | H60: 0 | I60: 0 | J60: 0 | K60: 0 | L60: 0 | M60: 0 | N60: 0 | O60: 0 | P60: 0 | Q60: 0 | R60: 0 | S60: 0 | T60: 0 | U60: 0 | V60: 0 | W60: 0 | X60: 0 | Y60: 0 | Z60: 0 | AA60: 0 | AB60: 0 | AC60: 0 | AD60: 0 | AE60: 0 | AF60: 0 | AG60: 0 | AH60: 0 | AI60: 0 | AJ60: 0 | AK60: 0 | AL60: 0 | AM60: 0 | AN60: 0 | AO60: 0 | AP60: 0 | AQ60: 0 | AR60: 0 | AS60: 0 | AT60: 0 | AU60: 0 | AV60: 0 | AW60: 0 | AX60: 0 | AY60: 0 | AZ60: 0 | BA60: 0 | BB60: 0 | BC60: 0
C61: Labor | F61: =F108 ->  | G61: =G108 -> 
C62: Total O&M | F62: =SUM(F57:F61) ->  | G62: =SUM(G57:G61) ->  | H62: =SUM(H57:H61) -> 
B64: Energy
C65: Natural gas therms | F65: =' LCC Inputs O &M Ex Page 9'!D21 -> 0 | G65: =F65 -> 0 | H65: =G65 -> 0 | I65: 0 | J65: 0 | K65: 0 | L65: 0 | M65: 0 | N65: 0 | O65: 0 | P65: 0 | Q65: 0 | R65: 0 | S65: 0 | T65: 0 | U65: 0 | V65: 0 | W65: 0 | X65: 0 | Y65: 0 | Z65: 0 | AA65: 0 | AB65: 0 | AC65: 0 | AD65: 0 | AE65: 0 | AF65: 0 | AG65: 0 | AH65: 0 | AI65: 0 | AJ65: 0 | AK65: 0 | AL65: 0 | AM65: 0 | AN65: 0 | AO65: 0 | AP65: 0 | AQ65: 0 | AR65: 0 | AS65: 0 | AT65: 0 | AU65: 0 | AV65: 0 | AW65: 0 | AX65: 0 | AY65: 0 | AZ65: 0 | BA65: 0 | BB65: 0 | BC65: 0
C66: Natural gas cost, escalated | E66: (embedded) | F66: =F65*ROUND(HLOOKUP(F$5,OMUnitCosts,6,FALSE),2) ->  | G66: =G65*ROUND(HLOOKUP(G$5,OMUnitCosts,7,FALSE),2) ->  | AL66: =AL65*ROUND(HLOOKUP(AL$5,OMUnitCosts,7,FALSE),2) -> 
C68: Electricity
D69: Base elec. use, kwh/yr | F69: =' LCC Inputs O &M Ex Page 9'!D22 -> 0
D70: Elec.consump.growth/yr | F70: =ElecGrowth -> 0.03 | G70: 0.03 | H70: 0.03 | I70: 0.03 | J70: 0.03 | K70: 0.03 | L70: 0.03 | M70: 0.03 | N70: 0.03 | O70: 0.03 | P70: 0.03 | Q70: 0.03 | R70: 0.03 | S70: 0.03 | T70: 0.03 | U70: 0.03 | V70: 0.03 | W70: 0.03 | X70: 0.03 | Y70: 0.03 | Z70: 0.03 | AA70: 0.03 | AB70: 0.03 | AC70: 0.03 | AD70: 0.03 | AE70: 0.03 | AF70: 0.03 | AG70: 0.03 | AH70: 0.03 | AI70: 0.03 | AJ70: 0.03 | AK70: 0.03 | AL70: =ElecGrowth -> 0.03 | AM70: 0.03 | AN70: 0.03 | AO70: 0.03 | AP70: 0.03 | AQ70: 0.03 | AR70: 0.03 | AS70: 0.03 | AT70: 0.03 | AU70: 0.03 | AV70: 0.03 | AW70: 0.03 | AX70: 0.03 | AY70: 0.03 | AZ70: 0.03 | BA70: 0.03 | BB70: 0.03 | BC70: 0.03
D71: Electricity use, kwh | F71: =F69*(1+F70)^(F5-EPCBaseYear) -> 0 | G71: =F71*(1+G70) -> 0 | H71: =G71*(1+H70) -> 0 | I71: 0 | J71: 0 | K71: 0 | L71: 0 | M71: 0 | N71: 0 | O71: 0 | P71: 0 | Q71: 0 | R71: 0 | S71: 0 | T71: 0 | U71: 0 | V71: 0 | W71: 0 | X71: 0 | Y71: 0 | Z71: 0 | AA71: 0 | AB71: 0 | AC71: 0 | AD71: 0 | AE71: 0 | AF71: 0 | AG71: 0 | AH71: 0 | AI71: 0 | AJ71: 0 | AK71: 0 | AL71: 0 | AM71: 0 | AN71: 0 | AO71: 0 | AP71: 0 | AQ71: 0 | AR71: 0 | AS71: 0 | AT71: 0 | AU71: 0 | AV71: 0 | AW71: 0 | AX71: 0 | AY71: 0 | AZ71: 0 | BA71: 0 | BB71: 0 | BC71: 0
D72: Electricty cost, escalated | E72: (embedded) | F72: =HLOOKUP(F$5,OMUnitCosts,10,FALSE)*F71 ->  | AL72: =HLOOKUP(AL$5,OMUnitCosts,10,FALSE)*AL71 -> 
D73: Demand, kW or kVa | F73: =' LCC Inputs O &M Ex Page 9'!D23 -> 0 | G73: =F73 -> 0 | H73: =G73 -> 0 | I73: 0 | J73: 0 | K73: 0 | L73: 0 | M73: 0 | N73: 0 | O73: 0 | P73: 0 | Q73: 0 | R73: 0 | S73: 0 | T73: 0 | U73: 0 | V73: 0 | W73: 0 | X73: 0 | Y73: 0 | Z73: 0 | AA73: 0 | AB73: 0 | AC73: 0 | AD73: 0 | AE73: 0 | AF73: 0 | AG73: 0 | AH73: 0 | AI73: 0 | AJ73: 0 | AK73: 0 | AL73: 0 | AM73: 0 | AN73: 0 | AO73: 0 | AP73: 0 | AQ73: 0 | AR73: 0 | AS73: 0 | AT73: 0 | AU73: 0 | AV73: 0 | AW73: 0 | AX73: 0 | AY73: 0 | AZ73: 0 | BA73: 0 | BB73: 0 | BC73: 0
D74: Demand charge, escalated | E74: (embedded) | F74: =HLOOKUP(F$5,OMUnitCosts,11,FALSE)*F73 ->  | AL74: =HLOOKUP(AL$5,OMUnitCosts,11,FALSE)*AL73 -> 
D75: Total electricity cost, escalated | F75: =F72+F74 ->  | G75: =G72+G74 -> 
C76: Total, energy, escalated | F76: =F75+F66 ->  | G76: =G75+G66 -> 
B78: Chemicals
C79: Sodium hypochlorite required in gal. | F79: 0 | G79: =F79 -> 0 | H79: =G79 -> 0 | I79: 0 | J79: 0 | K79: 0 | L79: 0 | M79: 0 | N79: 0 | O79: 0 | P79: 0 | Q79: 0 | R79: 0 | S79: 0 | T79: 0 | U79: 0 | V79: 0 | W79: 0 | X79: 0 | Y79: 0 | Z79: 0 | AA79: 0 | AB79: 0 | AC79: 0 | AD79: 0 | AE79: 0 | AF79: 0 | AG79: 0 | AH79: 0 | AI79: 0 | AJ79: 0 | AK79: 0 | AL79: 0 | AM79: 0 | AN79: 0 | AO79: 0 | AP79: 0 | AQ79: 0 | AR79: 0 | AS79: 0 | AT79: 0 | AU79: 0 | AV79: 0 | AW79: 0 | AX79: 0 | AY79: 0 | AZ79: 0 | BA79: 0 | BB79: 0 | BC79: 0
C80: Bisulfide required in gal. | F80: 0 | G80: =F80 -> 0 | H80: 0 | I80: 0 | J80: 0 | K80: 0 | L80: 0 | M80: 0 | N80: 0 | O80: 0 | P80: 0 | Q80: 0 | R80: 0 | S80: 0 | T80: 0 | U80: 0 | V80: 0 | W80: 0 | X80: 0 | Y80: 0 | Z80: 0 | AA80: 0 | AB80: 0 | AC80: 0 | AD80: 0 | AE80: 0 | AF80: 0 | AG80: 0 | AH80: 0 | AI80: 0 | AJ80: 0 | AK80: 0 | AL80: 0 | AM80: 0 | AN80: 0 | AO80: 0 | AP80: 0 | AQ80: 0 | AR80: 0 | AS80: 0 | AT80: 0 | AU80: 0 | AV80: 0 | AW80: 0 | AX80: 0 | AY80: 0 | AZ80: 0 | BA80: 0 | BB80: 0 | BC80: 0
C81: Other chemical costs - enter $
D82: Item | E82: =EPCBaseYear -> 0 | F82: 0 | G82: =F82 -> 0 | H82: =G82 -> 0 | I82: 0 | J82: 0 | K82: 0 | L82: 0 | M82: 0 | N82: 0 | O82: 0 | P82: 0 | Q82: 0 | R82: 0 | S82: 0 | T82: 0 | U82: 0 | V82: 0 | W82: 0 | X82: =W82 -> 0 | Y82: 0 | Z82: 0 | AA82: 0 | AB82: 0 | AC82: 0 | AD82: 0 | AE82: 0 | AF82: 0 | AG82: 0 | AH82: 0 | AI82: 0 | AJ82: 0 | AK82: 0 | AL82: 0 | AM82: 0 | AN82: =AM82 -> 0 | AO82: 0 | AP82: 0 | AQ82: 0 | AR82: 0 | AS82: 0 | AT82: 0 | AU82: 0 | AV82: 0 | AW82: 0 | AX82: 0 | AY82: 0 | AZ82: 0 | BA82: 0 | BB82: 0 | BC82: 0
D83: Item | E83: =EPCBaseYear -> 0 | F83: 0 | G83: =F83 -> 0 | H83: 0 | I83: 0 | J83: 0 | K83: 0 | L83: 0 | M83: 0 | N83: 0 | O83: 0 | P83: 0 | Q83: 0 | R83: 0 | S83: 0 | T83: 0 | U83: 0 | V83: 0 | W83: 0 | X83: 0 | Y83: 0 | Z83: 0 | AA83: 0 | AB83: 0 | AC83: 0 | AD83: 0 | AE83: 0 | AF83: 0 | AG83: 0 | AH83: 0 | AI83: 0 | AJ83: 0 | AK83: 0 | AL83: 0 | AM83: 0 | AN83: 0 | AO83: 0 | AP83: 0 | AQ83: 0 | AR83: 0 | AS83: 0 | AT83: 0 | AU83: 0 | AV83: 0 | AW83: 0 | AX83: 0 | AY83: 0 | AZ83: 0 | BA83: 0 | BB83: 0 | BC83: 0
D84: Item | E84: =EPCBaseYear -> 0 | F84: 0 | G84: =F84 -> 0 | H84: 0 | I84: 0 | J84: 0 | K84: 0 | L84: 0 | M84: 0 | N84: 0 | O84: 0 | P84: 0 | Q84: 0 | R84: 0 | S84: 0 | T84: 0 | U84: 0 | V84: 0 | W84: 0 | X84: 0 | Y84: 0 | Z84: 0 | AA84: 0 | AB84: 0 | AC84: 0 | AD84: 0 | AE84: 0 | AF84: 0 | AG84: 0 | AH84: 0 | AI84: 0 | AJ84: 0 | AK84: 0 | AL84: 0 | AM84: 0 | AN84: 0 | AO84: 0 | AP84: 0 | AQ84: 0 | AR84: 0 | AS84: 0 | AT84: 0 | AU84: 0 | AV84: 0 | AW84: 0 | AX84: 0 | AY84: 0 | AZ84: 0 | BA84: 0 | BB84: 0 | BC84: 0
C85: Total, chemicals, escalated | E85: =CostEscalOM -> 0.03 | F85: =F79*(HLOOKUP(F$5,OMUnitCosts,16,FALSE))+F80*(HLOOKUP(F$5,OMUnitCosts,19,FALSE))+SUM(F82:F84)*(1+RateSQ)^(F$5-EPCBaseYear) ->  | AL85: =AL79*(HLOOKUP(AL$5,OMUnitCosts,16,FALSE))+AL80*(HLOOKUP(AL$5,OMUnitCosts,19,FALSE))+SUM(AL82:AL84)*(1+RateSQ)^(AL$5-EPCBaseYear) -> 
B87: Materials & Supplies
C88: Item | E88: =EPCBaseYear -> 0 | F88: =' LCC Inputs O &M Ex Page 9'!D26 -> 0 | G88: =F88 -> 0 | H88: =G88 -> 0 | I88: 0 | J88: 0 | K88: 0 | L88: 0 | M88: 0 | N88: 0 | O88: 0 | P88: 0 | Q88: 0 | R88: 0 | S88: 0 | T88: 0 | U88: 0 | V88: 0 | W88: 0 | X88: 0 | Y88: 0 | Z88: 0 | AA88: 0 | AB88: 0 | AC88: 0 | AD88: 0 | AE88: 0 | AF88: 0 | AG88: 0 | AH88: 0 | AI88: 0 | AJ88: 0 | AK88: 0 | AL88: 0 | AM88: 0 | AN88: 0 | AO88: 0 | AP88: 0 | AQ88: 0 | AR88: 0 | AS88: 0 | AT88: 0 | AU88: 0 | AV88: 0 | AW88: 0 | AX88: 0 | AY88: 0 | AZ88: 0 | BA88: 0 | BB88: 0 | BC88: 0
C89: Item | E89: 0 | F89: =' LCC Inputs O &M Ex Page 9'!D27 -> 0 | G89: =F89 -> 0 | H89: 0 | I89: 0 | J89: 0 | K89: 0 | L89: 0 | M89: 0 | N89: 0 | O89: 0 | P89: 0 | Q89: 0 | R89: 0 | S89: 0 | T89: 0 | U89: 0 | V89: 0 | W89: 0 | X89: 0 | Y89: 0 | Z89: 0 | AA89: 0 | AB89: 0 | AC89: 0 | AD89: 0 | AE89: 0 | AF89: 0 | AG89: 0 | AH89: 0 | AI89: 0 | AJ89: 0 | AK89: 0 | AL89: 0 | AM89: 0 | AN89: 0 | AO89: 0 | AP89: 0 | AQ89: 0 | AR89: 0 | AS89: 0 | AT89: 0 | AU89: 0 | AV89: 0 | AW89: 0 | AX89: 0 | AY89: 0 | AZ89: 0 | BA89: 0 | BB89: 0 | BC89: 0
C90: Item | E90: 0 | F90: =' LCC Inputs O &M Ex Page 9'!D28 -> 0 | G90: =F90 -> 0 | H90: 0 | I90: 0 | J90: 0 | K90: 0 | L90: 0 | M90: 0 | N90: 0 | O90: 0 | P90: 0 | Q90: 0 | R90: 0 | S90: 0 | T90: 0 | U90: 0 | V90: 0 | W90: 0 | X90: 0 | Y90: 0 | Z90: 0 | AA90: 0 | AB90: 0 | AC90: 0 | AD90: 0 | AE90: 0 | AF90: 0 | AG90: 0 | AH90: 0 | AI90: 0 | AJ90: 0 | AK90: 0 | AL90: 0 | AM90: 0 | AN90: 0 | AO90: 0 | AP90: 0 | AQ90: 0 | AR90: 0 | AS90: 0 | AT90: 0 | AU90: 0 | AV90: 0 | AW90: 0 | AX90: 0 | AY90: 0 | AZ90: 0 | BA90: 0 | BB90: 0 | BC90: 0
C91: Item | E91: 0 | F91: 0 | G91: =F91 -> 0 | H91: 0 | I91: 0 | J91: 0 | K91: 0 | L91: 0 | M91: 0 | N91: 0 | O91: 0 | P91: 0 | Q91: 0 | R91: 0 | S91: 0 | T91: 0 | U91: 0 | V91: 0 | W91: 0 | X91: 0 | Y91: 0 | Z91: 0 | AA91: 0 | AB91: 0 | AC91: 0 | AD91: 0 | AE91: 0 | AF91: 0 | AG91: 0 | AH91: 0 | AI91: 0 | AJ91: 0 | AK91: 0 | AL91: 0 | AM91: 0 | AN91: 0 | AO91: 0 | AP91: 0 | AQ91: 0 | AR91: 0 | AS91: 0 | AT91: 0 | AU91: 0 | AV91: 0 | AW91: 0 | AX91: 0 | AY91: 0 | AZ91: 0 | BA91: 0 | BB91: 0 | BC91: 0
C92: Item | E92: 0 | F92: 0 | G92: =F92 -> 0 | H92: 0 | I92: 0 | J92: 0 | K92: 0 | L92: 0 | M92: 0 | N92: 0 | O92: 0 | P92: 0 | Q92: 0 | R92: 0 | S92: 0 | T92: 0 | U92: 0 | V92: 0 | W92: 0 | X92: 0 | Y92: 0 | Z92: 0 | AA92: 0 | AB92: 0 | AC92: 0 | AD92: 0 | AE92: 0 | AF92: 0 | AG92: 0 | AH92: 0 | AI92: 0 | AJ92: 0 | AK92: 0 | AL92: 0 | AM92: 0 | AN92: 0 | AO92: 0 | AP92: 0 | AQ92: 0 | AR92: 0 | AS92: 0 | AT92: 0 | AU92: 0 | AV92: 0 | AW92: 0 | AX92: 0 | AY92: 0 | AZ92: 0 | BA92: 0 | BB92: 0 | BC92: 0
C93: Sum of above | E93: 0 | F93: =SUM(F88:F92) -> 0 | G93: =SUM(G88:G92) -> 0 | H93: 0 | I93: 0 | J93: 0 | K93: 0 | L93: 0 | M93: 0 | N93: 0 | O93: 0 | P93: 0 | Q93: 0 | R93: 0 | S93: 0 | T93: 0 | U93: 0 | V93: 0 | W93: 0 | X93: 0 | Y93: 0 | Z93: 0 | AA93: 0 | AB93: 0 | AC93: 0 | AD93: 0 | AE93: 0 | AF93: 0 | AG93: 0 | AH93: 0 | AI93: 0 | AJ93: 0 | AK93: 0 | AL93: 0 | AM93: 0 | AN93: 0 | AO93: 0 | AP93: 0 | AQ93: 0 | AR93: 0 | AS93: 0 | AT93: 0 | AU93: 0 | AV93: 0 | AW93: 0 | AX93: 0 | AY93: 0 | AZ93: 0 | BA93: 0 | BB93: 0 | BC93: 0
C94: Escalated | E94: =CostEscalOM -> 0.03 | F94: =F93*(1+RateSQ)^(F$5-EPCBaseYear) -> 0 | G94: =G93*(1+RateSQ)^(G$5-EPCBaseYear) -> 0 | H94: =H93*(1+RateSQ)^(H$5-EPCBaseYear) -> 0 | I94: 0 | J94: 0 | K94: 0 | L94: 0 | M94: 0 | N94: 0 | O94: 0 | P94: 0 | Q94: 0 | R94: 0 | S94: 0 | T94: 0 | U94: 0 | V94: 0 | W94: 0 | X94: 0 | Y94: 0 | Z94: 0 | AA94: 0 | AB94: 0 | AC94: 0 | AD94: 0 | AE94: 0 | AF94: 0 | AG94: 0 | AH94: 0 | AI94: 0 | AJ94: 0 | AK94: 0 | AL94: 0 | AM94: 0 | AN94: 0 | AO94: 0 | AP94: 0 | AQ94: 0 | AR94: 0 | AS94: 0 | AT94: 0 | AU94: 0 | AV94: 0 | AW94: 0 | AX94: 0 | AY94: 0 | AZ94: 0 | BA94: 0 | BB94: 0 | BC94: 0
B96: Other Costs
C97: Item | E97: =EPCBaseYear -> 0 | F97: 0 | G97: =F97 -> 0 | H97: 0 | I97: 0 | J97: 0 | K97: 0 | L97: 0 | M97: 0 | N97: 0 | O97: 0 | P97: 0 | Q97: 0 | R97: 0 | S97: 0 | T97: 0 | U97: 0 | V97: 0 | W97: 0 | X97: =W97 -> 0 | Y97: 0 | Z97: 0 | AA97: 0 | AB97: 0 | AC97: 0 | AD97: 0 | AE97: 0 | AF97: 0 | AG97: 0 | AH97: 0 | AI97: 0 | AJ97: 0 | AK97: 0 | AL97: 0 | AM97: 0 | AN97: =AM97 -> 0 | AO97: 0 | AP97: 0 | AQ97: 0 | AR97: 0 | AS97: 0 | AT97: 0 | AU97: 0 | AV97: 0 | AW97: 0 | AX97: 0 | AY97: 0 | AZ97: 0 | BA97: 0 | BB97: 0 | BC97: 0
C98: Item | E98: =EPCBaseYear -> 0 | F98: 0 | G98: =F98 -> 0 | H98: 0 | I98: 0 | J98: 0 | K98: 0 | L98: 0 | M98: 0 | N98: 0 | O98: 0 | P98: 0 | Q98: 0 | R98: 0 | S98: 0 | T98: 0 | U98: 0 | V98: 0 | W98: =V98 -> 0 | X98: 0 | Y98: 0 | Z98: 0 | AA98: 0 | AB98: 0 | AC98: 0 | AD98: 0 | AE98: 0 | AF98: 0 | AG98: 0 | AH98: 0 | AI98: 0 | AJ98: 0 | AK98: 0 | AL98: 0 | AM98: 0 | AN98: 0 | AO98: 0 | AP98: 0 | AQ98: 0 | AR98: 0 | AS98: 0 | AT98: 0 | AU98: 0 | AV98: 0 | AW98: 0 | AX98: 0 | AY98: 0 | AZ98: 0 | BA98: 0 | BB98: 0 | BC98: 0
C99: Item | E99: =EPCBaseYear -> 0 | F99: 0 | G99: 0 | H99: 0 | I99: 0 | J99: 0 | K99: 0 | L99: 0 | M99: 0 | N99: 0 | O99: 0 | P99: 0 | Q99: 0 | R99: 0 | S99: 0 | T99: 0 | U99: 0 | V99: 0 | W99: =V99 -> 0 | X99: 0 | Y99: 0 | Z99: 0 | AA99: 0 | AB99: 0 | AC99: 0 | AD99: 0 | AE99: 0 | AF99: 0 | AG99: 0 | AH99: 0 | AI99: 0 | AJ99: 0 | AK99: 0 | AL99: 0 | AM99: 0 | AN99: 0 | AO99: 0 | AP99: 0 | AQ99: 0 | AR99: 0 | AS99: 0 | AT99: 0 | AU99: 0 | AV99: 0 | AW99: 0 | AX99: 0 | AY99: 0 | AZ99: 0 | BA99: 0 | BB99: 0 | BC99: 0
C100: Item | E100: =EPCBaseYear -> 0 | F100: 0 | G100: 0 | H100: 0 | I100: 0 | J100: 0 | K100: 0 | L100: 0 | M100: 0 | N100: 0 | O100: 0 | P100: 0 | Q100: 0 | R100: 0 | S100: 0 | T100: 0 | U100: 0 | V100: 0 | W100: =V100 -> 0 | X100: 0 | Y100: 0 | Z100: 0 | AA100: 0 | AB100: 0 | AC100: 0 | AD100: 0 | AE100: 0 | AF100: 0 | AG100: 0 | AH100: 0 | AI100: 0 | AJ100: 0 | AK100: 0 | AL100: 0 | AM100: 0 | AN100: 0 | AO100: 0 | AP100: 0 | AQ100: 0 | AR100: 0 | AS100: 0 | AT100: 0 | AU100: 0 | AV100: 0 | AW100: 0 | AX100: 0 | AY100: 0 | AZ100: 0 | BA100: 0 | BB100: 0 | BC100: 0
C101: Item | E101: =EPCBaseYear -> 0 | F101: 0 | G101: 0 | H101: 0 | I101: 0 | J101: 0 | K101: 0 | L101: 0 | M101: 0 | N101: 0 | O101: 0 | P101: 0 | Q101: 0 | R101: 0 | S101: 0 | T101: 0 | U101: 0 | V101: 0 | W101: =V101 -> 0 | X101: 0 | Y101: 0 | Z101: 0 | AA101: 0 | AB101: 0 | AC101: 0 | AD101: 0 | AE101: 0 | AF101: 0 | AG101: 0 | AH101: 0 | AI101: 0 | AJ101: 0 | AK101: 0 | AL101: 0 | AM101: 0 | AN101: 0 | AO101: 0 | AP101: 0 | AQ101: 0 | AR101: 0 | AS101: 0 | AT101: 0 | AU101: 0 | AV101: 0 | AW101: 0 | AX101: 0 | AY101: 0 | AZ101: 0 | BA101: 0 | BB101: 0 | BC101: 0
C102: Sum of above | F102: =SUM(F97:F101) -> 0 | G102: =SUM(G97:G101) -> 0 | H102: 0 | I102: 0 | J102: 0 | K102: 0 | L102: 0 | M102: 0 | N102: 0 | O102: 0 | P102: 0 | Q102: 0 | R102: 0 | S102: 0 | T102: 0 | U102: 0 | V102: 0 | W102: 0 | X102: 0 | Y102: 0 | Z102: 0 | AA102: 0 | AB102: 0 | AC102: 0 | AD102: 0 | AE102: 0 | AF102: 0 | AG102: 0 | AH102: 0 | AI102: 0 | AJ102: 0 | AK102: 0 | AL102: 0 | AM102: 0 | AN102: 0 | AO102: 0 | AP102: 0 | AQ102: 0 | AR102: 0 | AS102: 0 | AT102: 0 | AU102: 0 | AV102: 0 | AW102: 0 | AX102: 0 | AY102: 0 | AZ102: 0 | BA102: 0 | BB102: 0 | BC102: 0
C103: Escalated | E103: =CostEscalOM -> 0.03 | F103: =F102*(1+RateSQ)^(F$5-EPCBaseYear) -> 0 | G103: =G102*(1+RateSQ)^(G$5-EPCBaseYear) -> 0 | H103: =H102*(1+RateSQ)^(H$5-EPCBaseYear) -> 0 | I103: 0 | J103: 0 | K103: 0 | L103: 0 | M103: 0 | N103: 0 | O103: 0 | P103: 0 | Q103: 0 | R103: 0 | S103: 0 | T103: 0 | U103: 0 | V103: 0 | W103: 0 | X103: 0 | Y103: 0 | Z103: 0 | AA103: 0 | AB103: 0 | AC103: 0 | AD103: 0 | AE103: 0 | AF103: 0 | AG103: 0 | AH103: 0 | AI103: 0 | AJ103: 0 | AK103: 0 | AL103: 0 | AM103: 0 | AN103: 0 | AO103: 0 | AP103: 0 | AQ103: 0 | AR103: 0 | AS103: 0 | AT103: 0 | AU103: 0 | AV103: 0 | AW103: 0 | AX103: 0 | AY103: 0 | AZ103: 0 | BA103: 0 | BB103: 0 | BC103: 0
B105: Labor
C106: Labor hours per year | F106: =' LCC Inputs O &M Ex Page 9'!D31 -> 0 | G106: =F106 -> 0 | H106: =G106 -> 0 | I106: 0 | J106: 0 | K106: 0 | L106: 0 | M106: 0 | N106: 0 | O106: 0 | P106: 0 | Q106: 0 | R106: 0 | S106: 0 | T106: 0 | U106: 0 | V106: 0 | W106: 0 | X106: 0 | Y106: 0 | Z106: 0 | AA106: 0 | AB106: 0 | AC106: 0 | AD106: 0 | AE106: 0 | AF106: 0 | AG106: 0 | AH106: 0 | AI106: 0 | AJ106: 0 | AK106: 0 | AL106: 0 | AM106: 0 | AN106: 0 | AO106: 0 | AP106: 0 | AQ106: 0 | AR106: 0 | AS106: 0 | AT106: 0 | AU106: 0 | AV106: 0 | AW106: 0 | AX106: 0 | AY106: 0 | AZ106: 0 | BA106: 0 | BB106: 0 | BC106: 0
C107: Raw labor cost | E107: (embedded) | F107: =F106*(HLOOKUP(F$5,OMUnitCosts,24,FALSE)) ->  | AL107: =AL106*(HLOOKUP(AL$5,OMUnitCosts,24,FALSE)) -> 
C108: Labor cost, burdened | E108: =LaborOverhead -> 1.6 | F108: =F107*(1+LaborOverhead) ->  | AL108: =AL107*(1+LaborOverhead) -> 

Sheet LCC Cap Alt 1 Ex (hidden)
A1: Life Cycle Cost Model
A2: =ProjName -> Project Name
A3: LCC Capital Costs and Schedule, | E3: Alt. 1 Name
A4: ($000s)
I5: =FirstOps -> 0 | J5: =I5+1 -> 1 | K5: =J5+1 -> 2 | L5: =K5+1 -> 3 | M5: 4 | N5: 5 | O5: 6 | P5: 7 | Q5: 8 | R5: 9 | S5: 10 | T5: =S5+1 -> 11 | U5: 12 | V5: 13 | W5: 14 | X5: 15 | Y5: 16 | Z5: 17 | AA5: 18 | AB5: 19 | AC5: 20 | AD5: 21 | AE5: 22 | AF5: 23 | AG5: 24 | AH5: 25 | AI5: 26 | AJ5: 27 | AK5: 28 | AL5: 29 | AM5: 30 | AN5: 31 | AO5: 32 | AP5: 33 | AQ5: 34 | AR5: 35 | AS5: 36 | AT5: 37 | AU5: 38 | AV5: 39 | AW5: 40 | AX5: 41 | AY5: 42 | AZ5: 43 | BA5: 44 | BB5: 45 | BC5: 46 | BD5: 47 | BE5: 48 | BF5: 49
I7: 1 | J7: =I7+1 -> 2 | K7: =J7+1 -> 3 | L7: =K7+1 -> 4 | M7: 5 | N7: 6 | O7: 7 | P7: 8 | Q7: =P7+1 -> 9 | R7: 10 | S7: 11 | T7: 12 | U7: 13 | V7: 14 | W7: 15 | X7: 16 | Y7: 17 | Z7: 18 | AA7: 19 | AB7: 20 | AC7: 21 | AD7: 22 | AE7: 23 | AF7: 24 | AG7: 25 | AH7: 26 | AI7: 27 | AJ7: 28 | AK7: 29 | AL7: 30 | AM7: 31 | AN7: 32 | AO7: 33 | AP7: 34 | AQ7: 35 | AR7: 36 | AS7: 37 | AT7: 38 | AU7: 39 | AV7: 40 | AW7: 41 | AX7: 42 | AY7: 43 | AZ7: 44 | BA7: 45 | BB7: 46 | BC7: 47 | BD7: 48 | BE7: 49 | BF7: 50
A8: Present Values of Capital Components | F8: Totals
E9: =PresentYear -> 0 | F9: =SUM(I9:BF9)-H40 ->  | I9: =IF(CapitalTrtmt="d/s",I$65/(1+DiscRat)^(I$5-PresentYear),I$19/(1+DiscRat)^(I$5-PresentYear)) ->  | J9: 0 | K9: 0 | L9: 0 | M9: 0 | AO9: =IF(CapitalTrtmt="d/s",AO$65/(1+DiscRat)^(AO$5-PresentYear),AO$19/(1+DiscRat)^(AO$5-PresentYear)) -> 
I10: =I9*1000 ->  | J10: =J9*1000 -> 0 | K10: 0 | L10: 0 | M10: 0 | BB10: =BB9*1000 -> 
A11: Capital Costs ($000s) | F11: Initial
B12: Initial Capital Construction | F12: Const'n
C13: Estimated Construction Cost ("ECC") | E13: =EPCBaseYear -> 0 | F13: =' LCC Inputs Capital Ex Page 8'!G11 -> 0 | I13: =I28+I33+I39 -> 0 | J13: 0 | K13: 0 | L13: 0 | M13: 0 | N13: 0 | O13: 0 | P13: 0 | Q13: 0 | R13: 0 | S13: 0 | T13: 0 | U13: 0 | V13: 0 | W13: 0 | X13: 0 | Y13: 0 | Z13: 0 | AA13: 0 | AB13: 0 | AC13: 0 | AD13: 0 | AE13: 0 | AF13: 0 | AG13: 0 | AH13: 0 | AI13: 0 | AJ13: 0 | AK13: 0 | AL13: 0 | AM13: 0 | AN13: 0 | AO13: =AO28+AO33+AO39 -> 0 | AP13: 0 | AQ13: 0 | AR13: 0 | AS13: 0 | AT13: 0 | AU13: 0 | AV13: 0 | AW13: 0 | AX13: 0 | AY13: 0 | AZ13: 0 | BA13: 0 | BB13: 0 | BC13: 0 | BD13: 0 | BE13: 0 | BF13: 0
C14: Ancillary cost* | E14: =EPCBaseYear -> 0 | F14: =SUM(F43:F44)+SUM(F45:F53)*F13+F54*F53*F13 -> 0 | I14: =SUM(I43:I45)+SUM(I46:I53)*I13+I54*I53*I13 -> 0 | J14: 0 | K14: 0 | L14: 0 | M14: 0 | N14: 0 | O14: 0 | P14: 0 | Q14: 0 | R14: 0 | S14: 0 | T14: 0 | U14: 0 | V14: 0 | W14: 0 | X14: 0 | Y14: 0 | Z14: 0 | AA14: 0 | AB14: 0 | AC14: 0 | AD14: 0 | AE14: 0 | AF14: 0 | AG14: 0 | AH14: 0 | AI14: 0 | AJ14: 0 | AK14: 0 | AL14: 0 | AM14: 0 | AN14: 0 | AO14: =SUM(AO43:AO45)+SUM(AO46:AO53)*AO13+AO54*AO53*AO13 -> 0 | AP14: 0 | AQ14: 0 | AR14: 0 | AS14: 0 | AT14: 0 | AU14: 0 | AV14: 0 | AW14: 0 | AX14: 0 | AY14: 0 | AZ14: 0 | BA14: 0 | BB14: 0 | BC14: 0 | BD14: 0 | BE14: 0 | BF14: 0
D15: Ancillary cost percentage of ECC | F15: =IF(ISNUMBER(F14/F13),F14/F13," ") ->  | I15: =IF(ISNUMBER(I14/I13),I14/I13," ") -> 
C17: Subtotal | E17: =EPCBaseYear -> 0 | F17: =F13+F14 -> 0 | I17: =I13+I14 -> 0 | J17: 0 | K17: 0 | L17: 0 | M17: 0 | N17: 0 | O17: 0 | P17: 0 | Q17: 0 | R17: 0 | S17: 0 | T17: 0 | U17: 0 | V17: 0 | W17: 0 | X17: 0 | Y17: 0 | Z17: 0 | AA17: 0 | AB17: 0 | AC17: 0 | AD17: 0 | AE17: 0 | AF17: 0 | AG17: 0 | AH17: 0 | AI17: 0 | AJ17: 0 | AK17: 0 | AL17: 0 | AM17: 0 | AN17: 0 | AO17: 0 | AP17: 0 | AQ17: 0 | AR17: 0 | AS17: 0 | AT17: 0 | AU17: 0 | AV17: 0 | AW17: 0 | AX17: 0 | AY17: 0 | AZ17: 0 | BA17: 0 | BB17: 0 | BC17: 0 | BD17: 0 | BE17: 0 | BF17: 0
C18: Contingency allowance | E18: =CapCostConting -> 0.3 | F18: =F17*$E18 -> 0 | I18: =I17*$E18 -> 0 | J18: =J17*$E18 -> 0 | K18: 0 | L18: 0 | M18: 0 | N18: 0 | O18: 0 | P18: 0 | Q18: 0 | R18: 0 | S18: 0 | T18: 0 | U18: 0 | V18: 0 | W18: 0 | X18: 0 | Y18: 0 | Z18: 0 | AA18: 0 | AB18: 0 | AC18: 0 | AD18: 0 | AE18: 0 | AF18: 0 | AG18: 0 | AH18: 0 | AI18: 0 | AJ18: 0 | AK18: 0 | AL18: 0 | AM18: 0 | AN18: 0 | AO18: 0 | AP18: 0 | AQ18: 0 | AR18: 0 | AS18: 0 | AT18: 0 | AU18: 0 | AV18: 0 | AW18: 0 | AX18: 0 | AY18: 0 | AZ18: 0 | BA18: 0 | BB18: 0 | BC18: 0 | BD18: 0 | BE18: 0 | BF18: 0
C19: Capital cost basis, not including… | E19: =EPCBaseYear -> 0 | F19: =SUM(F17:F18) -> 0 | I19: =IF(CapitalTrtmt="LS",F19," ") ->  | J19: =SUM(J17:J18) -> 0 | K19: =SUM(K17:K18) -> 0 | L19: 0 | M19: 0 | N19: 0 | O19: 0 | P19: 0 | Q19: =SUM(Q17:Q18) -> 0 | R19: 0 | S19: 0 | T19: 0 | U19: 0 | V19: 0 | W19: 0 | X19: 0 | Y19: 0 | Z19: 0 | AA19: 0 | AB19: 0 | AC19: 0 | AD19: 0 | AE19: 0 | AF19: 0 | AG19: 0 | AH19: 0 | AI19: 0 | AJ19: 0 | AK19: 0 | AL19: 0 | AM19: 0 | AN19: 0 | AO19: 0 | AP19: 0 | AQ19: 0 | AR19: 0 | AS19: 0 | AT19: 0 | AU19: 0 | AV19: 0 | AW19: 0 | AX19: 0 | AY19: 0 | AZ19: 0 | BA19: 0 | BB19: 0 | BC19: 0 | BD19: 0 | BE19: 0 | BF19: 0
C20: …financial costs or cost escalation
H21: End of
B22: Subsequent Capital Replacements | E22: Useful Life | F22: =EPCBaseYear -> 0 | H22: Life Cycle
C23: First Main Component | E23: (years) | F23: Costs | G23: Re-caps | H23: Residual | I23: Recapitalize Schedule . . .
C25: Principal component | E25: =' LCC Inputs Capital Ex Page 8'!F16 -> 5 | F25: =' LCC Inputs Capital Ex Page 8'!G16 -> 0 | G25: =IF(E25>0,TRUNC((LCCPeriod-1)/E25),0) -> 0 | H25: =IF(IF(E25>0,(1-((LCCPeriod/E25)-TRUNC(LCCPeriod/E25)))*F25,0)=F25,0,IF(E25>0,(1-((LCCPeriod/E25)-TRUNC(LCCPeriod/E25)))*F25,0)) -> 0 | I25: =IF($E25>0,IF(I$7<LCCPeriod,IF(I$7/$E25=INT(I$7/$E25),$F25,0),0),0) -> 0 | J25: 0 | K25: 0 | L25: 0 | M25: 0 | N25: 0 | O25: 0 | P25: 0 | Q25: 0 | R25: 0 | S25: =IF($E25>0,IF(S$7<LCCPeriod,IF(S$7/$E25=INT(S$7/$E25),$F25,0),0),0) -> 0 | T25: =IF($E25>0,IF(T$7<LCCPeriod,IF(T$7/$E25=INT(T$7/$E25),$F25,0),0),0) -> 0 | U25: 0 | V25: 0 | W25: 0 | X25: 0 | Y25: 0 | Z25: 0 | AA25: 0 | AB25: 0 | AC25: =IF($E25>0,IF(AC$7<LCCPeriod,IF(AC$7/$E25=INT(AC$7/$E25),$F25,0),0),0) -> 0 | AD25: 0 | AE25: 0 | AF25: 0 | AG25: 0 | AH25: 0 | AI25: 0 | AJ25: 0 | AK25: 0 | AL25: 0 | AM25: =IF($E25>0,IF(AM$7<LCCPeriod,IF(AM$7/$E25=INT(AM$7/$E25),$F25,0),0),0) -> 0 | AN25: 0 | AO25: 0 | AP25: 0 | AQ25: 0 | AR25: 0 | AS25: 0 | AT25: 0 | AU25: 0 | AV25: 0 | AW25: =IF($E25>0,IF(AW$7<LCCPeriod,IF(AW$7/$E25=INT(AW$7/$E25),$F25,0),0),0) -> 0 | AX25: 0 | AY25: 0 | AZ25: 0 | BA25: 0 | BB25: 0 | BC25: 0 | BD25: 0 | BE25: 0 | BF25: 0
C26: Sub-component | E26: =' LCC Inputs Capital Ex Page 8'!F17 -> 0 | F26: =' LCC Inputs Capital Ex Page 8'!G17 -> 0 | G26: =IF(E26>0,TRUNC((LCCPeriod-1)/E26),0) -> 0 | H26: =IF(IF(E26>0,(1-((LCCPeriod/E26)-TRUNC(LCCPeriod/E26)))*F26,0)=F26,0,IF(E26>0,(1-((LCCPeriod/E26)-TRUNC(LCCPeriod/E26)))*F26,0)) -> 0 | I26: =IF(I$25>0,0,IF($E26>0,IF(I$7<LCCPeriod,IF(I$7/$E26=INT(I$7/$E26),$F26,0),0),0)) -> 0 | J26: 0 | K26: 0 | L26: 0 | M26: 0 | N26: 0 | O26: 0 | P26: 0 | Q26: 0 | R26: 0 | S26: =IF(S$25>0,0,IF($E26>0,IF(S$7<LCCPeriod,IF(S$7/$E26=INT(S$7/$E26),$F26,0),0),0)) -> 0 | T26: 0 | U26: 0 | V26: 0 | W26: 0 | X26: 0 | Y26: 0 | Z26: 0 | AA26: 0 | AB26: 0 | AC26: =IF(AC$25>0,0,IF($E26>0,IF(AC$7<LCCPeriod,IF(AC$7/$E26=INT(AC$7/$E26),$F26,0),0),0)) -> 0 | AD26: 0 | AE26: 0 | AF26: 0 | AG26: 0 | AH26: 0 | AI26: 0 | AJ26: 0 | AK26: 0 | AL26: 0 | AM26: =IF(AM$25>0,0,IF($E26>0,IF(AM$7<LCCPeriod,IF(AM$7/$E26=INT(AM$7/$E26),$F26,0),0),0)) -> 0 | AN26: 0 | AO26: 0 | AP26: 0 | AQ26: 0 | AR26: 0 | AS26: 0 | AT26: 0 | AU26: 0 | AV26: 0 | AW26: =IF(AW$25>0,0,IF($E26>0,IF(AW$7<LCCPeriod,IF(AW$7/$E26=INT(AW$7/$E26),$F26,0),0),0)) -> 0 | AX26: 0 | AY26: 0 | AZ26: 0 | BA26: 0 | BB26: 0 | BC26: 0 | BD26: 0 | BE26: 0 | BF26: 0
C27: Sub-component | E27: =' LCC Inputs Capital Ex Page 8'!F18 -> 0 | F27: =' LCC Inputs Capital Ex Page 8'!G18 -> 0 | G27: =IF(E27>0,TRUNC((LCCPeriod-1)/E27),0) -> 0 | H27: =IF(IF(E27>0,(1-((LCCPeriod/E27)-TRUNC(LCCPeriod/E27)))*F27,0)=F27,0,IF(E27>0,(1-((LCCPeriod/E27)-TRUNC(LCCPeriod/E27)))*F27,0)) -> 0 | I27: 0 | J27: 0 | K27: 0 | L27: 0 | M27: 0 | N27: 0 | O27: 0 | P27: 0 | Q27: 0 | R27: 0 | S27: 0 | T27: 0 | U27: 0 | V27: 0 | W27: 0 | X27: 0 | Y27: 0 | Z27: 0 | AA27: 0 | AB27: 0 | AC27: 0 | AD27: 0 | AE27: 0 | AF27: 0 | AG27: 0 | AH27: 0 | AI27: 0 | AJ27: 0 | AK27: 0 | AL27: 0 | AM27: 0 | AN27: 0 | AO27: 0 | AP27: 0 | AQ27: 0 | AR27: 0 | AS27: 0 | AT27: 0 | AU27: 0 | AV27: 0 | AW27: 0 | AX27: 0 | AY27: 0 | AZ27: 0 | BA27: 0 | BB27: 0 | BC27: 0 | BD27: 0 | BE27: 0 | BF27: 0
H28: =SUM(H25:H27) -> 0 | I28: 0 | J28: 0 | K28: 0 | L28: 0 | M28: 0 | N28: 0 | O28: 0 | P28: 0 | Q28: 0 | R28: 0 | S28: 0 | T28: 0 | U28: 0 | V28: 0 | W28: 0 | X28: 0 | Y28: 0 | Z28: 0 | AA28: 0 | AB28: 0 | AC28: 0 | AD28: 0 | AE28: 0 | AF28: 0 | AG28: 0 | AH28: 0 | AI28: 0 | AJ28: 0 | AK28: 0 | AL28: 0 | AM28: 0 | AN28: =SUM(AN25:AN27) -> 0 | AO28: 0 | AP28: 0 | AQ28: 0 | AR28: 0 | AS28: 0 | AT28: 0 | AU28: 0 | AV28: 0 | AW28: 0 | AX28: 0 | AY28: 0 | AZ28: 0 | BA28: 0 | BB28: 0 | BC28: 0 | BD28: 0 | BE28: 0 | BF28: 0
C29: Second Main Component
C30: Principal component | E30: =' LCC Inputs Capital Ex Page 8'!F21 -> 5 | F30: =' LCC Inputs Capital Ex Page 8'!G21 -> 0 | G30: =IF(E30>0,TRUNC((LCCPeriod-1)/E30),0) -> 0 | H30: =IF(IF(E30>0,(1-((LCCPeriod/E30)-TRUNC(LCCPeriod/E30)))*F30,0)=F30,0,IF(E30>0,(1-((LCCPeriod/E30)-TRUNC(LCCPeriod/E30)))*F30,0)) -> 0 | I30: =IF($E30>0,IF(I$7<LCCPeriod,IF(I$7/$E30=INT(I$7/$E30),$F30,0),0),0) -> 0 | J30: 0 | K30: 0 | L30: 0 | M30: 0 | N30: 0 | O30: 0 | P30: 0 | Q30: 0 | R30: 0 | S30: 0 | T30: 0 | U30: 0 | V30: 0 | W30: 0 | X30: 0 | Y30: =IF($E30>0,IF(Y$7<LCCPeriod,IF(Y$7/$E30=INT(Y$7/$E30),$F30,0),0),0) -> 0 | Z30: 0 | AA30: 0 | AB30: 0 | AC30: 0 | AD30: 0 | AE30: 0 | AF30: 0 | AG30: 0 | AH30: 0 | AI30: 0 | AJ30: 0 | AK30: 0 | AL30: 0 | AM30: 0 | AN30: 0 | AO30: 0 | AP30: 0 | AQ30: 0 | AR30: 0 | AS30: 0 | AT30: 0 | AU30: 0 | AV30: 0 | AW30: 0 | AX30: 0 | AY30: 0 | AZ30: 0 | BA30: 0 | BB30: 0 | BC30: 0 | BD30: 0 | BE30: 0 | BF30: 0
C31: Sub-component | E31: =' LCC Inputs Capital Ex Page 8'!F22 -> 5 | F31: =' LCC Inputs Capital Ex Page 8'!G22 -> 0 | G31: =IF(E31>0,TRUNC((LCCPeriod-1)/E31),0) -> 0 | H31: =IF(IF(E31>0,(1-((LCCPeriod/E31)-TRUNC(LCCPeriod/E31)))*F31,0)=F31,0,IF(E31>0,(1-((LCCPeriod/E31)-TRUNC(LCCPeriod/E31)))*F31,0)) -> 0 | I31: =IF(I$30>0,0,IF($E31>0,IF(I$7<LCCPeriod,IF(I$7/$E31=INT(I$7/$E31),$F31,0),0),0)) -> 0 | J31: 0 | K31: 0 | L31: 0 | M31: 0 | N31: 0 | O31: 0 | P31: 0 | Q31: 0 | R31: 0 | S31: =IF(S$30>0,0,IF($E31>0,IF(S$7<LCCPeriod,IF(S$7/$E31=INT(S$7/$E31),$F31,0),0),0)) -> 0 | T31: 0 | U31: 0 | V31: 0 | W31: 0 | X31: 0 | Y31: 0 | Z31: 0 | AA31: 0 | AB31: 0 | AC31: =IF(AC$30>0,0,IF($E31>0,IF(AC$7<LCCPeriod,IF(AC$7/$E31=INT(AC$7/$E31),$F31,0),0),0)) -> 0 | AD31: 0 | AE31: 0 | AF31: 0 | AG31: 0 | AH31: 0 | AI31: 0 | AJ31: 0 | AK31: 0 | AL31: 0 | AM31: =IF(AM$30>0,0,IF($E31>0,IF(AM$7<LCCPeriod,IF(AM$7/$E31=INT(AM$7/$E31),$F31,0),0),0)) -> 0 | AN31: 0 | AO31: 0 | AP31: 0 | AQ31: 0 | AR31: 0 | AS31: 0 | AT31: 0 | AU31: 0 | AV31: 0 | AW31: =IF(AW$30>0,0,IF($E31>0,IF(AW$7<LCCPeriod,IF(AW$7/$E31=INT(AW$7/$E31),$F31,0),0),0)) -> 0 | AX31: 0 | AY31: 0 | AZ31: 0 | BA31: 0 | BB31: 0 | BC31: 0 | BD31: 0 | BE31: 0 | BF31: 0
C32: Sub-component | E32: =' LCC Inputs Capital Ex Page 8'!F23 -> 5 | F32: =' LCC Inputs Capital Ex Page 8'!G23 -> 0 | G32: =IF(E32>0,TRUNC((LCCPeriod-1)/E32),0) -> 0 | H32: =IF(IF(E32>0,(1-((LCCPeriod/E32)-TRUNC(LCCPeriod/E32)))*F32,0)=F32,0,IF(E32>0,(1-((LCCPeriod/E32)-TRUNC(LCCPeriod/E32)))*F32,0)) -> 0 | I32: 0 | J32: 0 | K32: 0 | L32: 0 | M32: 0 | N32: 0 | O32: 0 | P32: 0 | Q32: 0 | R32: 0 | S32: 0 | T32: 0 | U32: 0 | V32: 0 | W32: 0 | X32: 0 | Y32: 0 | Z32: 0 | AA32: 0 | AB32: 0 | AC32: 0 | AD32: 0 | AE32: 0 | AF32: 0 | AG32: 0 | AH32: 0 | AI32: 0 | AJ32: 0 | AK32: 0 | AL32: 0 | AM32: 0 | AN32: 0 | AO32: 0 | AP32: 0 | AQ32: 0 | AR32: 0 | AS32: 0 | AT32: 0 | AU32: 0 | AV32: 0 | AW32: 0 | AX32: 0 | AY32: 0 | AZ32: 0 | BA32: 0 | BB32: 0 | BC32: 0 | BD32: 0 | BE32: 0 | BF32: 0
H33: =SUM(H30:H32) -> 0 | I33: 0 | J33: 0 | K33: 0 | L33: 0 | M33: 0 | N33: 0 | O33: 0 | P33: 0 | Q33: 0 | R33: 0 | S33: 0 | T33: 0 | U33: 0 | V33: 0 | W33: 0 | X33: 0 | Y33: 0 | Z33: 0 | AA33: 0 | AB33: 0 | AC33: 0 | AD33: 0 | AE33: 0 | AF33: 0 | AG33: 0 | AH33: 0 | AI33: 0 | AJ33: 0 | AK33: 0 | AL33: 0 | AM33: 0 | AN33: =SUM(AN30:AN32) -> 0 | AO33: 0 | AP33: 0 | AQ33: 0 | AR33: 0 | AS33: 0 | AT33: 0 | AU33: 0 | AV33: 0 | AW33: 0 | AX33: 0 | AY33: 0 | AZ33: 0 | BA33: 0 | BB33: 0 | BC33: 0 | BD33: 0 | BE33: 0 | BF33: 0
B34: Existing Depreciating Assets
C35: Name | E35: =' LCC Inputs Capital Ex Page 8'!C26 -> 5 | F35: =' LCC Inputs Capital Ex Page 8'!G26 -> 0 | G35: =IF(E35>0,TRUNC((LCCPeriod-1-E36)/E35+1),0) -> 0 | H35: =IF(IF(E35>0,(1-(((LCCPeriod-E36)/E35)-TRUNC((LCCPeriod-E36)/E35)))*F35,0)=F35,0,IF(E35>0,(1-(((LCCPeriod-E36)/E35)-TRUNC((LCCPeriod-E36)/E35)))*F35,0)) -> 0 | I35: =IF(I$7=$E36,$F35,IF(I$7>$E36,IF(I$7<LCCPeriod,IF((I$7-$E36)/($E35)=INT((I$7-$E36)/($E35)),$F35,0),0),0)) -> 0 | J35: =IF(J$7=$E36,$F35,IF(J$7>$E36,IF(J$7<LCCPeriod,IF((J$7-$E36)/($E35)=INT((J$7-$E36)/($E35)),$F35,0),0),0)) -> 0 | K35: 0 | L35: 0 | M35: 0 | N35: 0 | O35: 0 | P35: 0 | Q35: 0 | R35: 0 | S35: 0 | T35: 0 | U35: 0 | V35: 0 | W35: 0 | X35: 0 | Y35: 0 | Z35: 0 | AA35: 0 | AB35: 0 | AC35: 0 | AD35: 0 | AE35: 0 | AF35: 0 | AG35: 0 | AH35: 0 | AI35: 0 | AJ35: 0 | AK35: 0 | AL35: 0 | AM35: 0 | AN35: 0 | AO35: =IF(AO$7=$E36,$F35,IF(AO$7>$E36,IF(AO$7<LCCPeriod,IF((AO$7-$E36)/($E35)=INT((AO$7-$E36)/($E35)),$F35,0),0),0)) -> 0 | AP35: 0 | AQ35: 0 | AR35: 0 | AS35: 0 | AT35: 0 | AU35: 0 | AV35: 0 | AW35: 0 | AX35: 0 | AY35: 0 | AZ35: 0 | BA35: 0 | BB35: 0 | BC35: 0 | BD35: 0 | BE35: 0 | BF35: 0
D36: Estimated remaining life: | E36: =' LCC Inputs Capital Ex Page 8'!F27 -> 5
C37: Name | E37: =' LCC Inputs Capital Ex Page 8'!C28 -> 5 | F37: =' LCC Inputs Capital Ex Page 8'!G28 -> 0 | G37: =IF(E37>0,TRUNC((LCCPeriod-1-E38)/E37+1),0) -> 0 | H37: =IF(IF(E37>0,(1-(((LCCPeriod-E38)/E37)-TRUNC((LCCPeriod-E38)/E37)))*F37,0)=F37,0,IF(E37>0,(1-(((LCCPeriod-E38)/E37)-TRUNC((LCCPeriod-E38)/E37)))*F37,0)) -> 0 | I37: =IF(I$7=$E38,$F37,IF(I$7>$E38,IF(I$7<LCCPeriod,IF((I$7-$E38)/($E37)=INT((I$7-$E38)/($E37)),$F37,0),0),0)) -> 0 | J37: 0 | K37: 0 | L37: 0 | M37: 0 | N37: 0 | O37: 0 | P37: 0 | Q37: 0 | R37: 0 | S37: 0 | T37: 0 | U37: 0 | V37: 0 | W37: 0 | X37: 0 | Y37: 0 | Z37: 0 | AA37: 0 | AB37: 0 | AC37: 0 | AD37: 0 | AE37: 0 | AF37: 0 | AG37: 0 | AH37: 0 | AI37: 0 | AJ37: 0 | AK37: 0 | AL37: 0 | AM37: 0 | AN37: 0 | AO37: =IF(AO$7=$E38,$F37,IF(AO$7>$E38,IF(AO$7<LCCPeriod,IF((AO$7-$E38)/($E37)=INT((AO$7-$E38)/($E37)),$F37,0),0),0)) -> 0 | AP37: 0 | AQ37: 0 | AR37: 0 | AS37: 0 | AT37: 0 | AU37: 0 | AV37: 0 | AW37: 0 | AX37: 0 | AY37: 0 | AZ37: 0 | BA37: 0 | BB37: 0 | BC37: 0 | BD37: 0 | BE37: 0 | BF37: 0
D38: Estimated remaining life: | E38: =' LCC Inputs Capital Ex Page 8'!F29 -> 5
C39: Sum of existing asset re-cap costs | H39: =SUM(H35:H37) -> 0 | I39: =SUM(I35:I37) -> 0 | J39: =SUM(J35:J37) -> 0 | K39: =SUM(K35:K37) -> 0 | L39: =SUM(L35:L37) -> 0 | M39: =SUM(M35:M37) -> 0 | N39: 0 | O39: 0 | P39: 0 | Q39: 0 | R39: 0 | S39: 0 | T39: 0 | U39: 0 | V39: 0 | W39: 0 | X39: 0 | Y39: 0 | Z39: 0 | AA39: 0 | AB39: 0 | AC39: 0 | AD39: 0 | AE39: 0 | AF39: 0 | AG39: 0 | AH39: 0 | AI39: 0 | AJ39: 0 | AK39: 0 | AL39: 0 | AM39: 0 | AN39: 0 | AO39: 0 | AP39: 0 | AQ39: 0 | AR39: 0 | AS39: 0 | AT39: 0 | AU39: 0 | AV39: 0 | AW39: 0 | AX39: 0 | AY39: 0 | AZ39: 0 | BA39: 0 | BB39: 0 | BC39: 0 | BD39: 0 | BE39: 0 | BF39: 0
F40: PV of Residual Values: | H40: =(H$28+H$33+H$39)/(1+DiscRat)^(LCCPeriod+1-(PresentYear-EPCBaseYear)) -> 0
B42: Ancillary Cost Components* | E42: =EPCBaseYear -> 0
C43: Land acquisition or rights of way | E43: Dollar value | F43: =' LCC Inputs Capital Ex Page 8'!G32 -> 0 | I43: =IF(I$13>0,"N/A",0) -> 0 | J43: =IF(J$13>0,"N/A",0) -> 0 | K43: 0 | L43: 0 | M43: 0 | N43: 0 | O43: 0 | P43: 0 | Q43: 0 | R43: 0 | S43: 0 | T43: 0 | U43: 0 | V43: 0 | W43: 0 | X43: 0 | Y43: 0 | Z43: 0 | AA43: 0 | AB43: 0 | AC43: 0 | AD43: 0 | AE43: 0 | AF43: 0 | AG43: 0 | AH43: 0 | AI43: 0 | AJ43: 0 | AK43: 0 | AL43: 0 | AM43: 0 | AN43: 0 | AO43: 0 | AP43: 0 | AQ43: 0 | AR43: 0 | AS43: 0 | AT43: 0 | AU43: 0 | AV43: 0 | AW43: 0 | AX43: 0 | AY43: 0 | AZ43: 0 | BA43: 0 | BB43: 0 | BC43: 0 | BD43: 0 | BE43: 0 | BF43: 0
C44: Environmental mitigation | E44: Dollar value | F44: =' LCC Inputs Capital Ex Page 8'!G33 -> 0 | I44: =IF(I$13>0,"N/A",0) -> 0 | J44: 0 | K44: 0 | L44: 0 | M44: 0 | N44: 0 | O44: 0 | P44: 0 | Q44: 0 | R44: 0 | S44: 0 | T44: 0 | U44: 0 | V44: 0 | W44: 0 | X44: 0 | Y44: 0 | Z44: 0 | AA44: 0 | AB44: 0 | AC44: 0 | AD44: 0 | AE44: 0 | AF44: 0 | AG44: 0 | AH44: 0 | AI44: 0 | AJ44: 0 | AK44: 0 | AL44: 0 | AM44: 0 | AN44: 0 | AO44: 0 | AP44: 0 | AQ44: 0 | AR44: 0 | AS44: 0 | AT44: 0 | AU44: 0 | AV44: 0 | AW44: 0 | AX44: 0 | AY44: 0 | AZ44: 0 | BA44: 0 | BB44: 0 | BC44: 0 | BD44: 0 | BE44: 0 | BF44: 0
C45: Permits | E45: % of ECC | F45: =' LCC Inputs Capital Ex Page 8'!G34 -> 0.005 | I45: =IF(I$13>0,$F45,0) -> 0 | J45: =IF(J$13>0,$F45,0) -> 0 | K45: 0 | L45: 0 | M45: 0 | N45: 0 | O45: 0 | P45: 0 | Q45: 0 | R45: 0 | S45: 0 | T45: 0 | U45: 0 | V45: 0 | W45: 0 | X45: 0 | Y45: 0 | Z45: 0 | AA45: 0 | AB45: 0 | AC45: 0 | AD45: 0 | AE45: 0 | AF45: 0 | AG45: 0 | AH45: 0 | AI45: 0 | AJ45: 0 | AK45: 0 | AL45: 0 | AM45: 0 | AN45: 0 | AO45: 0 | AP45: 0 | AQ45: 0 | AR45: 0 | AS45: 0 | AT45: 0 | AU45: 0 | AV45: 0 | AW45: 0 | AX45: 0 | AY45: 0 | AZ45: 0 | BA45: 0 | BB45: 0 | BC45: 0 | BD45: 0 | BE45: 0 | BF45: 0
C46: Engineering (pre thru final) | E46: % of ECC | F46: =' LCC Inputs Capital Ex Page 8'!G35 -> 0.1325 | I46: =IF(I$13>0,$F46,0) -> 0 | J46: 0 | K46: 0 | L46: 0 | M46: 0 | N46: 0 | O46: 0 | P46: 0 | Q46: 0 | R46: 0 | S46: 0 | T46: 0 | U46: 0 | V46: 0 | W46: 0 | X46: 0 | Y46: 0 | Z46: 0 | AA46: 0 | AB46: 0 | AC46: 0 | AD46: 0 | AE46: 0 | AF46: 0 | AG46: 0 | AH46: 0 | AI46: 0 | AJ46: 0 | AK46: 0 | AL46: 0 | AM46: 0 | AN46: 0 | AO46: 0 | AP46: 0 | AQ46: 0 | AR46: 0 | AS46: 0 | AT46: 0 | AU46: 0 | AV46: 0 | AW46: 0 | AX46: 0 | AY46: 0 | AZ46: 0 | BA46: 0 | BB46: 0 | BC46: 0 | BD46: 0 | BE46: 0 | BF46: 0
C47: Constn mgmt/observation | E47: % of ECC | F47: =' LCC Inputs Capital Ex Page 8'!G36 -> 0.09 | I47: =IF(I$13>0,$F47,0) -> 0 | J47: 0 | K47: 0 | L47: 0 | M47: 0 | N47: 0 | O47: 0 | P47: 0 | Q47: 0 | R47: 0 | S47: 0 | T47: 0 | U47: 0 | V47: 0 | W47: 0 | X47: 0 | Y47: 0 | Z47: 0 | AA47: 0 | AB47: 0 | AC47: 0 | AD47: 0 | AE47: 0 | AF47: 0 | AG47: 0 | AH47: 0 | AI47: 0 | AJ47: 0 | AK47: 0 | AL47: 0 | AM47: 0 | AN47: 0 | AO47: 0 | AP47: 0 | AQ47: 0 | AR47: 0 | AS47: 0 | AT47: 0 | AU47: 0 | AV47: 0 | AW47: 0 | AX47: 0 | AY47: 0 | AZ47: 0 | BA47: 0 | BB47: 0 | BC47: 0 | BD47: 0 | BE47: 0 | BF47: 0
C48: Administration/legal | E48: % of ECC | F48: =' LCC Inputs Capital Ex Page 8'!G37 -> 0.1225 | I48: 0 | J48: 0 | K48: 0 | L48: 0 | M48: 0 | N48: 0 | O48: 0 | P48: 0 | Q48: 0 | R48: 0 | S48: 0 | T48: 0 | U48: 0 | V48: 0 | W48: 0 | X48: 0 | Y48: 0 | Z48: 0 | AA48: 0 | AB48: 0 | AC48: 0 | AD48: 0 | AE48: 0 | AF48: 0 | AG48: 0 | AH48: 0 | AI48: 0 | AJ48: 0 | AK48: 0 | AL48: 0 | AM48: 0 | AN48: 0 | AO48: 0 | AP48: 0 | AQ48: 0 | AR48: 0 | AS48: 0 | AT48: 0 | AU48: 0 | AV48: 0 | AW48: 0 | AX48: 0 | AY48: 0 | AZ48: 0 | BA48: 0 | BB48: 0 | BC48: 0 | BD48: 0 | BE48: 0 | BF48: 0
C49: =' LCC Inputs Capital Ex Page 8'!B38 -> (other) | F49: =' LCC Inputs Capital Ex Page 8'!G38 -> 0 | I49: 0 | J49: 0 | K49: 0 | L49: 0 | M49: 0 | N49: 0 | O49: 0 | P49: 0 | Q49: 0 | R49: 0 | S49: 0 | T49: 0 | U49: 0 | V49: 0 | W49: 0 | X49: 0 | Y49: 0 | Z49: 0 | AA49: 0 | AB49: 0 | AC49: 0 | AD49: 0 | AE49: 0 | AF49: 0 | AG49: 0 | AH49: 0 | AI49: 0 | AJ49: 0 | AK49: 0 | AL49: 0 | AM49: 0 | AN49: 0 | AO49: 0 | AP49: 0 | AQ49: 0 | AR49: 0 | AS49: 0 | AT49: 0 | AU49: 0 | AV49: 0 | AW49: 0 | AX49: 0 | AY49: 0 | AZ49: 0 | BA49: 0 | BB49: 0 | BC49: 0 | BD49: 0 | BE49: 0 | BF49: 0
C50: =' LCC Inputs Capital Ex Page 8'!B39 -> (other) | F50: =' LCC Inputs Capital Ex Page 8'!G39 -> 0 | I50: 0 | J50: 0 | K50: 0 | L50: 0 | M50: 0 | N50: 0 | O50: 0 | P50: 0 | Q50: 0 | R50: 0 | S50: 0 | T50: 0 | U50: 0 | V50: 0 | W50: 0 | X50: 0 | Y50: 0 | Z50: 0 | AA50: 0 | AB50: 0 | AC50: 0 | AD50: 0 | AE50: 0 | AF50: 0 | AG50: 0 | AH50: 0 | AI50: =IF(AI$13>0,$F50,0) -> 0 | AJ50: 0 | AK50: 0 | AL50: 0 | AM50: 0 | AN50: 0 | AO50: 0 | AP50: 0 | AQ50: 0 | AR50: 0 | AS50: 0 | AT50: 0 | AU50: 0 | AV50: 0 | AW50: 0 | AX50: 0 | AY50: 0 | AZ50: 0 | BA50: 0 | BB50: 0 | BC50: 0 | BD50: 0 | BE50: 0 | BF50: 0
C51: (other) | F51: 0 | I51: 0 | J51: 0 | K51: 0 | L51: 0 | M51: 0 | N51: 0 | O51: 0 | P51: 0 | Q51: 0 | R51: 0 | S51: 0 | T51: 0 | U51: 0 | V51: 0 | W51: 0 | X51: 0 | Y51: =IF(Y$13>0,$F51,0) -> 0 | Z51: 0 | AA51: 0 | AB51: 0 | AC51: 0 | AD51: 0 | AE51: 0 | AF51: 0 | AG51: 0 | AH51: 0 | AI51: 0 | AJ51: 0 | AK51: 0 | AL51: 0 | AM51: 0 | AN51: 0 | AO51: 0 | AP51: 0 | AQ51: 0 | AR51: 0 | AS51: 0 | AT51: 0 | AU51: 0 | AV51: 0 | AW51: 0 | AX51: 0 | AY51: 0 | AZ51: 0 | BA51: 0 | BB51: 0 | BC51: 0 | BD51: 0 | BE51: 0 | BF51: 0
C52: (other) | F52: 0 | I52: 0 | J52: 0 | K52: 0 | L52: 0 | M52: 0 | N52: 0 | O52: 0 | P52: 0 | Q52: 0 | R52: 0 | S52: 0 | T52: 0 | U52: 0 | V52: 0 | W52: 0 | X52: 0 | Y52: 0 | Z52: 0 | AA52: 0 | AB52: 0 | AC52: 0 | AD52: 0 | AE52: 0 | AF52: 0 | AG52: 0 | AH52: 0 | AI52: 0 | AJ52: 0 | AK52: 0 | AL52: 0 | AM52: 0 | AN52: 0 | AO52: 0 | AP52: 0 | AQ52: 0 | AR52: 0 | AS52: 0 | AT52: 0 | AU52: 0 | AV52: 0 | AW52: 0 | AX52: 0 | AY52: 0 | AZ52: 0 | BA52: 0 | BB52: 0 | BC52: 0 | BD52: 0 | BE52: 0 | BF52: 0
C53: Support of the Arts | E53: % of ECC | F53: =Arts -> 0.01 | J53: 0 | K53: 0 | L53: 0 | M53: 0 | N53: 0 | O53: 0 | P53: 0 | Q53: 0 | R53: 0 | S53: 0 | T53: 0 | U53: 0 | V53: 0 | W53: 0 | X53: 0 | Y53: 0 | Z53: 0 | AA53: 0 | AB53: 0 | AC53: 0 | AD53: 0 | AE53: 0 | AF53: 0 | AG53: 0 | AH53: 0 | AI53: 0 | AJ53: 0 | AK53: 0 | AL53: 0 | AM53: 0 | AN53: 0 | AO53: 0 | AP53: 0 | AQ53: 0 | AR53: 0 | AS53: 0 | AT53: 0 | AU53: 0 | AV53: 0 | AW53: 0 | AX53: 0 | AY53: 0 | AZ53: 0 | BA53: 0 | BB53: 0 | BC53: 0 | BD53: 0 | BE53: 0 | BF53: 0
C54: Sales tax | E54: % of ECC | F54: =SalesTax -> 0.095 | I54: 0 | J54: 0 | K54: 0 | L54: 0 | M54: 0 | N54: 0 | O54: 0 | P54: 0 | Q54: 0 | R54: 0 | S54: 0 | T54: 0 | U54: 0 | V54: 0 | W54: 0 | X54: 0 | Y54: 0 | Z54: 0 | AA54: 0 | AB54: 0 | AC54: 0 | AD54: 0 | AE54: 0 | AF54: 0 | AG54: 0 | AH54: 0 | AI54: 0 | AJ54: 0 | AK54: 0 | AL54: 0 | AM54: 0 | AN54: 0 | AO54: 0 | AP54: 0 | AQ54: 0 | AR54: 0 | AS54: 0 | AT54: 0 | AU54: 0 | AV54: 0 | AW54: 0 | AX54: 0 | AY54: 0 | AZ54: 0 | BA54: 0 | BB54: 0 | BC54: 0 | BD54: 0 | BE54: 0 | BF54: 0
A57: =IF(CapitalTrtmt="LS","The following rows are not used with the Lump Sum Capital Treatment method"," ") -> 
A58: Annual Debt Service Determinations | F58: Initial
B59: Cost in unescalated dollars | F59: =F19 -> 0 | M59: =M19 -> 0 | N59: 0 | O59: 0 | P59: 0 | Q59: 0 | R59: 0 | S59: 0 | T59: 0 | U59: 0 | V59: 0 | W59: 0 | X59: 0 | Y59: 0 | Z59: 0 | AA59: 0 | AB59: 0 | AC59: 0 | AD59: 0 | AE59: 0 | AF59: 0 | AG59: 0 | AH59: 0 | AI59: 0 | AJ59: 0 | AK59: 0 | AL59: 0 | AM59: 0 | AN59: 0 | AO59: 0 | AP59: 0 | AQ59: 0 | AR59: 0 | AS59: 0 | AT59: 0 | AU59: 0 | AV59: 0 | AW59: 0 | AX59: 0 | AY59: 0 | AZ59: 0 | BA59: 0 | BB59: 0 | BC59: 0 | BD59: 0 | BE59: 0 | BF59: 0
B60: Proceeds required, escalated | E60: (escalated) | F60: =F19*(1+CostEscalCap)^($I$5-1-EPCBaseYear) -> 0 | M60: =M59*(1+CostEscalCap)^(M5-EPCBaseYear) -> 0 | N60: 0 | O60: 0 | P60: 0 | Q60: 0 | R60: 0 | S60: 0 | T60: 0 | U60: 0 | V60: 0 | W60: 0 | X60: 0 | Y60: 0 | Z60: 0 | AA60: 0 | AB60: 0 | AC60: 0 | AD60: 0 | AE60: 0 | AF60: 0 | AG60: 0 | AH60: 0 | AI60: 0 | AJ60: 0 | AK60: 0 | AL60: 0 | AM60: 0 | AN60: 0 | AO60: 0 | AP60: 0 | AQ60: 0 | AR60: 0 | AS60: 0 | AT60: 0 | AU60: 0 | AV60: 0 | AW60: 0 | AX60: 0 | AY60: 0 | AZ60: 0 | BA60: 0 | BB60: 0 | BC60: 0 | BD60: 0 | BE60: 0 | BF60: 0
B61: Bond sizing | F61: =F60/(1-BondSofts) -> 0 | M61: =M60/(1-BondSofts) -> 0 | N61: 0 | O61: 0 | P61: 0 | Q61: 0 | R61: 0 | S61: 0 | T61: 0 | U61: 0 | V61: 0 | W61: 0 | X61: 0 | Y61: 0 | Z61: 0 | AA61: 0 | AB61: 0 | AC61: 0 | AD61: 0 | AE61: 0 | AF61: 0 | AG61: 0 | AH61: 0 | AI61: 0 | AJ61: 0 | AK61: 0 | AL61: 0 | AM61: 0 | AN61: 0 | AO61: =AO60/(1-BondSofts) -> 0 | AP61: 0 | AQ61: 0 | AR61: 0 | AS61: 0 | AT61: 0 | AU61: 0 | AV61: 0 | AW61: 0 | AX61: 0 | AY61: 0 | AZ61: 0 | BA61: 0 | BB61: 0 | BC61: 0 | BD61: 0 | BE61: 0 | BF61: =BF60/(1-BondSofts) -> 0
B62: Annual debt service | E62: (No coverage) | F62: =-PMT(BondInt,BondMat,F61) ->  | M62: =-PMT(BondInt,BondMat,M61) ->  | N62: =-PMT(BondInt,BondMat,N61) ->  | AO62: =-PMT(BondInt,BondMat,AO61) ->  | BF62: =-PMT(BondInt,BondMat,BF61) -> 
A64: Debt Service Projection
B65: Sum of projected annual debt service | I65: =SUM(I66:I165) ->  | J65: =SUM(J66:J165) -> 0 | K65: 0 | L65: 0 | M65: 0 | Q65: =SUM(Q66:Q165) ->  | R65: =SUM(R66:R165) ->  | BF65: =SUM(BF66:BF165) -> 
D66: Initial financing | I66: =F$62 ->  | J66: =IF((J$5-FirstOps+1)<=BondMat,I66,0) -> 0 | K66: =IF((K$5-FirstOps+1)<=BondMat,J66,0) -> 0 | L66: 0 | M66: 0 | N66: 0 | O66: 0 | P66: 0 | Q66: 0 | R66: 0 | S66: 0 | T66: 0 | U66: 0 | V66: 0 | W66: 0 | X66: 0 | Y66: 0 | Z66: 0 | AA66: 0 | AB66: 0 | AC66: 0 | AD66: 0 | AE66: 0 | AF66: 0 | AG66: 0 | AH66: 0 | AI66: 0 | AJ66: 0 | AK66: 0 | AL66: 0 | AM66: 0 | AN66: 0 | AO66: 0 | AP66: 0 | AQ66: 0 | AR66: 0 | AS66: 0 | AT66: 0 | AU66: 0 | AV66: 0 | AW66: 0 | AX66: 0 | AY66: 0 | AZ66: 0 | BA66: 0 | BB66: 0 | BC66: 0 | BD66: 0 | BE66: 0 | BF66: =IF((BF$5-FirstOps+1)<=BondMat,BE66,0) -> 0
D67: =I5 -> 0 | J67: =I$62 -> 0 | K67: =IF((K$5-$D67)<=BondMat,J67,0) -> 0 | L67: 0 | M67: 0 | N67: 0 | O67: 0 | P67: 0 | Q67: 0 | R67: 0 | S67: 0 | T67: 0 | U67: 0 | V67: 0 | W67: 0 | X67: 0 | Y67: 0 | Z67: 0 | AA67: =IF((AA$5-$D67)<=BondMat,Z67,0) -> 0 | AB67: 0 | AC67: 0 | AD67: 0 | AE67: 0 | AF67: 0 | AG67: 0 | AH67: 0 | AI67: 0 | AJ67: 0 | AK67: 0 | AL67: 0 | AM67: 0 | AN67: 0 | AO67: 0 | AP67: 0 | AQ67: =IF((AQ$5-$D67)<=BondMat,AP67,0) -> 0 | AR67: 0 | AS67: 0 | AT67: 0 | AU67: 0 | AV67: 0 | AW67: 0 | AX67: 0 | AY67: 0 | AZ67: 0 | BA67: 0 | BB67: 0 | BC67: 0 | BD67: 0 | BE67: 0 | BF67: =IF((BF$5-$D67)<=BondMat,BE67,0) -> 0
D68: =D67+1 -> 1 | K68: =J$62 -> 0 | L68: 0 | M68: 0 | N68: 0 | O68: =IF((O$5-$D68)<=BondMat,N68,0) -> 0 | P68: 0 | Q68: 0 | R68: 0 | S68: 0 | T68: 0 | U68: 0 | V68: 0 | W68: 0 | X68: 0 | Y68: 0 | Z68: 0 | AA68: 0 | AB68: 0 | AC68: 0 | AD68: 0 | AE68: 0 | AF68: 0 | AG68: 0 | AH68: 0 | AI68: 0 | AJ68: 0 | AK68: 0 | AL68: 0 | AM68: 0 | AN68: 0 | AO68: 0 | AP68: 0 | AQ68: 0 | AR68: 0 | AS68: 0 | AT68: 0 | AU68: 0 | AV68: 0 | AW68: 0 | AX68: 0 | AY68: 0 | AZ68: 0 | BA68: 0 | BB68: 0 | BC68: 0 | BD68: 0 | BE68: 0 | BF68: 0
D69: =D68+1 -> 2 | L69: =K$62 -> 0 | M69: 0 | N69: 0 | O69: 0 | P69: 0 | Q69: 0 | R69: 0 | S69: 0 | T69: 0 | U69: 0 | V69: 0 | W69: 0 | X69: 0 | Y69: 0 | Z69: 0 | AA69: 0 | AB69: 0 | AC69: 0 | AD69: 0 | AE69: 0 | AF69: 0 | AG69: 0 | AH69: 0 | AI69: 0 | AJ69: 0 | AK69: 0 | AL69: 0 | AM69: 0 | AN69: 0 | AO69: 0 | AP69: 0 | AQ69: 0 | AR69: 0 | AS69: 0 | AT69: 0 | AU69: 0 | AV69: 0 | AW69: 0 | AX69: 0 | AY69: 0 | AZ69: 0 | BA69: 0 | BB69: 0 | BC69: 0 | BD69: 0 | BE69: 0 | BF69: 0
D70: 3 | M70: =L$62 -> 0 | N70: 0 | O70: 0 | P70: 0 | Q70: 0 | R70: 0 | S70: 0 | T70: 0 | U70: 0 | V70: 0 | W70: 0 | X70: 0 | Y70: 0 | Z70: 0 | AA70: 0 | AB70: 0 | AC70: 0 | AD70: 0 | AE70: 0 | AF70: 0 | AG70: 0 | AH70: 0 | AI70: 0 | AJ70: 0 | AK70: 0 | AL70: 0 | AM70: 0 | AN70: 0 | AO70: 0 | AP70: 0 | AQ70: 0 | AR70: 0 | AS70: 0 | AT70: 0 | AU70: 0 | AV70: 0 | AW70: 0 | AX70: 0 | AY70: 0 | AZ70: 0 | BA70: 0 | BB70: 0 | BC70: 0 | BD70: 0 | BE70: 0 | BF70: 0
D71: 4 | N71: =M$62 ->  | O71: 0 | P71: 0 | Q71: 0 | R71: 0 | S71: 0 | T71: 0 | U71: 0 | V71: 0 | W71: 0 | X71: 0 | Y71: 0 | Z71: 0 | AA71: 0 | AB71: 0 | AC71: 0 | AD71: 0 | AE71: 0 | AF71: 0 | AG71: 0 | AH71: 0 | AI71: 0 | AJ71: 0 | AK71: 0 | AL71: 0 | AM71: 0 | AN71: 0 | AO71: 0 | AP71: 0 | AQ71: 0 | AR71: 0 | AS71: 0 | AT71: 0 | AU71: 0 | AV71: 0 | AW71: 0 | AX71: 0 | AY71: 0 | AZ71: 0 | BA71: 0 | BB71: 0 | BC71: 0 | BD71: 0 | BE71: 0 | BF71: 0
D72: 5 | O72: =N$62 ->  | P72: 0 | Q72: 0 | R72: =IF((R$5-$D72)<=BondMat,Q72,0) -> 0 | S72: 0 | T72: 0 | U72: 0 | V72: 0 | W72: 0 | X72: 0 | Y72: 0 | Z72: 0 | AA72: 0 | AB72: 0 | AC72: 0 | AD72: 0 | AE72: 0 | AF72: 0 | AG72: 0 | AH72: 0 | AI72: 0 | AJ72: 0 | AK72: 0 | AL72: 0 | AM72: 0 | AN72: 0 | AO72: 0 | AP72: 0 | AQ72: 0 | AR72: 0 | AS72: 0 | AT72: 0 | AU72: 0 | AV72: 0 | AW72: 0 | AX72: 0 | AY72: 0 | AZ72: 0 | BA72: 0 | BB72: 0 | BC72: 0 | BD72: 0 | BE72: 0 | BF72: 0
D73: 6 | P73: =O$62 ->  | Q73: 0 | R73: 0 | S73: 0 | T73: 0 | U73: 0 | V73: 0 | W73: 0 | X73: 0 | Y73: 0 | Z73: 0 | AA73: 0 | AB73: 0 | AC73: 0 | AD73: 0 | AE73: 0 | AF73: 0 | AG73: 0 | AH73: 0 | AI73: 0 | AJ73: 0 | AK73: 0 | AL73: 0 | AM73: 0 | AN73: 0 | AO73: 0 | AP73: 0 | AQ73: 0 | AR73: 0 | AS73: 0 | AT73: 0 | AU73: 0 | AV73: 0 | AW73: 0 | AX73: 0 | AY73: 0 | AZ73: 0 | BA73: 0 | BB73: 0 | BC73: 0 | BD73: 0 | BE73: 0 | BF73: 0
D74: 7 | Q74: =P$62 ->  | R74: 0 | S74: 0 | T74: 0 | U74: 0 | V74: 0 | W74: 0 | X74: 0 | Y74: 0 | Z74: 0 | AA74: 0 | AB74: 0 | AC74: 0 | AD74: 0 | AE74: 0 | AF74: 0 | AG74: 0 | AH74: 0 | AI74: 0 | AJ74: 0 | AK74: 0 | AL74: 0 | AM74: 0 | AN74: 0 | AO74: 0 | AP74: 0 | AQ74: 0 | AR74: 0 | AS74: 0 | AT74: 0 | AU74: 0 | AV74: 0 | AW74: 0 | AX74: 0 | AY74: 0 | AZ74: 0 | BA74: 0 | BB74: 0 | BC74: 0 | BD74: 0 | BE74: 0 | BF74: 0
D75: 8 | R75: =Q$62 ->  | S75: 0 | T75: 0 | U75: 0 | V75: 0 | W75: 0 | X75: 0 | Y75: 0 | Z75: 0 | AA75: 0 | AB75: 0 | AC75: 0 | AD75: 0 | AE75: 0 | AF75: 0 | AG75: 0 | AH75: 0 | AI75: 0 | AJ75: 0 | AK75: 0 | AL75: 0 | AM75: 0 | AN75: 0 | AO75: 0 | AP75: 0 | AQ75: 0 | AR75: 0 | AS75: 0 | AT75: 0 | AU75: 0 | AV75: 0 | AW75: 0 | AX75: 0 | AY75: 0 | AZ75: 0 | BA75: 0 | BB75: 0 | BC75: 0 | BD75: 0 | BE75: 0 | BF75: 0
D76: 9 | S76: =R$62 ->  | T76: 0 | U76: 0 | V76: 0 | W76: 0 | X76: 0 | Y76: 0 | Z76: 0 | AA76: 0 | AB76: 0 | AC76: 0 | AD76: 0 | AE76: 0 | AF76: 0 | AG76: 0 | AH76: 0 | AI76: 0 | AJ76: 0 | AK76: 0 | AL76: 0 | AM76: 0 | AN76: 0 | AO76: 0 | AP76: 0 | AQ76: 0 | AR76: 0 | AS76: 0 | AT76: 0 | AU76: 0 | AV76: 0 | AW76: 0 | AX76: 0 | AY76: 0 | AZ76: 0 | BA76: 0 | BB76: 0 | BC76: 0 | BD76: 0 | BE76: 0 | BF76: 0
D77: 10 | T77: =S$62 ->  | U77: 0 | V77: 0 | W77: 0 | X77: 0 | Y77: 0 | Z77: 0 | AA77: 0 | AB77: 0 | AC77: 0 | AD77: 0 | AE77: 0 | AF77: 0 | AG77: 0 | AH77: 0 | AI77: 0 | AJ77: 0 | AK77: 0 | AL77: 0 | AM77: 0 | AN77: 0 | AO77: 0 | AP77: 0 | AQ77: 0 | AR77: 0 | AS77: 0 | AT77: 0 | AU77: 0 | AV77: 0 | AW77: 0 | AX77: 0 | AY77: 0 | AZ77: 0 | BA77: 0 | BB77: 0 | BC77: 0 | BD77: 0 | BE77: 0 | BF77: 0
D78: 11 | U78: =T$62 ->  | V78: 0 | W78: 0 | X78: 0 | Y78: 0 | Z78: 0 | AA78: 0 | AB78: 0 | AC78: 0 | AD78: 0 | AE78: 0 | AF78: 0 | AG78: 0 | AH78: 0 | AI78: 0 | AJ78: 0 | AK78: 0 | AL78: 0 | AM78: 0 | AN78: 0 | AO78: 0 | AP78: 0 | AQ78: 0 | AR78: 0 | AS78: 0 | AT78: 0 | AU78: 0 | AV78: 0 | AW78: 0 | AX78: 0 | AY78: 0 | AZ78: 0 | BA78: 0 | BB78: 0 | BC78: 0 | BD78: 0 | BE78: 0 | BF78: 0
D79: 12 | V79: =U$62 ->  | W79: 0 | X79: 0 | Y79: 0 | Z79: 0 | AA79: 0 | AB79: 0 | AC79: 0 | AD79: 0 | AE79: 0 | AF79: 0 | AG79: 0 | AH79: 0 | AI79: 0 | AJ79: 0 | AK79: 0 | AL79: 0 | AM79: 0 | AN79: 0 | AO79: 0 | AP79: 0 | AQ79: 0 | AR79: 0 | AS79: 0 | AT79: 0 | AU79: 0 | AV79: 0 | AW79: 0 | AX79: 0 | AY79: 0 | AZ79: 0 | BA79: 0 | BB79: 0 | BC79: 0 | BD79: 0 | BE79: 0 | BF79: 0
D80: 13 | W80: =V$62 ->  | X80: 0 | Y80: 0 | Z80: 0 | AA80: 0 | AB80: 0 | AC80: 0 | AD80: 0 | AE80: 0 | AF80: 0 | AG80: 0 | AH80: 0 | AI80: 0 | AJ80: 0 | AK80: 0 | AL80: 0 | AM80: 0 | AN80: 0 | AO80: 0 | AP80: 0 | AQ80: 0 | AR80: 0 | AS80: 0 | AT80: 0 | AU80: 0 | AV80: 0 | AW80: 0 | AX80: 0 | AY80: 0 | AZ80: 0 | BA80: 0 | BB80: 0 | BC80: 0 | BD80: 0 | BE80: 0 | BF80: 0
D81: 14 | X81: =W$62 ->  | Y81: 0 | Z81: 0 | AA81: 0 | AB81: 0 | AC81: 0 | AD81: 0 | AE81: 0 | AF81: 0 | AG81: 0 | AH81: 0 | AI81: 0 | AJ81: 0 | AK81: 0 | AL81: 0 | AM81: 0 | AN81: 0 | AO81: 0 | AP81: 0 | AQ81: 0 | AR81: 0 | AS81: 0 | AT81: 0 | AU81: 0 | AV81: 0 | AW81: 0 | AX81: 0 | AY81: 0 | AZ81: 0 | BA81: 0 | BB81: 0 | BC81: 0 | BD81: 0 | BE81: 0 | BF81: 0
D82: 15 | Y82: =X$62 ->  | Z82: 0 | AA82: 0 | AB82: 0 | AC82: 0 | AD82: 0 | AE82: 0 | AF82: 0 | AG82: 0 | AH82: 0 | AI82: 0 | AJ82: 0 | AK82: 0 | AL82: 0 | AM82: 0 | AN82: 0 | AO82: 0 | AP82: =IF((AP$5-$D82)<=BondMat,AO82,0) -> 0 | AQ82: 0 | AR82: 0 | AS82: 0 | AT82: 0 | AU82: 0 | AV82: 0 | AW82: 0 | AX82: 0 | AY82: 0 | AZ82: 0 | BA82: 0 | BB82: 0 | BC82: 0 | BD82: 0 | BE82: 0 | BF82: 0
D83: 16 | Z83: =Y$62 ->  | AA83: =IF((AA$5-$D83)<=BondMat,Z83,0) -> 0 | AB83: 0 | AC83: 0 | AD83: 0 | AE83: 0 | AF83: 0 | AG83: 0 | AH83: 0 | AI83: 0 | AJ83: 0 | AK83: 0 | AL83: 0 | AM83: 0 | AN83: 0 | AO83: 0 | AP83: 0 | AQ83: 0 | AR83: 0 | AS83: 0 | AT83: 0 | AU83: 0 | AV83: 0 | AW83: 0 | AX83: 0 | AY83: 0 | AZ83: 0 | BA83: 0 | BB83: 0 | BC83: 0 | BD83: 0 | BE83: 0 | BF83: 0
